Workbook

Sheet Cover
A2: RIIO-2 Price Control Financial Model (PCFM)
B3: Gas Transmission
C4: Model Version | G4: =MID(CELL("filename"),SEARCH("[",CELL("filename"))+1,SEARCH("]",CELL("filename"))-SEARCH("[",CELL("filename"))-1) -> Republished GT2 PCFM AIP 2023.xlsm
B7: Model key
E9: Sample | G9: Calculated value | I9: Sample | K9: Information and interface
E10: Sample | G10: Import | I10: Sample | K10: Fixed input value
E11: Sample | G11: Export | I11: Sample | K11: Ofgem annual update input (outturn value)
E12: Sample | G12: Named range | I12: Sample | K12: Ofgem annual update input (forecasted value)
E13: Sample | G13: Formula change in cells to the right | I13: Sample | K13: Other annual update input (outturn value)
I14: Sample | K14: Other annual update input (forecasted value)
I15: Sample | K15: Input linked from annual update
I16: Sample | K16: Notes and instructions
I17: Sample | K17: Check
B19: Contents
E21: INTERFACE > | I21: GENERAL INPUT SHEETS >
E22: Cover | G22: Model key and content directory | I22: Annual Inflation | K22: Derivation of annual inflation rates and price indices
E23: UserInterface | G23: Model operation | I23: Monthly Inflation | K23: Dataset and derivation of monthly inflation rates and price indices
E25: INPUT SELECTION > | I25: COMPANY SPECIFIC INPUT SHEETS >
E26: Input | G26: Inputs for selected licensee | I26: NGGT TO | K26: Inputs for NGGT TO
I27: NGGT SO | K27: Inputs for NGGT SO
E28: CALCULATION >
E29: Totex | G29: Totex allowance and actuals
E30: TIM | G30: Totex Incentive Mechanism and capitalisation
E31: Depn | G31: Gas transmission regulatory depreciation
E32: SystemOperator | G32: System operator calculations
E33: Return&RAV | G33: RAV and return calculations
E34: TaxPools | G34: Tax pools and capital allowances
E35: Finance&Tax | G35: Net debt, equity issuance, financing costs and tax
E36: NonCore | G36: Calculations for non-core regulatory assets (Revenue drivers)
E37: ReturnAdj | G37: Calculations for the Return Adjustment
E38: Revenue | G38: Summary of calculated revenue
E39: AR | G39: Derivation of allowed revenue (TO)
E40: SOAR | G40: Derivation of allowed revenue (SO)
E42: OUTPUT >
E43: LiveResults | G43: Live results for NGGT TO and SO
E44: SavedResults | G44: Saved results for NGGT TO and SO
B46: End of sheet

Sheet UserInterface
A1: User Interface
B2: =UserInterface!G17 -> NGGT TO
B3: Model operation
C5: PCFM year t
C6: Instruction: Use the following drop-down list to identify year t in the model. Year t is identified here by its end date.
E8: Year t selection:
E10: Year t selected: | G10: =INDEX($G$37:$G$43,m_PCFM_year_t) -> 2025-03-31
C12: Active company
C13: Instruction: Use the following drop-down list to select the active company in the model.
E15: Company selection:
E17: Selected company: | G17: =INDEX(E37:E37, E38) -> NGGT TO
C19: Run model for all licensees
C20: Instruction: Click on the left button to save results for the selected company only. Click the right button to save results for all.
C21: Note: Annual iterations must have been completed for all prior years before running the model to generate MOD.
C22: The macros save results and values required for future years which cannot be recreated once inputs are revised.
C23: Running the macro saves the output from year t's iteration for use in future iterations.
C24: Results for the selected company can be found on the "LiveResults" sheet and also on the "SavedResults" sheet once saved by a macro.
B30: User selection lists
B31: Note: The lists below drive the drop-down lists above.
B32: Using the drop-down lists above returns an integer in the "cell link" positioned below their "source list."
B33: The number returned in the cell link corresponds to the position of the selected item in the source list.
B34: The company selection output is set as a "named range." This gives a stable anchor point for the "RunForAll" macro to change the company.
E36: ="Source for ''"&C12&"'' drop-down list" -> Source for ''Active company'' drop-down list | G36: ="Source for ''"&C5&"'' drop-down list" -> Source for ''PCFM year t'' drop-down list
E37: NGGT TO | G37: 2022-03-31
E38: 1 | G38: 2023-03-31
E39: Adjacent named range: m_identity | G39: 2024-03-31
G40: 2025-03-31
G41: 2026-03-31
G42: 2027-03-31
G43: 2028-03-31
G44: 4
G45: Adjacent named range: m_PCFM_year_t
B47: End of sheet

Sheet Input
A1: Input
B2: =UserInterface!G17 -> NGGT TO
E3: Parameter | F3: Licence condition | G3: Units | H3: Term | I3: Constant | AP3: Annual values | BC3: TIM/ Non-TIM | BD3: RPE Incl. or Excl. | BE3: Baseline/UM | BF3: Capitalisation method: Fast/slow split or 100% fast money award
E4: PCFM year ending | F4: =Cover!C4 -> Model Version | I4: =UserInterface!$G$10 -> 2025-03-31 | K4: 1991-03-31 | L4: 1992-03-31 | M4: 1993-03-31 | N4: 1994-03-31 | O4: 1995-03-31 | P4: 1996-03-31 | Q4: 1997-03-31 | R4: 1998-03-31 | S4: 1999-03-31 | T4: 2000-03-31 | U4: 2001-03-31 | V4: 2002-03-31 | W4: 2003-03-31 | X4: 2004-03-31 | Y4: 2005-03-31 | Z4: 2006-03-31 | AA4: 2007-03-31 | AB4: 2008-03-31 | AC4: 2009-03-31 | AD4: 2010-03-31 | AE4: 2011-03-31 | AF4: 2012-03-31 | AG4: 2013-03-31 | AH4: 2014-03-31 | AI4: 2015-03-31 | AJ4: 2016-03-31 | AK4: 2017-03-31 | AL4: 2018-03-31 | AM4: 2019-03-31 | AN4: 2020-03-31 | AO4: 2021-03-31 | AP4: 2022-03-31 | AQ4: 2023-03-31 | AR4: 2024-03-31 | AS4: 2025-03-31 | AT4: 2026-03-31
B6: Totex allowance
C8: Non-variant allowances
C9: Note: Disposals net sales proceeds are deducted from non-variant "other capex".
E11: Non-variant allowed load related capex expenditure | G11: £m 18/19 prices | AP11: ='NGGT TO'!AP10 -> 0.3165010435 | AQ11: ='NGGT TO'!AQ10 -> 1.266628434 | AR11: ='NGGT TO'!AR10 -> 0.7091387381 | AS11: ='NGGT TO'!AS10 -> 0.3188108682 | AT11: ='NGGT TO'!AT10 -> 0
E12: Non-variant allowed asset replacement capex expenditure | G12: £m 18/19 prices | AP12: ='NGGT TO'!AP11 -> 13.63984293 | AQ12: ='NGGT TO'!AQ11 -> 5.353061423 | AR12: ='NGGT TO'!AR11 -> 16.12458997 | AS12: ='NGGT TO'!AS11 -> 15.97367167 | AT12: ='NGGT TO'!AT11 -> 11.03472356
E13: Non-variant allowed other capex expenditure (net of disposals) | G13: £m 18/19 prices | AP13: =- AP539 + 'NGGT TO'!AP12 -> 0.6256585976 | AQ13: =- AQ539 + 'NGGT TO'!AQ12 -> 2.477870463 | AR13: =- AR539 + 'NGGT TO'!AR12 -> 2.946034837 | AS13: =- AS539 + 'NGGT TO'!AS12 -> 3.204832405 | AT13: =- AT539 + 'NGGT TO'!AT12 -> 1.936455636
E14: Non-variant allowed non-load (opex) | G14: £m 18/19 prices | AP14: ='NGGT TO'!AP13 -> 42.3548453 | AQ14: ='NGGT TO'!AQ13 -> 42.13955032 | AR14: ='NGGT TO'!AR13 -> 41.9685025 | AS14: ='NGGT TO'!AS13 -> 43.74105677 | AT14: ='NGGT TO'!AT13 -> 40.24190276
E15: Non-variant allowed indirects (opex) | G15: £m 18/19 prices | AP15: ='NGGT TO'!AP14 -> 62.62358149 | AQ15: ='NGGT TO'!AQ14 -> 63.77540345 | AR15: ='NGGT TO'!AR14 -> 62.18446251 | AS15: ='NGGT TO'!AS14 -> 54.07628894 | AT15: ='NGGT TO'!AT14 -> 52.24969622
E16: Non-variant allowed non-operational capex | G16: £m 18/19 prices | AP16: ='NGGT TO'!AP15 -> 26.09808032 | AQ16: ='NGGT TO'!AQ15 -> 24.56149091 | AR16: ='NGGT TO'!AR15 -> 22.04079388 | AS16: ='NGGT TO'!AS15 -> 19.98085355 | AT16: ='NGGT TO'!AT15 -> 18.86524883
E17: Total | G17: £m 18/19 prices | AP17: =SUM(AP11:AP16) -> 145.6585097 | AQ17: =SUM(AQ11:AQ16) -> 139.574005 | AR17: =SUM(AR11:AR16) -> 145.9735224 | AS17: =SUM(AS11:AS16) -> 137.2955142 | AT17: =SUM(AT11:AT16) -> 124.328027
C19: Variant allowances (including Real Price Effects)
C20: Note: In the table below RPEs are aggregated in three groups: RPE non-variant allowances, PCDs and UMs. This allows to apply the correct capitalisation rate to each group.
E22: ='NGGT TO'!E20 -> Baseline Allowed NARM Expenditure | G22: £m 18/19 prices | H22: ='NGGT TO'!H20 -> NARMt | I22: ='NGGT TO'!I20 -> PCD | AP22: ='NGGT TO'!AP20 -> 70.55693441 | AQ22: ='NGGT TO'!AQ20 -> 93.60001095 | AR22: ='NGGT TO'!AR20 -> 79.7760084 | AS22: ='NGGT TO'!AS20 -> 49.84675935 | AT22: ='NGGT TO'!AT20 -> 60.64780962 | BC22: ='NGGT TO'!BC20 -> TIM | BD22: ='NGGT TO'!BD20 -> RPEs Apply | BE22: ='NGGT TO'!BE20 -> CapRate 1 (Baseline) | BF22: ='NGGT TO'!BF20 -> Fast/Slow Split
E23: ='NGGT TO'!E21 -> Physical security Price Control Deliverable | G23: £m 18/19 prices | H23: ='NGGT TO'!H21 -> PSUPt | I23: ='NGGT TO'!I21 -> PCD | AP23: ='NGGT TO'!AP21 -> 9.59800108 | AQ23: ='NGGT TO'!AQ21 -> 14.90123729 | AR23: ='NGGT TO'!AR21 -> 1.025758933 | AS23: ='NGGT TO'!AS21 -> 0 | AT23: ='NGGT TO'!AT21 -> 0 | BC23: ='NGGT TO'!BC21 -> TIM | BD23: ='NGGT TO'!BD21 -> RPEs Apply | BE23: ='NGGT TO'!BE21 -> CapRate 1 (Baseline) | BF23: ='NGGT TO'!BF21 -> Fast/Slow Split
E24: ='NGGT TO'!E22 -> Bacton terminal site redevelopment Price Control Deliverable | G24: £m 18/19 prices | H24: ='NGGT TO'!H22 -> BTRt | I24: ='NGGT TO'!I22 -> PCD | AP24: ='NGGT TO'!AP22 -> 7.126023842 | AQ24: ='NGGT TO'!AQ22 -> 3.373682904 | AR24: ='NGGT TO'!AR22 -> 0 | AS24: ='NGGT TO'!AS22 -> 0 | AT24: ='NGGT TO'!AT22 -> 0 | BC24: ='NGGT TO'!BC22 -> TIM | BD24: ='NGGT TO'!BD22 -> RPEs Apply | BE24: ='NGGT TO'!BE22 -> CapRate 1 (Baseline) | BF24: ='NGGT TO'!BF22 -> Fast/Slow Split
E25: ='NGGT TO'!E23 -> King's Lynn subsidence Price Control Deliverable | G25: £m 18/19 prices | H25: ='NGGT TO'!H23 -> KLSt | I25: ='NGGT TO'!I23 -> PCD | AP25: ='NGGT TO'!AP23 -> 0.3830622739 | AQ25: ='NGGT TO'!AQ23 -> 0 | AR25: ='NGGT TO'!AR23 -> 0 | AS25: ='NGGT TO'!AS23 -> 0 | AT25: ='NGGT TO'!AT23 -> 0 | BC25: ='NGGT TO'!BC23 -> TIM | BD25: ='NGGT TO'!BD23 -> RPEs Apply | BE25: ='NGGT TO'!BE23 -> CapRate 1 (Baseline) | BF25: ='NGGT TO'!BF23 -> Fast/Slow Split
E26: ='NGGT TO'!E24 -> Asset health - non lead assets Price Control Deliverable | G26: £m 18/19 prices | H26: ='NGGT TO'!H24 -> NLAt | I26: ='NGGT TO'!I24 -> PCD | AP26: ='NGGT TO'!AP24 -> 7.457287952 | AQ26: ='NGGT TO'!AQ24 -> 9.860725476 | AR26: ='NGGT TO'!AR24 -> 11.92031351 | AS26: ='NGGT TO'!AS24 -> 7.716952262 | AT26: ='NGGT TO'!AT24 -> 9.435024339 | BC26: ='NGGT TO'!BC24 -> TIM | BD26: ='NGGT TO'!BD24 -> RPEs Apply | BE26: ='NGGT TO'!BE24 -> CapRate 1 (Baseline) | BF26: ='NGGT TO'!BF24 -> Fast/Slow Split
E27: ='NGGT TO'!E25 -> Compressor emissions Price Control Deliverable | G27: £m 18/19 prices | H27: ='NGGT TO'!H25 -> CEPt | I27: ='NGGT TO'!I25 -> PCD | AP27: ='NGGT TO'!AP25 -> 8.382200176 | AQ27: ='NGGT TO'!AQ25 -> 34.51277436 | AR27: ='NGGT TO'!AR25 -> 59.5004701 | AS27: ='NGGT TO'!AS25 -> 20.47476889 | AT27: ='NGGT TO'!AT25 -> 1.006283649 | BC27: ='NGGT TO'!BC25 -> TIM | BD27: ='NGGT TO'!BD25 -> RPEs Apply | BE27: ='NGGT TO'!BE25 -> CapRate 1 (Baseline) | BF27: ='NGGT TO'!BF25 -> Fast/Slow Split
E28: ='NGGT TO'!E26 -> Redundant Assets Price Control Deliverable | G28: £m 18/19 prices | H28: ='NGGT TO'!H26 -> RAt | I28: ='NGGT TO'!I26 -> PCD | AP28: ='NGGT TO'!AP26 -> 3.580982602 | AQ28: ='NGGT TO'!AQ26 -> 22.37809533 | AR28: ='NGGT TO'!AR26 -> 21.28680313 | AS28: ='NGGT TO'!AS26 -> 13.13586725 | AT28: ='NGGT TO'!AT26 -> 17.13426952 | BC28: ='NGGT TO'!BC26 -> TIM | BD28: ='NGGT TO'!BD26 -> RPEs Apply | BE28: ='NGGT TO'!BE26 -> CapRate 1 (Baseline) | BF28: ='NGGT TO'!BF26 -> Fast/Slow Split
E29: ='NGGT TO'!E27 -> Funded incremental obligated capacity Price Control Deliverable | G29: £m 18/19 prices | H29: ='NGGT TO'!H27 -> FIOCt | I29: ='NGGT TO'!I27 -> PCD | AP29: ='NGGT TO'!AP27 -> 0 | AQ29: ='NGGT TO'!AQ27 -> 0 | AR29: ='NGGT TO'!AR27 -> 0 | AS29: ='NGGT TO'!AS27 -> 0 | AT29: ='NGGT TO'!AT27 -> 0 | BC29: ='NGGT TO'!BC27 -> TIM | BD29: ='NGGT TO'!BD27 -> RPEs Apply | BE29: ='NGGT TO'!BE27 -> CapRate 1 (Baseline) | BF29: ='NGGT TO'!BF27 -> Fast/Slow Split
E30: ='NGGT TO'!E28 -> Cyber Resilience OT Baseline | G30: £m 18/19 prices | H30: ='NGGT TO'!H28 -> CROTt | I30: ='NGGT TO'!I28 -> PCD | AP30: ='NGGT TO'!AP28 -> 24.91374409 | AQ30: ='NGGT TO'!AQ28 -> 52.50771196 | AR30: ='NGGT TO'!AR28 -> 113.0749413 | AS30: ='NGGT TO'!AS28 -> 111.1767994 | AT30: ='NGGT TO'!AT28 -> 76.60707856 | BC30: ='NGGT TO'!BC28 -> Non-Tim | BD30: ='NGGT TO'!BD28 -> RPEs Don’t Apply | BE30: ='NGGT TO'!BE28 -> CapRate 1 (Baseline) | BF30: ='NGGT TO'!BF28 -> Fast/Slow Split
E31: ='NGGT TO'!E29 -> Cyber Resilience IT Baseline | G31: £m 18/19 prices | H31: ='NGGT TO'!H29 -> CRITt | I31: ='NGGT TO'!I29 -> PCD | AP31: ='NGGT TO'!AP29 -> 5.332346271 | AQ31: ='NGGT TO'!AQ29 -> 5.454264475 | AR31: ='NGGT TO'!AR29 -> 4.383467594 | AS31: ='NGGT TO'!AS29 -> 0 | AT31: ='NGGT TO'!AT29 -> 0 | BC31: ='NGGT TO'!BC29 -> TIM | BD31: ='NGGT TO'!BD29 -> RPEs Apply | BE31: ='NGGT TO'!BE29 -> CapRate 1 (Baseline) | BF31: ='NGGT TO'!BF29 -> Fast/Slow Split
E32: ='NGGT TO'!E30 -> Net Zero And Re-opener Development Fund use it or lose it allowance | G32: £m 18/19 prices | H32: ='NGGT TO'!H30 -> RDFt | I32: ='NGGT TO'!I30 -> PCD | AP32: ='NGGT TO'!AP30 -> 1.66 | AQ32: ='NGGT TO'!AQ30 -> 1.66 | AR32: ='NGGT TO'!AR30 -> 1.66 | AS32: ='NGGT TO'!AS30 -> 1.66 | AT32: ='NGGT TO'!AT30 -> 1.66 | BC32: ='NGGT TO'!BC30 -> Non-Tim | BD32: ='NGGT TO'!BD30 -> RPEs Don’t Apply | BE32: ='NGGT TO'!BE30 -> CapRate 1 (Baseline) | BF32: ='NGGT TO'!BF30 -> Fast/Slow Split
E33: ='NGGT TO'!E31 -> Spare PCD 1 | G33: £m 18/19 prices | H33: ='NGGT TO'!H31 -> 0 | I33: ='NGGT TO'!I31 -> PCD | AP33: ='NGGT TO'!AP31 -> 0 | AQ33: ='NGGT TO'!AQ31 -> 0 | AR33: ='NGGT TO'!AR31 -> 0 | AS33: ='NGGT TO'!AS31 -> 0 | AT33: ='NGGT TO'!AT31 -> 0 | BC33: ='NGGT TO'!BC31 -> TIM | BD33: ='NGGT TO'!BD31 -> RPEs Apply | BE33: ='NGGT TO'!BE31 -> CapRate 1 (Baseline) | BF33: ='NGGT TO'!BF31 -> Fast/Slow Split
E34: ='NGGT TO'!E32 -> Spare PCD 2 | G34: £m 18/19 prices | H34: ='NGGT TO'!H32 -> 0 | I34: ='NGGT TO'!I32 -> PCD | AP34: ='NGGT TO'!AP32 -> 0 | AQ34: ='NGGT TO'!AQ32 -> 0 | AR34: ='NGGT TO'!AR32 -> 0 | AS34: ='NGGT TO'!AS32 -> 0 | AT34: ='NGGT TO'!AT32 -> 0 | BC34: ='NGGT TO'!BC32 -> 0 | BD34: ='NGGT TO'!BD32 -> 0 | BE34: ='NGGT TO'!BE32 -> 0 | BF34: ='NGGT TO'!BF32 -> 0
E35: ='NGGT TO'!E33 -> Spare PCD 3 | G35: £m 18/19 prices | H35: ='NGGT TO'!H33 -> 0 | I35: ='NGGT TO'!I33 -> PCD | AP35: ='NGGT TO'!AP33 -> 0 | AQ35: ='NGGT TO'!AQ33 -> 0 | AR35: ='NGGT TO'!AR33 -> 0 | AS35: ='NGGT TO'!AS33 -> 0 | AT35: ='NGGT TO'!AT33 -> 0 | BC35: ='NGGT TO'!BC33 -> 0 | BD35: ='NGGT TO'!BD33 -> 0 | BE35: ='NGGT TO'!BE33 -> 0 | BF35: ='NGGT TO'!BF33 -> 0
E36: ='NGGT TO'!E34 -> NARM Asset Health Re-opener | G36: £m 18/19 prices | H36: ='NGGT TO'!H34 -> NARMAHt | I36: ='NGGT TO'!I34 -> UM | AP36: ='NGGT TO'!AP34 -> 0 | AQ36: ='NGGT TO'!AQ34 -> 0 | AR36: ='NGGT TO'!AR34 -> 0 | AS36: ='NGGT TO'!AS34 -> 0 | AT36: ='NGGT TO'!AT34 -> 0 | BC36: ='NGGT TO'!BC34 -> TIM | BD36: ='NGGT TO'!BD34 -> RPEs Don’t Apply | BE36: ='NGGT TO'!BE34 -> CapRate 2 (UM) | BF36: ='NGGT TO'!BF34 -> Fast/Slow Split
E37: ='NGGT TO'!E35 -> Non-operational IT Capex Re-opener | G37: £m 18/19 prices | H37: ='NGGT TO'!H35 -> NOITREt | I37: ='NGGT TO'!I35 -> UM | AP37: ='NGGT TO'!AP35 -> 0 | AQ37: ='NGGT TO'!AQ35 -> 0.483362332 | AR37: ='NGGT TO'!AR35 -> 1.613241746 | AS37: ='NGGT TO'!AS35 -> 1.637086685 | AT37: ='NGGT TO'!AT35 -> 1.295309237 | BC37: ='NGGT TO'!BC35 -> TIM | BD37: ='NGGT TO'!BD35 -> RPEs Don’t Apply | BE37: ='NGGT TO'!BE35 -> CapRate 2 (UM) | BF37: ='NGGT TO'!BF35 -> Fast/Slow Split
E38: ='NGGT TO'!E36 -> Coordinated adjustment mechanism Re-opener | G38: £m 18/19 prices | H38: ='NGGT TO'!H36 -> CAMt | I38: ='NGGT TO'!I36 -> UM | AP38: ='NGGT TO'!AP36 -> 0 | AQ38: ='NGGT TO'!AQ36 -> 0 | AR38: ='NGGT TO'!AR36 -> 0 | AS38: ='NGGT TO'!AS36 -> 0 | AT38: ='NGGT TO'!AT36 -> 0 | BC38: ='NGGT TO'!BC36 -> TIM | BD38: ='NGGT TO'!BD36 -> RPEs Don’t Apply | BE38: ='NGGT TO'!BE36 -> CapRate 2 (UM) | BF38: ='NGGT TO'!BF36 -> Fast/Slow Split
E39: ='NGGT TO'!E37 -> Net zero Re-opener | G39: £m 18/19 prices | H39: ='NGGT TO'!H37 -> NZt | I39: ='NGGT TO'!I37 -> UM | AP39: ='NGGT TO'!AP37 -> 0 | AQ39: ='NGGT TO'!AQ37 -> 0 | AR39: ='NGGT TO'!AR37 -> 0 | AS39: ='NGGT TO'!AS37 -> 0 | AT39: ='NGGT TO'!AT37 -> 0 | BC39: ='NGGT TO'!BC37 -> TIM | BD39: ='NGGT TO'!BD37 -> RPEs Don’t Apply | BE39: ='NGGT TO'!BE37 -> CapRate 2 (UM) | BF39: ='NGGT TO'!BF37 -> Fast/Slow Split
E40: ='NGGT TO'!E38 -> Asset health Re-opener | G40: £m 18/19 prices | H40: ='NGGT TO'!H38 -> AHt | I40: ='NGGT TO'!I38 -> UM | AP40: ='NGGT TO'!AP38 -> 0 | AQ40: ='NGGT TO'!AQ38 -> 0 | AR40: ='NGGT TO'!AR38 -> 0 | AS40: ='NGGT TO'!AS38 -> 0 | AT40: ='NGGT TO'!AT38 -> 0 | BC40: ='NGGT TO'!BC38 -> TIM | BD40: ='NGGT TO'!BD38 -> RPEs Don’t Apply | BE40: ='NGGT TO'!BE38 -> CapRate 2 (UM) | BF40: ='NGGT TO'!BF38 -> Fast/Slow Split
E41: ='NGGT TO'!E39 -> Asset health – non lead assets Re-opener | G41: £m 18/19 prices | H41: ='NGGT TO'!H39 -> NLAAHt | I41: ='NGGT TO'!I39 -> UM | AP41: ='NGGT TO'!AP39 -> 0 | AQ41: ='NGGT TO'!AQ39 -> 0 | AR41: ='NGGT TO'!AR39 -> 0 | AS41: ='NGGT TO'!AS39 -> 0 | AT41: ='NGGT TO'!AT39 -> 0 | BC41: ='NGGT TO'!BC39 -> TIM | BD41: ='NGGT TO'!BD39 -> RPEs Don’t Apply | BE41: ='NGGT TO'!BE39 -> CapRate 2 (UM) | BF41: ='NGGT TO'!BF39 -> Fast/Slow Split
E42: ='NGGT TO'!E40 -> Uncertain Costs Re-opener | G42: £m 18/19 prices | H42: ='NGGT TO'!H40 -> QLt and PDt | I42: ='NGGT TO'!I40 -> UM | AP42: ='NGGT TO'!AP40 -> 0 | AQ42: ='NGGT TO'!AQ40 -> 0 | AR42: ='NGGT TO'!AR40 -> 0 | AS42: ='NGGT TO'!AS40 -> 0 | AT42: ='NGGT TO'!AT40 -> 0 | BC42: ='NGGT TO'!BC40 -> TIM | BD42: ='NGGT TO'!BD40 -> RPEs Don’t Apply | BE42: ='NGGT TO'!BE40 -> CapRate 2 (UM) | BF42: ='NGGT TO'!BF40 -> Fast/Slow Split
E43: ='NGGT TO'!E41 -> Net Zero Pre-construction Work and Small Net Zero Projects Re-opener | G43: £m 18/19 prices | H43: ='NGGT TO'!H41 -> NZPt | I43: ='NGGT TO'!I41 -> UM | AP43: ='NGGT TO'!AP41 -> 0 | AQ43: ='NGGT TO'!AQ41 -> 2.417972973 | AR43: ='NGGT TO'!AR41 -> 5.838330819 | AS43: ='NGGT TO'!AS41 -> 6.72499477 | AT43: ='NGGT TO'!AT41 -> 2.366701438 | BC43: ='NGGT TO'!BC41 -> TIM | BD43: ='NGGT TO'!BD41 -> RPEs Don’t Apply | BE43: ='NGGT TO'!BE41 -> CapRate 2 (UM) | BF43: ='NGGT TO'!BF41 -> Fast/Slow Split
E44: ='NGGT TO'!E42 -> Bacton terminal site redevelopment Re-Opener | G44: £m 18/19 prices | H44: ='NGGT TO'!H42 -> BTREt | I44: ='NGGT TO'!I42 -> UM | AP44: ='NGGT TO'!AP42 -> 0 | AQ44: ='NGGT TO'!AQ42 -> 0 | AR44: ='NGGT TO'!AR42 -> 0 | AS44: ='NGGT TO'!AS42 -> 0 | AT44: ='NGGT TO'!AT42 -> 0 | BC44: ='NGGT TO'!BC42 -> TIM | BD44: ='NGGT TO'!BD42 -> RPEs Don’t Apply | BE44: ='NGGT TO'!BE42 -> CapRate 2 (UM) | BF44: ='NGGT TO'!BF42 -> Fast/Slow Split
E45: ='NGGT TO'!E43 -> Physical Security Re-Opener | G45: £m 18/19 prices | H45: ='NGGT TO'!H43 -> PSUPREt | I45: ='NGGT TO'!I43 -> UM | AP45: ='NGGT TO'!AP43 -> 0 | AQ45: ='NGGT TO'!AQ43 -> 0 | AR45: ='NGGT TO'!AR43 -> 0 | AS45: ='NGGT TO'!AS43 -> 0 | AT45: ='NGGT TO'!AT43 -> 0 | BC45: ='NGGT TO'!BC43 -> TIM | BD45: ='NGGT TO'!BD43 -> RPEs Don’t Apply | BE45: ='NGGT TO'!BE43 -> CapRate 2 (UM) | BF45: ='NGGT TO'!BF43 -> Fast/Slow Split
E46: ='NGGT TO'!E44 -> Compressor emissions Re-Opener | G46: £m 18/19 prices | H46: ='NGGT TO'!H44 -> CEPREt | I46: ='NGGT TO'!I44 -> UM | AP46: ='NGGT TO'!AP44 -> 0 | AQ46: ='NGGT TO'!AQ44 -> 0 | AR46: ='NGGT TO'!AR44 -> 0 | AS46: ='NGGT TO'!AS44 -> 0 | AT46: ='NGGT TO'!AT44 -> 23.0892 | BC46: ='NGGT TO'!BC44 -> TIM | BD46: ='NGGT TO'!BD44 -> RPEs Don’t Apply | BE46: ='NGGT TO'!BE44 -> CapRate 2 (UM) | BF46: ='NGGT TO'!BF44 -> Fast/Slow Split
E47: ='NGGT TO'!E45 -> Cyber Resilience OT Non-Baseline | G47: £m 18/19 prices | H47: ='NGGT TO'!H45 -> CROTREt | I47: ='NGGT TO'!I45 -> UM | AP47: ='NGGT TO'!AP45 -> 0.491443438 | AQ47: ='NGGT TO'!AQ45 -> 3.289769728 | AR47: ='NGGT TO'!AR45 -> 10.5019523 | AS47: ='NGGT TO'!AS45 -> 30.82721775 | AT47: ='NGGT TO'!AT45 -> 52.76133887 | BC47: ='NGGT TO'!BC45 -> Non-Tim | BD47: ='NGGT TO'!BD45 -> RPEs Don’t Apply | BE47: ='NGGT TO'!BE45 -> CapRate 2 (UM) | BF47: ='NGGT TO'!BF45 -> Fast/Slow Split
E48: ='NGGT TO'!E46 -> Cyber Resilience IT Non-Baseline | G48: £m 18/19 prices | H48: ='NGGT TO'!H46 -> CRITREt | I48: ='NGGT TO'!I46 -> UM | AP48: ='NGGT TO'!AP46 -> 0 | AQ48: ='NGGT TO'!AQ46 -> 0 | AR48: ='NGGT TO'!AR46 -> 0 | AS48: ='NGGT TO'!AS46 -> 0 | AT48: ='NGGT TO'!AT46 -> 0 | BC48: ='NGGT TO'!BC46 -> TIM | BD48: ='NGGT TO'!BD46 -> RPEs Don’t Apply | BE48: ='NGGT TO'!BE46 -> CapRate 2 (UM) | BF48: ='NGGT TO'!BF46 -> Fast/Slow Split
E49: ='NGGT TO'!E47 -> King's Lynn subsidence Re-Opener | G49: £m 18/19 prices | H49: ='NGGT TO'!H47 -> KLSREt | I49: ='NGGT TO'!I47 -> UM | AP49: ='NGGT TO'!AP47 -> 0 | AQ49: ='NGGT TO'!AQ47 -> 0 | AR49: ='NGGT TO'!AR47 -> 0 | AS49: ='NGGT TO'!AS47 -> 0 | AT49: ='NGGT TO'!AT47 -> 0 | BC49: ='NGGT TO'!BC47 -> TIM | BD49: ='NGGT TO'!BD47 -> RPEs Don’t Apply | BE49: ='NGGT TO'!BE47 -> CapRate 2 (UM) | BF49: ='NGGT TO'!BF47 -> Fast/Slow Split
E50: ='NGGT TO'!E48 -> Funded incremental obligated capacity Re-Opener | G50: £m 18/19 prices | H50: ='NGGT TO'!H48 -> FIOCREt | I50: ='NGGT TO'!I48 -> UM | AP50: ='NGGT TO'!AP48 -> 1.96 | AQ50: ='NGGT TO'!AQ48 -> 5.54 | AR50: ='NGGT TO'!AR48 -> 7.426787206 | AS50: ='NGGT TO'!AS48 -> 4.95 | AT50: ='NGGT TO'!AT48 -> 40.7 | BC50: ='NGGT TO'!BC48 -> TIM | BD50: ='NGGT TO'!BD48 -> RPEs Don’t Apply | BE50: ='NGGT TO'!BE48 -> CapRate 2 (UM) | BF50: ='NGGT TO'!BF48 -> Fast/Slow Split
E51: ='NGGT TO'!E49 -> Opex Escalator | G51: £m 18/19 prices | H51: ='NGGT TO'!H49 -> OEt | I51: ='NGGT TO'!I49 -> UM | AP51: ='NGGT TO'!AP49 -> 0.4521332016 | AQ51: ='NGGT TO'!AQ49 -> 1.389470457 | AR51: ='NGGT TO'!AR49 -> 2.085355731 | AS51: ='NGGT TO'!AS49 -> 1.519510506 | AT51: ='NGGT TO'!AT49 -> 15.01370793 | BC51: ='NGGT TO'!BC49 -> TIM | BD51: ='NGGT TO'!BD49 -> RPEs Don’t Apply | BE51: ='NGGT TO'!BE49 -> CapRate 2 (UM) | BF51: ='NGGT TO'!BF49 -> Fast/Slow Split
E52: ='NGGT TO'!E50 -> Spare UM 1 | G52: £m 18/19 prices | H52: ='NGGT TO'!H50 -> 0 | I52: ='NGGT TO'!I50 -> UM | AP52: ='NGGT TO'!AP50 -> 0 | AQ52: ='NGGT TO'!AQ50 -> 0 | AR52: ='NGGT TO'!AR50 -> 0 | AS52: ='NGGT TO'!AS50 -> 0 | AT52: ='NGGT TO'!AT50 -> 0 | BC52: ='NGGT TO'!BC50 -> 0 | BD52: ='NGGT TO'!BD50 -> 0 | BE52: ='NGGT TO'!BE50 -> 0 | BF52: ='NGGT TO'!BF50 -> 0
E53: ='NGGT TO'!E51 -> Spare UM 2 | G53: £m 18/19 prices | H53: ='NGGT TO'!H51 -> 0 | I53: ='NGGT TO'!I51 -> UM | AP53: ='NGGT TO'!AP51 -> 0 | AQ53: ='NGGT TO'!AQ51 -> 0 | AR53: ='NGGT TO'!AR51 -> 0 | AS53: ='NGGT TO'!AS51 -> 0 | AT53: ='NGGT TO'!AT51 -> 0 | BC53: ='NGGT TO'!BC51 -> 0 | BD53: ='NGGT TO'!BD51 -> 0 | BE53: ='NGGT TO'!BE51 -> 0 | BF53: ='NGGT TO'!BF51 -> 0
E54: ='NGGT TO'!E52 -> Spare UM 3 | G54: £m 18/19 prices | H54: ='NGGT TO'!H52 -> 0 | I54: ='NGGT TO'!I52 -> UM | AP54: ='NGGT TO'!AP52 -> 0 | AQ54: ='NGGT TO'!AQ52 -> 0 | AR54: ='NGGT TO'!AR52 -> 0 | AS54: ='NGGT TO'!AS52 -> 0 | AT54: ='NGGT TO'!AT52 -> 0 | BC54: ='NGGT TO'!BC52 -> 0 | BD54: ='NGGT TO'!BD52 -> 0 | BE54: ='NGGT TO'!BE52 -> 0 | BF54: ='NGGT TO'!BF52 -> 0
E55: RPE non-variant allowances | G55: £m 18/19 prices | H55: ='NGGT TO'!H53 -> RPEAt (non-variant) | I55: ='NGGT TO'!I53 -> UM | AP55: =SUMPRODUCT((AP$492:AP$509) * ($E$492:$E$509 = $E55)) -> 10.74220772 | AQ55: =SUMPRODUCT((AQ$492:AQ$509) * ($E$492:$E$509 = $E55)) -> 12.42250976 | AR55: =SUMPRODUCT((AR$492:AR$509) * ($E$492:$E$509 = $E55)) -> 4.836629431 | AS55: =SUMPRODUCT((AS$492:AS$509) * ($E$492:$E$509 = $E55)) -> 4.17976496 | AT55: =SUMPRODUCT((AT$492:AT$509) * ($E$492:$E$509 = $E55)) -> 4.912627392 | BC55: ='NGGT TO'!BC53 -> TIM | BD55: ='NGGT TO'!BD53 -> 0 | BE55: ='NGGT TO'!BE53 -> CapRate 1 (Baseline) | BF55: ='NGGT TO'!BF53 -> Fast/Slow Split
E56: RPE PCDs | G56: £m 18/19 prices | H56: ='NGGT TO'!H54 -> RPEAt (PCD) | I56: ='NGGT TO'!I54 -> UM | AP56: =SUMPRODUCT((AP$492:AP$509) * ($E$492:$E$509 = $E56)) -> 8.290658984 | AQ56: =SUMPRODUCT((AQ$492:AQ$509) * ($E$492:$E$509 = $E56)) -> 16.38374868 | AR56: =SUMPRODUCT((AR$492:AR$509) * ($E$492:$E$509 = $E56)) -> 5.894230971 | AS56: =SUMPRODUCT((AS$492:AS$509) * ($E$492:$E$509 = $E56)) -> 2.775672215 | AT56: =SUMPRODUCT((AT$492:AT$509) * ($E$492:$E$509 = $E56)) -> 3.486009057 | BC56: ='NGGT TO'!BC54 -> TIM | BD56: ='NGGT TO'!BD54 -> 0 | BE56: ='NGGT TO'!BE54 -> CapRate 1 (Baseline) | BF56: ='NGGT TO'!BF54 -> Fast/Slow Split
E57: RPE UMs | G57: £m 18/19 prices | H57: ='NGGT TO'!H55 -> RPEAt (UM) | I57: ='NGGT TO'!I55 -> UM | AP57: =SUMPRODUCT((AP$492:AP$509) * ($E$492:$E$509 = $E57)) -> 0 | AQ57: =SUMPRODUCT((AQ$492:AQ$509) * ($E$492:$E$509 = $E57)) -> 0 | AR57: =SUMPRODUCT((AR$492:AR$509) * ($E$492:$E$509 = $E57)) -> 0 | AS57: =SUMPRODUCT((AS$492:AS$509) * ($E$492:$E$509 = $E57)) -> 0 | AT57: =SUMPRODUCT((AT$492:AT$509) * ($E$492:$E$509 = $E57)) -> 0 | BC57: ='NGGT TO'!BC55 -> TIM | BD57: ='NGGT TO'!BD55 -> 0 | BE57: ='NGGT TO'!BE55 -> CapRate 2 (UM) | BF57: ='NGGT TO'!BF55 -> Fast/Slow Split
E58: Total | G58: £m 18/19 prices | AP58: =SUM(AP22:AP57) -> 160.927026 | AQ58: =SUM(AQ22:AQ57) -> 280.1753367 | AR58: 330.8242911 | AS58: 256.625394 | AT58: 310.1153596
B60: Actual totex
E62: Capitalisation rate 1:
E63: Actual load related capex expenditure | G63: £m 18/19 prices | H63: ='NGGT TO'!H60 -> ALC | AH63: ='NGGT TO'!AH60 -> 3.884230654 | AI63: ='NGGT TO'!AI60 -> 1.607555425 | AJ63: ='NGGT TO'!AJ60 -> 1.504715523 | AK63: ='NGGT TO'!AK60 -> 1.804759635 | AL63: ='NGGT TO'!AL60 -> 2.741308276 | AM63: ='NGGT TO'!AM60 -> 2.458099792 | AN63: ='NGGT TO'!AN60 -> 8.054568577 | AO63: ='NGGT TO'!AO60 -> 2.490842191 | AP63: ='NGGT TO'!AP60 -> 5.085217276 | AQ63: ='NGGT TO'!AQ60 -> 4.038007606 | AR63: ='NGGT TO'!AR60 -> 2.908161728 | AS63: ='NGGT TO'!AS60 -> 3.122580746 | AT63: ='NGGT TO'!AT60 -> 1.479026258
E64: Actual asset replacement capex expenditure | G64: £m 18/19 prices | H64: ='NGGT TO'!H61 -> ARC | AH64: ='NGGT TO'!AH61 -> 63.30909724 | AI64: ='NGGT TO'!AI61 -> 60.43205781 | AJ64: ='NGGT TO'!AJ61 -> 81.45669242 | AK64: ='NGGT TO'!AK61 -> 103.1640337 | AL64: ='NGGT TO'!AL61 -> 130.3749105 | AM64: ='NGGT TO'!AM61 -> 113.1306703 | AN64: ='NGGT TO'!AN61 -> 64.16936498 | AO64: ='NGGT TO'!AO61 -> 52.99505755 | AP64: ='NGGT TO'!AP61 -> 105.1696756 | AQ64: ='NGGT TO'!AQ61 -> 138.384789 | AR64: ='NGGT TO'!AR61 -> 141.7158191 | AS64: ='NGGT TO'!AS61 -> 175.9851337 | AT64: ='NGGT TO'!AT61 -> 207.4141848
E65: Actual other capex expenditure | G65: £m 18/19 prices | H65: ='NGGT TO'!H62 -> AOC | AH65: ='NGGT TO'!AH62 -> 33.69176016 | AI65: ='NGGT TO'!AI62 -> 37.34066387 | AJ65: ='NGGT TO'!AJ62 -> 30.84019421 | AK65: ='NGGT TO'!AK62 -> 16.01694461 | AL65: ='NGGT TO'!AL62 -> 46.27595686 | AM65: ='NGGT TO'!AM62 -> 51.03718854 | AN65: ='NGGT TO'!AN62 -> 32.70709389 | AO65: ='NGGT TO'!AO62 -> 27.25623912 | AP65: ='NGGT TO'!AP62 -> 31.71690374 | AQ65: ='NGGT TO'!AQ62 -> 59.5674105 | AR65: ='NGGT TO'!AR62 -> 101.5813666 | AS65: ='NGGT TO'!AS62 -> 98.97087998 | AT65: ='NGGT TO'!AT62 -> 64.53664873
E66: Actual non-load (opex) | G66: £m 18/19 prices | H66: ='NGGT TO'!H63 -> ACO | AH66: ='NGGT TO'!AH63 -> 86.36820909 | AI66: ='NGGT TO'!AI63 -> 91.34830409 | AJ66: ='NGGT TO'!AJ63 -> 91.68806265 | AK66: ='NGGT TO'!AK63 -> 103.528021 | AL66: ='NGGT TO'!AL63 -> 111.0508694 | AM66: ='NGGT TO'!AM63 -> 117.3333596 | AN66: ='NGGT TO'!AN63 -> 110.5734519 | AO66: ='NGGT TO'!AO63 -> 116.8788811 | AP66: ='NGGT TO'!AP63 -> 41.23425761 | AQ66: ='NGGT TO'!AQ63 -> 42.82767777 | AR66: ='NGGT TO'!AR63 -> 66.71156834 | AS66: ='NGGT TO'!AS63 -> 55.46991911 | AT66: ='NGGT TO'!AT63 -> 50.68411085
E67: Actual indirects (opex) | G67: £m 18/19 prices | H67: ='NGGT TO'!H64 -> AIO | AP67: ='NGGT TO'!AP64 -> 59.55441234 | AQ67: ='NGGT TO'!AQ64 -> 69.06753452 | AR67: ='NGGT TO'!AR64 -> 69.17579711 | AS67: ='NGGT TO'!AS64 -> 57.62437532 | AT67: ='NGGT TO'!AT64 -> 54.52509027
E68: Actual non-operational capex | G68: £m 18/19 prices | H68: ='NGGT TO'!H65 -> ANC | AH68: ='NGGT TO'!AH65 -> 13.8355699 | AI68: ='NGGT TO'!AI65 -> 13.08139333 | AJ68: ='NGGT TO'!AJ65 -> 14.63179939 | AK68: ='NGGT TO'!AK65 -> 23.58854772 | AL68: ='NGGT TO'!AL65 -> 18.81010195 | AM68: ='NGGT TO'!AM65 -> 21.90192609 | AN68: ='NGGT TO'!AN65 -> 23.10582044 | AO68: ='NGGT TO'!AO65 -> 20.46637053 | AP68: ='NGGT TO'!AP65 -> 31.42052846 | AQ68: ='NGGT TO'!AQ65 -> 8.321665988 | AR68: ='NGGT TO'!AR65 -> 16.47769128 | AS68: ='NGGT TO'!AS65 -> 11.26240137 | AT68: ='NGGT TO'!AT65 -> 22.57434237
E69: Total | G69: £m 18/19 prices | AH69: =SUM(AH63:AH68) -> 201.088867 | AI69: 203.8099745 | AJ69: 220.1214642 | AK69: 248.1023067 | AL69: 309.253147 | AM69: 305.8612444 | AN69: 238.6102998 | AO69: 220.0873905 | AP69: 274.180995 | AQ69: 322.2070854 | AR69: 398.5704042 | AS69: 402.4352902 | AT69: 401.2134033
E71: Capitalisation rate 2:
E72: Actual load related capex expenditure | G72: £m 18/19 prices | H72: ='NGGT TO'!H68 -> ALCU | AH72: ='NGGT TO'!AH68 -> 0 | AI72: ='NGGT TO'!AI68 -> 0 | AJ72: ='NGGT TO'!AJ68 -> 0 | AK72: ='NGGT TO'!AK68 -> 0 | AL72: ='NGGT TO'!AL68 -> 0 | AM72: ='NGGT TO'!AM68 -> 0 | AN72: ='NGGT TO'!AN68 -> 0.5811958839 | AO72: ='NGGT TO'!AO68 -> 2.152832107 | AP72: ='NGGT TO'!AP68 -> 2.383879998 | AQ72: ='NGGT TO'!AQ68 -> 6.823379919 | AR72: ='NGGT TO'!AR68 -> 9.14 | AS72: ='NGGT TO'!AS68 -> 6.12 | AT72: ='NGGT TO'!AT68 -> 50.1
E73: Actual asset replacement capex expenditure | G73: £m 18/19 prices | H73: ='NGGT TO'!H69 -> ARCU | AH73: ='NGGT TO'!AH69 -> 0 | AI73: ='NGGT TO'!AI69 -> 5.044294514 | AJ73: ='NGGT TO'!AJ69 -> 3.19222766 | AK73: ='NGGT TO'!AK69 -> 32.86659996 | AL73: ='NGGT TO'!AL69 -> 56.26008043 | AM73: ='NGGT TO'!AM69 -> 41.69281939 | AN73: ='NGGT TO'!AN69 -> 26.51658637 | AO73: ='NGGT TO'!AO69 -> 12.47830708 | AP73: ='NGGT TO'!AP69 -> 16.43360963 | AQ73: ='NGGT TO'!AQ69 -> 16.13926477 | AR73: ='NGGT TO'!AR69 -> 8.256303792 | AS73: ='NGGT TO'!AS69 -> 6.72499477 | AT73: ='NGGT TO'!AT69 -> 30.76670144
E74: Actual other capex expenditure | G74: £m 18/19 prices | H74: ='NGGT TO'!H70 -> AOCU | AH74: ='NGGT TO'!AH70 -> 40.17446841 | AI74: ='NGGT TO'!AI70 -> 26.13477911 | AJ74: ='NGGT TO'!AJ70 -> 15.89015638 | AK74: ='NGGT TO'!AK70 -> 4.255635717 | AL74: ='NGGT TO'!AL70 -> 23.36594405 | AM74: ='NGGT TO'!AM70 -> 27.28347809 | AN74: ='NGGT TO'!AN70 -> 27.56348694 | AO74: ='NGGT TO'!AO70 -> 6.403140005 | AP74: ='NGGT TO'!AP70 -> 0 | AQ74: ='NGGT TO'!AQ70 -> 0 | AR74: ='NGGT TO'!AR70 -> 14.28316547 | AS74: ='NGGT TO'!AS70 -> 30.82721775 | AT74: ='NGGT TO'!AT70 -> 52.76133887
E75: Actual non-load (opex) | G75: £m 18/19 prices | H75: ='NGGT TO'!H71 -> ACOU | AP75: ='NGGT TO'!AP71 -> 0 | AQ75: ='NGGT TO'!AQ71 -> 0 | AR75: ='NGGT TO'!AR71 -> 0 | AS75: ='NGGT TO'!AS71 -> 0 | AT75: ='NGGT TO'!AT71 -> 0
E76: Actual indirects (opex) | G76: £m 18/19 prices | H76: ='NGGT TO'!H72 -> AIOU | AH76: ='NGGT TO'!AH72 -> 6.748628946 | AI76: ='NGGT TO'!AI72 -> 4.758760901 | AJ76: ='NGGT TO'!AJ72 -> 6.704914658 | AK76: ='NGGT TO'!AK72 -> 8.455550873 | AL76: ='NGGT TO'!AL72 -> 10.91741515 | AM76: ='NGGT TO'!AM72 -> 8.733705719 | AN76: ='NGGT TO'!AN72 -> 7.93063574 | AO76: ='NGGT TO'!AO72 -> 7.74749147 | AP76: ='NGGT TO'!AP72 -> 0 | AQ76: ='NGGT TO'!AQ72 -> 0 | AR76: ='NGGT TO'!AR72 -> 0 | AS76: ='NGGT TO'!AS72 -> 0 | AT76: ='NGGT TO'!AT72 -> 0
E77: Actual non-operational capex | G77: £m 18/19 prices | H77: ='NGGT TO'!H73 -> ANCU | AP77: ='NGGT TO'!AP73 -> 0 | AQ77: ='NGGT TO'!AQ73 -> 0.2797608671 | AR77: ='NGGT TO'!AR73 -> 1.8 | AS77: ='NGGT TO'!AS73 -> 1.637086685 | AT77: ='NGGT TO'!AT73 -> 1.295309237
E78: Total | G78: £m 18/19 prices | AH78: =SUM(AH72:AH77) -> 46.92309736 | AI78: 35.93783452 | AJ78: 25.7872987 | AK78: 45.57778655 | AL78: 90.54343963 | AM78: 77.71000319 | AN78: 62.59190494 | AO78: 28.78177066 | AP78: 18.81748963 | AQ78: 23.24240555 | AR78: 33.47946926 | AS78: 45.30929921 | AT78: 134.9233495
B80: Pass-through costs
E82: ='NGGT TO'!E77 -> Licence Fees | G82: £m 18/19 prices | H82: ='NGGT TO'!H77 -> LFt | AP82: ='NGGT TO'!AP77/TOpf -> 22.43977653 | AQ82: ='NGGT TO'!AQ77/TOpf -> 21.65234025 | AR82: ='NGGT TO'!AR77/TOpf -> 19.38249238 | AS82: ='NGGT TO'!AS77/TOpf -> 18.94707861 | AT82: ='NGGT TO'!AT77/TOpf -> 18.67492152
E83: ='NGGT TO'!E78 -> Prescribed Rates | G83: £m 18/19 prices | H83: ='NGGT TO'!H78 -> RBt | AP83: ='NGGT TO'!AP78/TOpf -> 77.55598482 | AQ83: ='NGGT TO'!AQ78/TOpf -> 71.36908262 | AR83: ='NGGT TO'!AR78/TOpf -> 58.57145999 | AS83: ='NGGT TO'!AS78/TOpf -> 57.23550089 | AT83: ='NGGT TO'!AT78/TOpf -> 56.41433557
E84: ='NGGT TO'!E79 -> Pension Scheme Established Deficit repair | G84: £m 18/19 prices | H84: ='NGGT TO'!H79 -> EDEt | AP84: ='NGGT TO'!AP79 -> -11 | AQ84: ='NGGT TO'!AQ79 -> -11 | AR84: ='NGGT TO'!AR79 -> -11 | AS84: ='NGGT TO'!AS79 -> -6.5 | AT84: ='NGGT TO'!AT79 -> -6.5
E85: ='NGGT TO'!E80 -> Secretary of State in respect of Policing Costs | G85: £m 18/19 prices | H85: ='NGGT TO'!H80 -> OPTCt | AP85: ='NGGT TO'!AP80/TOpf -> 15.14074528 | AQ85: ='NGGT TO'!AQ80/TOpf -> 12.42253339 | AR85: ='NGGT TO'!AR80/TOpf -> 11.35887675 | AS85: ='NGGT TO'!AS80/TOpf -> 11.09979161 | AT85: ='NGGT TO'!AT80/TOpf -> 10.94054143
E86: ='NGGT TO'!E81 -> PARCA Termination Value | G86: £m 18/19 prices | H86: ='NGGT TO'!H81 -> PTVt | AP86: ='NGGT TO'!AP81/TOpf -> 0 | AQ86: ='NGGT TO'!AQ81/TOpf -> 0 | AR86: ='NGGT TO'!AR81/TOpf -> 0 | AS86: ='NGGT TO'!AS81/TOpf -> 0 | AT86: ='NGGT TO'!AT81/TOpf -> 0
E87: ='NGGT TO'!E82 -> Gas conveyed to Independent Systems | G87: £m 18/19 prices | H87: ='NGGT TO'!H82 -> ISt | AP87: ='NGGT TO'!AP82/TOpf -> 7.542435127 | AQ87: ='NGGT TO'!AQ82/TOpf -> 7.399603892 | AR87: ='NGGT TO'!AR82/TOpf -> 7.321782725 | AS87: ='NGGT TO'!AS82/TOpf -> 7.375866642 | AT87: ='NGGT TO'!AT82/TOpf -> 7.235688263
E88: ='NGGT TO'!E83 -> Hy-Net | G88: £m 18/19 prices | H88: ='NGGT TO'!H83 -> Hyt | AP88: ='NGGT TO'!AP83/TOpf -> 4.05 | AQ88: ='NGGT TO'!AQ83/TOpf -> 4.05 | AR88: ='NGGT TO'!AR83/TOpf -> 4.05 | AS88: ='NGGT TO'!AS83/TOpf -> 0 | AT88: ='NGGT TO'!AT83/TOpf -> 0
E89: Net Zero Pre-construction Work and Small Net Zero Projects Re-opener | G89: £m 18/19 prices | H89: NZPSt | AP89: ='NGGT TO'!AP84 -> 0 | AQ89: ='NGGT TO'!AQ84 -> 23.639 | AR89: ='NGGT TO'!AR84 -> 12.387 | AS89: ='NGGT TO'!AS84 -> 2.5 | AT89: ='NGGT TO'!AT84 -> 0
E90: Pass-through expenditure | G90: £m 18/19 prices | H90: PTt | AP90: =SUM(AP82:AP89) -> 115.7289418 | AQ90: =SUM(AQ82:AQ89) -> 129.5325602 | AR90: =SUM(AR82:AR89) -> 102.0716118 | AS90: =SUM(AS82:AS89) -> 90.65823775 | AT90: =SUM(AT82:AT89) -> 86.76548679
B92: Incentive revenue
E94: ='NGGT TO'!E88 -> Business plan incentive | G94: £m 18/19 prices | H94: ='NGGT TO'!H88 -> BPIt | AP94: ='NGGT TO'!AP88 -> -4.339 | AQ94: ='NGGT TO'!AQ88 -> -4.339 | AR94: ='NGGT TO'!AR88 -> -4.339 | AS94: ='NGGT TO'!AS88 -> -4.339 | AT94: ='NGGT TO'!AT88 -> -4.339
E96: ='NGGT TO'!E90 -> Customer satisfaction survey ODI | G96: £m 18/19 prices | H96: ='NGGT TO'!H90 -> CSIt | AP96: ='NGGT TO'!AP90 -> 3.645 | AQ96: ='NGGT TO'!AQ90 -> 3.645 | AR96: ='NGGT TO'!AR90 -> 3.645 | AS96: ='NGGT TO'!AS90 -> 3.645 | AT96: ='NGGT TO'!AT90 -> 3.645
E97: ='NGGT TO'!E91 -> Environmental scorecard ODI | G97: £m 18/19 prices | H97: ='NGGT TO'!H91 -> ESIt | AP97: ='NGGT TO'!AP91 -> 0.051846366 | AQ97: ='NGGT TO'!AQ91 -> 0.116047581 | AR97: ='NGGT TO'!AR91 -> 0.12 | AS97: ='NGGT TO'!AS91 -> 0.12 | AT97: ='NGGT TO'!AT91 -> 0.12
E98: Output delivery incentives | G98: £m 18/19 prices | H98: ODIt | AP98: =SUM(AP96:AP97) -> 3.696846366 | AQ98: =SUM(AQ96:AQ97) -> 3.761047581 | AR98: =SUM(AR96:AR97) -> 3.765 | AS98: =SUM(AS96:AS97) -> 3.765 | AT98: =SUM(AT96:AT97) -> 3.765
B100: Other revenue allowances
E102: ='NGGT TO'!E100 -> Pre-RIIO-1 pension true-up | G102: £m 18/19 prices | H102: PRPNt | I102: ='NGGT TO'!I100 -> 131.5885044 | AP102: =(($I$102/9)*(1+$AH$174)*(1+$AI$174)*(1+$AJ$174)*(1+$AK$174)*(1+$AL$174)*(1+$AM$174)*(1+$AN$174)*(1+$AO$174)*(1+$AP$174)) * (AP$4 = $I$179) -> 20.46956189 | AQ102: =(($I$102/9)*(1+$AH$174)*(1+$AI$174)*(1+$AJ$174)*(1+$AK$174)*(1+$AL$174)*(1+$AM$174)*(1+$AN$174)*(1+$AO$174)*(1+$AP$174)) * (AQ$4 = $I$179) -> 0 | AR102: =(($I$102/9)*(1+$AH$174)*(1+$AI$174)*(1+$AJ$174)*(1+$AK$174)*(1+$AL$174)*(1+$AM$174)*(1+$AN$174)*(1+$AO$174)*(1+$AP$174)) * (AR$4 = $I$179) -> 0 | AS102: =(($I$102/9)*(1+$AH$174)*(1+$AI$174)*(1+$AJ$174)*(1+$AK$174)*(1+$AL$174)*(1+$AM$174)*(1+$AN$174)*(1+$AO$174)*(1+$AP$174)) * (AS$4 = $I$179) -> 0 | AT102: =(($I$102/9)*(1+$AH$174)*(1+$AI$174)*(1+$AJ$174)*(1+$AK$174)*(1+$AL$174)*(1+$AM$174)*(1+$AN$174)*(1+$AO$174)*(1+$AP$174)) * (AT$4 = $I$179) -> 0
I103: Assumed cost multipliers:
E104: ='NGGT TO'!E95 -> RIIO-2 Network Innovation Allowance | G104: £m 18/19 prices | H104: ='NGGT TO'!H95 -> NIAt | I104: ='NGGT TO'!I415 -> 1.111111111 | AP104: ='NGGT TO'!AP95 -> 1.80412745 | AQ104: ='NGGT TO'!AQ95 -> 3.620493323 | AR104: ='NGGT TO'!AR95 -> 9.232781316 | AS104: ='NGGT TO'!AS95 -> 9.443265813 | AT104: ='NGGT TO'!AT95 -> 0.8699709949
E105: ='NGGT TO'!E96 -> Carry-over Network Innovation Allowance | G105: £m 18/19 prices | H105: ='NGGT TO'!H96 -> CNIAt | I105: ='NGGT TO'!I417 -> 1.111111111 | AP105: ='NGGT TO'!AP96 -> 0.1011090351 | AQ105: ='NGGT TO'!AQ96 -> 0 | AR105: ='NGGT TO'!AR96 -> 0 | AS105: ='NGGT TO'!AS96 -> 0 | AT105: ='NGGT TO'!AT96 -> 0
E106: ='NGGT TO'!E97 -> The Strategic Innovation Fund | G106: £m 18/19 prices | H106: ='NGGT TO'!H97 -> SIFFt | I106: ='NGGT TO'!I416 -> 1 | AP106: ='NGGT TO'!AP97 -> 0 | AQ106: ='NGGT TO'!AQ97 -> 6.865772592 | AR106: ='NGGT TO'!AR97 -> 14.39801299 | AS106: ='NGGT TO'!AS97 -> 28.48264782 | AT106: ='NGGT TO'!AT97 -> 24.98079556
E107: ='NGGT TO'!E98 -> Spare 2 | G107: £m 18/19 prices | H107: ='NGGT TO'!H98 -> 0 | I107: ='NGGT TO'!I419 -> 0 | AP107: ='NGGT TO'!AP98 -> 0 | AQ107: ='NGGT TO'!AQ98 -> 0 | AR107: ='NGGT TO'!AR98 -> 0 | AS107: ='NGGT TO'!AS98 -> 0 | AT107: ='NGGT TO'!AT98 -> 0
E108: ='NGGT TO'!E99 -> Spare 3 | G108: £m 18/19 prices | H108: ='NGGT TO'!H99 -> 0 | I108: ='NGGT TO'!I420 -> 0 | AP108: ='NGGT TO'!AP99 -> 0 | AQ108: ='NGGT TO'!AQ99 -> 0 | AR108: ='NGGT TO'!AR99 -> 0 | AS108: ='NGGT TO'!AS99 -> 0 | AT108: ='NGGT TO'!AT99 -> 0
E109: =E102 -> Pre-RIIO-1 pension true-up | G109: £m 18/19 prices | H109: =H102 -> PRPNt | I109: ='NGGT TO'!I421 -> 0 | AP109: =AP102 -> 20.46956189 | AQ109: =AQ102 -> 0 | AR109: =AR102 -> 0 | AS109: =AS102 -> 0 | AT109: =AT102 -> 0
E110: NGGT SO revenue driver income (reallocated to TO) | G110: £m 18/19 prices | I110: ='NGGT TO'!I422 -> 0 | AP110: =AP595 -> 0 | AQ110: =AQ595 -> 0 | AR110: 0 | AS110: 0 | AT110: 0
E111: Other revenue allowance | G111: £m 18/19 prices | H111: ORAt | AP111: =SUM(AP104:AP110) -> 22.37479838 | AQ111: =SUM(AQ104:AQ110) -> 10.48626591 | AR111: =SUM(AR104:AR110) -> 23.6307943 | AS111: =SUM(AS104:AS110) -> 37.92591363 | AT111: =SUM(AT104:AT110) -> 25.85076656
E113: Costs associated with "Other revenue" | G113: £m 18/19 prices | AP113: =SUMPRODUCT((AP104:AP110) * ($I104:$I110)) -> 2.116929427 | AQ113: =SUMPRODUCT((AQ104:AQ110) * ($I104:$I110)) -> 10.88854295 | AR113: =SUMPRODUCT((AR104:AR110) * ($I104:$I110)) -> 24.65665889 | AS113: =SUMPRODUCT((AS104:AS110) * ($I104:$I110)) -> 38.97516539 | AT113: =SUMPRODUCT((AT104:AT110) * ($I104:$I110)) -> 25.94743
B115: Legacy adjustments
E117: ='NGGT TO'!E104 -> Legacy pass-through | G117: £m nominal | H117: ='NGGT TO'!H104 -> LPTt | AP117: ='NGGT TO'!AP104 -> -16.54601663 | AQ117: ='NGGT TO'!AQ104 -> -20.74245839
E118: ='NGGT TO'!E105 -> Legacy MOD | G118: £m nominal | H118: ='NGGT TO'!H105 -> LMODt | AP118: ='NGGT TO'!AP105 -> -5.284514945 | AQ118: ='NGGT TO'!AQ105 -> -2.340119048 | AR118: =$AP$126*AR127*AR196 -> -0.6654147557
E119: ='NGGT TO'!E106 -> Legacy K correction | G119: £m nominal | H119: ='NGGT TO'!H106 -> LKt | AP119: ='NGGT TO'!AP106 -> 16.36710092 | AQ119: ='NGGT TO'!AQ106 -> 0
E120: ='NGGT TO'!E107 -> Legacy TRU | G120: £m nominal | H120: ='NGGT TO'!H107 -> LTRUt | AP120: ='NGGT TO'!AP107 -> -6.077582483 | AQ120: ='NGGT TO'!AQ107 -> -10.40986739 | AR120: =((AP131-AP130)/AP131)*AP129*(1+AP175)*(1+AQ175)*AR132 -> -0.9172800214 | AS120: =((AQ131-AQ130)/AQ131)*AQ129*(1+AQ175)*(1+AR175)*AS132 -> -4.123000771
E121: ='NGGT TO'!E108 -> Close out of the RIIO-GT1 network outputs | G121: £m nominal | H121: ='NGGT TO'!H108 -> NOCOt | AP121: ='NGGT TO'!AP108 -> 0 | AQ121: ='NGGT TO'!AQ108 -> 0 | AR121: ='NGGT TO'!AR108 -> 0 | AS121: ='NGGT TO'!AS108 -> 0 | AT121: ='NGGT TO'!AT108 -> 0
E122: ='NGGT TO'!E109 -> RIIO-GT1 network innovation competition | G122: £m nominal | H122: ='NGGT TO'!H109 -> NICFt | AP122: ='NGGT TO'!AP109 -> 26.6707393 | AQ122: ='NGGT TO'!AQ109 -> 0.70861706
E123: ='NGGT TO'!E110 -> Close out of the RIIO-GT1 stakeholder satisfaction output | G123: £m nominal | H123: ='NGGT TO'!H110 -> SSCOt | AP123: ='NGGT TO'!AP110 -> 4.68839948 | AQ123: ='NGGT TO'!AQ110 -> 6.351726924
E124: Legacy adjustments | G124: £m nominal | H124: LARt | AP124: =SUM(AP117:AP123) -> 19.81812565 | AQ124: =SUM(AQ117:AQ123) -> -26.43210084 | AR124: -1.582694777 | AS124: -4.123000771 | AT124: 0
E126: Closeout adjustment | G126: £m 18/19 prices | H126: COAt | AP126: ='NGGT TO'!AP112 -> -0.5002894969
E127: Compound WACC | G127: % | H127: CWACC | AP127: 1 | AQ127: =PRODUCT(1+$AP175:AP$175) -> 1.030372752 | AR127: =PRODUCT(1+$AP175:AQ$175) -> 1.060899855
E129: ='NGGT TO'!E114 -> Revenue for TRU term | G129: £m 09/10 prices | H129: ='NGGT TO'!H114 -> REVt | AP129: ='NGGT TO'!AP114 -> -19.87757411 | AQ129: ='NGGT TO'!AQ114 -> -22.86173708
E130: ='NGGT TO'!E115 -> RIIO-1 RPI forecast term | G130: scalar | H130: ='NGGT TO'!H115 -> RPIFt | AP130: ='NGGT TO'!AP115 -> 1.404 | AQ130: ='NGGT TO'!AQ115 -> 1.465
E131: Actual RPI term (09/10 inflation factor) | G131: scalar | AP131: ='Annual Inflation'!AP$23/'Annual Inflation'!$AD$23 -> 1.44210567 | AQ131: ='Annual Inflation'!AQ$23/'Annual Inflation'!$AD$23 -> 1.627761471
E132: Combined RPI-CPIH real to nominal prices conversion factor (09/10 prices) | G132: scalar | AP132: ='Annual Inflation'!AP29/'Annual Inflation'!$AD$29 -> 1.42435446 | AQ132: ='Annual Inflation'!AQ29/'Annual Inflation'!$AD$29 -> 1.549329129 | AR132: ='Annual Inflation'!AR29/'Annual Inflation'!$AD$29 -> 1.646158499 | AS132: ='Annual Inflation'!AS29/'Annual Inflation'!$AD$29 -> 1.696323468 | AT132: ='Annual Inflation'!AT29/'Annual Inflation'!$AD$29 -> 1.725333568
B134: Directly remunerated services
E136: ='NGGT TO'!E119 -> Directly remunerated services revenue | G136: £m 18/19 prices | H136: ='NGGT TO'!H119 -> DRSRt | AP136: ='NGGT TO'!AP119 -> 18.16071106 | AQ136: ='NGGT TO'!AQ119 -> 26.596955 | AR136: ='NGGT TO'!AR119 -> 0 | AS136: ='NGGT TO'!AS119 -> 0 | AT136: ='NGGT TO'!AT119 -> 0
E137: ='NGGT TO'!E120 -> Directly remunerated services costs | G137: £m 18/19 prices | H137: ='NGGT TO'!H120 -> DRSCt | AP137: ='NGGT TO'!AP120 -> -14.83064112 | AQ137: ='NGGT TO'!AQ120 -> -26.596955 | AR137: ='NGGT TO'!AR120 -> 0 | AS137: ='NGGT TO'!AS120 -> 0 | AT137: ='NGGT TO'!AT120 -> 0
E138: Directly remunerated services net position | G138: £m 18/19 prices | AP138: =SUM(AP136:AP137) -> 3.330069935 | AQ138: =SUM(AQ136:AQ137) -> 0 | AR138: =SUM(AR136:AR137) -> 0 | AS138: =SUM(AS136:AS137) -> 0 | AT138: =SUM(AT136:AT137) -> 0
E140: Directly remunerated services adjustment | G140: £m 18/19 prices | H140: DRSt | AP140: =- AP138 -> -3.330069935 | AQ140: =- AQ138 -> 0 | AR140: 0 | AS140: 0 | AT140: 0
B142: Finance inputs
C144: Allowed return on debt
E146: ='NGGT TO'!E124 -> iBoxx trailing average | G146: annual real % | H146: ='NGGT TO'!H124 -> iBTAt | AP146: ='NGGT TO'!AP124 -> 0.0205 | AQ146: ='NGGT TO'!AQ124 -> 0.019 | AR146: ='NGGT TO'!AR124 -> 0.0192 | AS146: ='NGGT TO'!AS124 -> 0.0211 | AT146: ='NGGT TO'!AT124 -> 0.0229
E147: ='NGGT TO'!E181 -> Uplift on iBoxx trailing average | G147: annual real % | H147: ='NGGT TO'!H181 -> CDEUt | AP147: ='NGGT TO'!AP181 -> 0 | AQ147: ='NGGT TO'!AQ181 -> 0 | AR147: ='NGGT TO'!AR181 -> 0 | AS147: ='NGGT TO'!AS181 -> 0 | AT147: ='NGGT TO'!AT181 -> 0
E148: Allowed return on debt | G148: annual real % | H148: CDEt | AP148: =SUM(AP146:AP147) -> 0.0205 | AQ148: =SUM(AQ146:AQ147) -> 0.019 | AR148: 0.0192 | AS148: 0.0211 | AT148: 0.0229
C150: Allowed return on equity
E152: ='NGGT TO'!E125 -> Risk-free rate | G152: annual real % | H152: ='NGGT TO'!H125 -> RFRt | AP152: ='NGGT TO'!AP125 -> -0.0171 | AQ152: ='NGGT TO'!AQ125 -> -0.0155 | AR152: ='NGGT TO'!AR125 -> 0.0146 | AS152: ='NGGT TO'!AS125 -> 0.0272 | AT152: ='NGGT TO'!AT125 -> 0.0243
E153: Equity Beta | G153: scalar | AP153: ='NGGT TO'!AP183 -> 0.75861 | AQ153: ='NGGT TO'!AQ183 -> 0.75861 | AR153: ='NGGT TO'!AR183 -> 0.75861 | AS153: ='NGGT TO'!AS183 -> 0.75861 | AT153: ='NGGT TO'!AT183 -> 0.75861
E154: Total Market Return | G154: % | AP154: ='NGGT TO'!AP184 -> 0.065 | AQ154: ='NGGT TO'!AQ184 -> 0.065 | AR154: ='NGGT TO'!AR184 -> 0.065 | AS154: ='NGGT TO'!AS184 -> 0.065 | AT154: ='NGGT TO'!AT184 -> 0.065
E156: Cost of equity at 60% gearing | G156: annual real % | AP156: =AP152 + AP153 * (AP154 - AP152) -> 0.045181881 | AQ156: =AQ152 + AQ153 * (AQ154 - AQ152) -> 0.045568105 | AR156: 0.052833944 | AS156: 0.055875458 | AT156: 0.055175427
E157: Not used | G157: Not used
E158: Allowed return on equity at 60% gearing | G158: annual real % | AP158: =AP156 -> 0.045181881 | AQ158: =AQ156 -> 0.045568105 | AR158: 0.052833944 | AS158: 0.055875458 | AT158: 0.055175427
E159: Benchmark gearing (60%) | G159: % | AP159: ='NGGT TO'!AP185 -> 0.6 | AQ159: ='NGGT TO'!AQ185 -> 0.6 | AR159: ='NGGT TO'!AR185 -> 0.6 | AS159: ='NGGT TO'!AS185 -> 0.6 | AT159: ='NGGT TO'!AT185 -> 0.6
E160: Vanilla WACC at 60% gearing | G160: annual real % | AP160: =(AP148 * AP159) + (AP156 * (1 - AP159)) -> 0.0303727524 | AQ160: =(AQ148 * AQ159) + (AQ156 * (1 - AQ159)) -> 0.029627242 | AR160: 0.0326535776 | AS160: 0.0350101832 | AT160: 0.0358101708
E161: Allowed return on capital at 60% gearing | G161: annual real % | AP161: =(AP148* AP159) + (AP158 * (1 - AP159)) -> 0.0303727524 | AQ161: =(AQ148* AQ159) + (AQ158 * (1 - AQ159)) -> 0.029627242 | AR161: 0.0326535776 | AS161: 0.0350101832 | AT161: 0.0358101708
E163: Notional gearing | G163: % | J163: > | AO163: ='NGGT TO'!AO187 -> 0.625 | AP163: ='NGGT TO'!AP187 -> 0.6 | AQ163: ='NGGT TO'!AQ187 -> 0.6 | AR163: ='NGGT TO'!AR187 -> 0.6 | AS163: ='NGGT TO'!AS187 -> 0.6 | AT163: ='NGGT TO'!AT187 -> 0.6
E164: Cost of equity at notional gearing | G164: annual real % | AP164: =(AP160 - (AP163 * AP148)) / (1 - AP163) -> 0.045181881 | AQ164: =(AQ160 - (AQ163 * AQ148)) / (1 - AQ163) -> 0.045568105 | AR164: 0.052833944 | AS164: 0.055875458 | AT164: 0.055175427
E165: Allowed return on equity | G165: annual real % | AP165: =(AP161 - (AP148 * AP163)) / (1 - AP163) -> 0.045181881 | AQ165: =(AQ161 - (AQ148 * AQ163)) / (1 - AQ163) -> 0.045568105 | AR165: 0.052833944 | AS165: 0.055875458 | AT165: 0.055175427
E166: Not used | G166: Not used
C168: Vanilla allowed return on capital
E170: Allowed return on debt | G170: annual real % | J170: > | AP170: =AP148 -> 0.0205 | AQ170: =AQ148 -> 0.019 | AR170: 0.0192 | AS170: 0.0211 | AT170: 0.0229
E171: Allowed return on equity | G171: annual real % | J171: > | AP171: =AP158 -> 0.045181881 | AQ171: =AQ158 -> 0.045568105 | AR171: 0.052833944 | AS171: 0.055875458 | AT171: 0.055175427
E172: Notional gearing | G172: % | J172: > | AO172: =AO163 -> 0.625 | AP172: 0.6 | AQ172: 0.6 | AR172: 0.6 | AS172: 0.6 | AT172: 0.6
E174: Vanilla allowed return on capital | G174: annual real % | J174: > | AH174: ='NGGT TO'!AH191 -> 0.04375 | AI174: ='NGGT TO'!AI191 -> 0.0425 | AJ174: ='NGGT TO'!AJ191 -> 0.0414375 | AK174: ='NGGT TO'!AK191 -> 0.040375 | AL174: ='NGGT TO'!AL191 -> 0.039375 | AM174: ='NGGT TO'!AM191 -> 0.0374375 | AN174: ='NGGT TO'!AN191 -> 0.035375 | AO174: ='NGGT TO'!AO191 -> 0.0323125 | AP174: =(AP170 * AP172) + (AP171 * (1 - AP172)) -> 0.0303727524 | AQ174: =(AQ170 * AQ172) + (AQ171 * (1 - AQ172)) -> 0.029627242 | AR174: 0.0326535776 | AS174: 0.0350101832 | AT174: 0.0358101708
E175: Vanilla weighted average cost of capital | G175: annual real % | AH175: =AH174 -> 0.04375 | AI175: =AI174 -> 0.0425 | AJ175: 0.0414375 | AK175: 0.040375 | AL175: 0.039375 | AM175: 0.0374375 | AN175: 0.035375 | AO175: 0.0323125 | AP175: =(AP170 * AP172) + (AP164 * (1 - AP172)) -> 0.0303727524 | AQ175: =(AQ170 * AQ172) + (AQ164 * (1 - AQ172)) -> 0.029627242 | AR175: =(AR170 * AR172) + (AR164 * (1 - AR172)) -> 0.0326535776 | AS175: =(AS170 * AS172) + (AS164 * (1 - AS172)) -> 0.0350101832 | AT175: =(AT170 * AT172) + (AT164 * (1 - AT172)) -> 0.0358101708
C177: Inflation and price conversion
E179: Start of RIIO-2 | G179: year ending | I179: ='Annual Inflation'!I15 -> 2022-03-31
D181: Price indices and inflation rates
E183: Retail Prices Index (financial year average) | F183: Spc2.1 | G183: index value | H183: RPIt | J183: > | V183: ='Annual Inflation'!V23 -> 173.875 | W183: ='Annual Inflation'!W23 -> 177.5166667 | X183: ='Annual Inflation'!X23 -> 182.475 | Y183: ='Annual Inflation'!Y23 -> 188.15 | Z183: ='Annual Inflation'!Z23 -> 193.1083333 | AA183: ='Annual Inflation'!AA23 -> 200.3166667 | AB183: ='Annual Inflation'!AB23 -> 208.5916667 | AC183: ='Annual Inflation'!AC23 -> 214.7833333 | AD183: ='Annual Inflation'!AD23 -> 215.7666667 | AE183: ='Annual Inflation'!AE23 -> 226.475 | AF183: ='Annual Inflation'!AF23 -> 237.3416667 | AG183: ='Annual Inflation'!AG23 -> 244.675 | AH183: ='Annual Inflation'!AH23 -> 251.7333333 | AI183: ='Annual Inflation'!AI23 -> 256.6666667 | AJ183: ='Annual Inflation'!AJ23 -> 259.4333333 | AK183: ='Annual Inflation'!AK23 -> 264.9916667 | AL183: ='Annual Inflation'!AL23 -> 274.9083333 | AM183: ='Annual Inflation'!AM23 -> 283.3083333 | AN183: ='Annual Inflation'!AN23 -> 290.6416667 | AO183: ='Annual Inflation'!AO23 -> 294.1666667 | AP183: ='Annual Inflation'!AP23 -> 311.1583333 | AQ183: ='Annual Inflation'!AQ23 -> 351.2166667 | AR183: ='Annual Inflation'!AR23 -> 381.9589773 | AS183: ='Annual Inflation'!AS23 -> 398.4537878 | AT183: ='Annual Inflation'!AT23 -> 408.9066
E184: RPI inflation (financial year average) | G184: annual % | J184: > | W184: ='Annual Inflation'!W24 -> 0.02094416487 | X184: ='Annual Inflation'!X24 -> 0.02793164961 | Y184: ='Annual Inflation'!Y24 -> 0.03110015071 | Z184: ='Annual Inflation'!Z24 -> 0.02635308708 | AA184: ='Annual Inflation'!AA24 -> 0.03732792474 | AB184: ='Annual Inflation'!AB24 -> 0.04130959314 | AC184: ='Annual Inflation'!AC24 -> 0.02968319284 | AD184: ='Annual Inflation'!AD24 -> 0.004578257158 | AE184: ='Annual Inflation'!AE24 -> 0.04962922911 | AF184: ='Annual Inflation'!AF24 -> 0.04798174927 | AG184: ='Annual Inflation'!AG24 -> 0.03089779151 | AH184: ='Annual Inflation'!AH24 -> 0.02884779129 | AI184: ='Annual Inflation'!AI24 -> 0.01959745763 | AJ184: ='Annual Inflation'!AJ24 -> 0.01077922078 | AK184: ='Annual Inflation'!AK24 -> 0.02142490042 | AL184: ='Annual Inflation'!AL24 -> 0.03742256046 | AM184: ='Annual Inflation'!AM24 -> 0.03055563976 | AN184: ='Annual Inflation'!AN24 -> 0.02588463688 | AO184: ='Annual Inflation'!AO24 -> 0.01212833673 | AP184: ='Annual Inflation'!AP24 -> 0.05776203966 | AQ184: ='Annual Inflation'!AQ24 -> 0.1287393878 | AR184: ='Annual Inflation'!AR24 -> 0.08753089907 | AS184: ='Annual Inflation'!AS24 -> 0.04318476978 | AT184: ='Annual Inflation'!AT24 -> 0.02623343665
E186: Consumer Prices Index incl. housing costs (financial year average) | F186: Spc2.1 | G186: index value | H186: CPIHt | J186: > | V186: ='Annual Inflation'!V26 -> 74.86666667 | W186: ='Annual Inflation'!W26 -> 75.95833333 | X186: ='Annual Inflation'!X26 -> 76.975 | Y186: ='Annual Inflation'!Y26 -> 78.125 | Z186: ='Annual Inflation'!Z26 -> 79.825 | AA186: ='Annual Inflation'!AA26 -> 81.91666667 | AB186: ='Annual Inflation'!AB26 -> 83.825 | AC186: ='Annual Inflation'!AC26 -> 86.85833333 | AD186: ='Annual Inflation'!AD26 -> 88.43333333 | AE186: ='Annual Inflation'!AE26 -> 90.90833333 | AF186: ='Annual Inflation'!AF26 -> 94.30833333 | AG186: ='Annual Inflation'!AG26 -> 96.58333333 | AH186: ='Annual Inflation'!AH26 -> 98.6 | AI186: ='Annual Inflation'!AI26 -> 99.725 | AJ186: ='Annual Inflation'!AJ26 -> 100.1666667 | AK186: ='Annual Inflation'!AK26 -> 101.5416667 | AL186: ='Annual Inflation'!AL26 -> 104.2166667 | AM186: ='Annual Inflation'!AM26 -> 106.4333333 | AN186: ='Annual Inflation'!AN26 -> 108.2416667 | AO186: ='Annual Inflation'!AO26 -> 109.1083333 | AP186: ='Annual Inflation'!AP26 -> 113.1166667 | AQ186: ='Annual Inflation'!AQ26 -> 123.0416667 | AR186: ='Annual Inflation'!AR26 -> 130.7314769 | AS186: ='Annual Inflation'!AS26 -> 134.7153828 | AT186: ='Annual Inflation'!AT26 -> 137.0192516
E187: CPIH inflation (financial year average) | G187: annual % | J187: > | W187: ='Annual Inflation'!W27 -> 0.01458147818 | X187: ='Annual Inflation'!X27 -> 0.01338453099 | Y187: ='Annual Inflation'!Y27 -> 0.01493991556 | Z187: ='Annual Inflation'!Z27 -> 0.02176 | AA187: ='Annual Inflation'!AA27 -> 0.02620315273 | AB187: ='Annual Inflation'!AB27 -> 0.02329603255 | AC187: ='Annual Inflation'!AC27 -> 0.03618649965 | AD187: ='Annual Inflation'!AD27 -> 0.01813297515 | AE187: ='Annual Inflation'!AE27 -> 0.02798718432 | AF187: ='Annual Inflation'!AF27 -> 0.03740031167 | AG187: ='Annual Inflation'!AG27 -> 0.0241230008 | AH187: ='Annual Inflation'!AH27 -> 0.02088006903 | AI187: ='Annual Inflation'!AI27 -> 0.01140973631 | AJ187: ='Annual Inflation'!AJ27 -> 0.004428845993 | AK187: ='Annual Inflation'!AK27 -> 0.01372712146 | AL187: ='Annual Inflation'!AL27 -> 0.02634386541 | AM187: ='Annual Inflation'!AM27 -> 0.0212697905 | AN187: ='Annual Inflation'!AN27 -> 0.01699029126 | AO187: ='Annual Inflation'!AO27 -> 0.008006774963 | AP187: ='Annual Inflation'!AP27 -> 0.03673718781 | AQ187: ='Annual Inflation'!AQ27 -> 0.08774127008 | AR187: ='Annual Inflation'!AR27 -> 0.06249761135 | AS187: ='Annual Inflation'!AS27 -> 0.0304739603 | AT187: ='Annual Inflation'!AT27 -> 0.01710175026
E189: Combined RPI-CPIH price index (financial year average) | G189: index value | H189: PIt | J189: > | V189: ='Annual Inflation'!V29 -> 173.875 | W189: ='Annual Inflation'!W29 -> 177.5166667 | X189: ='Annual Inflation'!X29 -> 182.475 | Y189: ='Annual Inflation'!Y29 -> 188.15 | Z189: ='Annual Inflation'!Z29 -> 193.1083333 | AA189: ='Annual Inflation'!AA29 -> 200.3166667 | AB189: ='Annual Inflation'!AB29 -> 208.5916667 | AC189: ='Annual Inflation'!AC29 -> 214.7833333 | AD189: ='Annual Inflation'!AD29 -> 215.7666667 | AE189: ='Annual Inflation'!AE29 -> 226.475 | AF189: ='Annual Inflation'!AF29 -> 237.3416667 | AG189: ='Annual Inflation'!AG29 -> 244.675 | AH189: ='Annual Inflation'!AH29 -> 251.7333333 | AI189: ='Annual Inflation'!AI29 -> 256.6666667 | AJ189: ='Annual Inflation'!AJ29 -> 259.4333333 | AK189: ='Annual Inflation'!AK29 -> 264.9916667 | AL189: ='Annual Inflation'!AL29 -> 274.9083333 | AM189: ='Annual Inflation'!AM29 -> 283.3083333 | AN189: ='Annual Inflation'!AN29 -> 290.6416667 | AO189: ='Annual Inflation'!AO29 -> 294.1666667 | AP189: ='Annual Inflation'!AP29 -> 307.328214 | AQ189: ='Annual Inflation'!AQ29 -> 334.2935818 | AR189: ='Annual Inflation'!AR29 -> 355.1861322 | AS189: ='Annual Inflation'!AS29 -> 366.0100602 | AT189: ='Annual Inflation'!AT29 -> 372.2694729
E190: Combined RPI-CPIH inflation (financial year average) | G190: annual % | J190: > | W190: ='Annual Inflation'!W30 -> 0.02094416487 | X190: ='Annual Inflation'!X30 -> 0.02793164961 | Y190: ='Annual Inflation'!Y30 -> 0.03110015071 | Z190: ='Annual Inflation'!Z30 -> 0.02635308708 | AA190: ='Annual Inflation'!AA30 -> 0.03732792474 | AB190: ='Annual Inflation'!AB30 -> 0.04130959314 | AC190: ='Annual Inflation'!AC30 -> 0.02968319284 | AD190: ='Annual Inflation'!AD30 -> 0.004578257158 | AE190: ='Annual Inflation'!AE30 -> 0.04962922911 | AF190: ='Annual Inflation'!AF30 -> 0.04798174927 | AG190: ='Annual Inflation'!AG30 -> 0.03089779151 | AH190: ='Annual Inflation'!AH30 -> 0.02884779129 | AI190: ='Annual Inflation'!AI30 -> 0.01959745763 | AJ190: ='Annual Inflation'!AJ30 -> 0.01077922078 | AK190: ='Annual Inflation'!AK30 -> 0.02142490042 | AL190: ='Annual Inflation'!AL30 -> 0.03742256046 | AM190: ='Annual Inflation'!AM30 -> 0.03055563976 | AN190: ='Annual Inflation'!AN30 -> 0.02588463688 | AO190: ='Annual Inflation'!AO30 -> 0.01212833673 | AP190: ='Annual Inflation'!AP30 -> 0.04474180389 | AQ190: ='Annual Inflation'!AQ30 -> 0.08774127008 | AR190: ='Annual Inflation'!AR30 -> 0.06249761135 | AS190: ='Annual Inflation'!AS30 -> 0.0304739603 | AT190: ='Annual Inflation'!AT30 -> 0.01710175026
E192: Forecast Debt inflation (CPIH long term forecast) | G192: annual % | AP192: ='Annual Inflation'!AP$34 -> 0.02 | AQ192: ='Annual Inflation'!AQ$34 -> 0.02 | AR192: ='Annual Inflation'!AR$34 -> 0.02 | AS192: ='Annual Inflation'!AS$34 -> 0.016 | AT192: ='Annual Inflation'!AT$34 -> 0.02
D194: Price conversion factors
E196: Real to nominal prices conversion factor (financial year average) | G196: scalar | J196: > | V196: ='Annual Inflation'!V32 -> 0.6137306233 | W196: ='Annual Inflation'!W32 -> 0.6265846986 | X196: ='Annual Inflation'!X32 -> 0.6440862429 | Y196: ='Annual Inflation'!Y32 -> 0.6641174221 | Z196: ='Annual Inflation'!Z32 -> 0.6816189664 | AA196: ='Annual Inflation'!AA32 -> 0.7070623879 | AB196: ='Annual Inflation'!AB32 -> 0.7362708474 | AC196: ='Annual Inflation'!AC32 -> 0.758125717 | AD196: ='Annual Inflation'!AD32 -> 0.7615966115 | AE196: ='Annual Inflation'!AE32 -> 0.7993940642 | AF196: ='Annual Inflation'!AF32 -> 0.8377503897 | AG196: ='Annual Inflation'!AG32 -> 0.8636350266 | AH196: ='Annual Inflation'!AH32 -> 0.8885489896 | AI196: ='Annual Inflation'!AI32 -> 0.9059622908 | AJ196: ='Annual Inflation'!AJ32 -> 0.9157278583 | AK196: ='Annual Inflation'!AK32 -> 0.9353472365 | AL196: ='Annual Inflation'!AL32 -> 0.970350325 | AM196: ='Annual Inflation'!AM32 -> 1 | AN196: ='Annual Inflation'!AN32 -> 1.025884637 | AO196: ='Annual Inflation'!AO32 -> 1.038326911 | AP196: ='Annual Inflation'!AP32 -> 1.08478353 | AQ196: ='Annual Inflation'!AQ32 -> 1.179963815 | AR196: ='Annual Inflation'!AR32 -> 1.253708735 | AS196: ='Annual Inflation'!AS32 -> 1.291914205 | AT196: ='Annual Inflation'!AT32 -> 1.314008199
AP197: Adjacent named range: TOpf
E198: Real to nominal prices conversion factor (financial year end) | G198: scalar | J198: > | V198: ='Annual Inflation'!V45 -> 0.6180545342 | W198: ='Annual Inflation'!W45 -> 0.6372915257 | X198: ='Annual Inflation'!X45 -> 0.6535282525 | Y198: ='Annual Inflation'!Y45 -> 0.6743536194 | Z198: ='Annual Inflation'!Z45 -> 0.6909433185 | AA198: ='Annual Inflation'!AA45 -> 0.7232402859 | AB198: ='Annual Inflation'!AB45 -> 0.7520075301 | AC198: ='Annual Inflation'!AC45 -> 0.7461834868 | AD198: ='Annual Inflation'!AD45 -> 0.782716122 | AE198: ='Annual Inflation'!AE45 -> 0.8240138836 | AF198: ='Annual Inflation'!AF45 -> 0.8529576139 | AG198: ='Annual Inflation'!AG45 -> 0.8792540518 | AH198: ='Annual Inflation'!AH45 -> 0.9009618496 | AI198: ='Annual Inflation'!AI45 -> 0.909080213 | AJ198: ='Annual Inflation'!AJ45 -> 0.9221401888 | AK198: ='Annual Inflation'!AK45 -> 0.9528487808 | AL198: ='Annual Inflation'!AL45 -> 0.9847927758 | AM198: ='Annual Inflation'!AM45 -> 1.011795158 | AN198: ='Annual Inflation'!AN45 -> 1.032797012 | AO198: ='Annual Inflation'!AO45 -> 1.053352823 | AP198: ='Annual Inflation'!AP45 -> 1.12921698 | AQ198: ='Annual Inflation'!AQ45 -> 1.22319852 | AR198: ='Annual Inflation'!AR45 -> 1.276288789 | AS198: ='Annual Inflation'!AS45 -> 1.303801304 | AT198: ='Annual Inflation'!AT45 -> 1.322764405
C200: Real Price Effects indexation
E202: RPE index | G202: index value | H202: RPEIt | J202: > | AN202: =PRODUCT(1 + $AN203:AN203) -> 0.9943115183 | AO202: =PRODUCT(1 + $AN203:AO203) -> 0.9878618142 | AP202: =PRODUCT(1 + $AN203:AP203) -> 1.073749263 | AQ202: =PRODUCT(1 + $AN203:AQ203) -> 1.089003033 | AR202: =PRODUCT(1 + $AN203:AR203) -> 1.033133608 | AS202: =PRODUCT(1 + $AN203:AS203) -> 1.030443565 | AT202: =PRODUCT(1 + $AN203:AT203) -> 1.039513435
E203: ='NGGT TO'!E128 -> RPE annual growth | G203: annual % | H203: ='NGGT TO'!H128 -> RPEt | J203: > | AN203: ='NGGT TO'!AN128 -> -0.005688481699 | AO203: ='NGGT TO'!AO128 -> -0.006486602979 | AP203: ='NGGT TO'!AP128 -> 0.08694277621 | AQ203: ='NGGT TO'!AQ128 -> 0.01420608193 | AR203: ='NGGT TO'!AR128 -> -0.05130327784 | AS203: ='NGGT TO'!AS128 -> -0.002603770075 | AT203: ='NGGT TO'!AT128 -> 0.008801908007
C205: Tax allowance
E207: ='NGGT TO'!E130 -> Adjusted net debt | G207: £m nominal | H207: ='NGGT TO'!H130 -> ANDt | AP207: ='NGGT TO'!AP130 -> 3505.934251 | AQ207: ='NGGT TO'!AQ130 -> 3527.265234 | AR207: ='NGGT TO'!AR130 -> 3819.27558 | AS207: ='NGGT TO'!AS130 -> 4013.530683 | AT207: ='NGGT TO'!AT130 -> 3855.005291
E208: ='NGGT TO'!E131 -> Tax deductible net interest cost | G208: £m nominal | H208: ='NGGT TO'!H131 -> TDNIt | AP208: ='NGGT TO'!AP131 -> 263.7925372 | AQ208: ='NGGT TO'!AQ131 -> 390.3801451 | AR208: ='NGGT TO'!AR131 -> 304.736699 | AS208: ='NGGT TO'!AS131 -> 154.4835568 | AT208: ='NGGT TO'!AT131 -> 141.7512928
E209: ='NGGT TO'!E132 -> Tax allowance adjustment | G209: £m nominal | H209: ='NGGT TO'!H132 -> TAXAt | AP209: ='NGGT TO'!AP132 -> 0 | AQ209: ='NGGT TO'!AQ132 -> 0 | AR209: ='NGGT TO'!AR132 -> 0 | AS209: ='NGGT TO'!AS132 -> 0 | AT209: ='NGGT TO'!AT132 -> 0
E210: ='NGGT TO'!E133 -> Tax liability – tax trigger events | G210: £m 18/19 prices | H210: ='NGGT TO'!H133 -> TTEt | AP210: ='NGGT TO'!AP133 -> -14.8742586 | AQ210: ='NGGT TO'!AQ133 -> -20.66611479 | AR210: ='NGGT TO'!AR133 -> -54.88710726 | AS210: ='NGGT TO'!AS133 -> -56.44211875 | AT210: ='NGGT TO'!AT133 -> 0
E212: ='NGGT TO'!E135 -> General Pool Opening Balance Adjustment | G212: £m nominal | H212: ='NGGT TO'!H135 -> OGPAt | AP212: ='NGGT TO'!AP135 -> 0 | AQ212: ='NGGT TO'!AQ135 -> 0 | AR212: ='NGGT TO'!AR135 -> -70.66809315 | AS212: ='NGGT TO'!AS135 -> -77.22322393 | AT212: ='NGGT TO'!AT135 -> 0
E213: ='NGGT TO'!E136 -> Special Rate Pool Opening Balance Adjustment | G213: £m nominal | H213: ='NGGT TO'!H136 -> OSRPAt | AP213: ='NGGT TO'!AP136 -> 0 | AQ213: ='NGGT TO'!AQ136 -> 0 | AR213: ='NGGT TO'!AR136 -> -73.98868232 | AS213: ='NGGT TO'!AS136 -> -129.2141135 | AT213: ='NGGT TO'!AT136 -> 0
E215: Notional gearing for "Tax clawback gearing level test" | G215: % | AP215: ='NGGT TO'!AP138 -> 0.625 | AQ215: ='NGGT TO'!AQ138 -> 0.6188 | AR215: ='NGGT TO'!AR138 -> 0.6125 | AS215: ='NGGT TO'!AS138 -> 0.6063 | AT215: ='NGGT TO'!AT138 -> 0.6
E216: Tax trigger deadband | G216: £m 18/19 prices | AP216: ='NGGT TO'!AP139 -> 2.40790451 | AQ216: ='NGGT TO'!AQ139 -> 2.499667174 | AR216: ='NGGT TO'!AR139 -> 2.516051097 | AS216: ='NGGT TO'!AS139 -> 2.32387782 | AT216: ='NGGT TO'!AT139 -> 2.288168362
E218: ='NGGT TO'!E141 -> General pool capital allowance opening balance brought forward | G218: £m nominal | H218: ='NGGT TO'!H141 -> OGPt | AP218: ='NGGT TO'!AP141 -> 214.3581445
E219: ='NGGT TO'!E142 -> Special Rate capital allowance opening balance brought forward | G219: £m nominal | H219: ='NGGT TO'!H142 -> OSRPt | AP219: ='NGGT TO'!AP142 -> 1571.321872
E220: ='NGGT TO'!E143 -> Structures and buildings capital allowance opening balance brought forward | G220: £m nominal | H220: ='NGGT TO'!H143 -> OSBPt | AP220: ='NGGT TO'!AP143 -> 0
E221: ='NGGT TO'!E144 -> Deferred revenue expenditure opening balance brought forward | G221: £m nominal | H221: ='NGGT TO'!H144 -> ODRPt | AP221: ='NGGT TO'!AP144 -> 0
E222: ='NGGT TO'!E145 -> Deferred revenue pool additions (RIIO1) plus opening balance at start of RIIO1 | G222: £m nominal | H222: ='NGGT TO'!H145 -> LODRPt | AO222: ='NGGT TO'!AO145 -> 0
E223: ='NGGT TO'!E146 -> Tax loss brought forward | G223: £m nominal | H223: ='NGGT TO'!H146 -> OTLt | AP223: ='NGGT TO'!AP146 -> 0
E225: ='NGGT TO'!E148 -> Totex allocation to "General" tax pool | G225: % | H225: ='NGGT TO'!H148 -> ARGPt | AP225: ='NGGT TO'!AP148 -> 0.1887099532 | AQ225: ='NGGT TO'!AQ148 -> 0.1971837893 | AR225: ='NGGT TO'!AR148 -> 0.1738615481 | AS225: ='NGGT TO'!AS148 -> 0.159199049 | AT225: ='NGGT TO'!AT148 -> 0.1712017839
E226: ='NGGT TO'!E149 -> Totex allocation to "Special Rate" tax pool | G226: % | H226: ='NGGT TO'!H149 -> ARSRt | AP226: ='NGGT TO'!AP149 -> 0.4221706393 | AQ226: ='NGGT TO'!AQ149 -> 0.4915798216 | AR226: ='NGGT TO'!AR149 -> 0.5421590878 | AS226: ='NGGT TO'!AS149 -> 0.5628022718 | AT226: ='NGGT TO'!AT149 -> 0.6052344756
E227: ='NGGT TO'!E150 -> Totex allocation to "Structures and Buildings" tax pool | G227: % | H227: ='NGGT TO'!H150 -> ARSBt | AP227: ='NGGT TO'!AP150 -> 0.009146896236 | AQ227: ='NGGT TO'!AQ150 -> 0.01148650688 | AR227: ='NGGT TO'!AR150 -> 0.01181862343 | AS227: ='NGGT TO'!AS150 -> 0 | AT227: ='NGGT TO'!AT150 -> 0
E228: ='NGGT TO'!E151 -> Totex allocation to "Deferred Revenue" tax pool | G228: % | H228: ='NGGT TO'!H151 -> ARDRt | AP228: ='NGGT TO'!AP151 -> 0 | AQ228: ='NGGT TO'!AQ151 -> 0 | AR228: ='NGGT TO'!AR151 -> 0 | AS228: ='NGGT TO'!AS151 -> 0.002242240127 | AT228: ='NGGT TO'!AT151 -> 0.002411292731
E229: ='NGGT TO'!E152 -> Totex allocation to "Revenue" tax pool | G229: % | H229: ='NGGT TO'!H152 -> ARRt | AP229: ='NGGT TO'!AP152 -> 0.3786414542 | AQ229: ='NGGT TO'!AQ152 -> 0.2981510398 | AR229: ='NGGT TO'!AR152 -> 0.2704506164 | AS229: ='NGGT TO'!AS152 -> 0.2525866244 | AT229: ='NGGT TO'!AT152 -> 0.1962357562
E230: ='NGGT TO'!E153 -> Totex allocation to "Non Qualifying" tax pool | G230: % | H230: ='NGGT TO'!H153 -> ARNQt | AP230: ='NGGT TO'!AP153 -> 0.001331057168 | AQ230: ='NGGT TO'!AQ153 -> 0.00159884245 | AR230: ='NGGT TO'!AR153 -> 0.001710124303 | AS230: ='NGGT TO'!AS153 -> 0.02316981464 | AT230: ='NGGT TO'!AT153 -> 0.02491669156
E231: Totex allocation check | G231: % | AP231: =SUM(AP225:AP230) -> 1 | AQ231: =SUM(AQ225:AQ230) -> 1 | AR231: =SUM(AR225:AR230) -> 1 | AS231: =SUM(AS225:AS230) -> 1 | AT231: =SUM(AT225:AT230) -> 1
E233: ='NGGT TO'!E156 -> Corporation tax rate | G233: % | H233: ='NGGT TO'!H156 -> CTt | AP233: ='NGGT TO'!AP156 -> 0.19 | AQ233: ='NGGT TO'!AQ156 -> 0.19 | AR233: ='NGGT TO'!AR156 -> 0.25 | AS233: ='NGGT TO'!AS156 -> 0.25 | AT233: ='NGGT TO'!AT156 -> 0.25
E234: ='NGGT TO'!E157 -> General pool capital allowance rate | G234: % | H234: ='NGGT TO'!H157 -> GCAt | AP234: ='NGGT TO'!AP157 -> 0.18 | AQ234: ='NGGT TO'!AQ157 -> 0.18 | AR234: ='NGGT TO'!AR157 -> 0.18 | AS234: ='NGGT TO'!AS157 -> 0.18 | AT234: ='NGGT TO'!AT157 -> 0.18
E235: ='NGGT TO'!E158 -> Special Rates capital allowance rate | G235: % | H235: ='NGGT TO'!H158 -> SRCAt | AP235: ='NGGT TO'!AP158 -> 0.06 | AQ235: ='NGGT TO'!AQ158 -> 0.06 | AR235: ='NGGT TO'!AR158 -> 0.06 | AS235: ='NGGT TO'!AS158 -> 0.06 | AT235: ='NGGT TO'!AT158 -> 0.06
E236: ='NGGT TO'!E159 -> Structures and buildings capital allowance rate | G236: % | H236: ='NGGT TO'!H159 -> SBCAt | AP236: ='NGGT TO'!AP159 -> 0.03 | AQ236: ='NGGT TO'!AQ159 -> 0.03 | AR236: ='NGGT TO'!AR159 -> 0.03 | AS236: ='NGGT TO'!AS159 -> 0.03 | AT236: ='NGGT TO'!AT159 -> 0.03
E237: ='NGGT TO'!E160 -> Deferred Revenue Expenditure capital allowance rate | G237: % | H237: ='NGGT TO'!H160 -> DRCAt | AP237: ='NGGT TO'!AP160 -> 0.0222 | AQ237: ='NGGT TO'!AQ160 -> 0.0222 | AR237: ='NGGT TO'!AR160 -> 0.0222 | AS237: ='NGGT TO'!AS160 -> 0.0222 | AT237: ='NGGT TO'!AT160 -> 0.0222
C239: Inputs for true ups to allowed revenue
E241: ='NGGT TO'!E126 -> Sterling Overnight Index Average (SONIA) | G241: annual nominal % | H241: ='NGGT TO'!H126 -> It | J241: > | AO241: ='NGGT TO'!AO126 -> 0.0005592173913 | AP241: ='NGGT TO'!AP126 -> 0.001423098814 | AQ241: ='NGGT TO'!AQ126 -> 0.02263104382 | AR241: ='NGGT TO'!AR126 -> 0.04992018833 | AS241: ='NGGT TO'!AS126 -> 0.04986775757 | AT241: ='NGGT TO'!AT126 -> 0.04432491108
E243: ='NGGT TO'!E162 -> RIIO-1 allowed revenue | G243: £m nominal | H243: ='NGGT TO'!H162 -> RIIO-1 ARt | J243: > | AO243: ='NGGT TO'!AO162 -> 779.6496354
E244: ='NGGT TO'!E163 -> Recovered revenue billed basis | G244: £m nominal | H244: ='NGGT TO'!H163 -> BRRt | J244: > | AO244: ='NGGT TO'!AO163 -> 660.3997031 | AP244: ='NGGT TO'!AP163 -> 938.1542585 | AQ244: ='NGGT TO'!AQ163 -> 1172.3 | AR244: ='NGGT TO'!AR163 -> 845.65 | AS244: ='NGGT TO'!AS163 -> 0 | AT244: ='NGGT TO'!AT163 -> 0
E245: ='NGGT TO'!E164 -> Bad debt | G245: £m nominal | H245: ='NGGT TO'!H164 -> BDt | J245: > | AO245: ='NGGT TO'!AO164 -> 0.04625153165 | AP245: ='NGGT TO'!AP164 -> 0.08937036 | AQ245: ='NGGT TO'!AQ164 -> -0.08951553 | AR245: ='NGGT TO'!AR164 -> 0 | AS245: ='NGGT TO'!AS164 -> 0 | AT245: ='NGGT TO'!AT164 -> 0
E246: ='NGGT TO'!E165 -> Recovered revenue | G246: £m nominal | H246: ='NGGT TO'!H165 -> RRt | J246: > | AO246: ='NGGT TO'!AO165 -> 660.3534516 | AP246: ='NGGT TO'!AP165 -> 938.0648881 | AQ246: ='NGGT TO'!AQ165 -> 1172.389516 | AR246: ='NGGT TO'!AR165 -> 845.65 | AS246: ='NGGT TO'!AS165 -> 0 | AT246: ='NGGT TO'!AT165 -> 0
E247: ='NGGT TO'!E166 -> K rate margin | G247: annual nominal % | J247: > | AO247: ='NGGT TO'!AO166 -> 0.0115 | AP247: ='NGGT TO'!AP166 -> 0.0115 | AQ247: ='NGGT TO'!AQ166 -> 0.0115 | AR247: ='NGGT TO'!AR166 -> 0.0115 | AS247: ='NGGT TO'!AS166 -> 0.0115 | AT247: ='NGGT TO'!AT166 -> 0.0115
E248: ='NGGT TO'!E167 -> Over/undercollection percentage for penal rate adjustment | G248: % | I248: ='NGGT TO'!I167 -> 0.06
E249: ='NGGT TO'!E168 -> Penal rate proportion | G249: scalar | H249: ='NGGT TO'!H168 -> PRPt | J249: > | AO249: ='NGGT TO'!AO168 -> 0 | AP249: ='NGGT TO'!AP168 -> 1 | AQ249: ='NGGT TO'!AQ168 -> 0 | AR249: ='NGGT TO'!AR168 -> 1 | AS249: ='NGGT TO'!AS168 -> 1 | AT249: ='NGGT TO'!AT168 -> 1
C251: Other finance inputs
E253: Minimum equity issuance threshold | G253: % | AP253: ='NGGT TO'!AP195 -> 0.05 | AQ253: ='NGGT TO'!AQ195 -> 0.05 | AR253: ='NGGT TO'!AR195 -> 0.05 | AS253: ='NGGT TO'!AS195 -> 0.05 | AT253: ='NGGT TO'!AT195 -> 0.05
E254: Equity issuance costs | G254: % | AP254: ='NGGT TO'!AP196 -> 0.05 | AQ254: ='NGGT TO'!AQ196 -> 0.05 | AR254: ='NGGT TO'!AR196 -> 0.05 | AS254: ='NGGT TO'!AS196 -> 0.05 | AT254: ='NGGT TO'!AT196 -> 0.05
E255: Assumed dividends as % of notional equity portion of RAV | G255: % | AP255: ='NGGT TO'!AP197 -> 0.03 | AQ255: ='NGGT TO'!AQ197 -> 0.03 | AR255: ='NGGT TO'!AR197 -> 0.03 | AS255: ='NGGT TO'!AS197 -> 0.03 | AT255: ='NGGT TO'!AT197 -> 0.03
E256: Equity issuance gearing target | G256: % | AP256: ='NGGT TO'!AP198 -> 0.6 | AQ256: ='NGGT TO'!AQ198 -> 0.6 | AR256: ='NGGT TO'!AR198 -> 0.6 | AS256: ='NGGT TO'!AS198 -> 0.6 | AT256: ='NGGT TO'!AT198 -> 0.6
... 312 more rows

Sheet Totex
A1: Totex
B2: =UserInterface!G17 -> NGGT TO
E3: Parameter | G3: Units | I3: Constant | AP3: Annual values
E4: PCFM year ending | F4: =Cover!C4 -> Model Version | I4: =UserInterface!$G$10 -> 2025-03-31 | K4: 1991-03-31 | L4: 1992-03-31 | M4: 1993-03-31 | N4: 1994-03-31 | O4: 1995-03-31 | P4: 1996-03-31 | Q4: 1997-03-31 | R4: 1998-03-31 | S4: 1999-03-31 | T4: 2000-03-31 | U4: 2001-03-31 | V4: 2002-03-31 | W4: 2003-03-31 | X4: 2004-03-31 | Y4: 2005-03-31 | Z4: 2006-03-31 | AA4: 2007-03-31 | AB4: 2008-03-31 | AC4: 2009-03-31 | AD4: 2010-03-31 | AE4: 2011-03-31 | AF4: 2012-03-31 | AG4: 2013-03-31 | AH4: 2014-03-31 | AI4: 2015-03-31 | AJ4: 2016-03-31 | AK4: 2017-03-31 | AL4: 2018-03-31 | AM4: 2019-03-31 | AN4: 2020-03-31 | AO4: 2021-03-31 | AP4: 2022-03-31 | AQ4: 2023-03-31 | AR4: 2024-03-31 | AS4: 2025-03-31 | AT4: 2026-03-31
B6: Totex
C8: Allowed totex aggregated by sub-category
C9: Note: Totex is the sum of a number of cost categories, with all totex allowances falling under one (or more) of them. They have significance in the model as each sub-category can have its own set of tax pool allocation rules.
D11: Capitalisation rate 1 totex
E14: Load related capex | G14: £m 18/19 prices | AP14: =Input!AP11 + SUMPRODUCT((Input!AP$294:AP$509) * (Input!$H$294:$H$509 = $E14) * (Input!$BE$294:$BE$509 = "CapRate 1 (Baseline)")) -> 1.999842762 | AQ14: =Input!AQ11 + SUMPRODUCT((Input!AQ$294:AQ$509) * (Input!$H$294:$H$509 = $E14) * (Input!$BE$294:$BE$509 = "CapRate 1 (Baseline)")) -> 3.039362207 | AR14: =Input!AR11 + SUMPRODUCT((Input!AR$294:AR$509) * (Input!$H$294:$H$509 = $E14) * (Input!$BE$294:$BE$509 = "CapRate 1 (Baseline)")) -> 2.392635063 | AS14: =Input!AS11 + SUMPRODUCT((Input!AS$294:AS$509) * (Input!$H$294:$H$509 = $E14) * (Input!$BE$294:$BE$509 = "CapRate 1 (Baseline)")) -> 1.988516608 | AT14: =Input!AT11 + SUMPRODUCT((Input!AT$294:AT$509) * (Input!$H$294:$H$509 = $E14) * (Input!$BE$294:$BE$509 = "CapRate 1 (Baseline)")) -> 1.66
E15: Asset replacement capex | G15: £m 18/19 prices | AP15: =Input!AP12 + SUMPRODUCT((Input!AP$294:AP$509) * (Input!$H$294:$H$509 = $E15) * (Input!$BE$294:$BE$509 = "CapRate 1 (Baseline)")) -> 119.3218194 | AQ15: =Input!AQ12 + SUMPRODUCT((Input!AQ$294:AQ$509) * (Input!$H$294:$H$509 = $E15) * (Input!$BE$294:$BE$509 = "CapRate 1 (Baseline)")) -> 184.1268364 | AR15: =Input!AR12 + SUMPRODUCT((Input!AR$294:AR$509) * (Input!$H$294:$H$509 = $E15) * (Input!$BE$294:$BE$509 = "CapRate 1 (Baseline)")) -> 194.8574547 | AS15: =Input!AS12 + SUMPRODUCT((Input!AS$294:AS$509) * (Input!$H$294:$H$509 = $E15) * (Input!$BE$294:$BE$509 = "CapRate 1 (Baseline)")) -> 110.4099872 | AT15: =Input!AT12 + SUMPRODUCT((Input!AT$294:AT$509) * (Input!$H$294:$H$509 = $E15) * (Input!$BE$294:$BE$509 = "CapRate 1 (Baseline)")) -> 103.1801396
E16: Other capex | G16: £m 18/19 prices | AP16: =Input!AP13 + SUMPRODUCT((Input!AP$294:AP$509) * (Input!$H$294:$H$509 = $E16) * (Input!$BE$294:$BE$509 = "CapRate 1 (Baseline)")) -> 34.15829053 | AQ16: =Input!AQ13 + SUMPRODUCT((Input!AQ$294:AQ$509) * (Input!$H$294:$H$509 = $E16) * (Input!$BE$294:$BE$509 = "CapRate 1 (Baseline)")) -> 65.63635492 | AR16: =Input!AR13 + SUMPRODUCT((Input!AR$294:AR$509) * (Input!$H$294:$H$509 = $E16) * (Input!$BE$294:$BE$509 = "CapRate 1 (Baseline)")) -> 101.8021414 | AS16: =Input!AS13 + SUMPRODUCT((Input!AS$294:AS$509) * (Input!$H$294:$H$509 = $E16) * (Input!$BE$294:$BE$509 = "CapRate 1 (Baseline)")) -> 97.80267838 | AT16: =Input!AT13 + SUMPRODUCT((Input!AT$294:AT$509) * (Input!$H$294:$H$509 = $E16) * (Input!$BE$294:$BE$509 = "CapRate 1 (Baseline)")) -> 67.12898842
E17: Non-load (opex) | G17: £m 18/19 prices | AP17: =Input!AP14 + SUMPRODUCT((Input!AP$294:AP$509) * (Input!$H$294:$H$509 = $E17) * (Input!$BE$294:$BE$509 = "CapRate 1 (Baseline)")) -> 45.47848392 | AQ17: =Input!AQ14 + SUMPRODUCT((Input!AQ$294:AQ$509) * (Input!$H$294:$H$509 = $E17) * (Input!$BE$294:$BE$509 = "CapRate 1 (Baseline)")) -> 45.89009811 | AR17: =Input!AR14 + SUMPRODUCT((Input!AR$294:AR$509) * (Input!$H$294:$H$509 = $E17) * (Input!$BE$294:$BE$509 = "CapRate 1 (Baseline)")) -> 43.3590704 | AS17: =Input!AS14 + SUMPRODUCT((Input!AS$294:AS$509) * (Input!$H$294:$H$509 = $E17) * (Input!$BE$294:$BE$509 = "CapRate 1 (Baseline)")) -> 45.07269049 | AT17: =Input!AT14 + SUMPRODUCT((Input!AT$294:AT$509) * (Input!$H$294:$H$509 = $E17) * (Input!$BE$294:$BE$509 = "CapRate 1 (Baseline)")) -> 41.83199856
E18: Indirects (opex) | G18: £m 18/19 prices | AP18: =Input!AP15 + SUMPRODUCT((Input!AP$294:AP$509) * (Input!$H$294:$H$509 = $E18) * (Input!$BE$294:$BE$509 = "CapRate 1 (Baseline)")) -> 74.70072795 | AQ18: =Input!AQ15 + SUMPRODUCT((Input!AQ$294:AQ$509) * (Input!$H$294:$H$509 = $E18) * (Input!$BE$294:$BE$509 = "CapRate 1 (Baseline)")) -> 81.18857643 | AR18: =Input!AR15 + SUMPRODUCT((Input!AR$294:AR$509) * (Input!$H$294:$H$509 = $E18) * (Input!$BE$294:$BE$509 = "CapRate 1 (Baseline)")) -> 84.14975928 | AS18: =Input!AS15 + SUMPRODUCT((Input!AS$294:AS$509) * (Input!$H$294:$H$509 = $E18) * (Input!$BE$294:$BE$509 = "CapRate 1 (Baseline)")) -> 72.39908388 | AT18: =Input!AT15 + SUMPRODUCT((Input!AT$294:AT$509) * (Input!$H$294:$H$509 = $E18) * (Input!$BE$294:$BE$509 = "CapRate 1 (Baseline)")) -> 65.80532297
E19: Non-operational capex | G19: £m 18/19 prices | AP19: =Input!AP16 + SUMPRODUCT((Input!AP$294:AP$509) * (Input!$H$294:$H$509 = $E19) * (Input!$BE$294:$BE$509 = "CapRate 1 (Baseline)")) -> 28.02279451 | AQ19: =Input!AQ16 + SUMPRODUCT((Input!AQ$294:AQ$509) * (Input!$H$294:$H$509 = $E19) * (Input!$BE$294:$BE$509 = "CapRate 1 (Baseline)")) -> 26.7475381 | AR19: =Input!AR16 + SUMPRODUCT((Input!AR$294:AR$509) * (Input!$H$294:$H$509 = $E19) * (Input!$BE$294:$BE$509 = "CapRate 1 (Baseline)")) -> 22.7710849 | AS19: =Input!AS16 + SUMPRODUCT((Input!AS$294:AS$509) * (Input!$H$294:$H$509 = $E19) * (Input!$BE$294:$BE$509 = "CapRate 1 (Baseline)")) -> 20.58914197 | AT19: =Input!AT16 + SUMPRODUCT((Input!AT$294:AT$509) * (Input!$H$294:$H$509 = $E19) * (Input!$BE$294:$BE$509 = "CapRate 1 (Baseline)")) -> 19.61067961
D21: Capitalisation rate 2 totex
E24: Load related capex | G24: =Input!G281 -> £m 18/19 prices | AP24: =SUMPRODUCT((Input!AP$294:AP$509) * (Input!$H$294:$H$509 = $E24) * (Input!$BE$294:$BE$509 = "CapRate 2 (UM)")) -> 1.862 | AQ24: =SUMPRODUCT((Input!AQ$294:AQ$509) * (Input!$H$294:$H$509 = $E24) * (Input!$BE$294:$BE$509 = "CapRate 2 (UM)")) -> 5.263 | AR24: =SUMPRODUCT((Input!AR$294:AR$509) * (Input!$H$294:$H$509 = $E24) * (Input!$BE$294:$BE$509 = "CapRate 2 (UM)")) -> 7.055447845 | AS24: =SUMPRODUCT((Input!AS$294:AS$509) * (Input!$H$294:$H$509 = $E24) * (Input!$BE$294:$BE$509 = "CapRate 2 (UM)")) -> 4.7025 | AT24: =SUMPRODUCT((Input!AT$294:AT$509) * (Input!$H$294:$H$509 = $E24) * (Input!$BE$294:$BE$509 = "CapRate 2 (UM)")) -> 38.665
E25: Asset replacement capex | G25: =Input!G282 -> £m 18/19 prices | AP25: =SUMPRODUCT((Input!AP$294:AP$509) * (Input!$H$294:$H$509 = $E25) * (Input!$BE$294:$BE$509 = "CapRate 2 (UM)")) -> 0 | AQ25: =SUMPRODUCT((Input!AQ$294:AQ$509) * (Input!$H$294:$H$509 = $E25) * (Input!$BE$294:$BE$509 = "CapRate 2 (UM)")) -> 0 | AR25: =SUMPRODUCT((Input!AR$294:AR$509) * (Input!$H$294:$H$509 = $E25) * (Input!$BE$294:$BE$509 = "CapRate 2 (UM)")) -> 0 | AS25: =SUMPRODUCT((Input!AS$294:AS$509) * (Input!$H$294:$H$509 = $E25) * (Input!$BE$294:$BE$509 = "CapRate 2 (UM)")) -> 0 | AT25: =SUMPRODUCT((Input!AT$294:AT$509) * (Input!$H$294:$H$509 = $E25) * (Input!$BE$294:$BE$509 = "CapRate 2 (UM)")) -> 23.0892
E26: Other capex | G26: =Input!G283 -> £m 18/19 prices | AP26: =SUMPRODUCT((Input!AP$294:AP$509) * (Input!$H$294:$H$509 = $E26) * (Input!$BE$294:$BE$509 = "CapRate 2 (UM)")) -> 0.4177269223 | AQ26: =SUMPRODUCT((Input!AQ$294:AQ$509) * (Input!$H$294:$H$509 = $E26) * (Input!$BE$294:$BE$509 = "CapRate 2 (UM)")) -> 2.796304269 | AR26: =SUMPRODUCT((Input!AR$294:AR$509) * (Input!$H$294:$H$509 = $E26) * (Input!$BE$294:$BE$509 = "CapRate 2 (UM)")) -> 8.926659456 | AS26: =SUMPRODUCT((Input!AS$294:AS$509) * (Input!$H$294:$H$509 = $E26) * (Input!$BE$294:$BE$509 = "CapRate 2 (UM)")) -> 26.20313509 | AT26: =SUMPRODUCT((Input!AT$294:AT$509) * (Input!$H$294:$H$509 = $E26) * (Input!$BE$294:$BE$509 = "CapRate 2 (UM)")) -> 44.84713804
E27: Non-load (opex) | G27: =Input!G284 -> £m 18/19 prices | AP27: =SUMPRODUCT((Input!AP$294:AP$509) * (Input!$H$294:$H$509 = $E27) * (Input!$BE$294:$BE$509 = "CapRate 2 (UM)")) -> 0 | AQ27: =SUMPRODUCT((Input!AQ$294:AQ$509) * (Input!$H$294:$H$509 = $E27) * (Input!$BE$294:$BE$509 = "CapRate 2 (UM)")) -> 0 | AR27: =SUMPRODUCT((Input!AR$294:AR$509) * (Input!$H$294:$H$509 = $E27) * (Input!$BE$294:$BE$509 = "CapRate 2 (UM)")) -> 0 | AS27: =SUMPRODUCT((Input!AS$294:AS$509) * (Input!$H$294:$H$509 = $E27) * (Input!$BE$294:$BE$509 = "CapRate 2 (UM)")) -> 0 | AT27: =SUMPRODUCT((Input!AT$294:AT$509) * (Input!$H$294:$H$509 = $E27) * (Input!$BE$294:$BE$509 = "CapRate 2 (UM)")) -> 0
E28: Indirects (opex) | G28: =Input!G285 -> £m 18/19 prices | AP28: =SUMPRODUCT((Input!AP$294:AP$509) * (Input!$H$294:$H$509 = $E28) * (Input!$BE$294:$BE$509 = "CapRate 2 (UM)")) -> 0.6238497173 | AQ28: =SUMPRODUCT((Input!AQ$294:AQ$509) * (Input!$H$294:$H$509 = $E28) * (Input!$BE$294:$BE$509 = "CapRate 2 (UM)")) -> 2.159935916 | AR28: =SUMPRODUCT((Input!AR$294:AR$509) * (Input!$H$294:$H$509 = $E28) * (Input!$BE$294:$BE$509 = "CapRate 2 (UM)")) -> 4.031987936 | AS28: =SUMPRODUCT((Input!AS$294:AS$509) * (Input!$H$294:$H$509 = $E28) * (Input!$BE$294:$BE$509 = "CapRate 2 (UM)")) -> 6.391093169 | AT28: =SUMPRODUCT((Input!AT$294:AT$509) * (Input!$H$294:$H$509 = $E28) * (Input!$BE$294:$BE$509 = "CapRate 2 (UM)")) -> 24.96290876
E29: Non-operational capex | G29: =Input!G286 -> £m 18/19 prices | AP29: =SUMPRODUCT((Input!AP$294:AP$509) * (Input!$H$294:$H$509 = $E29) * (Input!$BE$294:$BE$509 = "CapRate 2 (UM)")) -> 0 | AQ29: =SUMPRODUCT((Input!AQ$294:AQ$509) * (Input!$H$294:$H$509 = $E29) * (Input!$BE$294:$BE$509 = "CapRate 2 (UM)")) -> 0.483362332 | AR29: =SUMPRODUCT((Input!AR$294:AR$509) * (Input!$H$294:$H$509 = $E29) * (Input!$BE$294:$BE$509 = "CapRate 2 (UM)")) -> 1.613241746 | AS29: =SUMPRODUCT((Input!AS$294:AS$509) * (Input!$H$294:$H$509 = $E29) * (Input!$BE$294:$BE$509 = "CapRate 2 (UM)")) -> 1.637086685 | AT29: =SUMPRODUCT((Input!AT$294:AT$509) * (Input!$H$294:$H$509 = $E29) * (Input!$BE$294:$BE$509 = "CapRate 2 (UM)")) -> 1.295309237
D31: Allowance
E34: Allowed load related capex expenditure | G34: £m 18/19 prices | AP34: =AP14 + AP24 -> 3.861842762 | AQ34: 8.302362207 | AR34: 9.448082908 | AS34: 6.691016608 | AT34: 40.325
E35: Allowed asset replacement capex expenditure | G35: £m 18/19 prices | AP35: =AP15 + AP25 -> 119.3218194 | AQ35: 184.1268364 | AR35: 194.8574547 | AS35: 110.4099872 | AT35: 126.2693396
E36: Allowed other capex expenditure | G36: £m 18/19 prices | AP36: =AP16 + AP26 -> 34.57601745 | AQ36: 68.43265919 | AR36: 110.7288008 | AS36: 124.0058135 | AT36: 111.9761265
E37: Allowed non-load (opex) | G37: £m 18/19 prices | AP37: =AP17 + AP27 -> 45.47848392 | AQ37: 45.89009811 | AR37: 43.3590704 | AS37: 45.07269049 | AT37: 41.83199856
E38: Allowed indirects (opex) | G38: £m 18/19 prices | AP38: 75.32457767 | AQ38: 83.34851235 | AR38: 88.18174722 | AS38: 78.79017705 | AT38: 90.76823173
E39: Allowed non-operational capex | G39: £m 18/19 prices | AP39: =AP19 + AP29 -> 28.02279451 | AQ39: 27.23090043 | AR39: 24.38432665 | AS39: 22.22622865 | AT39: 20.90598885
E40: Allowed totex | G40: £m 18/19 prices | AP40: =SUM(AP34:AP39) -> 306.5855357 | AQ40: 417.3313687 | AR40: 470.9594827 | AS40: 387.1959134 | AT40: 432.0766852
C42: Actual totex
D44: Source of actuals
D45: Note: The model assumes that there is a time lag from year t until actual expenditure data becomes available for the model. After the lag, actual expenditure inputs are used. Up to that point the model generates a forecast actual expenditure.
D46: When required in the model, forecasts assume that actuals are equal to their corresponding allowance.
D47: In a year where actual totex is assumed to be available, values must be inputted to the model as it will not generate a forecast and the empty input cell will be read as an actual spend of zero.
E49: Years from t until normal reporting of actual costs | G49: years | I49: =Input!I262 -> 2
E50: Historic totex (FYI only) | G50: text | AP50: =(YEAR($I$4) >= YEAR(AP$4) + $I49) -> TRUE | AQ50: =(YEAR($I$4) >= YEAR(AQ$4) + $I49) -> TRUE | AR50: FALSE | AS50: FALSE | AT50: FALSE
E51: Forecasted totex (FYI only) | G51: text | AP51: =IF(AP50, FALSE, TRUE) -> FALSE | AQ51: FALSE | AR51: TRUE | AS51: TRUE | AT51: TRUE
D53: Actual totex (historic and forecasted)
D54: Note: Actuals are exported both to identify performance against the allowance and to generate writing down allowances used in the tax calculation.
E56: Capitalisation rate 1 totex
E58: Actual load related capex expenditure | G58: £m 18/19 prices | AP58: =Input!AP63 -> 5.085217276 | AQ58: =Input!AQ63 -> 4.038007606 | AR58: =Input!AR63 -> 2.908161728 | AS58: =Input!AS63 -> 3.122580746 | AT58: =Input!AT63 -> 1.479026258
E59: Actual asset replacement capex expenditure | G59: £m 18/19 prices | AP59: =Input!AP64 -> 105.1696756 | AQ59: =Input!AQ64 -> 138.384789 | AR59: =Input!AR64 -> 141.7158191 | AS59: =Input!AS64 -> 175.9851337 | AT59: =Input!AT64 -> 207.4141848
E60: Actual other capex expenditure | G60: £m 18/19 prices | AP60: =Input!AP65 -> 31.71690374 | AQ60: =Input!AQ65 -> 59.5674105 | AR60: =Input!AR65 -> 101.5813666 | AS60: =Input!AS65 -> 98.97087998 | AT60: =Input!AT65 -> 64.53664873
E61: Actual non-load (opex) | G61: £m 18/19 prices | AP61: =Input!AP66 -> 41.23425761 | AQ61: =Input!AQ66 -> 42.82767777 | AR61: =Input!AR66 -> 66.71156834 | AS61: =Input!AS66 -> 55.46991911 | AT61: =Input!AT66 -> 50.68411085
E62: Actual indirects (opex) | G62: £m 18/19 prices | AP62: =Input!AP67 -> 59.55441234 | AQ62: =Input!AQ67 -> 69.06753452 | AR62: =Input!AR67 -> 69.17579711 | AS62: =Input!AS67 -> 57.62437532 | AT62: =Input!AT67 -> 54.52509027
E63: Actual non-operational capex | G63: £m 18/19 prices | AP63: =Input!AP68 -> 31.42052846 | AQ63: =Input!AQ68 -> 8.321665988 | AR63: =Input!AR68 -> 16.47769128 | AS63: =Input!AS68 -> 11.26240137 | AT63: =Input!AT68 -> 22.57434237
E65: Capitalisation rate 2 totex
E67: Actual load related capex expenditure | G67: £m 18/19 prices | AP67: =Input!AP72 -> 2.383879998 | AQ67: =Input!AQ72 -> 6.823379919 | AR67: =Input!AR72 -> 9.14 | AS67: =Input!AS72 -> 6.12 | AT67: =Input!AT72 -> 50.1
E68: Actual asset replacement capex expenditure | G68: £m 18/19 prices | AP68: =Input!AP73 -> 16.43360963 | AQ68: =Input!AQ73 -> 16.13926477 | AR68: =Input!AR73 -> 8.256303792 | AS68: =Input!AS73 -> 6.72499477 | AT68: =Input!AT73 -> 30.76670144
E69: Actual other capex expenditure | G69: £m 18/19 prices | AP69: =Input!AP74 -> 0 | AQ69: =Input!AQ74 -> 0 | AR69: =Input!AR74 -> 14.28316547 | AS69: =Input!AS74 -> 30.82721775 | AT69: =Input!AT74 -> 52.76133887
E70: Actual non-load (opex) | G70: £m 18/19 prices | AP70: =Input!AP75 -> 0 | AQ70: =Input!AQ75 -> 0 | AR70: =Input!AR75 -> 0 | AS70: =Input!AS75 -> 0 | AT70: =Input!AT75 -> 0
E71: Actual indirects (opex) | G71: £m 18/19 prices | AP71: =Input!AP76 -> 0 | AQ71: =Input!AQ76 -> 0 | AR71: =Input!AR76 -> 0 | AS71: =Input!AS76 -> 0 | AT71: =Input!AT76 -> 0
E72: Actual non-operational capex | G72: £m 18/19 prices | AP72: =Input!AP77 -> 0 | AQ72: =Input!AQ77 -> 0.2797608671 | AR72: =Input!AR77 -> 1.8 | AS72: =Input!AS77 -> 1.637086685 | AT72: =Input!AT77 -> 1.295309237
E74: Total actual
E76: Actual load related capex expenditure | G76: £m 18/19 prices | AP76: =SUM(AP58, AP67) -> 7.469097274 | AQ76: =SUM(AQ58, AQ67) -> 10.86138753 | AR76: 12.04816173 | AS76: 9.242580746 | AT76: 51.57902626
E77: Actual asset replacement capex expenditure | G77: £m 18/19 prices | AP77: =SUM(AP59, AP68) -> 121.6032852 | AQ77: 154.5240538 | AR77: 149.9721229 | AS77: 182.7101285 | AT77: 238.1808862
E78: Actual other capex expenditure | G78: £m 18/19 prices | AP78: =SUM(AP60, AP69) -> 31.71690374 | AQ78: 59.5674105 | AR78: 115.864532 | AS78: 129.7980977 | AT78: 117.2979876
E79: Actual non-load (opex) | G79: £m 18/19 prices | AP79: =SUM(AP61, AP70) -> 41.23425761 | AQ79: 42.82767777 | AR79: 66.71156834 | AS79: 55.46991911 | AT79: 50.68411085
E80: Actual indirects (opex) | G80: £m 18/19 prices | AP80: =SUM(AP62, AP71) -> 59.55441234 | AQ80: 69.06753452 | AR80: 69.17579711 | AS80: 57.62437532 | AT80: 54.52509027
E81: Actual non-operational capex | G81: £m 18/19 prices | AP81: =SUM(AP63, AP72) -> 31.42052846 | AQ81: 8.601426855 | AR81: 18.27769128 | AS81: 12.89948805 | AT81: 23.86965161
E82: Actual totex | G82: £m 18/19 prices | AP82: =SUM(AP76:AP81) -> 292.9984847 | AQ82: 345.4494909 | AR82: 432.0498734 | AS82: 447.7445894 | AT82: 536.1367528
AN83: cross check
B84: End of sheet

Sheet TIM
A1: Totex Incentive Mechanism (TIM)
B2: =UserInterface!G17 -> NGGT TO
E3: Parameter | G3: Units | I3: Constant | AP3: Annual values
E4: PCFM year ending | F4: =Cover!C4 -> Model Version | I4: =UserInterface!$G$10 -> 2025-03-31 | K4: 1991-03-31 | L4: 1992-03-31 | M4: 1993-03-31 | N4: 1994-03-31 | O4: 1995-03-31 | P4: 1996-03-31 | Q4: 1997-03-31 | R4: 1998-03-31 | S4: 1999-03-31 | T4: 2000-03-31 | U4: 2001-03-31 | V4: 2002-03-31 | W4: 2003-03-31 | X4: 2004-03-31 | Y4: 2005-03-31 | Z4: 2006-03-31 | AA4: 2007-03-31 | AB4: 2008-03-31 | AC4: 2009-03-31 | AD4: 2010-03-31 | AE4: 2011-03-31 | AF4: 2012-03-31 | AG4: 2013-03-31 | AH4: 2014-03-31 | AI4: 2015-03-31 | AJ4: 2016-03-31 | AK4: 2017-03-31 | AL4: 2018-03-31 | AM4: 2019-03-31 | AN4: 2020-03-31 | AO4: 2021-03-31 | AP4: 2022-03-31 | AQ4: 2023-03-31 | AR4: 2024-03-31 | AS4: 2025-03-31 | AT4: 2026-03-31
B6: Efficiency incentive
C8: Post-TIM overspend (underspend)
C9: Note: Totex overspend (underspend) is identified and subject to the "Funding Adjustment Rate."
C10: - Non-'uncertainty rate' and 'uncertainty rate' totex are separated at this stage to allow for the application of their respective capitalisation rates to any overspend (underspend)
D12: Capitalisation 1 totex
E14: Actual totex | G14: £m 18/19 prices | AP14: =SUM(Totex!AP58:AP63) -> 274.180995 | AQ14: =SUM(Totex!AQ58:AQ63) -> 322.2070854 | AR14: =SUM(Totex!AR58:AR63) -> 398.5704042 | AS14: =SUM(Totex!AS58:AS63) -> 402.4352902 | AT14: =SUM(Totex!AT58:AT63) -> 401.2134033
E15: Less allowed totex | G15: £m 18/19 prices | AP15: =- SUM(Totex!AP14:AP19) -> -303.6819591 | AQ15: =- SUM(Totex!AQ14:AQ19) -> -406.6287662 | AR15: =- SUM(Totex!AR14:AR19) -> -449.3321458 | AS15: =- SUM(Totex!AS14:AS19) -> -348.2620985 | AT15: =- SUM(Totex!AT14:AT19) -> -299.2171291
E16: Pre-TIM overspend (underspend) | G16: £m 18/19 prices | AP16: =SUM(AP14:AP15) -> -29.50096406 | AQ16: -84.42168081 | AR16: -50.7617416 | AS16: 54.17319174 | AT16: 101.9962741
E18: Funding Adjustment Rate (often referred to as 'sharing factor') | G18: % | AP18: =Input!$I$267 -> 0.61 | AQ18: =Input!$I$267 -> 0.61 | AR18: =Input!$I$267 -> 0.61 | AS18: =Input!$I$267 -> 0.61 | AT18: =Input!$I$267 -> 0.61
E20: Post-TIM overspend (underspend) | G20: £m 18/19 prices | AP20: =AP$18*AP16 -> -17.99558808 | AQ20: -51.49722529 | AR20: -30.96466237 | AS20: 33.04564696 | AT20: 62.21772723
D22: Capitalisation 2 totex
E24: Actual totex | G24: £m 18/19 prices | AP24: =SUM(Totex!AP67:AP72) -> 18.81748963 | AQ24: =SUM(Totex!AQ67:AQ72) -> 23.24240555 | AR24: =SUM(Totex!AR67:AR72) -> 33.47946926 | AS24: =SUM(Totex!AS67:AS72) -> 45.30929921 | AT24: =SUM(Totex!AT67:AT72) -> 134.9233495
E25: Less allowed totex | G25: £m 18/19 prices | AP25: =- SUM(Totex!AP24:AP29) -> -2.90357664 | AQ25: =- SUM(Totex!AQ24:AQ29) -> -10.70260252 | AR25: =- SUM(Totex!AR24:AR29) -> -21.62733698 | AS25: =- SUM(Totex!AS24:AS29) -> -38.93381494 | AT25: =- SUM(Totex!AT24:AT29) -> -132.859556
E26: Pre-TIM overspend (underspend) | G26: £m 18/19 prices | AP26: =SUM(AP24:AP25) -> 15.91391299 | AQ26: 12.53980304 | AR26: 11.85213227 | AS26: 6.375484264 | AT26: 2.063793511
E28: Funding Adjustment Rate (often referred to as 'sharing factor') | G28: % | AP28: =AP$18 -> 0.61 | AQ28: 0.61 | AR28: 0.61 | AS28: 0.61 | AT28: 0.61
E30: Post-TIM overspend (underspend) | G30: £m 18/19 prices | AP30: =AP$28 * AP26 -> 9.707486922 | AQ30: 7.649279853 | AR30: 7.229800688 | AS30: 3.889045401 | AT30: 1.258914041
C32: Post-TIM totex
C33: Note: "Post-TIM overspend (underspend)" is added to the allowed totex value to give the Post-TIM totex allowance to be split into fast and slow money.
D35: Capitalisation 1 totex
E37: Allowed totex | G37: £m 18/19 prices | AP37: =-AP15 -> 303.6819591 | AQ37: =-AQ15 -> 406.6287662 | AR37: =-AR15 -> 449.3321458 | AS37: =-AS15 -> 348.2620985 | AT37: =-AT15 -> 299.2171291
E38: Post-TIM overspend (underspend) | G38: £m 18/19 prices | AP38: =AP20 -> -17.99558808 | AQ38: =AQ20 -> -51.49722529 | AR38: =AR20 -> -30.96466237 | AS38: =AS20 -> 33.04564696 | AT38: =AT20 -> 62.21772723
E39: Post-TIM totex | G39: £m 18/19 prices | AP39: =SUM(AP37:AP38) -> 285.686371 | AQ39: 355.1315409 | AR39: 418.3674834 | AS39: 381.3077454 | AT39: 361.4348564
D41: Capitalisation 2 totex
E43: Allowed totex | G43: £m 18/19 prices | AP43: =-AP25 -> 2.90357664 | AQ43: =-AQ25 -> 10.70260252 | AR43: =-AR25 -> 21.62733698 | AS43: =-AS25 -> 38.93381494 | AT43: =-AT25 -> 132.859556
E44: Post-TIM overspend (underspend) | G44: £m 18/19 prices | AP44: =AP30 -> 9.707486922 | AQ44: =AQ30 -> 7.649279853 | AR44: =AR30 -> 7.229800688 | AS44: =AS30 -> 3.889045401 | AT44: =AT30 -> 1.258914041
E45: Post-TIM totex | G45: £m 18/19 prices | AP45: =SUM(AP43:AP44) -> 12.61106356 | AQ45: 18.35188237 | AR45: 28.85713767 | AS45: 42.82286034 | AT45: 134.1184701
B47: Capitalisation
B48: Note: Non-'uncertainty rate' totex and 'uncertainty rate' totex are capitalised separately. Post-TIM totex is allocated into "fast" and "slow" elements based on a pre-set percentage split:
B49: - "fast money " is exported to the "Revenue" sheet where it is included as an element of "recalculated base revenue;" and
B50: - "slow money " is exported to the "Depn" sheet where it is added to RAV. Slow money is recovered over the life of the RAV through regulatory depreciation and return allowances.
C52: Separate capitalisation
D54: Capitalisation 1 totex
E56: Post-TIM totex | G56: £m 18/19 prices | AP56: =AP39 -> 285.686371 | AQ56: =AQ39 -> 355.1315409 | AR56: =AR39 -> 418.3674834 | AS56: =AS39 -> 381.3077454 | AT56: =AT39 -> 361.4348564
E57: Capitalisation rate 1 | G57: % | AP57: =Input!AP264 -> 0.65 | AQ57: =Input!AQ264 -> 0.65 | AR57: =Input!AR264 -> 0.65 | AS57: =Input!AS264 -> 0.65 | AT57: =Input!AT264 -> 0.65
E58: Fast pot expenditure | G58: £m 18/19 prices | AP58: =AP56-AP59 -> 99.99022985 | AQ58: 124.2960393 | AR58: 146.4286192 | AS58: 133.4577109 | AT58: 126.5021997
E59: Slow pot expenditure | G59: £m 18/19 prices | AP59: =AP56 * AP57 -> 185.6961412 | AQ59: 230.8355016 | AR59: 271.9388642 | AS59: 247.8500345 | AT59: 234.9326566
D61: Capitalisation 2 totex
E63: Post-TIM totex | G63: £m 18/19 prices | AP63: =AP45 -> 12.61106356 | AQ63: =AQ45 -> 18.35188237 | AR63: =AR45 -> 28.85713767 | AS63: =AS45 -> 42.82286034 | AT63: =AT45 -> 134.1184701
E64: Capitalisation rate 2 | G64: % | AP64: =Input!AP265 -> 0.75 | AQ64: =Input!AQ265 -> 0.75 | AR64: =Input!AR265 -> 0.75 | AS64: =Input!AS265 -> 0.75 | AT64: =Input!AT265 -> 0.75
E65: Fast pot expenditure | G65: £m 18/19 prices | AP65: =AP63 - AP66 -> 3.15276589 | AQ65: 4.587970592 | AR65: 7.214284418 | AS65: 10.70571509 | AT65: 33.52961752
E66: Slow pot expenditure | G66: £m 18/19 prices | AP66: =AP63 * AP64 -> 9.458297671 | AQ66: 13.76391178 | AR66: 21.64285325 | AS66: 32.11714526 | AT66: 100.5888526
C68: Totex
E70: Fast pot expenditure | G70: £m 18/19 prices | AP70: =AP58+AP65 -> 103.1429957 | AQ70: =AQ58+AQ65 -> 128.8840099 | AR70: 153.6429036 | AS70: 144.163426 | AT70: 160.0318172
E72: Slow pot expenditure | G72: £m 18/19 prices | AP72: =AP59+AP66 -> 195.1544388 | AQ72: =AQ59+AQ66 -> 244.5994134 | AR72: 293.5817174 | AS72: 279.9671798 | AT72: 335.5215092
B74: End of sheet

Sheet Depn
A1: Regulatory Depreciation
B2: =UserInterface!G17 -> NGGT TO
E3: Parameter | G3: Units | I3: Constant | AP3: Annual values
E4: PCFM year ending | F4: =Cover!C4 -> Model Version | I4: =UserInterface!$G$10 -> 2025-03-31 | K4: 1991-03-31 | L4: 1992-03-31 | M4: 1993-03-31 | N4: 1994-03-31 | O4: 1995-03-31 | P4: 1996-03-31 | Q4: 1997-03-31 | R4: 1998-03-31 | S4: 1999-03-31 | T4: 2000-03-31 | U4: 2001-03-31 | V4: 2002-03-31 | W4: 2003-03-31 | X4: 2004-03-31 | Y4: 2005-03-31 | Z4: 2006-03-31 | AA4: 2007-03-31 | AB4: 2008-03-31 | AC4: 2009-03-31 | AD4: 2010-03-31 | AE4: 2011-03-31 | AF4: 2012-03-31 | AG4: 2013-03-31 | AH4: 2014-03-31 | AI4: 2015-03-31 | AJ4: 2016-03-31 | AK4: 2017-03-31 | AL4: 2018-03-31 | AM4: 2019-03-31 | AN4: 2020-03-31 | AO4: 2021-03-31 | AP4: 2022-03-31 | AQ4: 2023-03-31 | AR4: 2024-03-31 | AS4: 2025-03-31 | AT4: 2026-03-31
B6: Regulatory depreciation
C8: Net RAV additions (after disposals)
C9: Note: Additions to RAV are combined before feeding into the depreciation calculations. Disposals are treated as negative additions. Pre-RIIO values are used to build up the post-vesting RAV from vesting.
C10: Logged-up and security costs are retrospectively added to RAV to provide the updated opening RAV and align depreciation with expenditure.
E12: Slow money | G12: £m 18/19 prices | AP12: =TIM!AP59 + TIM!AP66 -> 195.1544388 | AQ12: =TIM!AQ59 + TIM!AQ66 -> 244.5994134 | AR12: =TIM!AR59 + TIM!AR66 -> 293.5817174 | AS12: =TIM!AS59 + TIM!AS66 -> 279.9671798 | AT12: =TIM!AT59 + TIM!AT66 -> 335.5215092
E13: RIIO-1 net RAV additions | G13: £m 18/19 prices | J13: > | AH13: =Input!AH535 -> 210.4764798 | AI13: =Input!AI535 -> 167.3135618 | AJ13: =Input!AJ535 -> 158.1892081 | AK13: =Input!AK535 -> 179.0164321 | AL13: =Input!AL535 -> 227.6662552 | AM13: =Input!AM535 -> 205.0792588 | AN13: =Input!AN535 -> 173.2878659 | AO13: =Input!AO535 -> 144.3184505
E14: Net adjustments | G14: £m 18/19 prices | AP14: =SUM(Input!AP536:AP537) -> 0 | AQ14: =SUM(Input!AQ536:AQ537) -> 0 | AR14: =SUM(Input!AR536:AR537) -> 0 | AS14: =SUM(Input!AS536:AS537) -> 0 | AT14: =SUM(Input!AT536:AT537) -> 0
E15: Pre-RIIO net RAV additions (after disposals) | G15: £m 18/19 prices | J15: > | K15: =Input!K533 -> 0 | L15: =Input!L533 -> 0 | M15: =Input!M533 -> 0 | N15: =Input!N533 -> 0 | O15: =Input!O533 -> 0 | P15: =Input!P533 -> 0 | Q15: =Input!Q533 -> 0 | R15: =Input!R533 -> 0 | S15: =Input!S533 -> 0 | T15: =Input!T533 -> 0 | U15: =Input!U533 -> 0 | V15: =Input!V533 -> 0 | W15: =Input!W533 -> 0 | X15: =Input!X533 -> 393.0474399 | Y15: =Input!Y533 -> 126.551982 | Z15: =Input!Z533 -> 393.9201619 | AA15: =Input!AA533 -> 710.4949173 | AB15: =Input!AB533 -> 769.1575025 | AC15: =Input!AC533 -> 325.3339377 | AD15: =Input!AD533 -> 161.7587385 | AE15: =Input!AE533 -> 131.2813581 | AF15: =Input!AF533 -> 132.7730693 | AG15: =Input!AG533 -> -37.76579961
E16: Net RAV additions (after disposals) | G16: £m 18/19 prices | J16: > | K16: =SUM(K12:K15) -> 0 | L16: 0 | M16: 0 | N16: 0 | O16: 0 | P16: 0 | Q16: 0 | R16: 0 | S16: 0 | T16: 0 | U16: 0 | V16: 0 | W16: 0 | X16: 393.0474399 | Y16: 126.551982 | Z16: 393.9201619 | AA16: 710.4949173 | AB16: 769.1575025 | AC16: 325.3339377 | AD16: 161.7587385 | AE16: 131.2813581 | AF16: 132.7730693 | AG16: -37.76579961 | AH16: 210.4764798 | AI16: 167.3135618 | AJ16: 158.1892081 | AK16: 179.0164321 | AL16: 227.6662552 | AM16: 205.0792588 | AN16: 173.2878659 | AO16: 144.3184505 | AP16: 195.1544388 | AQ16: 244.5994134 | AR16: 293.5817174 | AS16: 279.9671798 | AT16: 335.5215092
C18: Net depreciation additions (after disposals)
C19: Note:
E21: Pre-RIIO transfers to depreciation | G21: £m 18/19 prices | J21: > | K21: =Input!K534 -> 0 | L21: =Input!L534 -> 0 | M21: =Input!M534 -> 0 | N21: =Input!N534 -> 0 | O21: =Input!O534 -> 0 | P21: =Input!P534 -> 0 | Q21: =Input!Q534 -> 0 | R21: =Input!R534 -> 0 | S21: =Input!S534 -> 0 | T21: =Input!T534 -> 0 | U21: =Input!U534 -> 0 | V21: =Input!V534 -> 0 | W21: =Input!W534 -> 0 | X21: =Input!X534 -> 4.477841855 | Y21: =Input!Y534 -> 0 | Z21: =Input!Z534 -> 0 | AA21: =Input!AA534 -> 0 | AB21: =Input!AB534 -> 0 | AC21: =Input!AC534 -> 0 | AD21: =Input!AD534 -> 0 | AE21: =Input!AE534 -> 0 | AF21: =Input!AF534 -> 0 | AG21: =Input!AG534 -> -10.91361515
C23: Pre-vesting depreciation
C24: Note: The following depreciation factor is used to depreciate the pre-vesting balance on the "Return&RAV" sheet.
E26: Pre-vesting asset life | G26: years | I26: =Input!I518 -> 56
E27: Sum of digits | G27: integer | I27: =I26 * (1 + I26) / 2 -> 1596
E28: Years of pre-vesting depreciation remaining | G28: years | AH28: =Input!AH520 -> 45 | AI28: =Input!AI520 -> 44 | AJ28: =Input!AJ520 -> 43 | AK28: =Input!AK520 -> 42 | AL28: =Input!AL520 -> 41 | AM28: =Input!AM520 -> 40 | AN28: =Input!AN520 -> 39 | AO28: =Input!AO520 -> 38 | AP28: =Input!AP520 -> 37 | AQ28: =Input!AQ520 -> 36 | AR28: =Input!AR520 -> 35 | AS28: =Input!AS520 -> 34 | AT28: =Input!AT520 -> 33
E30: Pre-vesting straight line depreciation factor | G30: scalar | AH30: =AH28 / $I27 -> 0.02819548872 | AI30: =AI28 / $I27 -> 0.02756892231 | AJ30: 0.02694235589 | AK30: 0.02631578947 | AL30: 0.02568922306 | AM30: 0.02506265664 | AN30: 0.02443609023 | AO30: 0.02380952381 | AP30: =AP28 / $I27 -> 0.02318295739 | AQ30: 0.02255639098 | AR30: 0.02192982456 | AS30: 0.02130325815 | AT30: 0.02067669173
C32: Post-vesting depreciation - sum of digits
D34: Depreciation parameters
E36: Post-vesting asset life, sum of digits | G36: years | I36: =Input!I528 -> 45
E37: Sum of digits | G37: integer | I37: =I36 * (1 + I36) / 2 -> 1035
E39: First year sum of digits depreciation (applied retrospectively to existing assets) | G39: year ending | I39: =Input!I529 -> 2003-03-31
E40: First year of application to new assets, start of recovery period | G40: year ending | I40: =Input!I530 -> 2022-03-31
E41: Existing assets differential depreciation recovery period | G41: years | I41: =Input!I531 -> 20
E42: Last year differential depreciation recovery | G42: year ending | I42: =DATE(YEAR(I40) + I41 - 1, MONTH(I40), DAY(I40)) -> 2041-03-31
E44: Sum of digits depreciation applies (new assets) | G44: text | J44: > | L44: =L$4 >= $I$40 -> FALSE | M44: =M$4 >= $I$40 -> FALSE | N44: FALSE | O44: FALSE | P44: FALSE | Q44: FALSE | R44: FALSE | S44: FALSE | T44: FALSE | U44: FALSE | V44: FALSE | W44: FALSE | X44: FALSE | Y44: FALSE | Z44: FALSE | AA44: FALSE | AB44: FALSE | AC44: FALSE | AD44: FALSE | AE44: FALSE | AF44: FALSE | AG44: FALSE | AH44: FALSE | AI44: FALSE | AJ44: FALSE | AK44: FALSE | AL44: FALSE | AM44: FALSE | AN44: FALSE | AO44: FALSE | AP44: TRUE | AQ44: TRUE | AR44: TRUE | AS44: TRUE | AT44: TRUE
D46: Depreciation schedule
E48: Depreciation of additions from year ending | I48: Net additions (sum of digits) | AV48: Sum of digits depreciation applies (existing assets)
E49: 1991-03-31 | G49: £m 18/19 prices | I49: =INDEX($K$16:$AT$16, MATCH($E49, $K$4:$AT$4, 0)) * ($E49 >= $I$39) -> 0 | J49: > | L49: =($I49 * ($I$36 - (YEAR(L$4) - (YEAR($E49) + 1))) / $I$37) * (YEAR(L$4) >= YEAR($E49) + 1) * (YEAR(L$4) <= YEAR($E49) + $I$36) -> 0 | M49: =($I49 * ($I$36 - (YEAR(M$4) - (YEAR($E49) + 1))) / $I$37) * (YEAR(M$4) >= YEAR($E49) + 1) * (YEAR(M$4) <= YEAR($E49) + $I$36) -> 0 | N49: 0 | O49: 0 | P49: 0 | Q49: 0 | R49: 0 | S49: 0 | T49: 0 | U49: 0 | V49: 0 | W49: 0 | X49: 0 | Y49: 0 | Z49: 0 | AA49: 0 | AB49: 0 | AC49: =($I49 * ($I$36 - (YEAR(AC$4) - (YEAR($E49) + 1))) / $I$37) * (YEAR(AC$4) >= YEAR($E49) + 1) * (YEAR(AC$4) <= YEAR($E49) + $I$36) -> 0 | AD49: 0 | AE49: 0 | AF49: 0 | AG49: 0 | AH49: 0 | AI49: 0 | AJ49: 0 | AK49: 0 | AL49: 0 | AM49: 0 | AN49: 0 | AO49: 0 | AP49: 0 | AQ49: 0 | AR49: 0 | AS49: =($I49 * ($I$36 - (YEAR(AS$4) - (YEAR($E49) + 1))) / $I$37) * (YEAR(AS$4) >= YEAR($E49) + 1) * (YEAR(AS$4) <= YEAR($E49) + $I$36) -> 0 | AT49: 0 | AV49: =$E49 >= $I$39 -> FALSE
E50: 1992-03-31 | G50: £m 18/19 prices | I50: =INDEX($K$16:$AT$16, MATCH($E50, $K$4:$AT$4, 0)) * ($E50 >= $I$39) -> 0 | J50: > | L50: =($I50 * ($I$36 - (YEAR(L$4) - (YEAR($E50) + 1))) / $I$37) * (YEAR(L$4) >= YEAR($E50) + 1) * (YEAR(L$4) <= YEAR($E50) + $I$36) -> 0 | M50: 0 | N50: 0 | O50: 0 | P50: 0 | Q50: 0 | R50: 0 | S50: 0 | T50: 0 | U50: 0 | V50: 0 | W50: 0 | X50: 0 | Y50: 0 | Z50: 0 | AA50: 0 | AB50: 0 | AC50: 0 | AD50: 0 | AE50: 0 | AF50: 0 | AG50: 0 | AH50: 0 | AI50: 0 | AJ50: 0 | AK50: 0 | AL50: 0 | AM50: 0 | AN50: 0 | AO50: 0 | AP50: 0 | AQ50: 0 | AR50: 0 | AS50: 0 | AT50: 0 | AV50: =$E50 >= $I$39 -> FALSE
E51: 1993-03-31 | G51: £m 18/19 prices | I51: 0 | J51: > | L51: 0 | M51: 0 | N51: 0 | O51: 0 | P51: 0 | Q51: 0 | R51: 0 | S51: 0 | T51: 0 | U51: 0 | V51: 0 | W51: 0 | X51: 0 | Y51: 0 | Z51: 0 | AA51: 0 | AB51: 0 | AC51: 0 | AD51: 0 | AE51: 0 | AF51: 0 | AG51: 0 | AH51: 0 | AI51: 0 | AJ51: 0 | AK51: 0 | AL51: 0 | AM51: 0 | AN51: 0 | AO51: 0 | AP51: 0 | AQ51: 0 | AR51: 0 | AS51: 0 | AT51: 0 | AV51: FALSE
E52: 1994-03-31 | G52: £m 18/19 prices | I52: 0 | J52: > | L52: 0 | M52: 0 | N52: 0 | O52: 0 | P52: 0 | Q52: 0 | R52: 0 | S52: 0 | T52: 0 | U52: 0 | V52: 0 | W52: 0 | X52: 0 | Y52: 0 | Z52: 0 | AA52: 0 | AB52: 0 | AC52: 0 | AD52: 0 | AE52: 0 | AF52: 0 | AG52: 0 | AH52: 0 | AI52: 0 | AJ52: 0 | AK52: 0 | AL52: 0 | AM52: 0 | AN52: 0 | AO52: 0 | AP52: 0 | AQ52: 0 | AR52: 0 | AS52: 0 | AT52: 0 | AV52: FALSE
E53: 1995-03-31 | G53: £m 18/19 prices | I53: 0 | J53: > | L53: 0 | M53: 0 | N53: 0 | O53: 0 | P53: 0 | Q53: 0 | R53: 0 | S53: 0 | T53: 0 | U53: 0 | V53: 0 | W53: 0 | X53: 0 | Y53: 0 | Z53: 0 | AA53: 0 | AB53: 0 | AC53: 0 | AD53: 0 | AE53: 0 | AF53: 0 | AG53: 0 | AH53: 0 | AI53: 0 | AJ53: 0 | AK53: 0 | AL53: 0 | AM53: 0 | AN53: 0 | AO53: 0 | AP53: 0 | AQ53: 0 | AR53: 0 | AS53: 0 | AT53: 0 | AV53: FALSE
E54: 1996-03-31 | G54: £m 18/19 prices | I54: 0 | J54: > | L54: 0 | M54: 0 | N54: 0 | O54: 0 | P54: 0 | Q54: 0 | R54: 0 | S54: 0 | T54: 0 | U54: 0 | V54: 0 | W54: 0 | X54: 0 | Y54: 0 | Z54: 0 | AA54: 0 | AB54: 0 | AC54: 0 | AD54: 0 | AE54: 0 | AF54: 0 | AG54: 0 | AH54: 0 | AI54: 0 | AJ54: 0 | AK54: 0 | AL54: 0 | AM54: 0 | AN54: 0 | AO54: 0 | AP54: 0 | AQ54: 0 | AR54: 0 | AS54: 0 | AT54: 0 | AV54: FALSE
E55: 1997-03-31 | G55: £m 18/19 prices | I55: 0 | J55: > | L55: 0 | M55: 0 | N55: 0 | O55: 0 | P55: 0 | Q55: 0 | R55: 0 | S55: 0 | T55: 0 | U55: 0 | V55: 0 | W55: 0 | X55: 0 | Y55: 0 | Z55: 0 | AA55: 0 | AB55: 0 | AC55: 0 | AD55: 0 | AE55: 0 | AF55: 0 | AG55: 0 | AH55: 0 | AI55: 0 | AJ55: 0 | AK55: 0 | AL55: 0 | AM55: 0 | AN55: 0 | AO55: 0 | AP55: 0 | AQ55: 0 | AR55: 0 | AS55: 0 | AT55: 0 | AV55: FALSE
E56: 1998-03-31 | G56: £m 18/19 prices | I56: 0 | J56: > | L56: 0 | M56: 0 | N56: 0 | O56: 0 | P56: 0 | Q56: 0 | R56: 0 | S56: 0 | T56: 0 | U56: 0 | V56: 0 | W56: 0 | X56: 0 | Y56: 0 | Z56: 0 | AA56: 0 | AB56: 0 | AC56: 0 | AD56: 0 | AE56: 0 | AF56: 0 | AG56: 0 | AH56: 0 | AI56: 0 | AJ56: 0 | AK56: 0 | AL56: 0 | AM56: 0 | AN56: 0 | AO56: 0 | AP56: 0 | AQ56: 0 | AR56: 0 | AS56: 0 | AT56: 0 | AV56: FALSE
E57: 1999-03-31 | G57: £m 18/19 prices | I57: 0 | J57: > | L57: 0 | M57: 0 | N57: 0 | O57: 0 | P57: 0 | Q57: 0 | R57: 0 | S57: 0 | T57: 0 | U57: 0 | V57: 0 | W57: 0 | X57: 0 | Y57: 0 | Z57: 0 | AA57: 0 | AB57: 0 | AC57: 0 | AD57: 0 | AE57: 0 | AF57: 0 | AG57: 0 | AH57: 0 | AI57: 0 | AJ57: 0 | AK57: 0 | AL57: 0 | AM57: 0 | AN57: 0 | AO57: 0 | AP57: 0 | AQ57: 0 | AR57: 0 | AS57: 0 | AT57: 0 | AV57: FALSE
E58: 2000-03-31 | G58: £m 18/19 prices | I58: 0 | J58: > | L58: 0 | M58: 0 | N58: 0 | O58: 0 | P58: 0 | Q58: 0 | R58: 0 | S58: 0 | T58: 0 | U58: 0 | V58: 0 | W58: 0 | X58: 0 | Y58: 0 | Z58: 0 | AA58: 0 | AB58: 0 | AC58: 0 | AD58: 0 | AE58: 0 | AF58: 0 | AG58: 0 | AH58: 0 | AI58: 0 | AJ58: 0 | AK58: 0 | AL58: 0 | AM58: 0 | AN58: 0 | AO58: 0 | AP58: 0 | AQ58: 0 | AR58: 0 | AS58: 0 | AT58: 0 | AV58: FALSE
E59: 2001-03-31 | G59: £m 18/19 prices | I59: 0 | J59: > | L59: 0 | M59: 0 | N59: 0 | O59: 0 | P59: 0 | Q59: 0 | R59: 0 | S59: 0 | T59: 0 | U59: 0 | V59: 0 | W59: 0 | X59: 0 | Y59: 0 | Z59: 0 | AA59: 0 | AB59: 0 | AC59: 0 | AD59: 0 | AE59: 0 | AF59: 0 | AG59: 0 | AH59: 0 | AI59: 0 | AJ59: 0 | AK59: 0 | AL59: 0 | AM59: 0 | AN59: 0 | AO59: 0 | AP59: 0 | AQ59: 0 | AR59: 0 | AS59: 0 | AT59: 0 | AV59: FALSE
E60: 2002-03-31 | G60: £m 18/19 prices | I60: 0 | J60: > | L60: 0 | M60: 0 | N60: 0 | O60: 0 | P60: 0 | Q60: 0 | R60: 0 | S60: 0 | T60: 0 | U60: 0 | V60: 0 | W60: 0 | X60: 0 | Y60: 0 | Z60: 0 | AA60: 0 | AB60: 0 | AC60: 0 | AD60: 0 | AE60: 0 | AF60: 0 | AG60: 0 | AH60: 0 | AI60: 0 | AJ60: 0 | AK60: 0 | AL60: 0 | AM60: 0 | AN60: 0 | AO60: 0 | AP60: 0 | AQ60: 0 | AR60: 0 | AS60: 0 | AT60: 0 | AV60: FALSE
E61: 2003-03-31 | G61: £m 18/19 prices | I61: 0 | J61: > | L61: 0 | M61: 0 | N61: 0 | O61: 0 | P61: 0 | Q61: 0 | R61: 0 | S61: 0 | T61: 0 | U61: 0 | V61: 0 | W61: 0 | X61: 0 | Y61: 0 | Z61: 0 | AA61: 0 | AB61: 0 | AC61: 0 | AD61: 0 | AE61: 0 | AF61: 0 | AG61: 0 | AH61: 0 | AI61: 0 | AJ61: 0 | AK61: 0 | AL61: 0 | AM61: 0 | AN61: 0 | AO61: 0 | AP61: 0 | AQ61: 0 | AR61: 0 | AS61: 0 | AT61: 0 | AV61: TRUE
E62: 2004-03-31 | G62: £m 18/19 prices | I62: 393.0474399 | J62: > | L62: 0 | M62: 0 | N62: 0 | O62: 0 | P62: 0 | Q62: 0 | R62: 0 | S62: 0 | T62: 0 | U62: 0 | V62: 0 | W62: 0 | X62: 0 | Y62: 17.08901913 | Z62: 16.70926315 | AA62: 16.32950716 | AB62: 15.94975118 | AC62: 15.5699952 | AD62: 15.19023922 | AE62: 14.81048324 | AF62: 14.43072726 | AG62: 14.05097128 | AH62: 13.6712153 | AI62: 13.29145932 | AJ62: 12.91170334 | AK62: 12.53194736 | AL62: 12.15219138 | AM62: 11.7724354 | AN62: 11.39267942 | AO62: 11.01292344 | AP62: 10.63316746 | AQ62: 10.25341148 | AR62: 9.873655495 | AS62: 9.493899514 | AT62: 9.114143534 | AV62: TRUE
E63: 2005-03-31 | G63: £m 18/19 prices | I63: 126.551982 | J63: > | L63: 0 | M63: 0 | N63: 0 | O63: 0 | P63: 0 | Q63: 0 | R63: 0 | S63: 0 | T63: 0 | U63: 0 | V63: 0 | W63: 0 | X63: 0 | Y63: 0 | Z63: 5.502260088 | AA63: 5.379987642 | AB63: 5.257715195 | AC63: 5.135442749 | AD63: 5.013170302 | AE63: 4.890897856 | AF63: 4.76862541 | AG63: 4.646352963 | AH63: 4.524080517 | AI63: 4.40180807 | AJ63: 4.279535624 | AK63: 4.157263178 | AL63: 4.034990731 | AM63: 3.912718285 | AN63: 3.790445838 | AO63: 3.668173392 | AP63: 3.545900946 | AQ63: 3.423628499 | AR63: 3.301356053 | AS63: 3.179083606 | AT63: 3.05681116 | AV63: TRUE
E64: 2006-03-31 | G64: £m 18/19 prices | I64: 393.9201619 | J64: > | L64: 0 | M64: 0 | N64: 0 | O64: 0 | P64: 0 | Q64: 0 | R64: 0 | S64: 0 | T64: 0 | U64: 0 | V64: 0 | W64: 0 | X64: 0 | Y64: 0 | Z64: 0 | AA64: 17.12696356 | AB64: =($I64 * ($I$36 - (YEAR(AB$4) - (YEAR($E64) + 1))) / $I$37) * (YEAR(AB$4) >= YEAR($E64) + 1) * (YEAR(AB$4) <= YEAR($E64) + $I$36) -> 16.74636437 | AC64: 16.36576518 | AD64: 15.98516599 | AE64: 15.6045668 | AF64: 15.22396761 | AG64: 14.84336842 | AH64: 14.46276923 | AI64: 14.08217004 | AJ64: 13.70157085 | AK64: 13.32097166 | AL64: 12.94037247 | AM64: 12.55977328 | AN64: 12.17917409 | AO64: 11.7985749 | AP64: 11.41797571 | AQ64: 11.03737652 | AR64: =($I64 * ($I$36 - (YEAR(AR$4) - (YEAR($E64) + 1))) / $I$37) * (YEAR(AR$4) >= YEAR($E64) + 1) * (YEAR(AR$4) <= YEAR($E64) + $I$36) -> 10.65677733 | AS64: 10.27617814 | AT64: 9.895578947 | AV64: TRUE
E65: 2007-03-31 | G65: £m 18/19 prices | I65: 710.4949173 | J65: > | L65: 0 | M65: 0 | N65: 0 | O65: 0 | P65: 0 | Q65: 0 | R65: 0 | S65: 0 | T65: 0 | U65: 0 | V65: 0 | W65: 0 | X65: 0 | Y65: 0 | Z65: 0 | AA65: 0 | AB65: 30.89108336 | AC65: 30.20461484 | AD65: 29.51814632 | AE65: 28.8316778 | AF65: 28.14520928 | AG65: 27.45874076 | AH65: 26.77227224 | AI65: 26.08580373 | AJ65: 25.39933521 | AK65: 24.71286669 | AL65: 24.02639817 | AM65: 23.33992965 | AN65: 22.65346113 | AO65: 21.96699261 | AP65: 21.28052409 | AQ65: 20.59405557 | AR65: 19.90758705 | AS65: 19.22111853 | AT65: 18.53465002 | AV65: TRUE
E66: 2008-03-31 | G66: £m 18/19 prices | I66: 769.1575025 | J66: > | L66: =($I66 * ($I$36 - (YEAR(L$4) - (YEAR($E66) + 1))) / $I$37) * (YEAR(L$4) >= YEAR($E66) + 1) * (YEAR(L$4) <= YEAR($E66) + $I$36) -> 0 | M66: 0 | N66: 0 | O66: 0 | P66: 0 | Q66: 0 | R66: 0 | S66: 0 | T66: 0 | U66: 0 | V66: 0 | W66: 0 | X66: 0 | Y66: 0 | Z66: 0 | AA66: 0 | AB66: 0 | AC66: 33.44163055 | AD66: 32.6984832 | AE66: 31.95533585 | AF66: 31.21218851 | AG66: 30.46904116 | AH66: 29.72589382 | AI66: 28.98274647 | AJ66: 28.23959913 | AK66: 27.49645178 | AL66: 26.75330444 | AM66: 26.01015709 | AN66: 25.26700975 | AO66: 24.5238624 | AP66: 23.78071505 | AQ66: 23.03756771 | AR66: 22.29442036 | AS66: 21.55127302 | AT66: 20.80812567 | AV66: TRUE
E67: 2009-03-31 | G67: £m 18/19 prices | I67: 325.3339377 | J67: > | L67: 0 | M67: 0 | N67: 0 | O67: 0 | P67: 0 | Q67: 0 | R67: 0 | S67: 0 | T67: 0 | U67: 0 | V67: 0 | W67: 0 | X67: 0 | Y67: 0 | Z67: 0 | AA67: 0 | AB67: 0 | AC67: 0 | AD67: 14.14495381 | AE67: 13.8306215 | AF67: 13.5162892 | AG67: 13.20195689 | AH67: 12.88762458 | AI67: 12.57329228 | AJ67: 12.25895997 | AK67: 11.94462766 | AL67: 11.63029536 | AM67: 11.31596305 | AN67: 11.00163074 | AO67: 10.68729844 | AP67: 10.37296613 | AQ67: 10.05863382 | AR67: 9.744301514 | AS67: 9.429969207 | AT67: 9.1156369 | AV67: TRUE
E68: 2010-03-31 | G68: £m 18/19 prices | I68: 161.7587385 | J68: > | L68: 0 | M68: 0 | N68: 0 | O68: 0 | P68: 0 | Q68: 0 | R68: 0 | S68: 0 | T68: 0 | U68: 0 | V68: 0 | W68: 0 | X68: 0 | Y68: 0 | Z68: 0 | AA68: 0 | AB68: 0 | AC68: 0 | AD68: 0 | AE68: 7.032988629 | AF68: 6.876699993 | AG68: 6.720411357 | AH68: 6.564122721 | AI68: 6.407834085 | AJ68: 6.251545448 | AK68: 6.095256812 | AL68: 5.938968176 | AM68: 5.78267954 | AN68: 5.626390904 | AO68: 5.470102267 | AP68: 5.313813631 | AQ68: 5.157524995 | AR68: 5.001236359 | AS68: 4.844947723 | AT68: 4.688659086 | AV68: TRUE
E69: 2011-03-31 | G69: £m 18/19 prices | I69: 131.2813581 | J69: > | L69: 0 | M69: 0 | N69: 0 | O69: 0 | P69: 0 | Q69: 0 | R69: 0 | S69: 0 | T69: 0 | U69: 0 | V69: 0 | W69: 0 | X69: 0 | Y69: 0 | Z69: 0 | AA69: 0 | AB69: 0 | AC69: 0 | AD69: 0 | AE69: 0 | AF69: 5.707885136 | AG69: 5.581043244 | AH69: 5.454201352 | AI69: 5.327359461 | AJ69: 5.200517569 | AK69: 5.073675677 | AL69: 4.946833785 | AM69: 4.819991893 | AN69: 4.693150001 | AO69: 4.566308109 | AP69: 4.439466217 | AQ69: 4.312624325 | AR69: 4.185782433 | AS69: 4.058940541 | AT69: 3.932098649 | AV69: TRUE
E70: 2012-03-31 | G70: £m 18/19 prices | I70: 132.7730693 | J70: > | L70: 0 | M70: 0 | N70: 0 | O70: 0 | P70: 0 | Q70: 0 | R70: 0 | S70: 0 | T70: 0 | U70: 0 | V70: 0 | W70: 0 | X70: 0 | Y70: 0 | Z70: 0 | AA70: 0 | AB70: 0 | AC70: 0 | AD70: 0 | AE70: 0 | AF70: 0 | AG70: 5.772742145 | AH70: 5.644458986 | AI70: 5.516175827 | AJ70: 5.387892668 | AK70: 5.25960951 | AL70: 5.131326351 | AM70: 5.003043192 | AN70: 4.874760033 | AO70: 4.746476874 | AP70: 4.618193716 | AQ70: 4.489910557 | AR70: 4.361627398 | AS70: 4.233344239 | AT70: 4.105061081 | AV70: TRUE
E71: 2013-03-31 | G71: £m 18/19 prices | I71: -37.76579961 | J71: > | L71: 0 | M71: 0 | N71: 0 | O71: 0 | P71: 0 | Q71: 0 | R71: 0 | S71: 0 | T71: 0 | U71: 0 | V71: 0 | W71: 0 | X71: 0 | Y71: 0 | Z71: 0 | AA71: 0 | AB71: 0 | AC71: 0 | AD71: 0 | AE71: 0 | AF71: 0 | AG71: 0 | AH71: -1.641991287 | AI71: -1.605502592 | AJ71: -1.569013897 | AK71: -1.532525202 | AL71: -1.496036506 | AM71: -1.459547811 | AN71: -1.423059116 | AO71: -1.38657042 | AP71: -1.350081725 | AQ71: -1.31359303 | AR71: -1.277104335 | AS71: -1.240615639 | AT71: -1.204126944 | AV71: TRUE
E72: 2014-03-31 | G72: £m 18/19 prices | I72: 210.4764798 | J72: > | L72: 0 | M72: 0 | N72: 0 | O72: 0 | P72: 0 | Q72: 0 | R72: 0 | S72: 0 | T72: 0 | U72: 0 | V72: 0 | W72: 0 | X72: 0 | Y72: 0 | Z72: 0 | AA72: 0 | AB72: 0 | AC72: 0 | AD72: 0 | AE72: 0 | AF72: 0 | AG72: 0 | AH72: 0 | AI72: 9.151151296 | AJ72: 8.947792378 | AK72: 8.744433461 | AL72: 8.541074543 | AM72: 8.337715625 | AN72: 8.134356708 | AO72: 7.93099779 | AP72: 7.727638872 | AQ72: 7.524279954 | AR72: 7.320921037 | AS72: 7.117562119 | AT72: 6.914203201 | AV72: TRUE
E73: 2015-03-31 | G73: £m 18/19 prices | I73: 167.3135618 | J73: > | L73: 0 | M73: 0 | N73: 0 | O73: 0 | P73: 0 | Q73: 0 | R73: 0 | S73: 0 | T73: 0 | U73: 0 | V73: 0 | W73: 0 | X73: 0 | Y73: 0 | Z73: 0 | AA73: 0 | AB73: 0 | AC73: 0 | AD73: 0 | AE73: 0 | AF73: 0 | AG73: 0 | AH73: 0 | AI73: 0 | AJ73: 7.274502686 | AK73: 7.112847071 | AL73: 6.951191456 | AM73: 6.78953584 | AN73: 6.627880225 | AO73: 6.46622461 | AP73: 6.304568995 | AQ73: 6.142913379 | AR73: 5.981257764 | AS73: 5.819602149 | AT73: 5.657946534 | AV73: TRUE
E74: 2016-03-31 | G74: £m 18/19 prices | I74: 158.1892081 | J74: > | L74: 0 | M74: 0 | N74: 0 | O74: 0 | P74: 0 | Q74: 0 | R74: 0 | S74: 0 | T74: 0 | U74: 0 | V74: 0 | W74: 0 | X74: 0 | Y74: 0 | Z74: 0 | AA74: 0 | AB74: 0 | AC74: 0 | AD74: 0 | AE74: 0 | AF74: 0 | AG74: 0 | AH74: 0 | AI74: 0 | AJ74: 0 | AK74: 6.877791658 | AL74: 6.724951844 | AM74: 6.572112029 | AN74: 6.419272214 | AO74: 6.2664324 | AP74: 6.113592585 | AQ74: 5.96075277 | AR74: 5.807912956 | AS74: 5.655073141 | AT74: 5.502233327 | AV74: TRUE
E75: 2017-03-31 | G75: £m 18/19 prices | I75: 179.0164321 | J75: > | L75: 0 | M75: 0 | N75: 0 | O75: 0 | P75: 0 | Q75: 0 | R75: 0 | S75: 0 | T75: 0 | U75: 0 | V75: 0 | W75: 0 | X75: 0 | Y75: 0 | Z75: 0 | AA75: 0 | AB75: 0 | AC75: 0 | AD75: 0 | AE75: 0 | AF75: 0 | AG75: 0 | AH75: 0 | AI75: 0 | AJ75: 0 | AK75: 0 | AL75: 7.783323134 | AM75: 7.610360397 | AN75: 7.437397661 | AO75: 7.264434925 | AP75: 7.091472188 | AQ75: 6.918509452 | AR75: 6.745546716 | AS75: 6.572583979 | AT75: 6.399621243 | AV75: TRUE
E76: 2018-03-31 | G76: £m 18/19 prices | I76: 227.6662552 | J76: > | L76: 0 | M76: 0 | N76: 0 | O76: 0 | P76: 0 | Q76: 0 | R76: 0 | S76: 0 | T76: 0 | U76: 0 | V76: 0 | W76: 0 | X76: 0 | Y76: 0 | Z76: 0 | AA76: 0 | AB76: 0 | AC76: 0 | AD76: 0 | AE76: 0 | AF76: 0 | AG76: 0 | AH76: 0 | AI76: 0 | AJ76: 0 | AK76: 0 | AL76: 0 | AM76: 9.898532833 | AN76: 9.678565436 | AO76: 9.45859804 | AP76: 9.238630644 | AQ76: 9.018663248 | AR76: 8.798695851 | AS76: 8.578728455 | AT76: 8.358761059 | AV76: TRUE
E77: 2019-03-31 | G77: £m 18/19 prices | I77: 205.0792588 | J77: > | L77: 0 | M77: 0 | N77: 0 | O77: 0 | P77: 0 | Q77: 0 | R77: 0 | S77: 0 | T77: 0 | U77: 0 | V77: 0 | W77: 0 | X77: 0 | Y77: 0 | Z77: 0 | AA77: 0 | AB77: 0 | AC77: 0 | AD77: 0 | AE77: 0 | AF77: 0 | AG77: 0 | AH77: 0 | AI77: 0 | AJ77: 0 | AK77: 0 | AL77: 0 | AM77: 0 | AN77: 8.916489514 | AO77: 8.718345303 | AP77: 8.520201091 | AQ77: 8.32205688 | AR77: 8.123912669 | AS77: 7.925768457 | AT77: 7.727624246 | AV77: TRUE
E78: 2020-03-31 | G78: £m 18/19 prices | I78: 173.2878659 | J78: > | L78: 0 | M78: 0 | N78: 0 | O78: 0 | P78: 0 | Q78: 0 | R78: 0 | S78: 0 | T78: 0 | U78: 0 | V78: 0 | W78: 0 | X78: 0 | Y78: 0 | Z78: 0 | AA78: 0 | AB78: 0 | AC78: 0 | AD78: 0 | AE78: 0 | AF78: 0 | AG78: 0 | AH78: 0 | AI78: 0 | AJ78: 0 | AK78: 0 | AL78: 0 | AM78: 0 | AN78: 0 | AO78: 7.534255041 | AP78: 7.366827151 | AQ78: 7.199399261 | AR78: 7.031971371 | AS78: 6.864543482 | AT78: 6.697115592 | AV78: TRUE
E79: 2021-03-31 | G79: £m 18/19 prices | I79: 144.3184505 | J79: > | L79: 0 | M79: 0 | N79: 0 | O79: 0 | P79: 0 | Q79: 0 | R79: 0 | S79: 0 | T79: 0 | U79: 0 | V79: 0 | W79: 0 | X79: 0 | Y79: 0 | Z79: 0 | AA79: 0 | AB79: 0 | AC79: 0 | AD79: 0 | AE79: 0 | AF79: 0 | AG79: 0 | AH79: 0 | AI79: 0 | AJ79: 0 | AK79: 0 | AL79: 0 | AM79: 0 | AN79: 0 | AO79: 0 | AP79: 6.27471524 | AQ79: 6.135277124 | AR79: 5.995839007 | AS79: 5.856400891 | AT79: 5.716962775 | AV79: TRUE
E80: 2022-03-31 | G80: £m 18/19 prices | I80: 195.1544388 | J80: > | L80: 0 | M80: 0 | N80: 0 | O80: 0 | P80: 0 | Q80: 0 | R80: 0 | S80: 0 | T80: 0 | U80: 0 | V80: 0 | W80: 0 | X80: 0 | Y80: 0 | Z80: 0 | AA80: 0 | AB80: =($I80 * ($I$36 - (YEAR(AB$4) - (YEAR($E80) + 1))) / $I$37) * (YEAR(AB$4) >= YEAR($E80) + 1) * (YEAR(AB$4) <= YEAR($E80) + $I$36) -> 0 | AC80: 0 | AD80: 0 | AE80: 0 | AF80: 0 | AG80: 0 | AH80: 0 | AI80: 0 | AJ80: 0 | AK80: 0 | AL80: 0 | AM80: 0 | AN80: 0 | AO80: 0 | AP80: 0 | AQ80: 8.484975601 | AR80: 8.296420588 | AS80: 8.107865575 | AT80: 7.919310561 | AV80: TRUE
E81: 2023-03-31 | G81: £m 18/19 prices | I81: 244.5994134 | J81: > | L81: 0 | M81: 0 | N81: 0 | O81: 0 | P81: 0 | Q81: 0 | R81: 0 | S81: 0 | T81: 0 | U81: 0 | V81: 0 | W81: 0 | X81: 0 | Y81: 0 | Z81: 0 | AA81: =($I81 * ($I$36 - (YEAR(AA$4) - (YEAR($E81) + 1))) / $I$37) * (YEAR(AA$4) >= YEAR($E81) + 1) * (YEAR(AA$4) <= YEAR($E81) + $I$36) -> 0 | AB81: 0 | AC81: 0 | AD81: 0 | AE81: 0 | AF81: 0 | AG81: 0 | AH81: 0 | AI81: 0 | AJ81: 0 | AK81: 0 | AL81: 0 | AM81: 0 | AN81: 0 | AO81: 0 | AP81: 0 | AQ81: 0 | AR81: 10.6347571 | AS81: 10.39842917 | AT81: 10.16210123 | AV81: TRUE
E82: 2024-03-31 | G82: £m 18/19 prices | I82: 293.5817174 | J82: > | L82: =($I82 * ($I$36 - (YEAR(L$4) - (YEAR($E82) + 1))) / $I$37) * (YEAR(L$4) >= YEAR($E82) + 1) * (YEAR(L$4) <= YEAR($E82) + $I$36) -> 0 | M82: 0 | N82: 0 | O82: 0 | P82: 0 | Q82: 0 | R82: 0 | S82: 0 | T82: 0 | U82: 0 | V82: 0 | W82: 0 | X82: 0 | Y82: 0 | Z82: 0 | AA82: 0 | AB82: 0 | AC82: 0 | AD82: 0 | AE82: 0 | AF82: 0 | AG82: 0 | AH82: 0 | AI82: 0 | AJ82: 0 | AK82: 0 | AL82: 0 | AM82: 0 | AN82: 0 | AO82: 0 | AP82: 0 | AQ82: 0 | AR82: 0 | AS82: 12.7644225 | AT82: 12.48076866 | AV82: TRUE
E83: 2025-03-31 | G83: £m 18/19 prices | I83: 279.9671798 | J83: > | L83: 0 | M83: 0 | N83: 0 | O83: 0 | P83: 0 | Q83: 0 | R83: 0 | S83: 0 | T83: 0 | U83: 0 | V83: 0 | W83: 0 | X83: 0 | Y83: 0 | Z83: 0 | AA83: 0 | AB83: 0 | AC83: 0 | AD83: 0 | AE83: 0 | AF83: 0 | AG83: 0 | AH83: 0 | AI83: 0 | AJ83: 0 | AK83: 0 | AL83: 0 | AM83: 0 | AN83: 0 | AO83: 0 | AP83: 0 | AQ83: 0 | AR83: 0 | AS83: 0 | AT83: 12.17248608 | AV83: TRUE
E84: 2026-03-31 | G84: £m 18/19 prices | I84: 335.5215092
E85: Total | G85: £m 18/19 prices | L85: =SUM(L49:L84) -> 0 | M85: 0 | N85: 0 | O85: 0 | P85: 0 | Q85: 0 | R85: 0 | S85: 0 | T85: 0 | U85: 0 | V85: 0 | W85: 0 | X85: 0 | Y85: 17.08901913 | Z85: 22.21152323 | AA85: 38.83645837 | AB85: 68.84491411 | AC85: 100.7174485 | AD85: 112.5501588 | AE85: 116.9565717 | AF85: 119.8815924 | AG85: 122.7446282 | AH85: 118.0646475 | AI85: 124.214298 | AJ85: 128.283941 | AK85: 131.7952173 | AL85: 136.0591853 | AM85: 142.2654003 | AN85: 147.2696045 | AO85: 150.6934301 | AP85: 152.690288 | AQ85: 156.7579681 | AR85: 162.7868747 | AS85: 170.7091188 | AT85: =SUM(AT49:AT84) -> 177.7557726
C88: Post-vesting depreciation - straight line
D90: Depreciation parameters
E92: Post-vesting asset life, straight line | G92: years | J92: > | K92: =Input!K525 -> 45 | L92: =Input!L525 -> 45 | M92: =Input!M525 -> 45 | N92: =Input!N525 -> 45 | O92: =Input!O525 -> 45 | P92: =Input!P525 -> 45 | Q92: =Input!Q525 -> 45 | R92: =Input!R525 -> 45 | S92: =Input!S525 -> 45 | T92: =Input!T525 -> 45 | U92: =Input!U525 -> 45 | V92: =Input!V525 -> 45 | W92: =Input!W525 -> 45 | X92: =Input!X525 -> 45 | Y92: =Input!Y525 -> 45 | Z92: =Input!Z525 -> 45 | AA92: =Input!AA525 -> 45 | AB92: =Input!AB525 -> 45 | AC92: =Input!AC525 -> 45 | AD92: =Input!AD525 -> 45 | AE92: =Input!AE525 -> 45 | AF92: =Input!AF525 -> 45 | AG92: =Input!AG525 -> 45 | AH92: =Input!AH525 -> 45 | AI92: =Input!AI525 -> 45 | AJ92: =Input!AJ525 -> 45 | AK92: =Input!AK525 -> 45 | AL92: =Input!AL525 -> 45 | AM92: =Input!AM525 -> 45 | AN92: =Input!AN525 -> 45 | AO92: =Input!AO525 -> 45 | AP92: =Input!AP525 -> 45 | AQ92: =Input!AQ525 -> 45 | AR92: =Input!AR525 -> 45 | AS92: =Input!AS525 -> 45 | AT92: =Input!AT525 -> 45
E94: Straight line depreciation applies (new assets) | G94: text | J94: > | L94: =L$4 < $I$40 -> TRUE | M94: =M$4 < $I$40 -> TRUE | N94: TRUE | O94: TRUE | P94: TRUE | Q94: TRUE | R94: TRUE | S94: TRUE | T94: TRUE | U94: TRUE | V94: TRUE | W94: TRUE | X94: TRUE | Y94: TRUE | Z94: TRUE | AA94: TRUE | AB94: TRUE | AC94: TRUE | AD94: TRUE | AE94: TRUE | AF94: TRUE | AG94: TRUE | AH94: TRUE | AI94: TRUE | AJ94: TRUE | AK94: TRUE | AL94: TRUE | AM94: TRUE | AN94: TRUE | AO94: TRUE | AP94: FALSE | AQ94: FALSE | AR94: FALSE | AS94: FALSE | AT94: FALSE
D96: Depreciation schedule
E98: Depreciation of additions from year ending | I98: Net additions (straight line) | AV98: Straight line depreciation applies (existing assets)
E99: 1991-03-31 | G99: £m 18/19 prices | I99: =INDEX($K$16:$AT$16, MATCH($E99, $K$4:$AT$4, 0)) * ($E99 < $I$40) -> 0 | J99: > | L99: =$I99/K$92 -> 0 | M99: =IF($I99 >0, MIN(L99,$I99-SUM($L99:L99)), MAX(L99,$I99-SUM($L99:L99))) -> 0 | N99: =IF($I99 >0, MIN(M99,$I99-SUM($L99:M99)), MAX(M99,$I99-SUM($L99:M99))) -> 0 | O99: =IF($I99 >0, MIN(N99,$I99-SUM($L99:N99)), MAX(N99,$I99-SUM($L99:N99))) -> 0 | P99: =IF($I99 >0, MIN(O99,$I99-SUM($L99:O99)), MAX(O99,$I99-SUM($L99:O99))) -> 0 | Q99: =IF($I99 >0, MIN(P99,$I99-SUM($L99:P99)), MAX(P99,$I99-SUM($L99:P99))) -> 0 | R99: =IF($I99 >0, MIN(Q99,$I99-SUM($L99:Q99)), MAX(Q99,$I99-SUM($L99:Q99))) -> 0 | S99: =IF($I99 >0, MIN(R99,$I99-SUM($L99:R99)), MAX(R99,$I99-SUM($L99:R99))) -> 0 | T99: =IF($I99 >0, MIN(S99,$I99-SUM($L99:S99)), MAX(S99,$I99-SUM($L99:S99))) -> 0 | U99: =IF($I99 >0, MIN(T99,$I99-SUM($L99:T99)), MAX(T99,$I99-SUM($L99:T99))) -> 0 | V99: =IF($I99 >0, MIN(U99,$I99-SUM($L99:U99)), MAX(U99,$I99-SUM($L99:U99))) -> 0 | W99: =IF($I99 >0, MIN(V99,$I99-SUM($L99:V99)), MAX(V99,$I99-SUM($L99:V99))) -> 0 | X99: =IF($I99 >0, MIN(W99,$I99-SUM($L99:W99)), MAX(W99,$I99-SUM($L99:W99))) -> 0 | Y99: =IF($I99 >0, MIN(X99,$I99-SUM($L99:X99)), MAX(X99,$I99-SUM($L99:X99))) -> 0 | Z99: =IF($I99 >0, MIN(Y99,$I99-SUM($L99:Y99)), MAX(Y99,$I99-SUM($L99:Y99))) -> 0 | AA99: =IF($I99 >0, MIN(Z99,$I99-SUM($L99:Z99)), MAX(Z99,$I99-SUM($L99:Z99))) -> 0 | AB99: =IF($I99 >0, MIN(AA99,$I99-SUM($L99:AA99)), MAX(AA99,$I99-SUM($L99:AA99))) -> 0 | AC99: =IF($I99 >0, MIN(AB99,$I99-SUM($L99:AB99)), MAX(AB99,$I99-SUM($L99:AB99))) -> 0 | AD99: =IF($I99 >0, MIN(AC99,$I99-SUM($L99:AC99)), MAX(AC99,$I99-SUM($L99:AC99))) -> 0 | AE99: =IF($I99 >0, MIN(AD99,$I99-SUM($L99:AD99)), MAX(AD99,$I99-SUM($L99:AD99))) -> 0 | AF99: =IF($I99 >0, MIN(AE99,$I99-SUM($L99:AE99)), MAX(AE99,$I99-SUM($L99:AE99))) -> 0 | AG99: =IF($I99 >0, MIN(AF99,$I99-SUM($L99:AF99)), MAX(AF99,$I99-SUM($L99:AF99))) -> 0 | AH99: =IF($I99 >0, MIN(AG99,$I99-SUM($L99:AG99)), MAX(AG99,$I99-SUM($L99:AG99))) -> 0 | AI99: =IF($I99 >0, MIN(AH99,$I99-SUM($L99:AH99)), MAX(AH99,$I99-SUM($L99:AH99))) -> 0 | AJ99: =IF($I99 >0, MIN(AI99,$I99-SUM($L99:AI99)), MAX(AI99,$I99-SUM($L99:AI99))) -> 0 | AK99: =IF($I99 >0, MIN(AJ99,$I99-SUM($L99:AJ99)), MAX(AJ99,$I99-SUM($L99:AJ99))) -> 0 | AL99: =IF($I99 >0, MIN(AK99,$I99-SUM($L99:AK99)), MAX(AK99,$I99-SUM($L99:AK99))) -> 0 | AM99: =IF($I99 >0, MIN(AL99,$I99-SUM($L99:AL99)), MAX(AL99,$I99-SUM($L99:AL99))) -> 0 | AN99: =IF($I99 >0, MIN(AM99,$I99-SUM($L99:AM99)), MAX(AM99,$I99-SUM($L99:AM99))) -> 0 | AO99: =IF($I99 >0, MIN(AN99,$I99-SUM($L99:AN99)), MAX(AN99,$I99-SUM($L99:AN99))) -> 0 | AP99: =IF($I99 >0, MIN(AO99,$I99-SUM($L99:AO99)), MAX(AO99,$I99-SUM($L99:AO99))) -> 0 | AQ99: =IF($I99 >0, MIN(AP99,$I99-SUM($L99:AP99)), MAX(AP99,$I99-SUM($L99:AP99))) -> 0 | AR99: =IF($I99 >0, MIN(AQ99,$I99-SUM($L99:AQ99)), MAX(AQ99,$I99-SUM($L99:AQ99))) -> 0 | AS99: =IF($I99 >0, MIN(AR99,$I99-SUM($L99:AR99)), MAX(AR99,$I99-SUM($L99:AR99))) -> 0 | AT99: =IF($I99 >0, MIN(AS99,$I99-SUM($L99:AS99)), MAX(AS99,$I99-SUM($L99:AS99))) -> 0 | AV99: =$E99 < $I$39 -> TRUE
E100: 1992-03-31 | G100: £m 18/19 prices | I100: =INDEX($K$16:$AT$16, MATCH($E100, $K$4:$AT$4, 0)) * ($E100 < $I$40) -> 0 | J100: > | M100: =$I100/L$92 -> 0 | N100: =IF($I100 >0, MIN(M100,$I100-SUM($L100:M100)), MAX(M100,$I100-SUM($L100:M100))) -> 0 | O100: =IF($I100 >0, MIN(N100,$I100-SUM($L100:N100)), MAX(N100,$I100-SUM($L100:N100))) -> 0 | P100: =IF($I100 >0, MIN(O100,$I100-SUM($L100:O100)), MAX(O100,$I100-SUM($L100:O100))) -> 0 | Q100: =IF($I100 >0, MIN(P100,$I100-SUM($L100:P100)), MAX(P100,$I100-SUM($L100:P100))) -> 0 | R100: =IF($I100 >0, MIN(Q100,$I100-SUM($L100:Q100)), MAX(Q100,$I100-SUM($L100:Q100))) -> 0 | S100: =IF($I100 >0, MIN(R100,$I100-SUM($L100:R100)), MAX(R100,$I100-SUM($L100:R100))) -> 0 | T100: =IF($I100 >0, MIN(S100,$I100-SUM($L100:S100)), MAX(S100,$I100-SUM($L100:S100))) -> 0 | U100: =IF($I100 >0, MIN(T100,$I100-SUM($L100:T100)), MAX(T100,$I100-SUM($L100:T100))) -> 0 | V100: =IF($I100 >0, MIN(U100,$I100-SUM($L100:U100)), MAX(U100,$I100-SUM($L100:U100))) -> 0 | W100: =IF($I100 >0, MIN(V100,$I100-SUM($L100:V100)), MAX(V100,$I100-SUM($L100:V100))) -> 0 | X100: =IF($I100 >0, MIN(W100,$I100-SUM($L100:W100)), MAX(W100,$I100-SUM($L100:W100))) -> 0 | Y100: =IF($I100 >0, MIN(X100,$I100-SUM($L100:X100)), MAX(X100,$I100-SUM($L100:X100))) -> 0 | Z100: =IF($I100 >0, MIN(Y100,$I100-SUM($L100:Y100)), MAX(Y100,$I100-SUM($L100:Y100))) -> 0 | AA100: =IF($I100 >0, MIN(Z100,$I100-SUM($L100:Z100)), MAX(Z100,$I100-SUM($L100:Z100))) -> 0 | AB100: =IF($I100 >0, MIN(AA100,$I100-SUM($L100:AA100)), MAX(AA100,$I100-SUM($L100:AA100))) -> 0 | AC100: =IF($I100 >0, MIN(AB100,$I100-SUM($L100:AB100)), MAX(AB100,$I100-SUM($L100:AB100))) -> 0 | AD100: =IF($I100 >0, MIN(AC100,$I100-SUM($L100:AC100)), MAX(AC100,$I100-SUM($L100:AC100))) -> 0 | AE100: =IF($I100 >0, MIN(AD100,$I100-SUM($L100:AD100)), MAX(AD100,$I100-SUM($L100:AD100))) -> 0 | AF100: =IF($I100 >0, MIN(AE100,$I100-SUM($L100:AE100)), MAX(AE100,$I100-SUM($L100:AE100))) -> 0 | AG100: =IF($I100 >0, MIN(AF100,$I100-SUM($L100:AF100)), MAX(AF100,$I100-SUM($L100:AF100))) -> 0 | AH100: =IF($I100 >0, MIN(AG100,$I100-SUM($L100:AG100)), MAX(AG100,$I100-SUM($L100:AG100))) -> 0 | AI100: =IF($I100 >0, MIN(AH100,$I100-SUM($L100:AH100)), MAX(AH100,$I100-SUM($L100:AH100))) -> 0 | AJ100: =IF($I100 >0, MIN(AI100,$I100-SUM($L100:AI100)), MAX(AI100,$I100-SUM($L100:AI100))) -> 0 | AK100: =IF($I100 >0, MIN(AJ100,$I100-SUM($L100:AJ100)), MAX(AJ100,$I100-SUM($L100:AJ100))) -> 0 | AL100: =IF($I100 >0, MIN(AK100,$I100-SUM($L100:AK100)), MAX(AK100,$I100-SUM($L100:AK100))) -> 0 | AM100: =IF($I100 >0, MIN(AL100,$I100-SUM($L100:AL100)), MAX(AL100,$I100-SUM($L100:AL100))) -> 0 | AN100: =IF($I100 >0, MIN(AM100,$I100-SUM($L100:AM100)), MAX(AM100,$I100-SUM($L100:AM100))) -> 0 | AO100: =IF($I100 >0, MIN(AN100,$I100-SUM($L100:AN100)), MAX(AN100,$I100-SUM($L100:AN100))) -> 0 | AP100: =IF($I100 >0, MIN(AO100,$I100-SUM($L100:AO100)), MAX(AO100,$I100-SUM($L100:AO100))) -> 0 | AQ100: =IF($I100 >0, MIN(AP100,$I100-SUM($L100:AP100)), MAX(AP100,$I100-SUM($L100:AP100))) -> 0 | AR100: =IF($I100 >0, MIN(AQ100,$I100-SUM($L100:AQ100)), MAX(AQ100,$I100-SUM($L100:AQ100))) -> 0 | AS100: =IF($I100 >0, MIN(AR100,$I100-SUM($L100:AR100)), MAX(AR100,$I100-SUM($L100:AR100))) -> 0 | AT100: =IF($I100 >0, MIN(AS100,$I100-SUM($L100:AS100)), MAX(AS100,$I100-SUM($L100:AS100))) -> 0 | AV100: =$E100 < $I$39 -> TRUE
E101: 1993-03-31 | G101: £m 18/19 prices | I101: 0 | J101: > | N101: =$I101/M$92 -> 0 | O101: =IF($I101 >0, MIN(N101,$I101-SUM($L101:N101)), MAX(N101,$I101-SUM($L101:N101))) -> 0 | P101: =IF($I101 >0, MIN(O101,$I101-SUM($L101:O101)), MAX(O101,$I101-SUM($L101:O101))) -> 0 | Q101: =IF($I101 >0, MIN(P101,$I101-SUM($L101:P101)), MAX(P101,$I101-SUM($L101:P101))) -> 0 | R101: =IF($I101 >0, MIN(Q101,$I101-SUM($L101:Q101)), MAX(Q101,$I101-SUM($L101:Q101))) -> 0 | S101: =IF($I101 >0, MIN(R101,$I101-SUM($L101:R101)), MAX(R101,$I101-SUM($L101:R101))) -> 0 | T101: =IF($I101 >0, MIN(S101,$I101-SUM($L101:S101)), MAX(S101,$I101-SUM($L101:S101))) -> 0 | U101: =IF($I101 >0, MIN(T101,$I101-SUM($L101:T101)), MAX(T101,$I101-SUM($L101:T101))) -> 0 | V101: =IF($I101 >0, MIN(U101,$I101-SUM($L101:U101)), MAX(U101,$I101-SUM($L101:U101))) -> 0 | W101: =IF($I101 >0, MIN(V101,$I101-SUM($L101:V101)), MAX(V101,$I101-SUM($L101:V101))) -> 0 | X101: =IF($I101 >0, MIN(W101,$I101-SUM($L101:W101)), MAX(W101,$I101-SUM($L101:W101))) -> 0 | Y101: =IF($I101 >0, MIN(X101,$I101-SUM($L101:X101)), MAX(X101,$I101-SUM($L101:X101))) -> 0 | Z101: =IF($I101 >0, MIN(Y101,$I101-SUM($L101:Y101)), MAX(Y101,$I101-SUM($L101:Y101))) -> 0 | AA101: =IF($I101 >0, MIN(Z101,$I101-SUM($L101:Z101)), MAX(Z101,$I101-SUM($L101:Z101))) -> 0 | AB101: =IF($I101 >0, MIN(AA101,$I101-SUM($L101:AA101)), MAX(AA101,$I101-SUM($L101:AA101))) -> 0 | AC101: =IF($I101 >0, MIN(AB101,$I101-SUM($L101:AB101)), MAX(AB101,$I101-SUM($L101:AB101))) -> 0 | AD101: =IF($I101 >0, MIN(AC101,$I101-SUM($L101:AC101)), MAX(AC101,$I101-SUM($L101:AC101))) -> 0 | AE101: =IF($I101 >0, MIN(AD101,$I101-SUM($L101:AD101)), MAX(AD101,$I101-SUM($L101:AD101))) -> 0 | AF101: =IF($I101 >0, MIN(AE101,$I101-SUM($L101:AE101)), MAX(AE101,$I101-SUM($L101:AE101))) -> 0 | AG101: =IF($I101 >0, MIN(AF101,$I101-SUM($L101:AF101)), MAX(AF101,$I101-SUM($L101:AF101))) -> 0 | AH101: =IF($I101 >0, MIN(AG101,$I101-SUM($L101:AG101)), MAX(AG101,$I101-SUM($L101:AG101))) -> 0 | AI101: =IF($I101 >0, MIN(AH101,$I101-SUM($L101:AH101)), MAX(AH101,$I101-SUM($L101:AH101))) -> 0 | AJ101: =IF($I101 >0, MIN(AI101,$I101-SUM($L101:AI101)), MAX(AI101,$I101-SUM($L101:AI101))) -> 0 | AK101: =IF($I101 >0, MIN(AJ101,$I101-SUM($L101:AJ101)), MAX(AJ101,$I101-SUM($L101:AJ101))) -> 0 | AL101: =IF($I101 >0, MIN(AK101,$I101-SUM($L101:AK101)), MAX(AK101,$I101-SUM($L101:AK101))) -> 0 | AM101: =IF($I101 >0, MIN(AL101,$I101-SUM($L101:AL101)), MAX(AL101,$I101-SUM($L101:AL101))) -> 0 | AN101: =IF($I101 >0, MIN(AM101,$I101-SUM($L101:AM101)), MAX(AM101,$I101-SUM($L101:AM101))) -> 0 | AO101: =IF($I101 >0, MIN(AN101,$I101-SUM($L101:AN101)), MAX(AN101,$I101-SUM($L101:AN101))) -> 0 | AP101: =IF($I101 >0, MIN(AO101,$I101-SUM($L101:AO101)), MAX(AO101,$I101-SUM($L101:AO101))) -> 0 | AQ101: =IF($I101 >0, MIN(AP101,$I101-SUM($L101:AP101)), MAX(AP101,$I101-SUM($L101:AP101))) -> 0 | AR101: =IF($I101 >0, MIN(AQ101,$I101-SUM($L101:AQ101)), MAX(AQ101,$I101-SUM($L101:AQ101))) -> 0 | AS101: =IF($I101 >0, MIN(AR101,$I101-SUM($L101:AR101)), MAX(AR101,$I101-SUM($L101:AR101))) -> 0 | AT101: =IF($I101 >0, MIN(AS101,$I101-SUM($L101:AS101)), MAX(AS101,$I101-SUM($L101:AS101))) -> 0 | AV101: TRUE
E102: 1994-03-31 | G102: £m 18/19 prices | I102: 0 | J102: > | O102: =$I102/N$92 -> 0 | P102: =IF($I102 >0, MIN(O102,$I102-SUM($L102:O102)), MAX(O102,$I102-SUM($L102:O102))) -> 0 | Q102: =IF($I102 >0, MIN(P102,$I102-SUM($L102:P102)), MAX(P102,$I102-SUM($L102:P102))) -> 0 | R102: =IF($I102 >0, MIN(Q102,$I102-SUM($L102:Q102)), MAX(Q102,$I102-SUM($L102:Q102))) -> 0 | S102: =IF($I102 >0, MIN(R102,$I102-SUM($L102:R102)), MAX(R102,$I102-SUM($L102:R102))) -> 0 | T102: =IF($I102 >0, MIN(S102,$I102-SUM($L102:S102)), MAX(S102,$I102-SUM($L102:S102))) -> 0 | U102: =IF($I102 >0, MIN(T102,$I102-SUM($L102:T102)), MAX(T102,$I102-SUM($L102:T102))) -> 0 | V102: =IF($I102 >0, MIN(U102,$I102-SUM($L102:U102)), MAX(U102,$I102-SUM($L102:U102))) -> 0 | W102: =IF($I102 >0, MIN(V102,$I102-SUM($L102:V102)), MAX(V102,$I102-SUM($L102:V102))) -> 0 | X102: =IF($I102 >0, MIN(W102,$I102-SUM($L102:W102)), MAX(W102,$I102-SUM($L102:W102))) -> 0 | Y102: =IF($I102 >0, MIN(X102,$I102-SUM($L102:X102)), MAX(X102,$I102-SUM($L102:X102))) -> 0 | Z102: =IF($I102 >0, MIN(Y102,$I102-SUM($L102:Y102)), MAX(Y102,$I102-SUM($L102:Y102))) -> 0 | AA102: =IF($I102 >0, MIN(Z102,$I102-SUM($L102:Z102)), MAX(Z102,$I102-SUM($L102:Z102))) -> 0 | AB102: =IF($I102 >0, MIN(AA102,$I102-SUM($L102:AA102)), MAX(AA102,$I102-SUM($L102:AA102))) -> 0 | AC102: =IF($I102 >0, MIN(AB102,$I102-SUM($L102:AB102)), MAX(AB102,$I102-SUM($L102:AB102))) -> 0 | AD102: =IF($I102 >0, MIN(AC102,$I102-SUM($L102:AC102)), MAX(AC102,$I102-SUM($L102:AC102))) -> 0 | AE102: =IF($I102 >0, MIN(AD102,$I102-SUM($L102:AD102)), MAX(AD102,$I102-SUM($L102:AD102))) -> 0 | AF102: =IF($I102 >0, MIN(AE102,$I102-SUM($L102:AE102)), MAX(AE102,$I102-SUM($L102:AE102))) -> 0 | AG102: =IF($I102 >0, MIN(AF102,$I102-SUM($L102:AF102)), MAX(AF102,$I102-SUM($L102:AF102))) -> 0 | AH102: =IF($I102 >0, MIN(AG102,$I102-SUM($L102:AG102)), MAX(AG102,$I102-SUM($L102:AG102))) -> 0 | AI102: =IF($I102 >0, MIN(AH102,$I102-SUM($L102:AH102)), MAX(AH102,$I102-SUM($L102:AH102))) -> 0 | AJ102: =IF($I102 >0, MIN(AI102,$I102-SUM($L102:AI102)), MAX(AI102,$I102-SUM($L102:AI102))) -> 0 | AK102: =IF($I102 >0, MIN(AJ102,$I102-SUM($L102:AJ102)), MAX(AJ102,$I102-SUM($L102:AJ102))) -> 0 | AL102: =IF($I102 >0, MIN(AK102,$I102-SUM($L102:AK102)), MAX(AK102,$I102-SUM($L102:AK102))) -> 0 | AM102: =IF($I102 >0, MIN(AL102,$I102-SUM($L102:AL102)), MAX(AL102,$I102-SUM($L102:AL102))) -> 0 | AN102: =IF($I102 >0, MIN(AM102,$I102-SUM($L102:AM102)), MAX(AM102,$I102-SUM($L102:AM102))) -> 0 | AO102: =IF($I102 >0, MIN(AN102,$I102-SUM($L102:AN102)), MAX(AN102,$I102-SUM($L102:AN102))) -> 0 | AP102: =IF($I102 >0, MIN(AO102,$I102-SUM($L102:AO102)), MAX(AO102,$I102-SUM($L102:AO102))) -> 0 | AQ102: =IF($I102 >0, MIN(AP102,$I102-SUM($L102:AP102)), MAX(AP102,$I102-SUM($L102:AP102))) -> 0 | AR102: =IF($I102 >0, MIN(AQ102,$I102-SUM($L102:AQ102)), MAX(AQ102,$I102-SUM($L102:AQ102))) -> 0 | AS102: =IF($I102 >0, MIN(AR102,$I102-SUM($L102:AR102)), MAX(AR102,$I102-SUM($L102:AR102))) -> 0 | AT102: =IF($I102 >0, MIN(AS102,$I102-SUM($L102:AS102)), MAX(AS102,$I102-SUM($L102:AS102))) -> 0 | AV102: TRUE
E103: 1995-03-31 | G103: £m 18/19 prices | I103: 0 | J103: > | P103: =$I103/O$92 -> 0 | Q103: =IF($I103 >0, MIN(P103,$I103-SUM($L103:P103)), MAX(P103,$I103-SUM($L103:P103))) -> 0 | R103: =IF($I103 >0, MIN(Q103,$I103-SUM($L103:Q103)), MAX(Q103,$I103-SUM($L103:Q103))) -> 0 | S103: =IF($I103 >0, MIN(R103,$I103-SUM($L103:R103)), MAX(R103,$I103-SUM($L103:R103))) -> 0 | T103: =IF($I103 >0, MIN(S103,$I103-SUM($L103:S103)), MAX(S103,$I103-SUM($L103:S103))) -> 0 | U103: =IF($I103 >0, MIN(T103,$I103-SUM($L103:T103)), MAX(T103,$I103-SUM($L103:T103))) -> 0 | V103: =IF($I103 >0, MIN(U103,$I103-SUM($L103:U103)), MAX(U103,$I103-SUM($L103:U103))) -> 0 | W103: =IF($I103 >0, MIN(V103,$I103-SUM($L103:V103)), MAX(V103,$I103-SUM($L103:V103))) -> 0 | X103: =IF($I103 >0, MIN(W103,$I103-SUM($L103:W103)), MAX(W103,$I103-SUM($L103:W103))) -> 0 | Y103: =IF($I103 >0, MIN(X103,$I103-SUM($L103:X103)), MAX(X103,$I103-SUM($L103:X103))) -> 0 | Z103: =IF($I103 >0, MIN(Y103,$I103-SUM($L103:Y103)), MAX(Y103,$I103-SUM($L103:Y103))) -> 0 | AA103: =IF($I103 >0, MIN(Z103,$I103-SUM($L103:Z103)), MAX(Z103,$I103-SUM($L103:Z103))) -> 0 | AB103: =IF($I103 >0, MIN(AA103,$I103-SUM($L103:AA103)), MAX(AA103,$I103-SUM($L103:AA103))) -> 0 | AC103: =IF($I103 >0, MIN(AB103,$I103-SUM($L103:AB103)), MAX(AB103,$I103-SUM($L103:AB103))) -> 0 | AD103: =IF($I103 >0, MIN(AC103,$I103-SUM($L103:AC103)), MAX(AC103,$I103-SUM($L103:AC103))) -> 0 | AE103: =IF($I103 >0, MIN(AD103,$I103-SUM($L103:AD103)), MAX(AD103,$I103-SUM($L103:AD103))) -> 0 | AF103: =IF($I103 >0, MIN(AE103,$I103-SUM($L103:AE103)), MAX(AE103,$I103-SUM($L103:AE103))) -> 0 | AG103: =IF($I103 >0, MIN(AF103,$I103-SUM($L103:AF103)), MAX(AF103,$I103-SUM($L103:AF103))) -> 0 | AH103: =IF($I103 >0, MIN(AG103,$I103-SUM($L103:AG103)), MAX(AG103,$I103-SUM($L103:AG103))) -> 0 | AI103: =IF($I103 >0, MIN(AH103,$I103-SUM($L103:AH103)), MAX(AH103,$I103-SUM($L103:AH103))) -> 0 | AJ103: =IF($I103 >0, MIN(AI103,$I103-SUM($L103:AI103)), MAX(AI103,$I103-SUM($L103:AI103))) -> 0 | AK103: =IF($I103 >0, MIN(AJ103,$I103-SUM($L103:AJ103)), MAX(AJ103,$I103-SUM($L103:AJ103))) -> 0 | AL103: =IF($I103 >0, MIN(AK103,$I103-SUM($L103:AK103)), MAX(AK103,$I103-SUM($L103:AK103))) -> 0 | AM103: =IF($I103 >0, MIN(AL103,$I103-SUM($L103:AL103)), MAX(AL103,$I103-SUM($L103:AL103))) -> 0 | AN103: =IF($I103 >0, MIN(AM103,$I103-SUM($L103:AM103)), MAX(AM103,$I103-SUM($L103:AM103))) -> 0 | AO103: =IF($I103 >0, MIN(AN103,$I103-SUM($L103:AN103)), MAX(AN103,$I103-SUM($L103:AN103))) -> 0 | AP103: =IF($I103 >0, MIN(AO103,$I103-SUM($L103:AO103)), MAX(AO103,$I103-SUM($L103:AO103))) -> 0 | AQ103: =IF($I103 >0, MIN(AP103,$I103-SUM($L103:AP103)), MAX(AP103,$I103-SUM($L103:AP103))) -> 0 | AR103: =IF($I103 >0, MIN(AQ103,$I103-SUM($L103:AQ103)), MAX(AQ103,$I103-SUM($L103:AQ103))) -> 0 | AS103: =IF($I103 >0, MIN(AR103,$I103-SUM($L103:AR103)), MAX(AR103,$I103-SUM($L103:AR103))) -> 0 | AT103: =IF($I103 >0, MIN(AS103,$I103-SUM($L103:AS103)), MAX(AS103,$I103-SUM($L103:AS103))) -> 0 | AV103: TRUE
E104: 1996-03-31 | G104: £m 18/19 prices | I104: 0 | J104: > | Q104: =$I104/P$92 -> 0 | R104: =IF($I104 >0, MIN(Q104,$I104-SUM($L104:Q104)), MAX(Q104,$I104-SUM($L104:Q104))) -> 0 | S104: =IF($I104 >0, MIN(R104,$I104-SUM($L104:R104)), MAX(R104,$I104-SUM($L104:R104))) -> 0 | T104: =IF($I104 >0, MIN(S104,$I104-SUM($L104:S104)), MAX(S104,$I104-SUM($L104:S104))) -> 0 | U104: =IF($I104 >0, MIN(T104,$I104-SUM($L104:T104)), MAX(T104,$I104-SUM($L104:T104))) -> 0 | V104: =IF($I104 >0, MIN(U104,$I104-SUM($L104:U104)), MAX(U104,$I104-SUM($L104:U104))) -> 0 | W104: =IF($I104 >0, MIN(V104,$I104-SUM($L104:V104)), MAX(V104,$I104-SUM($L104:V104))) -> 0 | X104: =IF($I104 >0, MIN(W104,$I104-SUM($L104:W104)), MAX(W104,$I104-SUM($L104:W104))) -> 0 | Y104: =IF($I104 >0, MIN(X104,$I104-SUM($L104:X104)), MAX(X104,$I104-SUM($L104:X104))) -> 0 | Z104: =IF($I104 >0, MIN(Y104,$I104-SUM($L104:Y104)), MAX(Y104,$I104-SUM($L104:Y104))) -> 0 | AA104: =IF($I104 >0, MIN(Z104,$I104-SUM($L104:Z104)), MAX(Z104,$I104-SUM($L104:Z104))) -> 0 | AB104: =IF($I104 >0, MIN(AA104,$I104-SUM($L104:AA104)), MAX(AA104,$I104-SUM($L104:AA104))) -> 0 | AC104: =IF($I104 >0, MIN(AB104,$I104-SUM($L104:AB104)), MAX(AB104,$I104-SUM($L104:AB104))) -> 0 | AD104: =IF($I104 >0, MIN(AC104,$I104-SUM($L104:AC104)), MAX(AC104,$I104-SUM($L104:AC104))) -> 0 | AE104: =IF($I104 >0, MIN(AD104,$I104-SUM($L104:AD104)), MAX(AD104,$I104-SUM($L104:AD104))) -> 0 | AF104: =IF($I104 >0, MIN(AE104,$I104-SUM($L104:AE104)), MAX(AE104,$I104-SUM($L104:AE104))) -> 0 | AG104: =IF($I104 >0, MIN(AF104,$I104-SUM($L104:AF104)), MAX(AF104,$I104-SUM($L104:AF104))) -> 0 | AH104: =IF($I104 >0, MIN(AG104,$I104-SUM($L104:AG104)), MAX(AG104,$I104-SUM($L104:AG104))) -> 0 | AI104: =IF($I104 >0, MIN(AH104,$I104-SUM($L104:AH104)), MAX(AH104,$I104-SUM($L104:AH104))) -> 0 | AJ104: =IF($I104 >0, MIN(AI104,$I104-SUM($L104:AI104)), MAX(AI104,$I104-SUM($L104:AI104))) -> 0 | AK104: =IF($I104 >0, MIN(AJ104,$I104-SUM($L104:AJ104)), MAX(AJ104,$I104-SUM($L104:AJ104))) -> 0 | AL104: =IF($I104 >0, MIN(AK104,$I104-SUM($L104:AK104)), MAX(AK104,$I104-SUM($L104:AK104))) -> 0 | AM104: =IF($I104 >0, MIN(AL104,$I104-SUM($L104:AL104)), MAX(AL104,$I104-SUM($L104:AL104))) -> 0 | AN104: =IF($I104 >0, MIN(AM104,$I104-SUM($L104:AM104)), MAX(AM104,$I104-SUM($L104:AM104))) -> 0 | AO104: =IF($I104 >0, MIN(AN104,$I104-SUM($L104:AN104)), MAX(AN104,$I104-SUM($L104:AN104))) -> 0 | AP104: =IF($I104 >0, MIN(AO104,$I104-SUM($L104:AO104)), MAX(AO104,$I104-SUM($L104:AO104))) -> 0 | AQ104: =IF($I104 >0, MIN(AP104,$I104-SUM($L104:AP104)), MAX(AP104,$I104-SUM($L104:AP104))) -> 0 | AR104: =IF($I104 >0, MIN(AQ104,$I104-SUM($L104:AQ104)), MAX(AQ104,$I104-SUM($L104:AQ104))) -> 0 | AS104: =IF($I104 >0, MIN(AR104,$I104-SUM($L104:AR104)), MAX(AR104,$I104-SUM($L104:AR104))) -> 0 | AT104: =IF($I104 >0, MIN(AS104,$I104-SUM($L104:AS104)), MAX(AS104,$I104-SUM($L104:AS104))) -> 0 | AV104: TRUE
E105: 1997-03-31 | G105: £m 18/19 prices | I105: 0 | J105: > | R105: =$I105/Q$92 -> 0 | S105: =IF($I105 >0, MIN(R105,$I105-SUM($L105:R105)), MAX(R105,$I105-SUM($L105:R105))) -> 0 | T105: =IF($I105 >0, MIN(S105,$I105-SUM($L105:S105)), MAX(S105,$I105-SUM($L105:S105))) -> 0 | U105: =IF($I105 >0, MIN(T105,$I105-SUM($L105:T105)), MAX(T105,$I105-SUM($L105:T105))) -> 0 | V105: =IF($I105 >0, MIN(U105,$I105-SUM($L105:U105)), MAX(U105,$I105-SUM($L105:U105))) -> 0 | W105: =IF($I105 >0, MIN(V105,$I105-SUM($L105:V105)), MAX(V105,$I105-SUM($L105:V105))) -> 0 | X105: =IF($I105 >0, MIN(W105,$I105-SUM($L105:W105)), MAX(W105,$I105-SUM($L105:W105))) -> 0 | Y105: =IF($I105 >0, MIN(X105,$I105-SUM($L105:X105)), MAX(X105,$I105-SUM($L105:X105))) -> 0 | Z105: =IF($I105 >0, MIN(Y105,$I105-SUM($L105:Y105)), MAX(Y105,$I105-SUM($L105:Y105))) -> 0 | AA105: =IF($I105 >0, MIN(Z105,$I105-SUM($L105:Z105)), MAX(Z105,$I105-SUM($L105:Z105))) -> 0 | AB105: =IF($I105 >0, MIN(AA105,$I105-SUM($L105:AA105)), MAX(AA105,$I105-SUM($L105:AA105))) -> 0 | AC105: =IF($I105 >0, MIN(AB105,$I105-SUM($L105:AB105)), MAX(AB105,$I105-SUM($L105:AB105))) -> 0 | AD105: =IF($I105 >0, MIN(AC105,$I105-SUM($L105:AC105)), MAX(AC105,$I105-SUM($L105:AC105))) -> 0 | AE105: =IF($I105 >0, MIN(AD105,$I105-SUM($L105:AD105)), MAX(AD105,$I105-SUM($L105:AD105))) -> 0 | AF105: =IF($I105 >0, MIN(AE105,$I105-SUM($L105:AE105)), MAX(AE105,$I105-SUM($L105:AE105))) -> 0 | AG105: =IF($I105 >0, MIN(AF105,$I105-SUM($L105:AF105)), MAX(AF105,$I105-SUM($L105:AF105))) -> 0 | AH105: =IF($I105 >0, MIN(AG105,$I105-SUM($L105:AG105)), MAX(AG105,$I105-SUM($L105:AG105))) -> 0 | AI105: =IF($I105 >0, MIN(AH105,$I105-SUM($L105:AH105)), MAX(AH105,$I105-SUM($L105:AH105))) -> 0 | AJ105: =IF($I105 >0, MIN(AI105,$I105-SUM($L105:AI105)), MAX(AI105,$I105-SUM($L105:AI105))) -> 0 | AK105: =IF($I105 >0, MIN(AJ105,$I105-SUM($L105:AJ105)), MAX(AJ105,$I105-SUM($L105:AJ105))) -> 0 | AL105: =IF($I105 >0, MIN(AK105,$I105-SUM($L105:AK105)), MAX(AK105,$I105-SUM($L105:AK105))) -> 0 | AM105: =IF($I105 >0, MIN(AL105,$I105-SUM($L105:AL105)), MAX(AL105,$I105-SUM($L105:AL105))) -> 0 | AN105: =IF($I105 >0, MIN(AM105,$I105-SUM($L105:AM105)), MAX(AM105,$I105-SUM($L105:AM105))) -> 0 | AO105: =IF($I105 >0, MIN(AN105,$I105-SUM($L105:AN105)), MAX(AN105,$I105-SUM($L105:AN105))) -> 0 | AP105: =IF($I105 >0, MIN(AO105,$I105-SUM($L105:AO105)), MAX(AO105,$I105-SUM($L105:AO105))) -> 0 | AQ105: =IF($I105 >0, MIN(AP105,$I105-SUM($L105:AP105)), MAX(AP105,$I105-SUM($L105:AP105))) -> 0 | AR105: =IF($I105 >0, MIN(AQ105,$I105-SUM($L105:AQ105)), MAX(AQ105,$I105-SUM($L105:AQ105))) -> 0 | AS105: =IF($I105 >0, MIN(AR105,$I105-SUM($L105:AR105)), MAX(AR105,$I105-SUM($L105:AR105))) -> 0 | AT105: =IF($I105 >0, MIN(AS105,$I105-SUM($L105:AS105)), MAX(AS105,$I105-SUM($L105:AS105))) -> 0 | AV105: TRUE
E106: 1998-03-31 | G106: £m 18/19 prices | I106: 0 | J106: > | S106: =$I106/R$92 -> 0 | T106: =IF($I106 >0, MIN(S106,$I106-SUM($L106:S106)), MAX(S106,$I106-SUM($L106:S106))) -> 0 | U106: =IF($I106 >0, MIN(T106,$I106-SUM($L106:T106)), MAX(T106,$I106-SUM($L106:T106))) -> 0 | V106: =IF($I106 >0, MIN(U106,$I106-SUM($L106:U106)), MAX(U106,$I106-SUM($L106:U106))) -> 0 | W106: =IF($I106 >0, MIN(V106,$I106-SUM($L106:V106)), MAX(V106,$I106-SUM($L106:V106))) -> 0 | X106: =IF($I106 >0, MIN(W106,$I106-SUM($L106:W106)), MAX(W106,$I106-SUM($L106:W106))) -> 0 | Y106: =IF($I106 >0, MIN(X106,$I106-SUM($L106:X106)), MAX(X106,$I106-SUM($L106:X106))) -> 0 | Z106: =IF($I106 >0, MIN(Y106,$I106-SUM($L106:Y106)), MAX(Y106,$I106-SUM($L106:Y106))) -> 0 | AA106: =IF($I106 >0, MIN(Z106,$I106-SUM($L106:Z106)), MAX(Z106,$I106-SUM($L106:Z106))) -> 0 | AB106: =IF($I106 >0, MIN(AA106,$I106-SUM($L106:AA106)), MAX(AA106,$I106-SUM($L106:AA106))) -> 0 | AC106: =IF($I106 >0, MIN(AB106,$I106-SUM($L106:AB106)), MAX(AB106,$I106-SUM($L106:AB106))) -> 0 | AD106: =IF($I106 >0, MIN(AC106,$I106-SUM($L106:AC106)), MAX(AC106,$I106-SUM($L106:AC106))) -> 0 | AE106: =IF($I106 >0, MIN(AD106,$I106-SUM($L106:AD106)), MAX(AD106,$I106-SUM($L106:AD106))) -> 0 | AF106: =IF($I106 >0, MIN(AE106,$I106-SUM($L106:AE106)), MAX(AE106,$I106-SUM($L106:AE106))) -> 0 | AG106: =IF($I106 >0, MIN(AF106,$I106-SUM($L106:AF106)), MAX(AF106,$I106-SUM($L106:AF106))) -> 0 | AH106: =IF($I106 >0, MIN(AG106,$I106-SUM($L106:AG106)), MAX(AG106,$I106-SUM($L106:AG106))) -> 0 | AI106: =IF($I106 >0, MIN(AH106,$I106-SUM($L106:AH106)), MAX(AH106,$I106-SUM($L106:AH106))) -> 0 | AJ106: =IF($I106 >0, MIN(AI106,$I106-SUM($L106:AI106)), MAX(AI106,$I106-SUM($L106:AI106))) -> 0 | AK106: =IF($I106 >0, MIN(AJ106,$I106-SUM($L106:AJ106)), MAX(AJ106,$I106-SUM($L106:AJ106))) -> 0 | AL106: =IF($I106 >0, MIN(AK106,$I106-SUM($L106:AK106)), MAX(AK106,$I106-SUM($L106:AK106))) -> 0 | AM106: =IF($I106 >0, MIN(AL106,$I106-SUM($L106:AL106)), MAX(AL106,$I106-SUM($L106:AL106))) -> 0 | AN106: =IF($I106 >0, MIN(AM106,$I106-SUM($L106:AM106)), MAX(AM106,$I106-SUM($L106:AM106))) -> 0 | AO106: =IF($I106 >0, MIN(AN106,$I106-SUM($L106:AN106)), MAX(AN106,$I106-SUM($L106:AN106))) -> 0 | AP106: =IF($I106 >0, MIN(AO106,$I106-SUM($L106:AO106)), MAX(AO106,$I106-SUM($L106:AO106))) -> 0 | AQ106: =IF($I106 >0, MIN(AP106,$I106-SUM($L106:AP106)), MAX(AP106,$I106-SUM($L106:AP106))) -> 0 | AR106: =IF($I106 >0, MIN(AQ106,$I106-SUM($L106:AQ106)), MAX(AQ106,$I106-SUM($L106:AQ106))) -> 0 | AS106: =IF($I106 >0, MIN(AR106,$I106-SUM($L106:AR106)), MAX(AR106,$I106-SUM($L106:AR106))) -> 0 | AT106: =IF($I106 >0, MIN(AS106,$I106-SUM($L106:AS106)), MAX(AS106,$I106-SUM($L106:AS106))) -> 0 | AV106: TRUE
E107: 1999-03-31 | G107: £m 18/19 prices | I107: 0 | J107: > | T107: =$I107/S$92 -> 0 | U107: =IF($I107 >0, MIN(T107,$I107-SUM($L107:T107)), MAX(T107,$I107-SUM($L107:T107))) -> 0 | V107: =IF($I107 >0, MIN(U107,$I107-SUM($L107:U107)), MAX(U107,$I107-SUM($L107:U107))) -> 0 | W107: =IF($I107 >0, MIN(V107,$I107-SUM($L107:V107)), MAX(V107,$I107-SUM($L107:V107))) -> 0 | X107: =IF($I107 >0, MIN(W107,$I107-SUM($L107:W107)), MAX(W107,$I107-SUM($L107:W107))) -> 0 | Y107: =IF($I107 >0, MIN(X107,$I107-SUM($L107:X107)), MAX(X107,$I107-SUM($L107:X107))) -> 0 | Z107: =IF($I107 >0, MIN(Y107,$I107-SUM($L107:Y107)), MAX(Y107,$I107-SUM($L107:Y107))) -> 0 | AA107: =IF($I107 >0, MIN(Z107,$I107-SUM($L107:Z107)), MAX(Z107,$I107-SUM($L107:Z107))) -> 0 | AB107: =IF($I107 >0, MIN(AA107,$I107-SUM($L107:AA107)), MAX(AA107,$I107-SUM($L107:AA107))) -> 0 | AC107: =IF($I107 >0, MIN(AB107,$I107-SUM($L107:AB107)), MAX(AB107,$I107-SUM($L107:AB107))) -> 0 | AD107: =IF($I107 >0, MIN(AC107,$I107-SUM($L107:AC107)), MAX(AC107,$I107-SUM($L107:AC107))) -> 0 | AE107: =IF($I107 >0, MIN(AD107,$I107-SUM($L107:AD107)), MAX(AD107,$I107-SUM($L107:AD107))) -> 0 | AF107: =IF($I107 >0, MIN(AE107,$I107-SUM($L107:AE107)), MAX(AE107,$I107-SUM($L107:AE107))) -> 0 | AG107: =IF($I107 >0, MIN(AF107,$I107-SUM($L107:AF107)), MAX(AF107,$I107-SUM($L107:AF107))) -> 0 | AH107: =IF($I107 >0, MIN(AG107,$I107-SUM($L107:AG107)), MAX(AG107,$I107-SUM($L107:AG107))) -> 0 | AI107: =IF($I107 >0, MIN(AH107,$I107-SUM($L107:AH107)), MAX(AH107,$I107-SUM($L107:AH107))) -> 0 | AJ107: =IF($I107 >0, MIN(AI107,$I107-SUM($L107:AI107)), MAX(AI107,$I107-SUM($L107:AI107))) -> 0 | AK107: =IF($I107 >0, MIN(AJ107,$I107-SUM($L107:AJ107)), MAX(AJ107,$I107-SUM($L107:AJ107))) -> 0 | AL107: =IF($I107 >0, MIN(AK107,$I107-SUM($L107:AK107)), MAX(AK107,$I107-SUM($L107:AK107))) -> 0 | AM107: =IF($I107 >0, MIN(AL107,$I107-SUM($L107:AL107)), MAX(AL107,$I107-SUM($L107:AL107))) -> 0 | AN107: =IF($I107 >0, MIN(AM107,$I107-SUM($L107:AM107)), MAX(AM107,$I107-SUM($L107:AM107))) -> 0 | AO107: =IF($I107 >0, MIN(AN107,$I107-SUM($L107:AN107)), MAX(AN107,$I107-SUM($L107:AN107))) -> 0 | AP107: =IF($I107 >0, MIN(AO107,$I107-SUM($L107:AO107)), MAX(AO107,$I107-SUM($L107:AO107))) -> 0 | AQ107: =IF($I107 >0, MIN(AP107,$I107-SUM($L107:AP107)), MAX(AP107,$I107-SUM($L107:AP107))) -> 0 | AR107: =IF($I107 >0, MIN(AQ107,$I107-SUM($L107:AQ107)), MAX(AQ107,$I107-SUM($L107:AQ107))) -> 0 | AS107: =IF($I107 >0, MIN(AR107,$I107-SUM($L107:AR107)), MAX(AR107,$I107-SUM($L107:AR107))) -> 0 | AT107: =IF($I107 >0, MIN(AS107,$I107-SUM($L107:AS107)), MAX(AS107,$I107-SUM($L107:AS107))) -> 0 | AV107: TRUE
E108: 2000-03-31 | G108: £m 18/19 prices | I108: 0 | J108: > | U108: =$I108/T$92 -> 0 | V108: =IF($I108 >0, MIN(U108,$I108-SUM($L108:U108)), MAX(U108,$I108-SUM($L108:U108))) -> 0 | W108: =IF($I108 >0, MIN(V108,$I108-SUM($L108:V108)), MAX(V108,$I108-SUM($L108:V108))) -> 0 | X108: =IF($I108 >0, MIN(W108,$I108-SUM($L108:W108)), MAX(W108,$I108-SUM($L108:W108))) -> 0 | Y108: =IF($I108 >0, MIN(X108,$I108-SUM($L108:X108)), MAX(X108,$I108-SUM($L108:X108))) -> 0 | Z108: =IF($I108 >0, MIN(Y108,$I108-SUM($L108:Y108)), MAX(Y108,$I108-SUM($L108:Y108))) -> 0 | AA108: =IF($I108 >0, MIN(Z108,$I108-SUM($L108:Z108)), MAX(Z108,$I108-SUM($L108:Z108))) -> 0 | AB108: =IF($I108 >0, MIN(AA108,$I108-SUM($L108:AA108)), MAX(AA108,$I108-SUM($L108:AA108))) -> 0 | AC108: =IF($I108 >0, MIN(AB108,$I108-SUM($L108:AB108)), MAX(AB108,$I108-SUM($L108:AB108))) -> 0 | AD108: =IF($I108 >0, MIN(AC108,$I108-SUM($L108:AC108)), MAX(AC108,$I108-SUM($L108:AC108))) -> 0 | AE108: =IF($I108 >0, MIN(AD108,$I108-SUM($L108:AD108)), MAX(AD108,$I108-SUM($L108:AD108))) -> 0 | AF108: =IF($I108 >0, MIN(AE108,$I108-SUM($L108:AE108)), MAX(AE108,$I108-SUM($L108:AE108))) -> 0 | AG108: =IF($I108 >0, MIN(AF108,$I108-SUM($L108:AF108)), MAX(AF108,$I108-SUM($L108:AF108))) -> 0 | AH108: =IF($I108 >0, MIN(AG108,$I108-SUM($L108:AG108)), MAX(AG108,$I108-SUM($L108:AG108))) -> 0 | AI108: =IF($I108 >0, MIN(AH108,$I108-SUM($L108:AH108)), MAX(AH108,$I108-SUM($L108:AH108))) -> 0 | AJ108: =IF($I108 >0, MIN(AI108,$I108-SUM($L108:AI108)), MAX(AI108,$I108-SUM($L108:AI108))) -> 0 | AK108: =IF($I108 >0, MIN(AJ108,$I108-SUM($L108:AJ108)), MAX(AJ108,$I108-SUM($L108:AJ108))) -> 0 | AL108: =IF($I108 >0, MIN(AK108,$I108-SUM($L108:AK108)), MAX(AK108,$I108-SUM($L108:AK108))) -> 0 | AM108: =IF($I108 >0, MIN(AL108,$I108-SUM($L108:AL108)), MAX(AL108,$I108-SUM($L108:AL108))) -> 0 | AN108: =IF($I108 >0, MIN(AM108,$I108-SUM($L108:AM108)), MAX(AM108,$I108-SUM($L108:AM108))) -> 0 | AO108: =IF($I108 >0, MIN(AN108,$I108-SUM($L108:AN108)), MAX(AN108,$I108-SUM($L108:AN108))) -> 0 | AP108: =IF($I108 >0, MIN(AO108,$I108-SUM($L108:AO108)), MAX(AO108,$I108-SUM($L108:AO108))) -> 0 | AQ108: =IF($I108 >0, MIN(AP108,$I108-SUM($L108:AP108)), MAX(AP108,$I108-SUM($L108:AP108))) -> 0 | AR108: =IF($I108 >0, MIN(AQ108,$I108-SUM($L108:AQ108)), MAX(AQ108,$I108-SUM($L108:AQ108))) -> 0 | AS108: =IF($I108 >0, MIN(AR108,$I108-SUM($L108:AR108)), MAX(AR108,$I108-SUM($L108:AR108))) -> 0 | AT108: =IF($I108 >0, MIN(AS108,$I108-SUM($L108:AS108)), MAX(AS108,$I108-SUM($L108:AS108))) -> 0 | AV108: TRUE
E109: 2001-03-31 | G109: £m 18/19 prices | I109: 0 | J109: > | V109: =$I109/U$92 -> 0 | W109: =IF($I109 >0, MIN(V109,$I109-SUM($L109:V109)), MAX(V109,$I109-SUM($L109:V109))) -> 0 | X109: =IF($I109 >0, MIN(W109,$I109-SUM($L109:W109)), MAX(W109,$I109-SUM($L109:W109))) -> 0 | Y109: =IF($I109 >0, MIN(X109,$I109-SUM($L109:X109)), MAX(X109,$I109-SUM($L109:X109))) -> 0 | Z109: =IF($I109 >0, MIN(Y109,$I109-SUM($L109:Y109)), MAX(Y109,$I109-SUM($L109:Y109))) -> 0 | AA109: =IF($I109 >0, MIN(Z109,$I109-SUM($L109:Z109)), MAX(Z109,$I109-SUM($L109:Z109))) -> 0 | AB109: =IF($I109 >0, MIN(AA109,$I109-SUM($L109:AA109)), MAX(AA109,$I109-SUM($L109:AA109))) -> 0 | AC109: =IF($I109 >0, MIN(AB109,$I109-SUM($L109:AB109)), MAX(AB109,$I109-SUM($L109:AB109))) -> 0 | AD109: =IF($I109 >0, MIN(AC109,$I109-SUM($L109:AC109)), MAX(AC109,$I109-SUM($L109:AC109))) -> 0 | AE109: =IF($I109 >0, MIN(AD109,$I109-SUM($L109:AD109)), MAX(AD109,$I109-SUM($L109:AD109))) -> 0 | AF109: =IF($I109 >0, MIN(AE109,$I109-SUM($L109:AE109)), MAX(AE109,$I109-SUM($L109:AE109))) -> 0 | AG109: =IF($I109 >0, MIN(AF109,$I109-SUM($L109:AF109)), MAX(AF109,$I109-SUM($L109:AF109))) -> 0 | AH109: =IF($I109 >0, MIN(AG109,$I109-SUM($L109:AG109)), MAX(AG109,$I109-SUM($L109:AG109))) -> 0 | AI109: =IF($I109 >0, MIN(AH109,$I109-SUM($L109:AH109)), MAX(AH109,$I109-SUM($L109:AH109))) -> 0 | AJ109: =IF($I109 >0, MIN(AI109,$I109-SUM($L109:AI109)), MAX(AI109,$I109-SUM($L109:AI109))) -> 0 | AK109: =IF($I109 >0, MIN(AJ109,$I109-SUM($L109:AJ109)), MAX(AJ109,$I109-SUM($L109:AJ109))) -> 0 | AL109: =IF($I109 >0, MIN(AK109,$I109-SUM($L109:AK109)), MAX(AK109,$I109-SUM($L109:AK109))) -> 0 | AM109: =IF($I109 >0, MIN(AL109,$I109-SUM($L109:AL109)), MAX(AL109,$I109-SUM($L109:AL109))) -> 0 | AN109: =IF($I109 >0, MIN(AM109,$I109-SUM($L109:AM109)), MAX(AM109,$I109-SUM($L109:AM109))) -> 0 | AO109: =IF($I109 >0, MIN(AN109,$I109-SUM($L109:AN109)), MAX(AN109,$I109-SUM($L109:AN109))) -> 0 | AP109: =IF($I109 >0, MIN(AO109,$I109-SUM($L109:AO109)), MAX(AO109,$I109-SUM($L109:AO109))) -> 0 | AQ109: =IF($I109 >0, MIN(AP109,$I109-SUM($L109:AP109)), MAX(AP109,$I109-SUM($L109:AP109))) -> 0 | AR109: =IF($I109 >0, MIN(AQ109,$I109-SUM($L109:AQ109)), MAX(AQ109,$I109-SUM($L109:AQ109))) -> 0 | AS109: =IF($I109 >0, MIN(AR109,$I109-SUM($L109:AR109)), MAX(AR109,$I109-SUM($L109:AR109))) -> 0 | AT109: =IF($I109 >0, MIN(AS109,$I109-SUM($L109:AS109)), MAX(AS109,$I109-SUM($L109:AS109))) -> 0 | AV109: TRUE
E110: 2002-03-31 | G110: £m 18/19 prices | I110: 0 | J110: > | W110: =$I110/V$92 -> 0 | X110: =IF($I110 >0, MIN(W110,$I110-SUM($L110:W110)), MAX(W110,$I110-SUM($L110:W110))) -> 0 | Y110: =IF($I110 >0, MIN(X110,$I110-SUM($L110:X110)), MAX(X110,$I110-SUM($L110:X110))) -> 0 | Z110: =IF($I110 >0, MIN(Y110,$I110-SUM($L110:Y110)), MAX(Y110,$I110-SUM($L110:Y110))) -> 0 | AA110: =IF($I110 >0, MIN(Z110,$I110-SUM($L110:Z110)), MAX(Z110,$I110-SUM($L110:Z110))) -> 0 | AB110: =IF($I110 >0, MIN(AA110,$I110-SUM($L110:AA110)), MAX(AA110,$I110-SUM($L110:AA110))) -> 0 | AC110: =IF($I110 >0, MIN(AB110,$I110-SUM($L110:AB110)), MAX(AB110,$I110-SUM($L110:AB110))) -> 0 | AD110: =IF($I110 >0, MIN(AC110,$I110-SUM($L110:AC110)), MAX(AC110,$I110-SUM($L110:AC110))) -> 0 | AE110: =IF($I110 >0, MIN(AD110,$I110-SUM($L110:AD110)), MAX(AD110,$I110-SUM($L110:AD110))) -> 0 | AF110: =IF($I110 >0, MIN(AE110,$I110-SUM($L110:AE110)), MAX(AE110,$I110-SUM($L110:AE110))) -> 0 | AG110: =IF($I110 >0, MIN(AF110,$I110-SUM($L110:AF110)), MAX(AF110,$I110-SUM($L110:AF110))) -> 0 | AH110: =IF($I110 >0, MIN(AG110,$I110-SUM($L110:AG110)), MAX(AG110,$I110-SUM($L110:AG110))) -> 0 | AI110: =IF($I110 >0, MIN(AH110,$I110-SUM($L110:AH110)), MAX(AH110,$I110-SUM($L110:AH110))) -> 0 | AJ110: =IF($I110 >0, MIN(AI110,$I110-SUM($L110:AI110)), MAX(AI110,$I110-SUM($L110:AI110))) -> 0 | AK110: =IF($I110 >0, MIN(AJ110,$I110-SUM($L110:AJ110)), MAX(AJ110,$I110-SUM($L110:AJ110))) -> 0 | AL110: =IF($I110 >0, MIN(AK110,$I110-SUM($L110:AK110)), MAX(AK110,$I110-SUM($L110:AK110))) -> 0 | AM110: =IF($I110 >0, MIN(AL110,$I110-SUM($L110:AL110)), MAX(AL110,$I110-SUM($L110:AL110))) -> 0 | AN110: =IF($I110 >0, MIN(AM110,$I110-SUM($L110:AM110)), MAX(AM110,$I110-SUM($L110:AM110))) -> 0 | AO110: =IF($I110 >0, MIN(AN110,$I110-SUM($L110:AN110)), MAX(AN110,$I110-SUM($L110:AN110))) -> 0 | AP110: =IF($I110 >0, MIN(AO110,$I110-SUM($L110:AO110)), MAX(AO110,$I110-SUM($L110:AO110))) -> 0 | AQ110: =IF($I110 >0, MIN(AP110,$I110-SUM($L110:AP110)), MAX(AP110,$I110-SUM($L110:AP110))) -> 0 | AR110: =IF($I110 >0, MIN(AQ110,$I110-SUM($L110:AQ110)), MAX(AQ110,$I110-SUM($L110:AQ110))) -> 0 | AS110: =IF($I110 >0, MIN(AR110,$I110-SUM($L110:AR110)), MAX(AR110,$I110-SUM($L110:AR110))) -> 0 | AT110: =IF($I110 >0, MIN(AS110,$I110-SUM($L110:AS110)), MAX(AS110,$I110-SUM($L110:AS110))) -> 0 | AV110: TRUE
E111: 2003-03-31 | G111: £m 18/19 prices | I111: 0 | J111: > | X111: =$I111/W$92 -> 0 | Y111: =IF($I111 >0, MIN(X111,$I111-SUM($L111:X111)), MAX(X111,$I111-SUM($L111:X111))) -> 0 | Z111: =IF($I111 >0, MIN(Y111,$I111-SUM($L111:Y111)), MAX(Y111,$I111-SUM($L111:Y111))) -> 0 | AA111: =IF($I111 >0, MIN(Z111,$I111-SUM($L111:Z111)), MAX(Z111,$I111-SUM($L111:Z111))) -> 0 | AB111: =IF($I111 >0, MIN(AA111,$I111-SUM($L111:AA111)), MAX(AA111,$I111-SUM($L111:AA111))) -> 0 | AC111: =IF($I111 >0, MIN(AB111,$I111-SUM($L111:AB111)), MAX(AB111,$I111-SUM($L111:AB111))) -> 0 | AD111: =IF($I111 >0, MIN(AC111,$I111-SUM($L111:AC111)), MAX(AC111,$I111-SUM($L111:AC111))) -> 0 | AE111: =IF($I111 >0, MIN(AD111,$I111-SUM($L111:AD111)), MAX(AD111,$I111-SUM($L111:AD111))) -> 0 | AF111: =IF($I111 >0, MIN(AE111,$I111-SUM($L111:AE111)), MAX(AE111,$I111-SUM($L111:AE111))) -> 0 | AG111: =IF($I111 >0, MIN(AF111,$I111-SUM($L111:AF111)), MAX(AF111,$I111-SUM($L111:AF111))) -> 0 | AH111: =IF($I111 >0, MIN(AG111,$I111-SUM($L111:AG111)), MAX(AG111,$I111-SUM($L111:AG111))) -> 0 | AI111: =IF($I111 >0, MIN(AH111,$I111-SUM($L111:AH111)), MAX(AH111,$I111-SUM($L111:AH111))) -> 0 | AJ111: =IF($I111 >0, MIN(AI111,$I111-SUM($L111:AI111)), MAX(AI111,$I111-SUM($L111:AI111))) -> 0 | AK111: =IF($I111 >0, MIN(AJ111,$I111-SUM($L111:AJ111)), MAX(AJ111,$I111-SUM($L111:AJ111))) -> 0 | AL111: =IF($I111 >0, MIN(AK111,$I111-SUM($L111:AK111)), MAX(AK111,$I111-SUM($L111:AK111))) -> 0 | AM111: =IF($I111 >0, MIN(AL111,$I111-SUM($L111:AL111)), MAX(AL111,$I111-SUM($L111:AL111))) -> 0 | AN111: =IF($I111 >0, MIN(AM111,$I111-SUM($L111:AM111)), MAX(AM111,$I111-SUM($L111:AM111))) -> 0 | AO111: =IF($I111 >0, MIN(AN111,$I111-SUM($L111:AN111)), MAX(AN111,$I111-SUM($L111:AN111))) -> 0 | AP111: =IF($I111 >0, MIN(AO111,$I111-SUM($L111:AO111)), MAX(AO111,$I111-SUM($L111:AO111))) -> 0 | AQ111: =IF($I111 >0, MIN(AP111,$I111-SUM($L111:AP111)), MAX(AP111,$I111-SUM($L111:AP111))) -> 0 | AR111: =IF($I111 >0, MIN(AQ111,$I111-SUM($L111:AQ111)), MAX(AQ111,$I111-SUM($L111:AQ111))) -> 0 | AS111: =IF($I111 >0, MIN(AR111,$I111-SUM($L111:AR111)), MAX(AR111,$I111-SUM($L111:AR111))) -> 0 | AT111: =IF($I111 >0, MIN(AS111,$I111-SUM($L111:AS111)), MAX(AS111,$I111-SUM($L111:AS111))) -> 0 | AV111: FALSE
E112: 2004-03-31 | G112: £m 18/19 prices | I112: 393.0474399 | J112: > | Y112: =$I112/X$92 -> 8.734387553 | Z112: =IF($I112 >0, MIN(Y112,$I112-SUM($L112:Y112)), MAX(Y112,$I112-SUM($L112:Y112))) -> 8.734387553 | AA112: =IF($I112 >0, MIN(Z112,$I112-SUM($L112:Z112)), MAX(Z112,$I112-SUM($L112:Z112))) -> 8.734387553 | AB112: =IF($I112 >0, MIN(AA112,$I112-SUM($L112:AA112)), MAX(AA112,$I112-SUM($L112:AA112))) -> 8.734387553 | AC112: =IF($I112 >0, MIN(AB112,$I112-SUM($L112:AB112)), MAX(AB112,$I112-SUM($L112:AB112))) -> 8.734387553 | AD112: =IF($I112 >0, MIN(AC112,$I112-SUM($L112:AC112)), MAX(AC112,$I112-SUM($L112:AC112))) -> 8.734387553 | AE112: =IF($I112 >0, MIN(AD112,$I112-SUM($L112:AD112)), MAX(AD112,$I112-SUM($L112:AD112))) -> 8.734387553 | AF112: =IF($I112 >0, MIN(AE112,$I112-SUM($L112:AE112)), MAX(AE112,$I112-SUM($L112:AE112))) -> 8.734387553 | AG112: =IF($I112 >0, MIN(AF112,$I112-SUM($L112:AF112)), MAX(AF112,$I112-SUM($L112:AF112))) -> 8.734387553 | AH112: =IF($I112 >0, MIN(AG112,$I112-SUM($L112:AG112)), MAX(AG112,$I112-SUM($L112:AG112))) -> 8.734387553 | AI112: =IF($I112 >0, MIN(AH112,$I112-SUM($L112:AH112)), MAX(AH112,$I112-SUM($L112:AH112))) -> 8.734387553 | AJ112: =IF($I112 >0, MIN(AI112,$I112-SUM($L112:AI112)), MAX(AI112,$I112-SUM($L112:AI112))) -> 8.734387553 | AK112: =IF($I112 >0, MIN(AJ112,$I112-SUM($L112:AJ112)), MAX(AJ112,$I112-SUM($L112:AJ112))) -> 8.734387553 | AL112: =IF($I112 >0, MIN(AK112,$I112-SUM($L112:AK112)), MAX(AK112,$I112-SUM($L112:AK112))) -> 8.734387553 | AM112: =IF($I112 >0, MIN(AL112,$I112-SUM($L112:AL112)), MAX(AL112,$I112-SUM($L112:AL112))) -> 8.734387553 | AN112: =IF($I112 >0, MIN(AM112,$I112-SUM($L112:AM112)), MAX(AM112,$I112-SUM($L112:AM112))) -> 8.734387553 | AO112: =IF($I112 >0, MIN(AN112,$I112-SUM($L112:AN112)), MAX(AN112,$I112-SUM($L112:AN112))) -> 8.734387553 | AP112: =IF($I112 >0, MIN(AO112,$I112-SUM($L112:AO112)), MAX(AO112,$I112-SUM($L112:AO112))) -> 8.734387553 | AQ112: =IF($I112 >0, MIN(AP112,$I112-SUM($L112:AP112)), MAX(AP112,$I112-SUM($L112:AP112))) -> 8.734387553 | AR112: =IF($I112 >0, MIN(AQ112,$I112-SUM($L112:AQ112)), MAX(AQ112,$I112-SUM($L112:AQ112))) -> 8.734387553 | AS112: =IF($I112 >0, MIN(AR112,$I112-SUM($L112:AR112)), MAX(AR112,$I112-SUM($L112:AR112))) -> 8.734387553 | AT112: =IF($I112 >0, MIN(AS112,$I112-SUM($L112:AS112)), MAX(AS112,$I112-SUM($L112:AS112))) -> 8.734387553 | AV112: FALSE
E113: 2005-03-31 | G113: £m 18/19 prices | I113: 126.551982 | J113: > | Z113: =$I113/Y$92 -> 2.812266267 | AA113: =IF($I113 >0, MIN(Z113,$I113-SUM($L113:Z113)), MAX(Z113,$I113-SUM($L113:Z113))) -> 2.812266267 | AB113: =IF($I113 >0, MIN(AA113,$I113-SUM($L113:AA113)), MAX(AA113,$I113-SUM($L113:AA113))) -> 2.812266267 | AC113: =IF($I113 >0, MIN(AB113,$I113-SUM($L113:AB113)), MAX(AB113,$I113-SUM($L113:AB113))) -> 2.812266267 | AD113: =IF($I113 >0, MIN(AC113,$I113-SUM($L113:AC113)), MAX(AC113,$I113-SUM($L113:AC113))) -> 2.812266267 | AE113: =IF($I113 >0, MIN(AD113,$I113-SUM($L113:AD113)), MAX(AD113,$I113-SUM($L113:AD113))) -> 2.812266267 | AF113: =IF($I113 >0, MIN(AE113,$I113-SUM($L113:AE113)), MAX(AE113,$I113-SUM($L113:AE113))) -> 2.812266267 | AG113: =IF($I113 >0, MIN(AF113,$I113-SUM($L113:AF113)), MAX(AF113,$I113-SUM($L113:AF113))) -> 2.812266267 | AH113: =IF($I113 >0, MIN(AG113,$I113-SUM($L113:AG113)), MAX(AG113,$I113-SUM($L113:AG113))) -> 2.812266267 | AI113: =IF($I113 >0, MIN(AH113,$I113-SUM($L113:AH113)), MAX(AH113,$I113-SUM($L113:AH113))) -> 2.812266267 | AJ113: =IF($I113 >0, MIN(AI113,$I113-SUM($L113:AI113)), MAX(AI113,$I113-SUM($L113:AI113))) -> 2.812266267 | AK113: =IF($I113 >0, MIN(AJ113,$I113-SUM($L113:AJ113)), MAX(AJ113,$I113-SUM($L113:AJ113))) -> 2.812266267 | AL113: =IF($I113 >0, MIN(AK113,$I113-SUM($L113:AK113)), MAX(AK113,$I113-SUM($L113:AK113))) -> 2.812266267 | AM113: =IF($I113 >0, MIN(AL113,$I113-SUM($L113:AL113)), MAX(AL113,$I113-SUM($L113:AL113))) -> 2.812266267 | AN113: =IF($I113 >0, MIN(AM113,$I113-SUM($L113:AM113)), MAX(AM113,$I113-SUM($L113:AM113))) -> 2.812266267 | AO113: =IF($I113 >0, MIN(AN113,$I113-SUM($L113:AN113)), MAX(AN113,$I113-SUM($L113:AN113))) -> 2.812266267 | AP113: =IF($I113 >0, MIN(AO113,$I113-SUM($L113:AO113)), MAX(AO113,$I113-SUM($L113:AO113))) -> 2.812266267 | AQ113: =IF($I113 >0, MIN(AP113,$I113-SUM($L113:AP113)), MAX(AP113,$I113-SUM($L113:AP113))) -> 2.812266267 | AR113: =IF($I113 >0, MIN(AQ113,$I113-SUM($L113:AQ113)), MAX(AQ113,$I113-SUM($L113:AQ113))) -> 2.812266267 | AS113: =IF($I113 >0, MIN(AR113,$I113-SUM($L113:AR113)), MAX(AR113,$I113-SUM($L113:AR113))) -> 2.812266267 | AT113: =IF($I113 >0, MIN(AS113,$I113-SUM($L113:AS113)), MAX(AS113,$I113-SUM($L113:AS113))) -> 2.812266267 | AV113: FALSE
E114: 2006-03-31 | G114: £m 18/19 prices | I114: 393.9201619 | J114: > | AA114: =$I114/Z$92 -> 8.753781376 | AB114: =IF($I114 >0, MIN(AA114,$I114-SUM($L114:AA114)), MAX(AA114,$I114-SUM($L114:AA114))) -> 8.753781376 | AC114: =IF($I114 >0, MIN(AB114,$I114-SUM($L114:AB114)), MAX(AB114,$I114-SUM($L114:AB114))) -> 8.753781376 | AD114: =IF($I114 >0, MIN(AC114,$I114-SUM($L114:AC114)), MAX(AC114,$I114-SUM($L114:AC114))) -> 8.753781376 | AE114: =IF($I114 >0, MIN(AD114,$I114-SUM($L114:AD114)), MAX(AD114,$I114-SUM($L114:AD114))) -> 8.753781376 | AF114: =IF($I114 >0, MIN(AE114,$I114-SUM($L114:AE114)), MAX(AE114,$I114-SUM($L114:AE114))) -> 8.753781376 | AG114: =IF($I114 >0, MIN(AF114,$I114-SUM($L114:AF114)), MAX(AF114,$I114-SUM($L114:AF114))) -> 8.753781376 | AH114: =IF($I114 >0, MIN(AG114,$I114-SUM($L114:AG114)), MAX(AG114,$I114-SUM($L114:AG114))) -> 8.753781376 | AI114: =IF($I114 >0, MIN(AH114,$I114-SUM($L114:AH114)), MAX(AH114,$I114-SUM($L114:AH114))) -> 8.753781376 | AJ114: =IF($I114 >0, MIN(AI114,$I114-SUM($L114:AI114)), MAX(AI114,$I114-SUM($L114:AI114))) -> 8.753781376 | AK114: =IF($I114 >0, MIN(AJ114,$I114-SUM($L114:AJ114)), MAX(AJ114,$I114-SUM($L114:AJ114))) -> 8.753781376 | AL114: =IF($I114 >0, MIN(AK114,$I114-SUM($L114:AK114)), MAX(AK114,$I114-SUM($L114:AK114))) -> 8.753781376 | AM114: =IF($I114 >0, MIN(AL114,$I114-SUM($L114:AL114)), MAX(AL114,$I114-SUM($L114:AL114))) -> 8.753781376 | AN114: =IF($I114 >0, MIN(AM114,$I114-SUM($L114:AM114)), MAX(AM114,$I114-SUM($L114:AM114))) -> 8.753781376 | AO114: =IF($I114 >0, MIN(AN114,$I114-SUM($L114:AN114)), MAX(AN114,$I114-SUM($L114:AN114))) -> 8.753781376 | AP114: =IF($I114 >0, MIN(AO114,$I114-SUM($L114:AO114)), MAX(AO114,$I114-SUM($L114:AO114))) -> 8.753781376 | AQ114: =IF($I114 >0, MIN(AP114,$I114-SUM($L114:AP114)), MAX(AP114,$I114-SUM($L114:AP114))) -> 8.753781376 | AR114: =IF($I114 >0, MIN(AQ114,$I114-SUM($L114:AQ114)), MAX(AQ114,$I114-SUM($L114:AQ114))) -> 8.753781376 | AS114: =IF($I114 >0, MIN(AR114,$I114-SUM($L114:AR114)), MAX(AR114,$I114-SUM($L114:AR114))) -> 8.753781376 | AT114: =IF($I114 >0, MIN(AS114,$I114-SUM($L114:AS114)), MAX(AS114,$I114-SUM($L114:AS114))) -> 8.753781376 | AV114: FALSE
E115: 2007-03-31 | G115: £m 18/19 prices | I115: 710.4949173 | J115: > | AB115: =$I115/AA$92 -> 15.78877594 | AC115: =IF($I115 >0, MIN(AB115,$I115-SUM($L115:AB115)), MAX(AB115,$I115-SUM($L115:AB115))) -> 15.78877594 | AD115: =IF($I115 >0, MIN(AC115,$I115-SUM($L115:AC115)), MAX(AC115,$I115-SUM($L115:AC115))) -> 15.78877594 | AE115: =IF($I115 >0, MIN(AD115,$I115-SUM($L115:AD115)), MAX(AD115,$I115-SUM($L115:AD115))) -> 15.78877594 | AF115: =IF($I115 >0, MIN(AE115,$I115-SUM($L115:AE115)), MAX(AE115,$I115-SUM($L115:AE115))) -> 15.78877594 | AG115: =IF($I115 >0, MIN(AF115,$I115-SUM($L115:AF115)), MAX(AF115,$I115-SUM($L115:AF115))) -> 15.78877594 | AH115: =IF($I115 >0, MIN(AG115,$I115-SUM($L115:AG115)), MAX(AG115,$I115-SUM($L115:AG115))) -> 15.78877594 | AI115: =IF($I115 >0, MIN(AH115,$I115-SUM($L115:AH115)), MAX(AH115,$I115-SUM($L115:AH115))) -> 15.78877594 | AJ115: =IF($I115 >0, MIN(AI115,$I115-SUM($L115:AI115)), MAX(AI115,$I115-SUM($L115:AI115))) -> 15.78877594 | AK115: =IF($I115 >0, MIN(AJ115,$I115-SUM($L115:AJ115)), MAX(AJ115,$I115-SUM($L115:AJ115))) -> 15.78877594 | AL115: =IF($I115 >0, MIN(AK115,$I115-SUM($L115:AK115)), MAX(AK115,$I115-SUM($L115:AK115))) -> 15.78877594 | AM115: =IF($I115 >0, MIN(AL115,$I115-SUM($L115:AL115)), MAX(AL115,$I115-SUM($L115:AL115))) -> 15.78877594 | AN115: =IF($I115 >0, MIN(AM115,$I115-SUM($L115:AM115)), MAX(AM115,$I115-SUM($L115:AM115))) -> 15.78877594 | AO115: =IF($I115 >0, MIN(AN115,$I115-SUM($L115:AN115)), MAX(AN115,$I115-SUM($L115:AN115))) -> 15.78877594 | AP115: =IF($I115 >0, MIN(AO115,$I115-SUM($L115:AO115)), MAX(AO115,$I115-SUM($L115:AO115))) -> 15.78877594 | AQ115: =IF($I115 >0, MIN(AP115,$I115-SUM($L115:AP115)), MAX(AP115,$I115-SUM($L115:AP115))) -> 15.78877594 | AR115: =IF($I115 >0, MIN(AQ115,$I115-SUM($L115:AQ115)), MAX(AQ115,$I115-SUM($L115:AQ115))) -> 15.78877594 | AS115: =IF($I115 >0, MIN(AR115,$I115-SUM($L115:AR115)), MAX(AR115,$I115-SUM($L115:AR115))) -> 15.78877594 | AT115: =IF($I115 >0, MIN(AS115,$I115-SUM($L115:AS115)), MAX(AS115,$I115-SUM($L115:AS115))) -> 15.78877594 | AV115: FALSE
E116: 2008-03-31 | G116: £m 18/19 prices | I116: 769.1575025 | J116: > | AC116: =$I116/AB$92 -> 17.09238895 | AD116: =IF($I116 >0, MIN(AC116,$I116-SUM($L116:AC116)), MAX(AC116,$I116-SUM($L116:AC116))) -> 17.09238895 | AE116: =IF($I116 >0, MIN(AD116,$I116-SUM($L116:AD116)), MAX(AD116,$I116-SUM($L116:AD116))) -> 17.09238895 | AF116: =IF($I116 >0, MIN(AE116,$I116-SUM($L116:AE116)), MAX(AE116,$I116-SUM($L116:AE116))) -> 17.09238895 | AG116: =IF($I116 >0, MIN(AF116,$I116-SUM($L116:AF116)), MAX(AF116,$I116-SUM($L116:AF116))) -> 17.09238895 | AH116: =IF($I116 >0, MIN(AG116,$I116-SUM($L116:AG116)), MAX(AG116,$I116-SUM($L116:AG116))) -> 17.09238895 | AI116: =IF($I116 >0, MIN(AH116,$I116-SUM($L116:AH116)), MAX(AH116,$I116-SUM($L116:AH116))) -> 17.09238895 | AJ116: =IF($I116 >0, MIN(AI116,$I116-SUM($L116:AI116)), MAX(AI116,$I116-SUM($L116:AI116))) -> 17.09238895 | AK116: =IF($I116 >0, MIN(AJ116,$I116-SUM($L116:AJ116)), MAX(AJ116,$I116-SUM($L116:AJ116))) -> 17.09238895 | AL116: =IF($I116 >0, MIN(AK116,$I116-SUM($L116:AK116)), MAX(AK116,$I116-SUM($L116:AK116))) -> 17.09238895 | AM116: =IF($I116 >0, MIN(AL116,$I116-SUM($L116:AL116)), MAX(AL116,$I116-SUM($L116:AL116))) -> 17.09238895 | AN116: =IF($I116 >0, MIN(AM116,$I116-SUM($L116:AM116)), MAX(AM116,$I116-SUM($L116:AM116))) -> 17.09238895 | AO116: =IF($I116 >0, MIN(AN116,$I116-SUM($L116:AN116)), MAX(AN116,$I116-SUM($L116:AN116))) -> 17.09238895 | AP116: =IF($I116 >0, MIN(AO116,$I116-SUM($L116:AO116)), MAX(AO116,$I116-SUM($L116:AO116))) -> 17.09238895 | AQ116: =IF($I116 >0, MIN(AP116,$I116-SUM($L116:AP116)), MAX(AP116,$I116-SUM($L116:AP116))) -> 17.09238895 | AR116: =IF($I116 >0, MIN(AQ116,$I116-SUM($L116:AQ116)), MAX(AQ116,$I116-SUM($L116:AQ116))) -> 17.09238895 | AS116: =IF($I116 >0, MIN(AR116,$I116-SUM($L116:AR116)), MAX(AR116,$I116-SUM($L116:AR116))) -> 17.09238895 | AT116: =IF($I116 >0, MIN(AS116,$I116-SUM($L116:AS116)), MAX(AS116,$I116-SUM($L116:AS116))) -> 17.09238895 | AV116: FALSE
E117: 2009-03-31 | G117: £m 18/19 prices | I117: 325.3339377 | J117: > | AD117: =$I117/AC$92 -> 7.229643059 | AE117: =IF($I117 >0, MIN(AD117,$I117-SUM($L117:AD117)), MAX(AD117,$I117-SUM($L117:AD117))) -> 7.229643059 | AF117: =IF($I117 >0, MIN(AE117,$I117-SUM($L117:AE117)), MAX(AE117,$I117-SUM($L117:AE117))) -> 7.229643059 | AG117: =IF($I117 >0, MIN(AF117,$I117-SUM($L117:AF117)), MAX(AF117,$I117-SUM($L117:AF117))) -> 7.229643059 | AH117: =IF($I117 >0, MIN(AG117,$I117-SUM($L117:AG117)), MAX(AG117,$I117-SUM($L117:AG117))) -> 7.229643059 | AI117: =IF($I117 >0, MIN(AH117,$I117-SUM($L117:AH117)), MAX(AH117,$I117-SUM($L117:AH117))) -> 7.229643059 | AJ117: =IF($I117 >0, MIN(AI117,$I117-SUM($L117:AI117)), MAX(AI117,$I117-SUM($L117:AI117))) -> 7.229643059 | AK117: =IF($I117 >0, MIN(AJ117,$I117-SUM($L117:AJ117)), MAX(AJ117,$I117-SUM($L117:AJ117))) -> 7.229643059 | AL117: =IF($I117 >0, MIN(AK117,$I117-SUM($L117:AK117)), MAX(AK117,$I117-SUM($L117:AK117))) -> 7.229643059 | AM117: =IF($I117 >0, MIN(AL117,$I117-SUM($L117:AL117)), MAX(AL117,$I117-SUM($L117:AL117))) -> 7.229643059 | AN117: =IF($I117 >0, MIN(AM117,$I117-SUM($L117:AM117)), MAX(AM117,$I117-SUM($L117:AM117))) -> 7.229643059 | AO117: =IF($I117 >0, MIN(AN117,$I117-SUM($L117:AN117)), MAX(AN117,$I117-SUM($L117:AN117))) -> 7.229643059 | AP117: =IF($I117 >0, MIN(AO117,$I117-SUM($L117:AO117)), MAX(AO117,$I117-SUM($L117:AO117))) -> 7.229643059 | AQ117: =IF($I117 >0, MIN(AP117,$I117-SUM($L117:AP117)), MAX(AP117,$I117-SUM($L117:AP117))) -> 7.229643059 | AR117: =IF($I117 >0, MIN(AQ117,$I117-SUM($L117:AQ117)), MAX(AQ117,$I117-SUM($L117:AQ117))) -> 7.229643059 | AS117: =IF($I117 >0, MIN(AR117,$I117-SUM($L117:AR117)), MAX(AR117,$I117-SUM($L117:AR117))) -> 7.229643059 | AT117: =IF($I117 >0, MIN(AS117,$I117-SUM($L117:AS117)), MAX(AS117,$I117-SUM($L117:AS117))) -> 7.229643059 | AV117: FALSE
E118: 2010-03-31 | G118: £m 18/19 prices | I118: 161.7587385 | J118: > | AE118: =$I118/AD$92 -> 3.594638633 | AF118: =IF($I118 >0, MIN(AE118,$I118-SUM($L118:AE118)), MAX(AE118,$I118-SUM($L118:AE118))) -> 3.594638633 | AG118: =IF($I118 >0, MIN(AF118,$I118-SUM($L118:AF118)), MAX(AF118,$I118-SUM($L118:AF118))) -> 3.594638633 | AH118: =IF($I118 >0, MIN(AG118,$I118-SUM($L118:AG118)), MAX(AG118,$I118-SUM($L118:AG118))) -> 3.594638633 | AI118: =IF($I118 >0, MIN(AH118,$I118-SUM($L118:AH118)), MAX(AH118,$I118-SUM($L118:AH118))) -> 3.594638633 | AJ118: =IF($I118 >0, MIN(AI118,$I118-SUM($L118:AI118)), MAX(AI118,$I118-SUM($L118:AI118))) -> 3.594638633 | AK118: =IF($I118 >0, MIN(AJ118,$I118-SUM($L118:AJ118)), MAX(AJ118,$I118-SUM($L118:AJ118))) -> 3.594638633 | AL118: =IF($I118 >0, MIN(AK118,$I118-SUM($L118:AK118)), MAX(AK118,$I118-SUM($L118:AK118))) -> 3.594638633 | AM118: =IF($I118 >0, MIN(AL118,$I118-SUM($L118:AL118)), MAX(AL118,$I118-SUM($L118:AL118))) -> 3.594638633 | AN118: =IF($I118 >0, MIN(AM118,$I118-SUM($L118:AM118)), MAX(AM118,$I118-SUM($L118:AM118))) -> 3.594638633 | AO118: =IF($I118 >0, MIN(AN118,$I118-SUM($L118:AN118)), MAX(AN118,$I118-SUM($L118:AN118))) -> 3.594638633 | AP118: =IF($I118 >0, MIN(AO118,$I118-SUM($L118:AO118)), MAX(AO118,$I118-SUM($L118:AO118))) -> 3.594638633 | AQ118: =IF($I118 >0, MIN(AP118,$I118-SUM($L118:AP118)), MAX(AP118,$I118-SUM($L118:AP118))) -> 3.594638633 | AR118: =IF($I118 >0, MIN(AQ118,$I118-SUM($L118:AQ118)), MAX(AQ118,$I118-SUM($L118:AQ118))) -> 3.594638633 | AS118: =IF($I118 >0, MIN(AR118,$I118-SUM($L118:AR118)), MAX(AR118,$I118-SUM($L118:AR118))) -> 3.594638633 | AT118: =IF($I118 >0, MIN(AS118,$I118-SUM($L118:AS118)), MAX(AS118,$I118-SUM($L118:AS118))) -> 3.594638633 | AV118: FALSE
E119: 2011-03-31 | G119: £m 18/19 prices | I119: 131.2813581 | J119: > | AF119: =$I119/AE$92 -> 2.917363514 | AG119: =IF($I119 >0, MIN(AF119,$I119-SUM($L119:AF119)), MAX(AF119,$I119-SUM($L119:AF119))) -> 2.917363514 | AH119: =IF($I119 >0, MIN(AG119,$I119-SUM($L119:AG119)), MAX(AG119,$I119-SUM($L119:AG119))) -> 2.917363514 | AI119: =IF($I119 >0, MIN(AH119,$I119-SUM($L119:AH119)), MAX(AH119,$I119-SUM($L119:AH119))) -> 2.917363514 | AJ119: =IF($I119 >0, MIN(AI119,$I119-SUM($L119:AI119)), MAX(AI119,$I119-SUM($L119:AI119))) -> 2.917363514 | AK119: =IF($I119 >0, MIN(AJ119,$I119-SUM($L119:AJ119)), MAX(AJ119,$I119-SUM($L119:AJ119))) -> 2.917363514 | AL119: =IF($I119 >0, MIN(AK119,$I119-SUM($L119:AK119)), MAX(AK119,$I119-SUM($L119:AK119))) -> 2.917363514 | AM119: =IF($I119 >0, MIN(AL119,$I119-SUM($L119:AL119)), MAX(AL119,$I119-SUM($L119:AL119))) -> 2.917363514 | AN119: =IF($I119 >0, MIN(AM119,$I119-SUM($L119:AM119)), MAX(AM119,$I119-SUM($L119:AM119))) -> 2.917363514 | AO119: =IF($I119 >0, MIN(AN119,$I119-SUM($L119:AN119)), MAX(AN119,$I119-SUM($L119:AN119))) -> 2.917363514 | AP119: =IF($I119 >0, MIN(AO119,$I119-SUM($L119:AO119)), MAX(AO119,$I119-SUM($L119:AO119))) -> 2.917363514 | AQ119: =IF($I119 >0, MIN(AP119,$I119-SUM($L119:AP119)), MAX(AP119,$I119-SUM($L119:AP119))) -> 2.917363514 | AR119: =IF($I119 >0, MIN(AQ119,$I119-SUM($L119:AQ119)), MAX(AQ119,$I119-SUM($L119:AQ119))) -> 2.917363514 | AS119: =IF($I119 >0, MIN(AR119,$I119-SUM($L119:AR119)), MAX(AR119,$I119-SUM($L119:AR119))) -> 2.917363514 | AT119: =IF($I119 >0, MIN(AS119,$I119-SUM($L119:AS119)), MAX(AS119,$I119-SUM($L119:AS119))) -> 2.917363514 | AV119: FALSE
E120: 2012-03-31 | G120: £m 18/19 prices | I120: 132.7730693 | J120: > | AG120: =$I120/AF$92 -> 2.950512652 | AH120: =IF($I120 >0, MIN(AG120,$I120-SUM($L120:AG120)), MAX(AG120,$I120-SUM($L120:AG120))) -> 2.950512652 | AI120: =IF($I120 >0, MIN(AH120,$I120-SUM($L120:AH120)), MAX(AH120,$I120-SUM($L120:AH120))) -> 2.950512652 | AJ120: =IF($I120 >0, MIN(AI120,$I120-SUM($L120:AI120)), MAX(AI120,$I120-SUM($L120:AI120))) -> 2.950512652 | AK120: =IF($I120 >0, MIN(AJ120,$I120-SUM($L120:AJ120)), MAX(AJ120,$I120-SUM($L120:AJ120))) -> 2.950512652 | AL120: =IF($I120 >0, MIN(AK120,$I120-SUM($L120:AK120)), MAX(AK120,$I120-SUM($L120:AK120))) -> 2.950512652 | AM120: =IF($I120 >0, MIN(AL120,$I120-SUM($L120:AL120)), MAX(AL120,$I120-SUM($L120:AL120))) -> 2.950512652 | AN120: =IF($I120 >0, MIN(AM120,$I120-SUM($L120:AM120)), MAX(AM120,$I120-SUM($L120:AM120))) -> 2.950512652 | AO120: =IF($I120 >0, MIN(AN120,$I120-SUM($L120:AN120)), MAX(AN120,$I120-SUM($L120:AN120))) -> 2.950512652 | AP120: =IF($I120 >0, MIN(AO120,$I120-SUM($L120:AO120)), MAX(AO120,$I120-SUM($L120:AO120))) -> 2.950512652 | AQ120: =IF($I120 >0, MIN(AP120,$I120-SUM($L120:AP120)), MAX(AP120,$I120-SUM($L120:AP120))) -> 2.950512652 | AR120: =IF($I120 >0, MIN(AQ120,$I120-SUM($L120:AQ120)), MAX(AQ120,$I120-SUM($L120:AQ120))) -> 2.950512652 | AS120: =IF($I120 >0, MIN(AR120,$I120-SUM($L120:AR120)), MAX(AR120,$I120-SUM($L120:AR120))) -> 2.950512652 | AT120: =IF($I120 >0, MIN(AS120,$I120-SUM($L120:AS120)), MAX(AS120,$I120-SUM($L120:AS120))) -> 2.950512652 | AV120: FALSE
E121: 2013-03-31 | G121: £m 18/19 prices | I121: -37.76579961 | AH121: =$I121/AG$92 -> -0.8392399913 | AI121: =IF($I121 >0, MIN(AH121,$I121-SUM($L121:AH121)), MAX(AH121,$I121-SUM($L121:AH121))) -> -0.8392399913 | AJ121: =IF($I121 >0, MIN(AI121,$I121-SUM($L121:AI121)), MAX(AI121,$I121-SUM($L121:AI121))) -> -0.8392399913 | AK121: =IF($I121 >0, MIN(AJ121,$I121-SUM($L121:AJ121)), MAX(AJ121,$I121-SUM($L121:AJ121))) -> -0.8392399913 | AL121: =IF($I121 >0, MIN(AK121,$I121-SUM($L121:AK121)), MAX(AK121,$I121-SUM($L121:AK121))) -> -0.8392399913 | AM121: =IF($I121 >0, MIN(AL121,$I121-SUM($L121:AL121)), MAX(AL121,$I121-SUM($L121:AL121))) -> -0.8392399913 | AN121: =IF($I121 >0, MIN(AM121,$I121-SUM($L121:AM121)), MAX(AM121,$I121-SUM($L121:AM121))) -> -0.8392399913 | AO121: =IF($I121 >0, MIN(AN121,$I121-SUM($L121:AN121)), MAX(AN121,$I121-SUM($L121:AN121))) -> -0.8392399913 | AP121: =IF($I121 >0, MIN(AO121,$I121-SUM($L121:AO121)), MAX(AO121,$I121-SUM($L121:AO121))) -> -0.8392399913 | AQ121: =IF($I121 >0, MIN(AP121,$I121-SUM($L121:AP121)), MAX(AP121,$I121-SUM($L121:AP121))) -> -0.8392399913 | AR121: =IF($I121 >0, MIN(AQ121,$I121-SUM($L121:AQ121)), MAX(AQ121,$I121-SUM($L121:AQ121))) -> -0.8392399913 | AS121: =IF($I121 >0, MIN(AR121,$I121-SUM($L121:AR121)), MAX(AR121,$I121-SUM($L121:AR121))) -> -0.8392399913 | AT121: =IF($I121 >0, MIN(AS121,$I121-SUM($L121:AS121)), MAX(AS121,$I121-SUM($L121:AS121))) -> -0.8392399913 | AV121: FALSE
E122: 2014-03-31 | G122: £m 18/19 prices | I122: 210.4764798 | AI122: =$I122/AH$92 -> 4.677255107 | AJ122: =IF($I122 >0, MIN(AI122,$I122-SUM($L122:AI122)), MAX(AI122,$I122-SUM($L122:AI122))) -> 4.677255107 | AK122: =IF($I122 >0, MIN(AJ122,$I122-SUM($L122:AJ122)), MAX(AJ122,$I122-SUM($L122:AJ122))) -> 4.677255107 | AL122: =IF($I122 >0, MIN(AK122,$I122-SUM($L122:AK122)), MAX(AK122,$I122-SUM($L122:AK122))) -> 4.677255107 | AM122: =IF($I122 >0, MIN(AL122,$I122-SUM($L122:AL122)), MAX(AL122,$I122-SUM($L122:AL122))) -> 4.677255107 | AN122: =IF($I122 >0, MIN(AM122,$I122-SUM($L122:AM122)), MAX(AM122,$I122-SUM($L122:AM122))) -> 4.677255107 | AO122: =IF($I122 >0, MIN(AN122,$I122-SUM($L122:AN122)), MAX(AN122,$I122-SUM($L122:AN122))) -> 4.677255107 | AP122: =IF($I122 >0, MIN(AO122,$I122-SUM($L122:AO122)), MAX(AO122,$I122-SUM($L122:AO122))) -> 4.677255107 | AQ122: =IF($I122 >0, MIN(AP122,$I122-SUM($L122:AP122)), MAX(AP122,$I122-SUM($L122:AP122))) -> 4.677255107 | AR122: =IF($I122 >0, MIN(AQ122,$I122-SUM($L122:AQ122)), MAX(AQ122,$I122-SUM($L122:AQ122))) -> 4.677255107 | AS122: =IF($I122 >0, MIN(AR122,$I122-SUM($L122:AR122)), MAX(AR122,$I122-SUM($L122:AR122))) -> 4.677255107 | AT122: =IF($I122 >0, MIN(AS122,$I122-SUM($L122:AS122)), MAX(AS122,$I122-SUM($L122:AS122))) -> 4.677255107 | AV122: FALSE
E123: 2015-03-31 | G123: £m 18/19 prices | I123: 167.3135618 | AJ123: =$I123/AI$92 -> 3.718079151 | AK123: =IF($I123 >0, MIN(AJ123,$I123-SUM($L123:AJ123)), MAX(AJ123,$I123-SUM($L123:AJ123))) -> 3.718079151 | AL123: =IF($I123 >0, MIN(AK123,$I123-SUM($L123:AK123)), MAX(AK123,$I123-SUM($L123:AK123))) -> 3.718079151 | AM123: =IF($I123 >0, MIN(AL123,$I123-SUM($L123:AL123)), MAX(AL123,$I123-SUM($L123:AL123))) -> 3.718079151 | AN123: =IF($I123 >0, MIN(AM123,$I123-SUM($L123:AM123)), MAX(AM123,$I123-SUM($L123:AM123))) -> 3.718079151 | AO123: =IF($I123 >0, MIN(AN123,$I123-SUM($L123:AN123)), MAX(AN123,$I123-SUM($L123:AN123))) -> 3.718079151 | AP123: =IF($I123 >0, MIN(AO123,$I123-SUM($L123:AO123)), MAX(AO123,$I123-SUM($L123:AO123))) -> 3.718079151 | AQ123: =IF($I123 >0, MIN(AP123,$I123-SUM($L123:AP123)), MAX(AP123,$I123-SUM($L123:AP123))) -> 3.718079151 | AR123: =IF($I123 >0, MIN(AQ123,$I123-SUM($L123:AQ123)), MAX(AQ123,$I123-SUM($L123:AQ123))) -> 3.718079151 | AS123: =IF($I123 >0, MIN(AR123,$I123-SUM($L123:AR123)), MAX(AR123,$I123-SUM($L123:AR123))) -> 3.718079151 | AT123: =IF($I123 >0, MIN(AS123,$I123-SUM($L123:AS123)), MAX(AS123,$I123-SUM($L123:AS123))) -> 3.718079151 | AV123: FALSE
E124: 2016-03-31 | G124: £m 18/19 prices | I124: 158.1892081 | AK124: =$I124/AJ$92 -> 3.515315736 | AL124: =IF($I124 >0, MIN(AK124,$I124-SUM($L124:AK124)), MAX(AK124,$I124-SUM($L124:AK124))) -> 3.515315736 | AM124: =IF($I124 >0, MIN(AL124,$I124-SUM($L124:AL124)), MAX(AL124,$I124-SUM($L124:AL124))) -> 3.515315736 | AN124: =IF($I124 >0, MIN(AM124,$I124-SUM($L124:AM124)), MAX(AM124,$I124-SUM($L124:AM124))) -> 3.515315736 | AO124: =IF($I124 >0, MIN(AN124,$I124-SUM($L124:AN124)), MAX(AN124,$I124-SUM($L124:AN124))) -> 3.515315736 | AP124: =IF($I124 >0, MIN(AO124,$I124-SUM($L124:AO124)), MAX(AO124,$I124-SUM($L124:AO124))) -> 3.515315736 | AQ124: =IF($I124 >0, MIN(AP124,$I124-SUM($L124:AP124)), MAX(AP124,$I124-SUM($L124:AP124))) -> 3.515315736 | AR124: =IF($I124 >0, MIN(AQ124,$I124-SUM($L124:AQ124)), MAX(AQ124,$I124-SUM($L124:AQ124))) -> 3.515315736 | AS124: =IF($I124 >0, MIN(AR124,$I124-SUM($L124:AR124)), MAX(AR124,$I124-SUM($L124:AR124))) -> 3.515315736 | AT124: =IF($I124 >0, MIN(AS124,$I124-SUM($L124:AS124)), MAX(AS124,$I124-SUM($L124:AS124))) -> 3.515315736 | AV124: FALSE
E125: 2017-03-31 | G125: £m 18/19 prices | I125: 179.0164321 | AL125: =$I125/AK$92 -> 3.978142935 | AM125: =IF($I125 >0, MIN(AL125,$I125-SUM($L125:AL125)), MAX(AL125,$I125-SUM($L125:AL125))) -> 3.978142935 | AN125: =IF($I125 >0, MIN(AM125,$I125-SUM($L125:AM125)), MAX(AM125,$I125-SUM($L125:AM125))) -> 3.978142935 | AO125: =IF($I125 >0, MIN(AN125,$I125-SUM($L125:AN125)), MAX(AN125,$I125-SUM($L125:AN125))) -> 3.978142935 | AP125: =IF($I125 >0, MIN(AO125,$I125-SUM($L125:AO125)), MAX(AO125,$I125-SUM($L125:AO125))) -> 3.978142935 | AQ125: =IF($I125 >0, MIN(AP125,$I125-SUM($L125:AP125)), MAX(AP125,$I125-SUM($L125:AP125))) -> 3.978142935 | AR125: =IF($I125 >0, MIN(AQ125,$I125-SUM($L125:AQ125)), MAX(AQ125,$I125-SUM($L125:AQ125))) -> 3.978142935 | AS125: =IF($I125 >0, MIN(AR125,$I125-SUM($L125:AR125)), MAX(AR125,$I125-SUM($L125:AR125))) -> 3.978142935 | AT125: =IF($I125 >0, MIN(AS125,$I125-SUM($L125:AS125)), MAX(AS125,$I125-SUM($L125:AS125))) -> 3.978142935 | AV125: FALSE
E126: 2018-03-31 | G126: £m 18/19 prices | I126: 227.6662552 | AM126: =$I126/AL$92 -> 5.059250115 | AN126: =IF($I126 >0, MIN(AM126,$I126-SUM($L126:AM126)), MAX(AM126,$I126-SUM($L126:AM126))) -> 5.059250115 | AO126: =IF($I126 >0, MIN(AN126,$I126-SUM($L126:AN126)), MAX(AN126,$I126-SUM($L126:AN126))) -> 5.059250115 | AP126: =IF($I126 >0, MIN(AO126,$I126-SUM($L126:AO126)), MAX(AO126,$I126-SUM($L126:AO126))) -> 5.059250115 | AQ126: =IF($I126 >0, MIN(AP126,$I126-SUM($L126:AP126)), MAX(AP126,$I126-SUM($L126:AP126))) -> 5.059250115 | AR126: =IF($I126 >0, MIN(AQ126,$I126-SUM($L126:AQ126)), MAX(AQ126,$I126-SUM($L126:AQ126))) -> 5.059250115 | AS126: =IF($I126 >0, MIN(AR126,$I126-SUM($L126:AR126)), MAX(AR126,$I126-SUM($L126:AR126))) -> 5.059250115 | AT126: =IF($I126 >0, MIN(AS126,$I126-SUM($L126:AS126)), MAX(AS126,$I126-SUM($L126:AS126))) -> 5.059250115 | AV126: FALSE
E127: 2019-03-31 | G127: £m 18/19 prices | I127: 205.0792588 | AN127: =$I127/AM$92 -> 4.557316863 | AO127: =IF($I127 >0, MIN(AN127,$I127-SUM($L127:AN127)), MAX(AN127,$I127-SUM($L127:AN127))) -> 4.557316863 | AP127: =IF($I127 >0, MIN(AO127,$I127-SUM($L127:AO127)), MAX(AO127,$I127-SUM($L127:AO127))) -> 4.557316863 | AQ127: =IF($I127 >0, MIN(AP127,$I127-SUM($L127:AP127)), MAX(AP127,$I127-SUM($L127:AP127))) -> 4.557316863 | AR127: =IF($I127 >0, MIN(AQ127,$I127-SUM($L127:AQ127)), MAX(AQ127,$I127-SUM($L127:AQ127))) -> 4.557316863 | AS127: =IF($I127 >0, MIN(AR127,$I127-SUM($L127:AR127)), MAX(AR127,$I127-SUM($L127:AR127))) -> 4.557316863 | AT127: =IF($I127 >0, MIN(AS127,$I127-SUM($L127:AS127)), MAX(AS127,$I127-SUM($L127:AS127))) -> 4.557316863 | AV127: FALSE
E128: 2020-03-31 | G128: £m 18/19 prices | I128: 173.2878659 | AO128: =$I128/AN$92 -> 3.850841465 | AP128: =IF($I128 >0, MIN(AO128,$I128-SUM($L128:AO128)), MAX(AO128,$I128-SUM($L128:AO128))) -> 3.850841465 | AQ128: =IF($I128 >0, MIN(AP128,$I128-SUM($L128:AP128)), MAX(AP128,$I128-SUM($L128:AP128))) -> 3.850841465 | AR128: =IF($I128 >0, MIN(AQ128,$I128-SUM($L128:AQ128)), MAX(AQ128,$I128-SUM($L128:AQ128))) -> 3.850841465 | AS128: =IF($I128 >0, MIN(AR128,$I128-SUM($L128:AR128)), MAX(AR128,$I128-SUM($L128:AR128))) -> 3.850841465 | AT128: =IF($I128 >0, MIN(AS128,$I128-SUM($L128:AS128)), MAX(AS128,$I128-SUM($L128:AS128))) -> 3.850841465 | AV128: FALSE
E129: 2021-03-31 | G129: £m 18/19 prices | I129: 144.3184505 | AP129: =$I129/AO$92 -> 3.207076678 | AQ129: =IF($I129 >0, MIN(AP129,$I129-SUM($L129:AP129)), MAX(AP129,$I129-SUM($L129:AP129))) -> 3.207076678 | AR129: =IF($I129 >0, MIN(AQ129,$I129-SUM($L129:AQ129)), MAX(AQ129,$I129-SUM($L129:AQ129))) -> 3.207076678 | AS129: =IF($I129 >0, MIN(AR129,$I129-SUM($L129:AR129)), MAX(AR129,$I129-SUM($L129:AR129))) -> 3.207076678 | AT129: =IF($I129 >0, MIN(AS129,$I129-SUM($L129:AS129)), MAX(AS129,$I129-SUM($L129:AS129))) -> 3.207076678 | AV129: FALSE
E130: 2022-03-31 | G130: £m 18/19 prices | I130: 0 | AQ130: =$I130/AP$92 -> 0 | AR130: =IF($I130 >0, MIN(AQ130,$I130-SUM($L130:AQ130)), MAX(AQ130,$I130-SUM($L130:AQ130))) -> 0 | AS130: =IF($I130 >0, MIN(AR130,$I130-SUM($L130:AR130)), MAX(AR130,$I130-SUM($L130:AR130))) -> 0 | AT130: =IF($I130 >0, MIN(AS130,$I130-SUM($L130:AS130)), MAX(AS130,$I130-SUM($L130:AS130))) -> 0 | AV130: FALSE
E131: 2023-03-31 | G131: £m 18/19 prices | I131: 0 | AR131: =$I131/AQ$92 -> 0 | AS131: =IF($I131 >0, MIN(AR131,$I131-SUM($L131:AR131)), MAX(AR131,$I131-SUM($L131:AR131))) -> 0 | AT131: =IF($I131 >0, MIN(AS131,$I131-SUM($L131:AS131)), MAX(AS131,$I131-SUM($L131:AS131))) -> 0 | AV131: FALSE
E132: 2024-03-31 | G132: £m 18/19 prices | I132: 0 | AS132: =$I132/AR$92 -> 0 | AT132: =IF($I132 >0, MIN(AS132,$I132-SUM($L132:AS132)), MAX(AS132,$I132-SUM($L132:AS132))) -> 0 | AV132: FALSE
E133: 2025-03-31 | G133: £m 18/19 prices | I133: 0 | AT133: =$I133/AS$92 -> 0 | AV133: FALSE
E134: 2026-03-31 | G134: £m 18/19 prices | I134: 0 | AV134: FALSE
E135: Total | G135: £m 18/19 prices | L135: =SUM(L99:L134) -> 0 | M135: 0 | N135: 0 | O135: 0 | P135: 0 | Q135: 0 | R135: 0 | S135: 0 | T135: 0 | U135: 0 | V135: 0 | W135: 0 | X135: 0 | Y135: 8.734387553 | Z135: 11.54665382 | AA135: 20.3004352 | AB135: 36.08921114 | AC135: 53.18160008 | AD135: 60.41124314 | AE135: 64.00588177 | AF135: 66.92324529 | AG135: 69.87375794 | AH135: 69.03451795 | AI135: 73.71177305 | AJ135: 77.42985221 | AK135: 80.94516794 | AL135: 84.92331088 | AM135: 89.98256099 | AN135: 94.53987785 | AO135: 98.39071932 | AP135: 101.597796 | AQ135: 101.597796 | AR135: 101.597796 | AS135: 101.597796 | AT135: =SUM(AT99:AT134) -> 101.597796
C138: Post-vesting depreciation - differential
D140: Depreciation parameters
E142: Start of differential depreciation calculation | G142: year ending | I142: =I39 -> 2003-03-31
E143: Start of differential depreciation recovery period | G143: year ending | I143: =I40 -> 2022-03-31
E144: Existing assets depreciation recovery period | G144: years | I144: =I41 -> 20
E145: Last year depreciation recovery for existing assets | G145: year ending | I145: =I42 -> 2041-03-31
E147: Year in recovery period | G147: text | J147: > | L147: =AND(L$4 >= $I$143, L$4 <= $I$145) -> FALSE | M147: =AND(M$4 >= $I$143, M$4 <= $I$145) -> FALSE | N147: FALSE | O147: FALSE | P147: FALSE | Q147: FALSE | R147: FALSE | S147: FALSE | T147: FALSE | U147: FALSE | V147: FALSE | W147: FALSE | X147: FALSE | Y147: FALSE | Z147: FALSE | AA147: FALSE | AB147: FALSE | AC147: FALSE | AD147: FALSE | AE147: FALSE | AF147: FALSE | AG147: FALSE | AH147: FALSE | AI147: FALSE | AJ147: FALSE | AK147: FALSE | AL147: FALSE | AM147: FALSE | AN147: FALSE | AO147: FALSE | AP147: TRUE | AQ147: TRUE | AR147: TRUE | AS147: TRUE | AT147: TRUE
D149: Depreciation schedule
E151: Depreciation of differential depreciation from year ending | I151: Differential | AV151: Sum of digits depreciation applies (existing assets)
E152: 1991-03-31 | G152: £m 18/19 prices | I152: =(SUMPRODUCT(($L49:$AT49) * ($L$44:$AT$44 = FALSE)) - SUMPRODUCT(($L99:$AT99) * ($L$44:$AT$44 = FALSE))) * ($E152 >=$I$142) -> 0 | J152: > | L152: =($I152 / $I$144) * L$147 -> 0 | M152: =($I152 / $I$144) * M$147 -> 0 | N152: 0 | O152: 0 | P152: 0 | Q152: 0 | R152: 0 | S152: 0 | T152: 0 | U152: 0 | V152: 0 | W152: 0 | X152: 0 | Y152: 0 | Z152: 0 | AA152: 0 | AB152: 0 | AC152: =($I152 / $I$144) * AC$147 -> 0 | AD152: 0 | AE152: 0 | AF152: 0 | AG152: 0 | AH152: 0 | AI152: 0 | AJ152: 0 | AK152: 0 | AL152: 0 | AM152: 0 | AN152: 0 | AO152: 0 | AP152: 0 | AQ152: 0 | AR152: 0 | AS152: =($I152 / $I$144) * AS$147 -> 0 | AT152: 0 | AV152: =$E152 >= $I$142 -> FALSE
E153: 1992-03-31 | G153: £m 18/19 prices | I153: =(SUMPRODUCT(($L50:$AT50) * ($L$44:$AT$44 = FALSE)) - SUMPRODUCT(($L100:$AT100) * ($L$44:$AT$44 = FALSE))) * ($E153 >=$I$142) -> 0 | J153: > | L153: =($I153 / $I$144) * L$147 -> 0 | M153: 0 | N153: 0 | O153: 0 | P153: 0 | Q153: 0 | R153: 0 | S153: 0 | T153: 0 | U153: 0 | V153: 0 | W153: 0 | X153: 0 | Y153: 0 | Z153: 0 | AA153: 0 | AB153: 0 | AC153: 0 | AD153: 0 | AE153: 0 | AF153: 0 | AG153: 0 | AH153: 0 | AI153: 0 | AJ153: 0 | AK153: 0 | AL153: 0 | AM153: 0 | AN153: 0 | AO153: 0 | AP153: 0 | AQ153: 0 | AR153: 0 | AS153: 0 | AT153: 0 | AV153: =$E153 >= $I$142 -> FALSE
E154: 1993-03-31 | G154: £m 18/19 prices | I154: 0 | J154: > | L154: 0 | M154: 0 | N154: 0 | O154: 0 | P154: 0 | Q154: 0 | R154: 0 | S154: 0 | T154: 0 | U154: 0 | V154: 0 | W154: 0 | X154: 0 | Y154: 0 | Z154: 0 | AA154: 0 | AB154: 0 | AC154: 0 | AD154: 0 | AE154: 0 | AF154: 0 | AG154: 0 | AH154: 0 | AI154: 0 | AJ154: 0 | AK154: 0 | AL154: 0 | AM154: 0 | AN154: 0 | AO154: 0 | AP154: 0 | AQ154: 0 | AR154: 0 | AS154: 0 | AT154: 0 | AV154: FALSE
E155: 1994-03-31 | G155: £m 18/19 prices | I155: 0 | J155: > | L155: 0 | M155: 0 | N155: 0 | O155: 0 | P155: 0 | Q155: 0 | R155: 0 | S155: 0 | T155: 0 | U155: 0 | V155: 0 | W155: 0 | X155: 0 | Y155: 0 | Z155: 0 | AA155: 0 | AB155: 0 | AC155: 0 | AD155: 0 | AE155: 0 | AF155: 0 | AG155: 0 | AH155: 0 | AI155: 0 | AJ155: 0 | AK155: 0 | AL155: 0 | AM155: 0 | AN155: 0 | AO155: 0 | AP155: 0 | AQ155: 0 | AR155: 0 | AS155: 0 | AT155: 0 | AV155: FALSE
E156: 1995-03-31 | G156: £m 18/19 prices | I156: 0 | J156: > | L156: 0 | M156: 0 | N156: 0 | O156: 0 | P156: 0 | Q156: 0 | R156: 0 | S156: 0 | T156: 0 | U156: 0 | V156: 0 | W156: 0 | X156: 0 | Y156: 0 | Z156: 0 | AA156: 0 | AB156: 0 | AC156: 0 | AD156: 0 | AE156: 0 | AF156: 0 | AG156: 0 | AH156: 0 | AI156: 0 | AJ156: 0 | AK156: 0 | AL156: 0 | AM156: 0 | AN156: 0 | AO156: 0 | AP156: 0 | AQ156: 0 | AR156: 0 | AS156: 0 | AT156: 0 | AV156: FALSE
E157: 1996-03-31 | G157: £m 18/19 prices | I157: 0 | J157: > | L157: 0 | M157: 0 | N157: 0 | O157: 0 | P157: 0 | Q157: 0 | R157: 0 | S157: 0 | T157: 0 | U157: 0 | V157: 0 | W157: 0 | X157: 0 | Y157: 0 | Z157: 0 | AA157: 0 | AB157: 0 | AC157: 0 | AD157: 0 | AE157: 0 | AF157: 0 | AG157: 0 | AH157: 0 | AI157: 0 | AJ157: 0 | AK157: 0 | AL157: 0 | AM157: 0 | AN157: 0 | AO157: 0 | AP157: 0 | AQ157: 0 | AR157: 0 | AS157: 0 | AT157: 0 | AV157: FALSE
E158: 1997-03-31 | G158: £m 18/19 prices | I158: 0 | J158: > | L158: 0 | M158: 0 | N158: 0 | O158: 0 | P158: 0 | Q158: 0 | R158: 0 | S158: 0 | T158: 0 | U158: 0 | V158: 0 | W158: 0 | X158: 0 | Y158: 0 | Z158: 0 | AA158: 0 | AB158: 0 | AC158: 0 | AD158: 0 | AE158: 0 | AF158: 0 | AG158: 0 | AH158: 0 | AI158: 0 | AJ158: 0 | AK158: 0 | AL158: 0 | AM158: 0 | AN158: 0 | AO158: 0 | AP158: 0 | AQ158: 0 | AR158: 0 | AS158: 0 | AT158: 0 | AV158: FALSE
E159: 1998-03-31 | G159: £m 18/19 prices | I159: 0 | J159: > | L159: 0 | M159: 0 | N159: 0 | O159: 0 | P159: 0 | Q159: 0 | R159: 0 | S159: 0 | T159: 0 | U159: 0 | V159: 0 | W159: 0 | X159: 0 | Y159: 0 | Z159: 0 | AA159: 0 | AB159: 0 | AC159: 0 | AD159: 0 | AE159: 0 | AF159: 0 | AG159: 0 | AH159: 0 | AI159: 0 | AJ159: 0 | AK159: 0 | AL159: 0 | AM159: 0 | AN159: 0 | AO159: 0 | AP159: 0 | AQ159: 0 | AR159: 0 | AS159: 0 | AT159: 0 | AV159: FALSE
E160: 1999-03-31 | G160: £m 18/19 prices | I160: 0 | J160: > | L160: 0 | M160: 0 | N160: 0 | O160: 0 | P160: 0 | Q160: 0 | R160: 0 | S160: 0 | T160: 0 | U160: 0 | V160: 0 | W160: 0 | X160: 0 | Y160: 0 | Z160: 0 | AA160: 0 | AB160: 0 | AC160: 0 | AD160: 0 | AE160: 0 | AF160: 0 | AG160: 0 | AH160: 0 | AI160: 0 | AJ160: 0 | AK160: 0 | AL160: 0 | AM160: 0 | AN160: 0 | AO160: 0 | AP160: 0 | AQ160: 0 | AR160: 0 | AS160: 0 | AT160: 0 | AV160: FALSE
E161: 2000-03-31 | G161: £m 18/19 prices | I161: 0 | J161: > | L161: 0 | M161: 0 | N161: 0 | O161: 0 | P161: 0 | Q161: 0 | R161: 0 | S161: 0 | T161: 0 | U161: 0 | V161: 0 | W161: 0 | X161: 0 | Y161: 0 | Z161: 0 | AA161: 0 | AB161: 0 | AC161: 0 | AD161: 0 | AE161: 0 | AF161: 0 | AG161: 0 | AH161: 0 | AI161: 0 | AJ161: 0 | AK161: 0 | AL161: 0 | AM161: 0 | AN161: 0 | AO161: 0 | AP161: 0 | AQ161: 0 | AR161: 0 | AS161: 0 | AT161: 0 | AV161: FALSE
E162: 2001-03-31 | G162: £m 18/19 prices | I162: 0 | J162: > | L162: 0 | M162: 0 | N162: 0 | O162: 0 | P162: 0 | Q162: 0 | R162: 0 | S162: 0 | T162: 0 | U162: 0 | V162: 0 | W162: 0 | X162: 0 | Y162: 0 | Z162: 0 | AA162: 0 | AB162: 0 | AC162: 0 | AD162: 0 | AE162: 0 | AF162: 0 | AG162: 0 | AH162: 0 | AI162: 0 | AJ162: 0 | AK162: 0 | AL162: 0 | AM162: 0 | AN162: 0 | AO162: 0 | AP162: 0 | AQ162: 0 | AR162: 0 | AS162: 0 | AT162: 0 | AV162: FALSE
E163: 2002-03-31 | G163: £m 18/19 prices | I163: 0 | J163: > | L163: 0 | M163: 0 | N163: 0 | O163: 0 | P163: 0 | Q163: 0 | R163: 0 | S163: 0 | T163: 0 | U163: 0 | V163: 0 | W163: 0 | X163: 0 | Y163: 0 | Z163: 0 | AA163: 0 | AB163: 0 | AC163: 0 | AD163: 0 | AE163: 0 | AF163: 0 | AG163: 0 | AH163: 0 | AI163: 0 | AJ163: 0 | AK163: 0 | AL163: 0 | AM163: 0 | AN163: 0 | AO163: 0 | AP163: 0 | AQ163: 0 | AR163: 0 | AS163: 0 | AT163: 0 | AV163: FALSE
E164: 2003-03-31 | G164: £m 18/19 prices | I164: 0 | J164: > | L164: 0 | M164: 0 | N164: 0 | O164: 0 | P164: 0 | Q164: 0 | R164: 0 | S164: 0 | T164: 0 | U164: 0 | V164: 0 | W164: 0 | X164: 0 | Y164: 0 | Z164: 0 | AA164: 0 | AB164: 0 | AC164: 0 | AD164: 0 | AE164: 0 | AF164: 0 | AG164: 0 | AH164: 0 | AI164: 0 | AJ164: 0 | AK164: 0 | AL164: 0 | AM164: 0 | AN164: 0 | AO164: 0 | AP164: 0 | AQ164: 0 | AR164: 0 | AS164: 0 | AT164: 0 | AV164: TRUE
E165: 2004-03-31 | G165: £m 18/19 prices | I165: 90.38192338 | J165: > | L165: 0 | M165: 0 | N165: 0 | O165: 0 | P165: 0 | Q165: 0 | R165: 0 | S165: 0 | T165: 0 | U165: 0 | V165: 0 | W165: 0 | X165: 0 | Y165: 0 | Z165: 0 | AA165: 0 | AB165: 0 | AC165: 0 | AD165: 0 | AE165: 0 | AF165: 0 | AG165: 0 | AH165: 0 | AI165: 0 | AJ165: 0 | AK165: 0 | AL165: 0 | AM165: 0 | AN165: 0 | AO165: 0 | AP165: 4.519096169 | AQ165: 4.519096169 | AR165: 4.519096169 | AS165: 4.519096169 | AT165: 4.519096169 | AV165: TRUE
E166: 2005-03-31 | G166: £m 18/19 prices | I166: 28.36720757 | J166: > | L166: 0 | M166: 0 | N166: 0 | O166: 0 | P166: 0 | Q166: 0 | R166: 0 | S166: 0 | T166: 0 | U166: 0 | V166: 0 | W166: 0 | X166: 0 | Y166: 0 | Z166: 0 | AA166: 0 | AB166: 0 | AC166: 0 | AD166: 0 | AE166: 0 | AF166: 0 | AG166: 0 | AH166: 0 | AI166: 0 | AJ166: 0 | AK166: 0 | AL166: 0 | AM166: 0 | AN166: 0 | AO166: 0 | AP166: 1.418360378 | AQ166: 1.418360378 | AR166: 1.418360378 | AS166: 1.418360378 | AT166: 1.418360378 | AV166: TRUE
E167: 2006-03-31 | G167: £m 18/19 prices | I167: 85.63481781 | J167: > | L167: 0 | M167: 0 | N167: 0 | O167: 0 | P167: 0 | Q167: 0 | R167: 0 | S167: 0 | T167: 0 | U167: 0 | V167: 0 | W167: 0 | X167: 0 | Y167: 0 | Z167: 0 | AA167: 0 | AB167: =($I167 / $I$144) * AB$147 -> 0 | AC167: 0 | AD167: 0 | AE167: 0 | AF167: 0 | AG167: 0 | AH167: 0 | AI167: 0 | AJ167: 0 | AK167: 0 | AL167: 0 | AM167: 0 | AN167: 0 | AO167: 0 | AP167: 4.281740891 | AQ167: 4.281740891 | AR167: =($I167 / $I$144) * AR$147 -> 4.281740891 | AS167: 4.281740891 | AT167: 4.281740891 | AV167: TRUE
E168: 2007-03-31 | G168: £m 18/19 prices | I168: 148.9636686 | J168: > | L168: 0 | M168: 0 | N168: 0 | O168: 0 | P168: 0 | Q168: 0 | R168: 0 | S168: 0 | T168: 0 | U168: 0 | V168: 0 | W168: 0 | X168: 0 | Y168: 0 | Z168: 0 | AA168: 0 | AB168: 0 | AC168: 0 | AD168: 0 | AE168: 0 | AF168: 0 | AG168: 0 | AH168: 0 | AI168: 0 | AJ168: 0 | AK168: 0 | AL168: 0 | AM168: 0 | AN168: 0 | AO168: 0 | AP168: 7.448183432 | AQ168: 7.448183432 | AR168: 7.448183432 | AS168: 7.448183432 | AT168: 7.448183432 | AV168: TRUE
E169: 2008-03-31 | G169: £m 18/19 prices | I169: 154.5746479 | J169: > | L169: =($I169 / $I$144) * L$147 -> 0 | M169: 0 | N169: 0 | O169: 0 | P169: 0 | Q169: 0 | R169: 0 | S169: 0 | T169: 0 | U169: 0 | V169: 0 | W169: 0 | X169: 0 | Y169: 0 | Z169: 0 | AA169: 0 | AB169: 0 | AC169: 0 | AD169: 0 | AE169: 0 | AF169: 0 | AG169: 0 | AH169: 0 | AI169: 0 | AJ169: 0 | AK169: 0 | AL169: 0 | AM169: 0 | AN169: 0 | AO169: 0 | AP169: 7.728732393 | AQ169: 7.728732393 | AR169: 7.728732393 | AS169: 7.728732393 | AT169: 7.728732393 | AV169: TRUE
E170: 2009-03-31 | G170: £m 18/19 prices | I170: 62.23779677 | J170: > | L170: 0 | M170: 0 | N170: 0 | O170: 0 | P170: 0 | Q170: 0 | R170: 0 | S170: 0 | T170: 0 | U170: 0 | V170: 0 | W170: 0 | X170: 0 | Y170: 0 | Z170: 0 | AA170: 0 | AB170: 0 | AC170: 0 | AD170: 0 | AE170: 0 | AF170: 0 | AG170: 0 | AH170: 0 | AI170: 0 | AJ170: 0 | AK170: 0 | AL170: 0 | AM170: 0 | AN170: 0 | AO170: 0 | AP170: 3.111889838 | AQ170: 3.111889838 | AR170: 3.111889838 | AS170: 3.111889838 | AT170: 3.111889838 | AV170: TRUE
E171: 2010-03-31 | G171: £m 18/19 prices | I171: 29.22597497 | J171: > | L171: 0 | M171: 0 | N171: 0 | O171: 0 | P171: 0 | Q171: 0 | R171: 0 | S171: 0 | T171: 0 | U171: 0 | V171: 0 | W171: 0 | X171: 0 | Y171: 0 | Z171: 0 | AA171: 0 | AB171: 0 | AC171: 0 | AD171: 0 | AE171: 0 | AF171: 0 | AG171: 0 | AH171: 0 | AI171: 0 | AJ171: 0 | AK171: 0 | AL171: 0 | AM171: 0 | AN171: 0 | AO171: 0 | AP171: 1.461298749 | AQ171: 1.461298749 | AR171: 1.461298749 | AS171: 1.461298749 | AT171: 1.461298749 | AV171: TRUE
E172: 2011-03-31 | G172: £m 18/19 prices | I172: 22.19733109 | J172: > | L172: 0 | M172: 0 | N172: 0 | O172: 0 | P172: 0 | Q172: 0 | R172: 0 | S172: 0 | T172: 0 | U172: 0 | V172: 0 | W172: 0 | X172: 0 | Y172: 0 | Z172: 0 | AA172: 0 | AB172: 0 | AC172: 0 | AD172: 0 | AE172: 0 | AF172: 0 | AG172: 0 | AH172: 0 | AI172: 0 | AJ172: 0 | AK172: 0 | AL172: 0 | AM172: 0 | AN172: 0 | AO172: 0 | AP172: 1.109866554 | AQ172: 1.109866554 | AR172: 1.109866554 | AS172: 1.109866554 | AT172: 1.109866554 | AV172: TRUE
E173: 2012-03-31 | G173: £m 18/19 prices | I173: 20.78187172 | J173: > | L173: 0 | M173: 0 | N173: 0 | O173: 0 | P173: 0 | Q173: 0 | R173: 0 | S173: 0 | T173: 0 | U173: 0 | V173: 0 | W173: 0 | X173: 0 | Y173: 0 | Z173: 0 | AA173: 0 | AB173: 0 | AC173: 0 | AD173: 0 | AE173: 0 | AF173: 0 | AG173: 0 | AH173: 0 | AI173: 0 | AJ173: 0 | AK173: 0 | AL173: 0 | AM173: 0 | AN173: 0 | AO173: 0 | AP173: 1.039093586 | AQ173: 1.039093586 | AR173: 1.039093586 | AS173: 1.039093586 | AT173: 1.039093586 | AV173: TRUE
E174: 2013-03-31 | G174: £m 18/19 prices | I174: -5.400326901 | J174: > | L174: 0 | M174: 0 | N174: 0 | O174: 0 | P174: 0 | Q174: 0 | R174: 0 | S174: 0 | T174: 0 | U174: 0 | V174: 0 | W174: 0 | X174: 0 | Y174: 0 | Z174: 0 | AA174: 0 | AB174: 0 | AC174: 0 | AD174: 0 | AE174: 0 | AF174: 0 | AG174: 0 | AH174: 0 | AI174: 0 | AJ174: 0 | AK174: 0 | AL174: 0 | AM174: 0 | AN174: 0 | AO174: 0 | AP174: -0.270016345 | AQ174: -0.270016345 | AR174: -0.270016345 | AS174: -0.270016345 | AT174: -0.270016345 | AV174: TRUE
E175: 2014-03-31 | G175: £m 18/19 prices | I175: 27.04673605 | J175: > | L175: 0 | M175: 0 | N175: 0 | O175: 0 | P175: 0 | Q175: 0 | R175: 0 | S175: 0 | T175: 0 | U175: 0 | V175: 0 | W175: 0 | X175: 0 | Y175: 0 | Z175: 0 | AA175: 0 | AB175: 0 | AC175: 0 | AD175: 0 | AE175: 0 | AF175: 0 | AG175: 0 | AH175: 0 | AI175: 0 | AJ175: 0 | AK175: 0 | AL175: 0 | AM175: 0 | AN175: 0 | AO175: 0 | AP175: 1.352336803 | AQ175: 1.352336803 | AR175: 1.352336803 | AS175: 1.352336803 | AT175: 1.352336803 | AV175: TRUE
E176: 2015-03-31 | G176: £m 18/19 prices | I176: 18.91370698 | J176: > | L176: 0 | M176: 0 | N176: 0 | O176: 0 | P176: 0 | Q176: 0 | R176: 0 | S176: 0 | T176: 0 | U176: 0 | V176: 0 | W176: 0 | X176: 0 | Y176: 0 | Z176: 0 | AA176: 0 | AB176: 0 | AC176: 0 | AD176: 0 | AE176: 0 | AF176: 0 | AG176: 0 | AH176: 0 | AI176: 0 | AJ176: 0 | AK176: 0 | AL176: 0 | AM176: 0 | AN176: 0 | AO176: 0 | AP176: 0.9456853492 | AQ176: 0.9456853492 | AR176: 0.9456853492 | AS176: 0.9456853492 | AT176: 0.9456853492 | AV176: TRUE
E177: 2016-03-31 | G177: £m 18/19 prices | I177: 15.28398146 | J177: > | L177: 0 | M177: 0 | N177: 0 | O177: 0 | P177: 0 | Q177: 0 | R177: 0 | S177: 0 | T177: 0 | U177: 0 | V177: 0 | W177: 0 | X177: 0 | Y177: 0 | Z177: 0 | AA177: 0 | AB177: 0 | AC177: 0 | AD177: 0 | AE177: 0 | AF177: 0 | AG177: 0 | AH177: 0 | AI177: 0 | AJ177: 0 | AK177: 0 | AL177: 0 | AM177: 0 | AN177: 0 | AO177: 0 | AP177: 0.7641990731 | AQ177: 0.7641990731 | AR177: 0.7641990731 | AS177: 0.7641990731 | AT177: 0.7641990731 | AV177: TRUE
E178: 2017-03-31 | G178: £m 18/19 prices | I178: 14.18294438 | J178: > | L178: 0 | M178: 0 | N178: 0 | O178: 0 | P178: 0 | Q178: 0 | R178: 0 | S178: 0 | T178: 0 | U178: 0 | V178: 0 | W178: 0 | X178: 0 | Y178: 0 | Z178: 0 | AA178: 0 | AB178: 0 | AC178: 0 | AD178: 0 | AE178: 0 | AF178: 0 | AG178: 0 | AH178: 0 | AI178: 0 | AJ178: 0 | AK178: 0 | AL178: 0 | AM178: 0 | AN178: 0 | AO178: 0 | AP178: 0.7091472188 | AQ178: 0.7091472188 | AR178: 0.7091472188 | AS178: 0.7091472188 | AT178: 0.7091472188 | AV178: TRUE
E179: 2018-03-31 | G179: £m 18/19 prices | I179: 13.85794597 | J179: > | L179: 0 | M179: 0 | N179: 0 | O179: 0 | P179: 0 | Q179: 0 | R179: 0 | S179: 0 | T179: 0 | U179: 0 | V179: 0 | W179: 0 | X179: 0 | Y179: 0 | Z179: 0 | AA179: 0 | AB179: 0 | AC179: 0 | AD179: 0 | AE179: 0 | AF179: 0 | AG179: 0 | AH179: 0 | AI179: 0 | AJ179: 0 | AK179: 0 | AL179: 0 | AM179: 0 | AN179: 0 | AO179: 0 | AP179: 0.6928972983 | AQ179: 0.6928972983 | AR179: 0.6928972983 | AS179: 0.6928972983 | AT179: 0.6928972983 | AV179: TRUE
E180: 2019-03-31 | G180: £m 18/19 prices | I180: 8.520201091 | J180: > | L180: 0 | M180: 0 | N180: 0 | O180: 0 | P180: 0 | Q180: 0 | R180: 0 | S180: 0 | T180: 0 | U180: 0 | V180: 0 | W180: 0 | X180: 0 | Y180: 0 | Z180: 0 | AA180: 0 | AB180: 0 | AC180: 0 | AD180: 0 | AE180: 0 | AF180: 0 | AG180: 0 | AH180: 0 | AI180: 0 | AJ180: 0 | AK180: 0 | AL180: 0 | AM180: 0 | AN180: 0 | AO180: 0 | AP180: 0.4260100546 | AQ180: 0.4260100546 | AR180: 0.4260100546 | AS180: 0.4260100546 | AT180: 0.4260100546 | AV180: TRUE
E181: 2020-03-31 | G181: £m 18/19 prices | I181: 3.683413575 | J181: > | L181: 0 | M181: 0 | N181: 0 | O181: 0 | P181: 0 | Q181: 0 | R181: 0 | S181: 0 | T181: 0 | U181: 0 | V181: 0 | W181: 0 | X181: 0 | Y181: 0 | Z181: 0 | AA181: 0 | AB181: 0 | AC181: 0 | AD181: 0 | AE181: 0 | AF181: 0 | AG181: 0 | AH181: 0 | AI181: 0 | AJ181: 0 | AK181: 0 | AL181: 0 | AM181: 0 | AN181: 0 | AO181: 0 | AP181: 0.1841706788 | AQ181: 0.1841706788 | AR181: 0.1841706788 | AS181: 0.1841706788 | AT181: 0.1841706788 | AV181: TRUE
E182: 2021-03-31 | G182: £m 18/19 prices | I182: 0 | J182: > | L182: 0 | M182: 0 | N182: 0 | O182: 0 | P182: 0 | Q182: 0 | R182: 0 | S182: 0 | T182: 0 | U182: 0 | V182: 0 | W182: 0 | X182: 0 | Y182: 0 | Z182: 0 | AA182: 0 | AB182: 0 | AC182: 0 | AD182: 0 | AE182: 0 | AF182: 0 | AG182: 0 | AH182: 0 | AI182: 0 | AJ182: 0 | AK182: 0 | AL182: 0 | AM182: 0 | AN182: 0 | AO182: 0 | AP182: 0 | AQ182: 0 | AR182: 0 | AS182: 0 | AT182: 0 | AV182: TRUE
E183: 2022-03-31 | G183: £m 18/19 prices | I183: 0 | J183: > | L183: 0 | M183: 0 | N183: 0 | O183: 0 | P183: 0 | Q183: 0 | R183: 0 | S183: 0 | T183: 0 | U183: 0 | V183: 0 | W183: 0 | X183: 0 | Y183: 0 | Z183: 0 | AA183: 0 | AB183: =($I183 / $I$144) * AB$147 -> 0 | AC183: 0 | AD183: 0 | AE183: 0 | AF183: 0 | AG183: 0 | AH183: 0 | AI183: 0 | AJ183: 0 | AK183: 0 | AL183: 0 | AM183: 0 | AN183: 0 | AO183: 0 | AP183: 0 | AQ183: 0 | AR183: 0 | AS183: 0 | AT183: 0 | AV183: TRUE
E184: 2023-03-31 | G184: £m 18/19 prices | I184: 0 | J184: > | L184: 0 | M184: 0 | N184: 0 | O184: 0 | P184: 0 | Q184: 0 | R184: 0 | S184: 0 | T184: 0 | U184: 0 | V184: 0 | W184: 0 | X184: 0 | Y184: 0 | Z184: 0 | AA184: =($I184 / $I$144) * AA$147 -> 0 | AB184: 0 | AC184: 0 | AD184: 0 | AE184: 0 | AF184: 0 | AG184: 0 | AH184: 0 | AI184: 0 | AJ184: 0 | AK184: 0 | AL184: 0 | AM184: 0 | AN184: 0 | AO184: 0 | AP184: 0 | AQ184: 0 | AR184: 0 | AS184: 0 | AT184: 0 | AV184: TRUE
E185: 2024-03-31 | G185: £m 18/19 prices | I185: 0 | J185: > | L185: =($I185 / $I$144) * L$147 -> 0 | M185: 0 | N185: 0 | O185: 0 | P185: 0 | Q185: 0 | R185: 0 | S185: 0 | T185: 0 | U185: 0 | V185: 0 | W185: 0 | X185: 0 | Y185: 0 | Z185: 0 | AA185: 0 | AB185: 0 | AC185: 0 | AD185: 0 | AE185: 0 | AF185: 0 | AG185: 0 | AH185: 0 | AI185: 0 | AJ185: 0 | AK185: 0 | AL185: 0 | AM185: 0 | AN185: 0 | AO185: 0 | AP185: 0 | AQ185: 0 | AR185: 0 | AS185: 0 | AT185: 0 | AV185: TRUE
E186: 2025-03-31 | G186: £m 18/19 prices | I186: 0 | J186: > | L186: 0 | M186: 0 | N186: 0 | O186: 0 | P186: 0 | Q186: 0 | R186: 0 | S186: 0 | T186: 0 | U186: 0 | V186: 0 | W186: 0 | X186: 0 | Y186: 0 | Z186: 0 | AA186: 0 | AB186: 0 | AC186: 0 | AD186: 0 | AE186: 0 | AF186: 0 | AG186: 0 | AH186: 0 | AI186: 0 | AJ186: 0 | AK186: 0 | AL186: 0 | AM186: 0 | AN186: 0 | AO186: 0 | AP186: 0 | AQ186: 0 | AR186: 0 | AS186: 0 | AT186: 0 | AV186: TRUE
E187: 2026-03-31 | G187: £m 18/19 prices | I187: 0
E188: Total | G188: £m 18/19 prices | L188: =SUM(L152:L187) -> 0 | M188: 0 | N188: 0 | O188: 0 | P188: 0 | Q188: 0 | R188: 0 | S188: 0 | T188: 0 | U188: 0 | V188: 0 | W188: 0 | X188: 0 | Y188: 0 | Z188: 0 | AA188: 0 | AB188: 0 | AC188: 0 | AD188: 0 | AE188: 0 | AF188: 0 | AG188: 0 | AH188: 0 | AI188: 0 | AJ188: 0 | AK188: 0 | AL188: 0 | AM188: 0 | AN188: 0 | AO188: 0 | AP188: 36.92269212 | AQ188: 36.92269212 | AR188: 36.92269212 | AS188: 36.92269212 | AT188: =SUM(AT152:AT187) -> 36.92269212
C191: Depreciation values applied
E193: 1991-03-31 | G193: £m 18/19 prices | J193: > | L193: =(L49 * L$44 * $AV49) + (L99 * OR(L$94, $AV99)) + L152 -> 0 | M193: =(M49 * M$44 * $AV49) + (M99 * OR(M$94, $AV99)) + M152 -> 0 | N193: 0 | O193: 0 | P193: 0 | Q193: 0 | R193: 0 | S193: 0 | T193: 0 | U193: 0 | V193: 0 | W193: 0 | X193: 0 | Y193: 0 | Z193: 0 | AA193: 0 | AB193: 0 | AC193: 0 | AD193: 0 | AE193: 0 | AF193: 0 | AG193: 0 | AH193: 0 | AI193: 0 | AJ193: 0 | AK193: 0 | AL193: 0 | AM193: 0 | AN193: 0 | AO193: 0 | AP193: 0 | AQ193: 0 | AR193: 0 | AS193: 0 | AT193: 0
E194: 1992-03-31 | G194: £m 18/19 prices | J194: > | L194: =(L50 * L$44 * $AV50) + (L100 * OR(L$94, $AV100)) + L153 -> 0 | M194: 0 | N194: 0 | O194: 0 | P194: 0 | Q194: 0 | R194: 0 | S194: 0 | T194: 0 | U194: 0 | V194: 0 | W194: 0 | X194: 0 | Y194: 0 | Z194: 0 | AA194: 0 | AB194: 0 | AC194: 0 | AD194: 0 | AE194: 0 | AF194: 0 | AG194: 0 | AH194: 0 | AI194: 0 | AJ194: 0 | AK194: 0 | AL194: 0 | AM194: 0 | AN194: 0 | AO194: 0 | AP194: 0 | AQ194: 0 | AR194: 0 | AS194: 0 | AT194: 0
E195: 1993-03-31 | G195: £m 18/19 prices | J195: > | L195: =(L51 * L$44 * $AV51) + (L101 * OR(L$94, $AV101)) + L154 -> 0 | M195: 0 | N195: 0 | O195: 0 | P195: 0 | Q195: 0 | R195: 0 | S195: 0 | T195: 0 | U195: 0 | V195: 0 | W195: 0 | X195: 0 | Y195: 0 | Z195: 0 | AA195: 0 | AB195: 0 | AC195: 0 | AD195: 0 | AE195: 0 | AF195: 0 | AG195: 0 | AH195: 0 | AI195: 0 | AJ195: 0 | AK195: 0 | AL195: 0 | AM195: 0 | AN195: 0 | AO195: 0 | AP195: 0 | AQ195: 0 | AR195: 0 | AS195: 0 | AT195: 0
E196: 1994-03-31 | G196: £m 18/19 prices | J196: > | L196: =(L52 * L$44 * $AV52) + (L102 * OR(L$94, $AV102)) + L155 -> 0 | M196: 0 | N196: 0 | O196: 0 | P196: 0 | Q196: 0 | R196: 0 | S196: 0 | T196: 0 | U196: 0 | V196: 0 | W196: 0 | X196: 0 | Y196: 0 | Z196: 0 | AA196: 0 | AB196: 0 | AC196: 0 | AD196: 0 | AE196: 0 | AF196: 0 | AG196: 0 | AH196: 0 | AI196: 0 | AJ196: 0 | AK196: 0 | AL196: 0 | AM196: 0 | AN196: 0 | AO196: 0 | AP196: 0 | AQ196: 0 | AR196: 0 | AS196: 0 | AT196: 0
E197: 1995-03-31 | G197: £m 18/19 prices | J197: > | L197: =(L53 * L$44 * $AV53) + (L103 * OR(L$94, $AV103)) + L156 -> 0 | M197: 0 | N197: 0 | O197: 0 | P197: 0 | Q197: 0 | R197: 0 | S197: 0 | T197: 0 | U197: 0 | V197: 0 | W197: 0 | X197: 0 | Y197: 0 | Z197: 0 | AA197: 0 | AB197: 0 | AC197: 0 | AD197: 0 | AE197: 0 | AF197: 0 | AG197: 0 | AH197: 0 | AI197: 0 | AJ197: 0 | AK197: 0 | AL197: 0 | AM197: 0 | AN197: 0 | AO197: 0 | AP197: 0 | AQ197: 0 | AR197: 0 | AS197: 0 | AT197: 0
E198: 1996-03-31 | G198: £m 18/19 prices | J198: > | L198: =(L54 * L$44 * $AV54) + (L104 * OR(L$94, $AV104)) + L157 -> 0 | M198: 0 | N198: 0 | O198: 0 | P198: 0 | Q198: 0 | R198: 0 | S198: 0 | T198: 0 | U198: 0 | V198: 0 | W198: 0 | X198: 0 | Y198: 0 | Z198: 0 | AA198: 0 | AB198: 0 | AC198: 0 | AD198: 0 | AE198: 0 | AF198: 0 | AG198: 0 | AH198: 0 | AI198: 0 | AJ198: 0 | AK198: 0 | AL198: 0 | AM198: 0 | AN198: 0 | AO198: 0 | AP198: 0 | AQ198: 0 | AR198: 0 | AS198: 0 | AT198: 0
E199: 1997-03-31 | G199: £m 18/19 prices | J199: > | L199: =(L55 * L$44 * $AV55) + (L105 * OR(L$94, $AV105)) + L158 -> 0 | M199: 0 | N199: 0 | O199: 0 | P199: 0 | Q199: 0 | R199: 0 | S199: 0 | T199: 0 | U199: 0 | V199: 0 | W199: 0 | X199: 0 | Y199: 0 | Z199: 0 | AA199: 0 | AB199: 0 | AC199: 0 | AD199: 0 | AE199: 0 | AF199: 0 | AG199: 0 | AH199: 0 | AI199: 0 | AJ199: 0 | AK199: 0 | AL199: 0 | AM199: 0 | AN199: 0 | AO199: 0 | AP199: 0 | AQ199: 0 | AR199: 0 | AS199: 0 | AT199: 0
E200: 1998-03-31 | G200: £m 18/19 prices | J200: > | L200: =(L56 * L$44 * $AV56) + (L106 * OR(L$94, $AV106)) + L159 -> 0 | M200: 0 | N200: 0 | O200: 0 | P200: 0 | Q200: 0 | R200: 0 | S200: 0 | T200: 0 | U200: 0 | V200: 0 | W200: 0 | X200: 0 | Y200: 0 | Z200: 0 | AA200: 0 | AB200: 0 | AC200: 0 | AD200: 0 | AE200: 0 | AF200: 0 | AG200: 0 | AH200: 0 | AI200: 0 | AJ200: 0 | AK200: 0 | AL200: 0 | AM200: 0 | AN200: 0 | AO200: 0 | AP200: 0 | AQ200: 0 | AR200: 0 | AS200: 0 | AT200: 0
E201: 1999-03-31 | G201: £m 18/19 prices | J201: > | L201: =(L57 * L$44 * $AV57) + (L107 * OR(L$94, $AV107)) + L160 -> 0 | M201: 0 | N201: 0 | O201: 0 | P201: 0 | Q201: 0 | R201: 0 | S201: 0 | T201: 0 | U201: 0 | V201: 0 | W201: 0 | X201: 0 | Y201: 0 | Z201: 0 | AA201: 0 | AB201: 0 | AC201: 0 | AD201: 0 | AE201: 0 | AF201: 0 | AG201: 0 | AH201: 0 | AI201: 0 | AJ201: 0 | AK201: 0 | AL201: 0 | AM201: 0 | AN201: 0 | AO201: 0 | AP201: 0 | AQ201: 0 | AR201: 0 | AS201: 0 | AT201: 0
E202: 2000-03-31 | G202: £m 18/19 prices | J202: > | L202: =(L58 * L$44 * $AV58) + (L108 * OR(L$94, $AV108)) + L161 -> 0 | M202: 0 | N202: 0 | O202: 0 | P202: 0 | Q202: 0 | R202: 0 | S202: 0 | T202: 0 | U202: 0 | V202: 0 | W202: 0 | X202: 0 | Y202: 0 | Z202: 0 | AA202: 0 | AB202: 0 | AC202: 0 | AD202: 0 | AE202: 0 | AF202: 0 | AG202: 0 | AH202: 0 | AI202: 0 | AJ202: 0 | AK202: 0 | AL202: 0 | AM202: 0 | AN202: 0 | AO202: 0 | AP202: 0 | AQ202: 0 | AR202: 0 | AS202: 0 | AT202: 0
E203: 2001-03-31 | G203: £m 18/19 prices | J203: > | L203: =(L59 * L$44 * $AV59) + (L109 * OR(L$94, $AV109)) + L162 -> 0 | M203: 0 | N203: 0 | O203: 0 | P203: 0 | Q203: 0 | R203: 0 | S203: 0 | T203: 0 | U203: 0 | V203: 0 | W203: 0 | X203: 0 | Y203: 0 | Z203: 0 | AA203: 0 | AB203: 0 | AC203: 0 | AD203: 0 | AE203: 0 | AF203: 0 | AG203: 0 | AH203: 0 | AI203: 0 | AJ203: 0 | AK203: 0 | AL203: 0 | AM203: 0 | AN203: 0 | AO203: 0 | AP203: 0 | AQ203: 0 | AR203: 0 | AS203: 0 | AT203: 0
E204: 2002-03-31 | G204: £m 18/19 prices | J204: > | L204: =(L60 * L$44 * $AV60) + (L110 * OR(L$94, $AV110)) + L163 -> 0 | M204: 0 | N204: 0 | O204: 0 | P204: 0 | Q204: 0 | R204: 0 | S204: 0 | T204: 0 | U204: 0 | V204: 0 | W204: 0 | X204: 0 | Y204: 0 | Z204: 0 | AA204: 0 | AB204: 0 | AC204: 0 | AD204: 0 | AE204: 0 | AF204: 0 | AG204: 0 | AH204: 0 | AI204: 0 | AJ204: 0 | AK204: 0 | AL204: 0 | AM204: 0 | AN204: 0 | AO204: 0 | AP204: 0 | AQ204: 0 | AR204: 0 | AS204: 0 | AT204: 0
E205: 2003-03-31 | G205: £m 18/19 prices | J205: > | L205: =(L61 * L$44 * $AV61) + (L111 * OR(L$94, $AV111)) + L164 -> 0 | M205: 0 | N205: 0 | O205: 0 | P205: 0 | Q205: 0 | R205: 0 | S205: 0 | T205: 0 | U205: 0 | V205: 0 | W205: 0 | X205: 0 | Y205: 0 | Z205: 0 | AA205: 0 | AB205: 0 | AC205: 0 | AD205: 0 | AE205: 0 | AF205: 0 | AG205: 0 | AH205: 0 | AI205: 0 | AJ205: 0 | AK205: 0 | AL205: 0 | AM205: 0 | AN205: 0 | AO205: 0 | AP205: 0 | AQ205: 0 | AR205: 0 | AS205: 0 | AT205: 0
E206: 2004-03-31 | G206: £m 18/19 prices | J206: > | L206: =(L62 * L$44 * $AV62) + (L112 * OR(L$94, $AV112)) + L165 -> 0 | M206: 0 | N206: 0 | O206: 0 | P206: 0 | Q206: 0 | R206: 0 | S206: 0 | T206: 0 | U206: 0 | V206: 0 | W206: 0 | X206: 0 | Y206: 8.734387553 | Z206: 8.734387553 | AA206: 8.734387553 | AB206: 8.734387553 | AC206: 8.734387553 | AD206: 8.734387553 | AE206: 8.734387553 | AF206: 8.734387553 | AG206: 8.734387553 | AH206: 8.734387553 | AI206: 8.734387553 | AJ206: 8.734387553 | AK206: 8.734387553 | AL206: 8.734387553 | AM206: 8.734387553 | AN206: 8.734387553 | AO206: 8.734387553 | AP206: 15.15226362 | AQ206: 14.77250764 | AR206: 14.39275166 | AS206: 14.01299568 | AT206: 13.6332397
E207: 2005-03-31 | G207: £m 18/19 prices | J207: > | L207: =(L63 * L$44 * $AV63) + (L113 * OR(L$94, $AV113)) + L166 -> 0 | M207: 0 | N207: 0 | O207: 0 | P207: 0 | Q207: 0 | R207: 0 | S207: 0 | T207: 0 | U207: 0 | V207: 0 | W207: 0 | X207: 0 | Y207: 0 | Z207: 2.812266267 | AA207: 2.812266267 | AB207: 2.812266267 | AC207: 2.812266267 | AD207: 2.812266267 | AE207: 2.812266267 | AF207: 2.812266267 | AG207: 2.812266267 | AH207: 2.812266267 | AI207: 2.812266267 | AJ207: 2.812266267 | AK207: 2.812266267 | AL207: 2.812266267 | AM207: 2.812266267 | AN207: 2.812266267 | AO207: 2.812266267 | AP207: 4.964261324 | AQ207: 4.841988878 | AR207: 4.719716431 | AS207: 4.597443985 | AT207: 4.475171538
E208: 2006-03-31 | G208: £m 18/19 prices | J208: > | L208: =(L64 * L$44 * $AV64) + (L114 * OR(L$94, $AV114)) + L167 -> 0 | M208: 0 | N208: 0 | O208: 0 | P208: 0 | Q208: 0 | R208: 0 | S208: 0 | T208: 0 | U208: 0 | V208: 0 | W208: 0 | X208: 0 | Y208: 0 | Z208: 0 | AA208: 8.753781376 | AB208: 8.753781376 | AC208: 8.753781376 | AD208: 8.753781376 | AE208: 8.753781376 | AF208: 8.753781376 | AG208: 8.753781376 | AH208: 8.753781376 | AI208: 8.753781376 | AJ208: 8.753781376 | AK208: 8.753781376 | AL208: 8.753781376 | AM208: 8.753781376 | AN208: 8.753781376 | AO208: 8.753781376 | AP208: 15.6997166 | AQ208: 15.31911741 | AR208: 14.93851822 | AS208: 14.55791903 | AT208: 14.17731984
E209: 2007-03-31 | G209: £m 18/19 prices | J209: > | L209: =(L65 * L$44 * $AV65) + (L115 * OR(L$94, $AV115)) + L168 -> 0 | M209: 0 | N209: 0 | O209: 0 | P209: 0 | Q209: 0 | R209: 0 | S209: 0 | T209: 0 | U209: 0 | V209: 0 | W209: 0 | X209: 0 | Y209: 0 | Z209: 0 | AA209: 0 | AB209: 15.78877594 | AC209: 15.78877594 | AD209: 15.78877594 | AE209: 15.78877594 | AF209: 15.78877594 | AG209: 15.78877594 | AH209: 15.78877594 | AI209: 15.78877594 | AJ209: 15.78877594 | AK209: 15.78877594 | AL209: 15.78877594 | AM209: 15.78877594 | AN209: 15.78877594 | AO209: 15.78877594 | AP209: 28.72870752 | AQ209: 28.042239 | AR209: 27.35577049 | AS209: 26.66930197 | AT209: 25.98283345
E210: 2008-03-31 | G210: £m 18/19 prices | J210: > | L210: =(L66 * L$44 * $AV66) + (L116 * OR(L$94, $AV116)) + L169 -> 0 | M210: 0 | N210: 0 | O210: 0 | P210: 0 | Q210: 0 | R210: 0 | S210: 0 | T210: 0 | U210: 0 | V210: 0 | W210: 0 | X210: 0 | Y210: 0 | Z210: 0 | AA210: 0 | AB210: 0 | AC210: 17.09238895 | AD210: 17.09238895 | AE210: 17.09238895 | AF210: 17.09238895 | AG210: 17.09238895 | AH210: 17.09238895 | AI210: 17.09238895 | AJ210: 17.09238895 | AK210: 17.09238895 | AL210: 17.09238895 | AM210: 17.09238895 | AN210: 17.09238895 | AO210: 17.09238895 | AP210: 31.50944745 | AQ210: 30.7663001 | AR210: 30.02315276 | AS210: 29.28000541 | AT210: 28.53685807
E211: 2009-03-31 | G211: £m 18/19 prices | J211: > | L211: =(L67 * L$44 * $AV67) + (L117 * OR(L$94, $AV117)) + L170 -> 0 | M211: 0 | N211: 0 | O211: 0 | P211: 0 | Q211: 0 | R211: 0 | S211: 0 | T211: 0 | U211: 0 | V211: 0 | W211: 0 | X211: 0 | Y211: 0 | Z211: 0 | AA211: 0 | AB211: 0 | AC211: 0 | AD211: 7.229643059 | AE211: 7.229643059 | AF211: 7.229643059 | AG211: 7.229643059 | AH211: 7.229643059 | AI211: 7.229643059 | AJ211: 7.229643059 | AK211: 7.229643059 | AL211: 7.229643059 | AM211: 7.229643059 | AN211: 7.229643059 | AO211: 7.229643059 | AP211: 13.48485597 | AQ211: 13.17052366 | AR211: 12.85619135 | AS211: 12.54185905 | AT211: 12.22752674
E212: 2010-03-31 | G212: £m 18/19 prices | J212: > | L212: =(L68 * L$44 * $AV68) + (L118 * OR(L$94, $AV118)) + L171 -> 0 | M212: 0 | N212: 0 | O212: 0 | P212: 0 | Q212: 0 | R212: 0 | S212: 0 | T212: 0 | U212: 0 | V212: 0 | W212: 0 | X212: 0 | Y212: 0 | Z212: 0 | AA212: 0 | AB212: 0 | AC212: 0 | AD212: 0 | AE212: 3.594638633 | AF212: 3.594638633 | AG212: 3.594638633 | AH212: 3.594638633 | AI212: 3.594638633 | AJ212: 3.594638633 | AK212: 3.594638633 | AL212: 3.594638633 | AM212: 3.594638633 | AN212: 3.594638633 | AO212: 3.594638633 | AP212: 6.77511238 | AQ212: 6.618823744 | AR212: 6.462535107 | AS212: 6.306246471 | AT212: 6.149957835
E213: 2011-03-31 | G213: £m 18/19 prices | J213: > | L213: =(L69 * L$44 * $AV69) + (L119 * OR(L$94, $AV119)) + L172 -> 0 | M213: 0 | N213: 0 | O213: 0 | P213: 0 | Q213: 0 | R213: 0 | S213: 0 | T213: 0 | U213: 0 | V213: 0 | W213: 0 | X213: 0 | Y213: 0 | Z213: 0 | AA213: 0 | AB213: 0 | AC213: 0 | AD213: 0 | AE213: 0 | AF213: 2.917363514 | AG213: 2.917363514 | AH213: 2.917363514 | AI213: 2.917363514 | AJ213: 2.917363514 | AK213: 2.917363514 | AL213: 2.917363514 | AM213: 2.917363514 | AN213: 2.917363514 | AO213: 2.917363514 | AP213: 5.549332771 | AQ213: 5.422490879 | AR213: 5.295648988 | AS213: 5.168807096 | AT213: 5.041965204
E214: 2012-03-31 | G214: £m 18/19 prices | J214: > | L214: =(L70 * L$44 * $AV70) + (L120 * OR(L$94, $AV120)) + L173 -> 0 | M214: 0 | N214: 0 | O214: 0 | P214: 0 | Q214: 0 | R214: 0 | S214: 0 | T214: 0 | U214: 0 | V214: 0 | W214: 0 | X214: 0 | Y214: 0 | Z214: 0 | AA214: 0 | AB214: 0 | AC214: 0 | AD214: 0 | AE214: 0 | AF214: 0 | AG214: 2.950512652 | AH214: 2.950512652 | AI214: 2.950512652 | AJ214: 2.950512652 | AK214: 2.950512652 | AL214: 2.950512652 | AM214: 2.950512652 | AN214: 2.950512652 | AO214: 2.950512652 | AP214: 5.657287302 | AQ214: 5.529004143 | AR214: 5.400720984 | AS214: 5.272437825 | AT214: 5.144154667
E215: 2013-03-31 | G215: £m 18/19 prices | J215: > | L215: =(L71 * L$44 * $AV71) + (L121 * OR(L$94, $AV121)) + L174 -> 0 | M215: 0 | N215: 0 | O215: 0 | P215: 0 | Q215: 0 | R215: 0 | S215: 0 | T215: 0 | U215: 0 | V215: 0 | W215: 0 | X215: 0 | Y215: 0 | Z215: 0 | AA215: 0 | AB215: 0 | AC215: 0 | AD215: 0 | AE215: 0 | AF215: 0 | AG215: 0 | AH215: -0.8392399913 | AI215: -0.8392399913 | AJ215: -0.8392399913 | AK215: -0.8392399913 | AL215: -0.8392399913 | AM215: -0.8392399913 | AN215: -0.8392399913 | AO215: -0.8392399913 | AP215: -1.62009807 | AQ215: -1.583609375 | AR215: -1.54712068 | AS215: -1.510631984 | AT215: -1.474143289
E216: 2014-03-31 | G216: £m 18/19 prices | J216: > | L216: =(L72 * L$44 * $AV72) + (L122 * OR(L$94, $AV122)) + L175 -> 0 | M216: 0 | N216: 0 | O216: 0 | P216: 0 | Q216: 0 | R216: 0 | S216: 0 | T216: 0 | U216: 0 | V216: 0 | W216: 0 | X216: 0 | Y216: 0 | Z216: 0 | AA216: 0 | AB216: 0 | AC216: 0 | AD216: 0 | AE216: 0 | AF216: 0 | AG216: 0 | AH216: 0 | AI216: 4.677255107 | AJ216: 4.677255107 | AK216: 4.677255107 | AL216: 4.677255107 | AM216: 4.677255107 | AN216: 4.677255107 | AO216: 4.677255107 | AP216: 9.079975675 | AQ216: 8.876616757 | AR216: 8.673257839 | AS216: 8.469898922 | AT216: 8.266540004
E217: 2015-03-31 | G217: £m 18/19 prices | J217: > | L217: =(L73 * L$44 * $AV73) + (L123 * OR(L$94, $AV123)) + L176 -> 0 | M217: 0 | N217: 0 | O217: 0 | P217: 0 | Q217: 0 | R217: 0 | S217: 0 | T217: 0 | U217: 0 | V217: 0 | W217: 0 | X217: 0 | Y217: 0 | Z217: 0 | AA217: 0 | AB217: 0 | AC217: 0 | AD217: 0 | AE217: 0 | AF217: 0 | AG217: 0 | AH217: 0 | AI217: 0 | AJ217: 3.718079151 | AK217: 3.718079151 | AL217: 3.718079151 | AM217: 3.718079151 | AN217: 3.718079151 | AO217: 3.718079151 | AP217: 7.250254344 | AQ217: 7.088598729 | AR217: 6.926943113 | AS217: 6.765287498 | AT217: 6.603631883
E218: 2016-03-31 | G218: £m 18/19 prices | J218: > | L218: =(L74 * L$44 * $AV74) + (L124 * OR(L$94, $AV124)) + L177 -> 0 | M218: 0 | N218: 0 | O218: 0 | P218: 0 | Q218: 0 | R218: 0 | S218: 0 | T218: 0 | U218: 0 | V218: 0 | W218: 0 | X218: 0 | Y218: 0 | Z218: 0 | AA218: 0 | AB218: 0 | AC218: 0 | AD218: 0 | AE218: 0 | AF218: 0 | AG218: 0 | AH218: 0 | AI218: 0 | AJ218: 0 | AK218: 3.515315736 | AL218: 3.515315736 | AM218: 3.515315736 | AN218: 3.515315736 | AO218: 3.515315736 | AP218: 6.877791658 | AQ218: 6.724951844 | AR218: 6.572112029 | AS218: 6.419272214 | AT218: 6.2664324
E219: 2017-03-31 | G219: £m 18/19 prices | J219: > | L219: =(L75 * L$44 * $AV75) + (L125 * OR(L$94, $AV125)) + L178 -> 0 | M219: 0 | N219: 0 | O219: 0 | P219: 0 | Q219: 0 | R219: 0 | S219: 0 | T219: 0 | U219: 0 | V219: 0 | W219: 0 | X219: 0 | Y219: 0 | Z219: 0 | AA219: 0 | AB219: 0 | AC219: 0 | AD219: 0 | AE219: 0 | AF219: 0 | AG219: 0 | AH219: 0 | AI219: 0 | AJ219: 0 | AK219: 0 | AL219: 3.978142935 | AM219: 3.978142935 | AN219: 3.978142935 | AO219: 3.978142935 | AP219: 7.800619407 | AQ219: 7.627656671 | AR219: 7.454693935 | AS219: 7.281731198 | AT219: 7.108768462
E220: 2018-03-31 | G220: £m 18/19 prices | J220: > | L220: =(L76 * L$44 * $AV76) + (L126 * OR(L$94, $AV126)) + L179 -> 0 | M220: 0 | N220: 0 | O220: 0 | P220: 0 | Q220: 0 | R220: 0 | S220: 0 | T220: 0 | U220: 0 | V220: 0 | W220: 0 | X220: 0 | Y220: 0 | Z220: 0 | AA220: 0 | AB220: 0 | AC220: 0 | AD220: 0 | AE220: 0 | AF220: 0 | AG220: 0 | AH220: 0 | AI220: 0 | AJ220: 0 | AK220: 0 | AL220: 0 | AM220: 5.059250115 | AN220: 5.059250115 | AO220: 5.059250115 | AP220: 9.931527942 | AQ220: 9.711560546 | AR220: 9.49159315 | AS220: 9.271625753 | AT220: 9.051658357
E221: 2019-03-31 | G221: £m 18/19 prices | J221: > | L221: =(L77 * L$44 * $AV77) + (L127 * OR(L$94, $AV127)) + L180 -> 0 | M221: 0 | N221: 0 | O221: 0 | P221: 0 | Q221: 0 | R221: 0 | S221: 0 | T221: 0 | U221: 0 | V221: 0 | W221: 0 | X221: 0 | Y221: 0 | Z221: 0 | AA221: 0 | AB221: 0 | AC221: 0 | AD221: 0 | AE221: 0 | AF221: 0 | AG221: 0 | AH221: 0 | AI221: 0 | AJ221: 0 | AK221: 0 | AL221: 0 | AM221: 0 | AN221: 4.557316863 | AO221: 4.557316863 | AP221: 8.946211146 | AQ221: 8.748066935 | AR221: 8.549922723 | AS221: 8.351778512 | AT221: 8.1536343
E222: 2020-03-31 | G222: £m 18/19 prices | J222: > | L222: =(L78 * L$44 * $AV78) + (L128 * OR(L$94, $AV128)) + L181 -> 0 | M222: 0 | N222: 0 | O222: 0 | P222: 0 | Q222: 0 | R222: 0 | S222: 0 | T222: 0 | U222: 0 | V222: 0 | W222: 0 | X222: 0 | Y222: 0 | Z222: 0 | AA222: 0 | AB222: 0 | AC222: 0 | AD222: 0 | AE222: 0 | AF222: 0 | AG222: 0 | AH222: 0 | AI222: 0 | AJ222: 0 | AK222: 0 | AL222: 0 | AM222: 0 | AN222: 0 | AO222: 3.850841465 | AP222: 7.55099783 | AQ222: 7.38356994 | AR222: 7.21614205 | AS222: 7.04871416 | AT222: 6.881286271
E223: 2021-03-31 | G223: £m 18/19 prices | J223: > | L223: =(L79 * L$44 * $AV79) + (L129 * OR(L$94, $AV129)) + L182 -> 0 | M223: 0 | N223: 0 | O223: 0 | P223: 0 | Q223: 0 | R223: 0 | S223: 0 | T223: 0 | U223: 0 | V223: 0 | W223: 0 | X223: 0 | Y223: 0 | Z223: 0 | AA223: 0 | AB223: 0 | AC223: 0 | AD223: 0 | AE223: 0 | AF223: 0 | AG223: 0 | AH223: 0 | AI223: 0 | AJ223: 0 | AK223: 0 | AL223: 0 | AM223: 0 | AN223: 0 | AO223: 0 | AP223: 6.27471524 | AQ223: 6.135277124 | AR223: 5.995839007 | AS223: 5.856400891 | AT223: 5.716962775
E224: 2022-03-31 | G224: £m 18/19 prices | J224: > | L224: =(L80 * L$44 * $AV80) + (L130 * OR(L$94, $AV130)) + L183 -> 0 | M224: 0 | N224: 0 | O224: 0 | P224: 0 | Q224: 0 | R224: 0 | S224: 0 | T224: 0 | U224: 0 | V224: 0 | W224: 0 | X224: 0 | Y224: 0 | Z224: 0 | AA224: 0 | AB224: 0 | AC224: 0 | AD224: 0 | AE224: 0 | AF224: 0 | AG224: 0 | AH224: 0 | AI224: 0 | AJ224: 0 | AK224: 0 | AL224: 0 | AM224: 0 | AN224: 0 | AO224: 0 | AP224: 0 | AQ224: 8.484975601 | AR224: 8.296420588 | AS224: 8.107865575 | AT224: 7.919310561
E225: 2023-03-31 | G225: £m 18/19 prices | J225: > | L225: =(L81 * L$44 * $AV81) + (L131 * OR(L$94, $AV131)) + L184 -> 0 | M225: 0 | N225: 0 | O225: 0 | P225: 0 | Q225: 0 | R225: 0 | S225: 0 | T225: 0 | U225: 0 | V225: 0 | W225: 0 | X225: 0 | Y225: 0 | Z225: 0 | AA225: 0 | AB225: 0 | AC225: 0 | AD225: 0 | AE225: 0 | AF225: 0 | AG225: 0 | AH225: 0 | AI225: 0 | AJ225: 0 | AK225: 0 | AL225: 0 | AM225: 0 | AN225: 0 | AO225: 0 | AP225: 0 | AQ225: 0 | AR225: 10.6347571 | AS225: 10.39842917 | AT225: 10.16210123
E226: 2024-03-31 | G226: £m 18/19 prices | J226: > | L226: =(L82 * L$44 * $AV82) + (L132 * OR(L$94, $AV132)) + L185 -> 0 | M226: 0 | N226: 0 | O226: 0 | P226: 0 | Q226: 0 | R226: 0 | S226: 0 | T226: 0 | U226: 0 | V226: 0 | W226: 0 | X226: 0 | Y226: 0 | Z226: 0 | AA226: 0 | AB226: 0 | AC226: 0 | AD226: 0 | AE226: 0 | AF226: 0 | AG226: 0 | AH226: 0 | AI226: 0 | AJ226: 0 | AK226: 0 | AL226: 0 | AM226: 0 | AN226: 0 | AO226: 0 | AP226: 0 | AQ226: 0 | AR226: 0 | AS226: 12.7644225 | AT226: 12.48076866
E227: 2025-03-31 | G227: £m 18/19 prices | J227: > | L227: =(L83 * L$44 * $AV83) + (L133 * OR(L$94, $AV133)) + L186 -> 0 | M227: 0 | N227: 0 | O227: 0 | P227: 0 | Q227: 0 | R227: 0 | S227: 0 | T227: 0 | U227: 0 | V227: 0 | W227: 0 | X227: 0 | Y227: 0 | Z227: 0 | AA227: 0 | AB227: 0 | AC227: 0 | AD227: 0 | AE227: 0 | AF227: 0 | AG227: 0 | AH227: 0 | AI227: 0 | AJ227: 0 | AK227: 0 | AL227: 0 | AM227: 0 | AN227: 0 | AO227: 0 | AP227: 0 | AQ227: 0 | AR227: 0 | AS227: 0 | AT227: 12.17248608
E228: 2026-03-31 | G228: £m 18/19 prices
E229: Total | G229: £m 18/19 prices | L229: =SUM(L193:L228) -> 0 | M229: 0 | N229: 0 | O229: 0 | P229: 0 | Q229: 0 | R229: 0 | S229: 0 | T229: 0 | U229: 0 | V229: 0 | W229: 0 | X229: 0 | Y229: 8.734387553 | Z229: 11.54665382 | AA229: 20.3004352 | AB229: 36.08921114 | AC229: 53.18160008 | AD229: 60.41124314 | AE229: 64.00588177 | AF229: 66.92324529 | AG229: 69.87375794 | AH229: 69.03451795 | AI229: 73.71177305 | AJ229: 77.42985221 | AK229: 80.94516794 | AL229: 84.92331088 | AM229: 89.98256099 | AN229: 94.53987785 | AO229: 98.39071932 | AP229: 189.6129801 | AQ229: 193.6806602 | AR229: 199.7095668 | AS229: 207.6318109 | AT229: =SUM(AT193:AT228) -> 214.6784647
E231: Straight line depreciation check | G231: £m 18/19 prices | L231: =(L229 - L135) * L$94 -> 0 | M231: =(M229 - M135) * M$94 -> 0 | N231: 0 | O231: 0 | P231: 0 | Q231: 0 | R231: 0 | S231: 0 | T231: 0 | U231: 0 | V231: 0 | W231: 0 | X231: 0 | Y231: 0 | Z231: 0 | AA231: 0 | AB231: 0 | AC231: 0 | AD231: 0 | AE231: 0 | AF231: 0 | AG231: 0 | AH231: 0 | AI231: 0 | AJ231: 0 | AK231: 0 | AL231: 0 | AM231: 0 | AN231: 0 | AO231: 0 | AP231: 0 | AQ231: 0 | AR231: 0 | AS231: 0 | AT231: 0
E232: Sum of digits depreciation check | G232: £m 18/19 prices | L232: =(L229 - L85) * L$44 -> 0 | M232: 0 | N232: 0 | O232: 0 | P232: 0 | Q232: 0 | R232: 0 | S232: 0 | T232: 0 | U232: 0 | V232: 0 | W232: 0 | X232: 0 | Y232: 0 | Z232: 0 | AA232: 0 | AB232: 0 | AC232: 0 | AD232: 0 | AE232: 0 | AF232: 0 | AG232: 0 | AH232: 0 | AI232: 0 | AJ232: 0 | AK232: 0 | AL232: 0 | AM232: 0 | AN232: 0 | AO232: 0 | AP232: 36.92269212 | AQ232: 36.92269212 | AR232: 36.92269212 | AS232: 36.92269212 | AT232: 36.92269212
E233: Differential depreciation recovery | G233: £m 18/19 prices | L233: =- L188 -> 0 | M233: =- M188 -> 0 | N233: 0 | O233: 0 | P233: 0 | Q233: 0 | R233: 0 | S233: 0 | T233: 0 | U233: 0 | V233: 0 | W233: 0 | X233: 0 | Y233: 0 | Z233: 0 | AA233: 0 | AB233: 0 | AC233: 0 | AD233: 0 | AE233: 0 | AF233: 0 | AG233: 0 | AH233: 0 | AI233: 0 | AJ233: 0 | AK233: 0 | AL233: 0 | AM233: 0 | AN233: 0 | AO233: 0 | AP233: -36.92269212 | AQ233: -36.92269212 | AR233: -36.92269212 | AS233: -36.92269212 | AT233: -36.92269212
... 49 more rows

Sheet TaxPools
A1: Tax Pools
B2: =UserInterface!G17 -> NGGT TO
E3: Parameter | G3: Units | I3: Constant | AP3: Annual values
E4: PCFM year ending | F4: =Cover!C4 -> Model Version | I4: =UserInterface!$G$10 -> 2025-03-31 | K4: 1991-03-31 | L4: 1992-03-31 | M4: 1993-03-31 | N4: 1994-03-31 | O4: 1995-03-31 | P4: 1996-03-31 | Q4: 1997-03-31 | R4: 1998-03-31 | S4: 1999-03-31 | T4: 2000-03-31 | U4: 2001-03-31 | V4: 2002-03-31 | W4: 2003-03-31 | X4: 2004-03-31 | Y4: 2005-03-31 | Z4: 2006-03-31 | AA4: 2007-03-31 | AB4: 2008-03-31 | AC4: 2009-03-31 | AD4: 2010-03-31 | AE4: 2011-03-31 | AF4: 2012-03-31 | AG4: 2013-03-31 | AH4: 2014-03-31 | AI4: 2015-03-31 | AJ4: 2016-03-31 | AK4: 2017-03-31 | AL4: 2018-03-31 | AM4: 2019-03-31 | AN4: 2020-03-31 | AO4: 2021-03-31 | AP4: 2022-03-31 | AQ4: 2023-03-31 | AR4: 2024-03-31 | AS4: 2025-03-31 | AT4: 2026-03-31
B6: Tax pool additions
B7: Note: Actual totex is combined with other expenditure and allocated to tax pools. Each cost sub-category can have its own percentage split between each pool.
C9: Expenditure categories allocated to tax pools
D11: Actual totex
E13: Load related capex expenditure | G13: £m 18/19 prices | AP13: =Totex!AP76 -> 7.469097274 | AQ13: =Totex!AQ76 -> 10.86138753 | AR13: =Totex!AR76 -> 12.04816173 | AS13: =Totex!AS76 -> 9.242580746 | AT13: =Totex!AT76 -> 51.57902626
E14: Asset replacement capex expenditure | G14: £m 18/19 prices | AP14: =Totex!AP77 -> 121.6032852 | AQ14: =Totex!AQ77 -> 154.5240538 | AR14: =Totex!AR77 -> 149.9721229 | AS14: =Totex!AS77 -> 182.7101285 | AT14: =Totex!AT77 -> 238.1808862
E15: Other capex expenditure | G15: £m 18/19 prices | AP15: =Totex!AP78 -> 31.71690374 | AQ15: =Totex!AQ78 -> 59.5674105 | AR15: =Totex!AR78 -> 115.864532 | AS15: =Totex!AS78 -> 129.7980977 | AT15: =Totex!AT78 -> 117.2979876
E16: Non-load (opex) | G16: £m 18/19 prices | AP16: =Totex!AP79 -> 41.23425761 | AQ16: =Totex!AQ79 -> 42.82767777 | AR16: =Totex!AR79 -> 66.71156834 | AS16: =Totex!AS79 -> 55.46991911 | AT16: =Totex!AT79 -> 50.68411085
E17: Indirects (opex) | G17: £m 18/19 prices | AP17: =Totex!AP80 -> 59.55441234 | AQ17: =Totex!AQ80 -> 69.06753452 | AR17: =Totex!AR80 -> 69.17579711 | AS17: =Totex!AS80 -> 57.62437532 | AT17: =Totex!AT80 -> 54.52509027
E18: Non-operational capex | G18: £m 18/19 prices | AP18: =Totex!AP81 -> 31.42052846 | AQ18: =Totex!AQ81 -> 8.601426855 | AR18: =Totex!AR81 -> 18.27769128 | AS18: =Totex!AS81 -> 12.89948805 | AT18: =Totex!AT81 -> 23.86965161
E19: Actual totex | G19: £m 18/19 prices | AP19: =SUM(AP13:AP18) -> 292.9984847 | AQ19: 345.4494909 | AR19: 432.0498734 | AS19: 447.7445894 | AT19: 536.1367528
D21: Non-totex items
E23: Pass-through expenditure and "Other revenue associated costs" | G23: £m 18/19 prices | AP23: =SUM(Input!AP90, Input!AP113) -> 117.8458712 | AQ23: =SUM(Input!AQ90, Input!AQ113) -> 140.4211031 | AR23: =SUM(Input!AR90, Input!AR113) -> 126.7282707 | AS23: =SUM(Input!AS90, Input!AS113) -> 129.6334031 | AT23: =SUM(Input!AT90, Input!AT113) -> 112.7129168
C25: Tax pool allocation
E27: Allocation to "General" tax pool | G27: % | AP27: =Input!AP225 -> 0.1887099532 | AQ27: =Input!AQ225 -> 0.1971837893 | AR27: =Input!AR225 -> 0.1738615481 | AS27: =Input!AS225 -> 0.159199049 | AT27: =Input!AT225 -> 0.1712017839
E28: Allocation to "Special Rate" tax pool | G28: % | AP28: =Input!AP226 -> 0.4221706393 | AQ28: =Input!AQ226 -> 0.4915798216 | AR28: =Input!AR226 -> 0.5421590878 | AS28: =Input!AS226 -> 0.5628022718 | AT28: =Input!AT226 -> 0.6052344756
E29: Allocation to "Structures and Buildings" tax pool | G29: % | AP29: =Input!AP227 -> 0.009146896236 | AQ29: =Input!AQ227 -> 0.01148650688 | AR29: =Input!AR227 -> 0.01181862343 | AS29: =Input!AS227 -> 0 | AT29: =Input!AT227 -> 0
E30: Allocation to "Deferred Revenue" tax pool | G30: % | AP30: =Input!AP228 -> 0 | AQ30: =Input!AQ228 -> 0 | AR30: =Input!AR228 -> 0 | AS30: =Input!AS228 -> 0.002242240127 | AT30: =Input!AT228 -> 0.002411292731
E31: Allocation to "Revenue" tax pool | G31: % | AP31: =Input!AP229 -> 0.3786414542 | AQ31: =Input!AQ229 -> 0.2981510398 | AR31: =Input!AR229 -> 0.2704506164 | AS31: =Input!AS229 -> 0.2525866244 | AT31: =Input!AT229 -> 0.1962357562
E32: Allocation to "Non Qualifying" tax pool | G32: % | AP32: =Input!AP230 -> 0.001331057168 | AQ32: =Input!AQ230 -> 0.00159884245 | AR32: =Input!AR230 -> 0.001710124303 | AS32: =Input!AS230 -> 0.02316981464 | AT32: =Input!AT230 -> 0.02491669156
E33: Allocation check | G33: % | AP33: =SUM(AP27:AP32) -> 1 | AQ33: =SUM(AQ27:AQ32) -> 1 | AR33: 1 | AS33: 1 | AT33: 1
E35: General pool additions | G35: £m 18/19 prices | AP35: =AP27*AP$19 -> 55.29173032 | AQ35: =AQ27*AQ$19 -> 68.11703962 | AR35: 75.11685985 | AS35: 71.28051283 | AT35: 91.78756851
E36: Special Rate pool additions | G36: £m 18/19 prices | AP36: =AP28*AP$19 -> 123.6953576 | AQ36: =AQ28*AQ$19 -> 169.8159991 | AR36: 234.2397652 | AS36: 251.9916721 | AT36: 324.4884464
E37: Structures and Buildings pool additions | G37: £m 18/19 prices | AP37: =AP29*AP$19 -> 2.680026736 | AQ37: 3.968007953 | AR37: 5.106234757 | AS37: 0 | AT37: 0
E38: Deferred revenue pool additions | G38: £m 18/19 prices | AP38: =AP30*AP$19 -> 0 | AQ38: 0 | AR38: 0 | AS38: 1.003950885 | AT38: 1.292782655
E39: Revenue pool additions | G39: £m 18/19 prices | AP39: =AP31*AP$19 + AP23 -> 228.7872435 | AQ39: =AQ31*AQ$19 + AQ23 -> 243.417228 | AR39: 243.5764253 | AS39: 242.7276976 | AT39: 217.9221179
E40: Non-qualifying expenditure | G40: £m 18/19 prices | AP40: =AP32*AP$19 -> 0.3899977331 | AQ40: =AQ32*AQ$19 -> 0.5523193104 | AR40: 0.7388589887 | AS40: 10.37415914 | AT40: 13.3587541
B42: Capital allowances
B43: Note: Special, General and deferred revenue capital allowances are calculated for the tax allowance calculation.
B44: When "non-core" assets are transferred to the RAV their tax book value is moved into the "Transfer" line.
C46: General pool
E48: Capital allowance rate | G48: % | AP48: =Input!AP234 -> 0.18 | AQ48: =Input!AQ234 -> 0.18 | AR48: =Input!AR234 -> 0.18 | AS48: =Input!AS234 -> 0.18 | AT48: =Input!AT234 -> 0.18
E50: Opening balance brought forward | G50: £m nominal | AP50: =Input!AP218 -> 214.3581445 | AQ50: =AP56 -> 224.9569164 | AR50: =AQ56 -> 250.3726978 | AS50: =AR56 -> 224.5809997 | AT50: =AS56 -> 196.345788
E51: Transfer | G51: £m nominal | AP51: =-NonCore!AP16 -> 0 | AQ51: =-NonCore!AQ16 -> 0 | AR51: =-NonCore!AR16 -> 0 | AS51: =-NonCore!AS16 -> 0 | AT51: =-NonCore!AT16 -> 0
E52: Revisions | G52: £m nominal | AP52: =Input!AP212 -> 0 | AQ52: =Input!AQ212 -> 0 | AR52: =Input!AR212 -> -70.66809315 | AS52: =Input!AS212 -> -77.22322393 | AT52: =Input!AT212 -> 0
E53: Capex additions | G53: £m nominal | AP53: =AP35 * TOpf -> 59.97955841 | AQ53: =AQ35 * TOpf -> 80.37564193 | AR53: =AR35 * TOpf -> 94.17466333 | AS53: =AS35 * TOpf -> 92.08830707 | AT53: =AT35 * TOpf -> 120.6096176
E54: Tax book value pre-depreciation | G54: £m nominal | AP54: =SUM(AP50:AP53) -> 274.3377029 | AQ54: 305.3325583 | AR54: 273.879268 | AS54: 239.4460829 | AT54: 316.9554056
E55: General pool capital allowance (reducing balance) | G55: £m nominal | AP55: =-AP54*AP48 -> -49.38078652 | AQ55: =-AQ54*AQ48 -> -54.95986049 | AR55: -49.29826824 | AS55: -43.10029492 | AT55: -57.051973
E56: Closing balance carried forward | G56: £m nominal | AP56: =SUM(AP54:AP55) -> 224.9569164 | AQ56: =SUM(AQ54:AQ55) -> 250.3726978 | AR56: =SUM(AR54:AR55) -> 224.5809997 | AS56: =SUM(AS54:AS55) -> 196.345788 | AT56: =SUM(AT54:AT55) -> 259.9034326
C58: Special Rates pool
E60: Capital allowance rate | G60: % | AP60: =Input!AP235 -> 0.06 | AQ60: =Input!AQ235 -> 0.06 | AR60: =Input!AR235 -> 0.06 | AS60: =Input!AS235 -> 0.06 | AT60: =Input!AT235 -> 0.06
E62: Opening balance brought forward | G62: £m nominal | AP62: =Input!AP219 -> 1571.321872 | AQ62: =AP68 -> 1603.174285 | AR62: =AQ68 -> 1695.337958 | AS62: =AR68 -> 1800.116652 | AT62: =AS68 -> 1876.66691
E63: Transfer | G63: £m nominal | AP63: =-NonCore!AP17 -> 0 | AQ63: =-NonCore!AQ17 -> 0 | AR63: =-NonCore!AR17 -> 0 | AS63: =-NonCore!AS17 -> 0 | AT63: =-NonCore!AT17 -> 0
E64: Revisions | G64: £m nominal | AP64: =Input!AP213 -> 0 | AQ64: =Input!AQ213 -> 0 | AR64: =Input!AR213 -> -73.98868232 | AS64: =Input!AS213 -> -129.2141135 | AT64: =Input!AT213 -> 0
E65: Capex additions | G65: £m nominal | AP65: =AP36 * TOpf -> 134.1826867 | AQ65: =AQ36 * TOpf -> 200.3767342 | AR65: =AR36 * TOpf -> 293.6684397 | AS65: =AS36 * TOpf -> 325.5516208 | AT65: =AT36 * TOpf -> 426.3804791
E66: Tax book value pre-depreciation | G66: £m nominal | AP66: =SUM(AP62:AP65) -> 1705.504558 | AQ66: 1803.551019 | AR66: 1915.017715 | AS66: 1996.45416 | AT66: 2303.047389
E67: Special Rates capital allowance (reducing balance) | G67: £m nominal | AP67: =-AP66*AP60 -> -102.3302735 | AQ67: =-AQ66*AQ60 -> -108.2130611 | AR67: -114.9010629 | AS67: -119.7872496 | AT67: -138.1828434
E68: Closing balance carried forward | G68: £m nominal | AP68: =SUM(AP66:AP67) -> 1603.174285 | AQ68: =SUM(AQ66:AQ67) -> 1695.337958 | AR68: =SUM(AR66:AR67) -> 1800.116652 | AS68: =SUM(AS66:AS67) -> 1876.66691 | AT68: =SUM(AT66:AT67) -> 2164.864546
C70: Structures and Buildings pool
E72: Capital allowance rate | G72: % | AP72: =Input!AP236 -> 0.03 | AQ72: =Input!AQ236 -> 0.03 | AR72: =Input!AR236 -> 0.03 | AS72: =Input!AS236 -> 0.03 | AT72: =Input!AT236 -> 0.03
E74: Opening balance brought forward | G74: £m nominal | AP74: =Input!AP220 -> 0 | AQ74: =AP80 -> 2.907248864 | AR74: =AQ80 -> 7.5021372 | AS74: =AR80 -> 13.67618768 | AT74: =AS80 -> 13.2564551
E75: Transfer | G75: £m nominal
E76: Revisions | G76: £m nominal
E77: Capex additions | G77: £m nominal | AO77: 0 | AP77: =AP37 * TOpf -> 2.907248864 | AQ77: =AQ37 * TOpf -> 4.682105802 | AR77: =AR37 * TOpf -> 6.401731117 | AS77: =AS37 * TOpf -> 0 | AT77: =AT37 * TOpf -> 0
E78: Tax book value pre-depreciation | G78: £m nominal | AP78: =SUM(AP74:AP77) -> 2.907248864 | AQ78: 7.589354666 | AR78: 13.90386832 | AS78: 13.67618768 | AT78: 13.2564551
E79: Structures and Buildings capital allowance (straight line) | G79: £m nominal | AP79: =- SUM($AO77:AO77) * AP72 -> 0 | AQ79: =- SUM($AO77:AP77) * AQ72 -> -0.08721746593 | AR79: =- SUM($AO77:AQ77) * AR72 -> -0.22768064 | AS79: =- SUM($AO77:AR77) * AS72 -> -0.4197325735 | AT79: =- SUM($AO77:AS77) * AT72 -> -0.4197325735
E80: Closing balance carried forward | G80: £m nominal | AP80: =AP78 + AP79 -> 2.907248864 | AQ80: 7.5021372 | AR80: 13.67618768 | AS80: 13.2564551 | AT80: 12.83672253
C82: Deferred revenue expenditure
E84: Capital allowance rate | G84: % | AP84: =Input!AP237 -> 0.0222 | AQ84: =Input!AQ237 -> 0.0222 | AR84: =Input!AR237 -> 0.0222 | AS84: =Input!AS237 -> 0.0222 | AT84: =Input!AT237 -> 0.0222
E86: Opening balance brought forward | G86: £m nominal | AP86: =Input!AP221 -> 0 | AQ86: =AP92 -> 0 | AR86: =AQ92 -> 0 | AS86: =AR92 -> 0 | AT86: =AS92 -> 1.297018409
E87: Transfer | G87: £m nominal
E88: Revisions | G88: £m nominal
E89: Capex additions | G89: £m nominal | AO89: =Input!AO222 -> 0 | AP89: =AP38 * TOpf -> 0 | AQ89: =AQ38 * TOpf -> 0 | AR89: =AR38 * TOpf -> 0 | AS89: =AS38 * TOpf -> 1.297018409 | AT89: =AT38 * TOpf -> 1.698727009
E90: Tax book value pre-depreciation | G90: £m nominal | AP90: =SUM(AP86:AP89) -> 0 | AQ90: 0 | AR90: 0 | AS90: 1.297018409 | AT90: 2.995745418
E91: Deferred revenue expenditure capital allowance (straight line) | G91: £m nominal | AP91: =-SUM($AO89:AO89) * AP84 -> 0 | AQ91: =-SUM($AO89:AP89) * AQ84 -> 0 | AR91: =-SUM($AO89:AQ89) * AR84 -> 0 | AS91: =-SUM($AO89:AR89) * AS84 -> 0 | AT91: =-SUM($AO89:AS89) * AT84 -> -0.02879380869
E92: Closing balance carried forward | G92: £m nominal | AP92: =AP90+AP91 -> 0 | AQ92: 0 | AR92: 0 | AS92: 1.297018409 | AT92: 2.966951609
C94: Total capital allowances
E96: General pool | G96: £m nominal | AP96: =-AP55 -> 49.38078652 | AQ96: =-AQ55 -> 54.95986049 | AR96: 49.29826824 | AS96: 43.10029492 | AT96: 57.051973
E97: Special Rates pool | G97: £m nominal | AP97: =-AP67 -> 102.3302735 | AQ97: =-AQ67 -> 108.2130611 | AR97: 114.9010629 | AS97: 119.7872496 | AT97: 138.1828434
E98: Structures and Buildings pool | G98: £m nominal | AP98: =-AP79 -> 0 | AQ98: =-AQ79 -> 0.08721746593 | AR98: =-AR79 -> 0.22768064 | AS98: =-AS79 -> 0.4197325735 | AT98: =-AT79 -> 0.4197325735
E99: Deferred revenue expenditure | G99: £m nominal | AP99: =-AP91 -> 0 | AQ99: =-AQ91 -> 0 | AR99: =-AR91 -> 0 | AS99: =-AS91 -> 0 | AT99: =-AT91 -> 0.02879380869
E100: Capital allowances | G100: £m nominal | AP100: =SUM(AP96:AP99) -> 151.71106 | AQ100: =SUM(AQ96:AQ99) -> 163.2601391 | AR100: 164.4270118 | AS100: 163.3072771 | AT100: 195.6833427
B102: End of sheet

Sheet Return&RAV
A1: Return & RAV
B2: =UserInterface!G17 -> NGGT TO
E3: Parameter | G3: Units | I3: Constant | AP3: Annual values
E4: PCFM year ending | F4: =Cover!C4 -> Model Version | I4: =UserInterface!$G$10 -> 2025-03-31 | K4: 1991-03-31 | L4: 1992-03-31 | M4: 1993-03-31 | N4: 1994-03-31 | O4: 1995-03-31 | P4: 1996-03-31 | Q4: 1997-03-31 | R4: 1998-03-31 | S4: 1999-03-31 | T4: 2000-03-31 | U4: 2001-03-31 | V4: 2002-03-31 | W4: 2003-03-31 | X4: 2004-03-31 | Y4: 2005-03-31 | Z4: 2006-03-31 | AA4: 2007-03-31 | AB4: 2008-03-31 | AC4: 2009-03-31 | AD4: 2010-03-31 | AE4: 2011-03-31 | AF4: 2012-03-31 | AG4: 2013-03-31 | AH4: 2014-03-31 | AI4: 2015-03-31 | AJ4: 2016-03-31 | AK4: 2017-03-31 | AL4: 2018-03-31 | AM4: 2019-03-31 | AN4: 2020-03-31 | AO4: 2021-03-31 | AP4: 2022-03-31 | AQ4: 2023-03-31 | AR4: 2024-03-31 | AS4: 2025-03-31 | AT4: 2026-03-31
B6: Return
C8: Return base
C9: Note: The "Return base" is calculated such that the net present value of the stream of depreciation and return flowing from a RAV addition is equal to the present value of the addition itself.
D11: Present value of closing RAV
E13: Vanilla WACC | G13: annual real % | AP13: =Input!AP174 -> 0.0303727524 | AQ13: =Input!AQ174 -> 0.029627242 | AR13: =Input!AR174 -> 0.0326535776 | AS13: =Input!AS174 -> 0.0350101832 | AT13: =Input!AT174 -> 0.0358101708
E14: Single year discount factor | G14: scalar | AP14: =1 / (1 + AP13) -> 0.9705225586 | AQ14: 0.9712252738 | AR14: 0.9683789624 | AS14: 0.9661740688 | AT14: 0.9654278633
E16: Closing RAV | G16: £m 18/19 prices | AP16: =AP44 -> 5803.677883 | AQ16: 5750.499831 | AR16: 5742.471528 | AS16: 5715.102794 | AT16: 5738.438086
E18: Discounted closing RAV | G18: £m 18/19 prices | AP18: =AP16 * AP14 -> 5632.600309 | AQ18: 5585.030773 | AR18: 5560.88862 | AS18: 5521.78412 | AT18: 5540.04802
D20: NPV-neutral RAV return base
E22: Opening RAV (after transfers) | G22: £m 18/19 prices | AP22: =AP41 -> 5904.42958 | AQ22: 5803.677883 | AR22: 5750.499831 | AS22: 5742.471528 | AT22: 5715.102794
E23: Discounted closing RAV | G23: £m 18/19 prices | AP23: =AP18 -> 5632.600309 | AQ23: 5585.030773 | AR23: 5560.88862 | AS23: 5521.78412 | AT23: 5540.04802
E25: NPV-neutral RAV return base | G25: £m 18/19 prices | AP25: =AVERAGE(AP22:AP23) -> 5768.514944 | AQ25: 5694.354328 | AR25: 5655.694225 | AS25: 5632.127824 | AT25: 5627.575407
C27: Return on RAV
E29: NPV-neutral RAV return base | G29: £m 18/19 prices | AP29: =AP25 -> 5768.514944 | AQ29: 5694.354328 | AR29: 5655.694225 | AS29: 5632.127824 | AT29: 5627.575407
E30: Vanilla WACC | G30: annual real % | AP30: =AP13 -> 0.0303727524 | AQ30: 0.029627242 | AR30: 0.0326535776 | AS30: 0.0350101832 | AT30: 0.0358101708
E32: Return | G32: £m 18/19 prices | AP32: =AP29 * AP30 -> 175.2056761 | AQ32: 168.7080137 | AR32: 184.6786503 | AS32: 197.1818269 | AT32: 201.5244365
B34: RAV
B35: Note: The RAV is presented separate pre-vesting and post-vesting balances brought together to form a combined "Running total."
C37: Running total
E39: Opening RAV (before transfers) | G39: £m 18/19 prices | AH39: =(AH51 - AH60) + (AH77 - AH86) -> 5271.022933 | AI39: =AH44 -> 5612.972927 | AJ39: 5597.625247 | AK39: 5572.03216 | AL39: 5582.176839 | AM39: 5952.509876 | AN39: 5973.580543 | AO39: 5965.926985 | AP39: =AO44 -> 5904.42958 | AQ39: =AP44 -> 5803.677883 | AR39: =AQ44 -> 5750.499831 | AS39: =AR44 -> 5742.471528 | AT39: =AS44 -> 5715.102794
E40: Transfers | G40: £m 18/19 prices | AH40: =(AH52 - AH61) + (AH78 - AH87) -> 313.6938455 | AI40: =(AI52 - AI61) + (AI78 - AI87) -> 2.086357557 | AJ40: 2.543555257 | AK40: 19.24205165 | AL40: 341.6993541 | AM40: 18.29339908 | AN40: 24.260659 | AO40: 1.064371298 | AP40: =(AP52 - AP61) + (AP78 - AP87) -> 0 | AQ40: 0 | AR40: 0 | AS40: 0 | AT40: 0
E41: Opening RAV (after transfers) | G41: £m 18/19 prices | AH41: =SUM(AH39:AH40) -> 5584.716779 | AI41: 5615.059285 | AJ41: 5600.168802 | AK41: 5591.274211 | AL41: 5923.876193 | AM41: 5970.803275 | AN41: 5997.841202 | AO41: 5966.991356 | AP41: =SUM(AP39:AP40) -> 5904.42958 | AQ41: 5803.677883 | AR41: 5750.499831 | AS41: 5742.471528 | AT41: 5715.102794
E42: Net additions (after disposals) | G42: £m 18/19 prices | AH42: =AH54 + AH80 -> 210.4764798 | AI42: =AI54 + AI80 -> 167.3135618 | AJ42: 158.1892081 | AK42: 179.0164321 | AL42: 227.6662552 | AM42: 205.0792588 | AN42: 173.2878659 | AO42: 144.3184505 | AP42: =AP54 + AP80 -> 195.1544388 | AQ42: 244.5994134 | AR42: 293.5817174 | AS42: 279.9671798 | AT42: 335.5215092
E43: Depreciation | G43: £m 18/19 prices | AH43: =-(AH63 + AH89) -> -182.2203316 | AI43: =-(AI63 + AI89) -> -184.7475993 | AJ43: -186.325851 | AK43: -188.1138047 | AL43: -199.032572 | AM43: -202.3019912 | AN43: -205.2020829 | AO43: -206.8802261 | AP43: =-(AP63 + AP89) -> -295.906136 | AQ43: -297.7774652 | AR43: -301.6100209 | AS43: -307.3359141 | AT43: -312.186217
E44: Closing RAV | G44: £m 18/19 prices | AH44: =SUM(AH41:AH43) -> 5612.972927 | AI44: =SUM(AI41:AI43) -> 5597.625247 | AJ44: 5572.03216 | AK44: 5582.176839 | AL44: 5952.509876 | AM44: 5973.580543 | AN44: 5965.926985 | AO44: 5904.42958 | AP44: =SUM(AP41:AP43) -> 5803.677883 | AQ44: 5750.499831 | AR44: 5742.471528 | AS44: 5715.102794 | AT44: 5738.438086
C46: Pre-vesting balance
C47: Note: Pre-vesting RAV opening balances are inputs to the model. The continued depreciation of these assets uses annual depreciation rates calculated on the "Depn" sheet.
D49: Cost
E51: Opening balance brought forward (before transfers) | G51: £m 18/19 prices | AH51: =Input!AH515 -> 3505.376058 | AI51: =AH56 -> 3505.376058 | AJ51: =AI56 -> 3505.376058 | AK51: 3505.376058 | AL51: 3505.376058 | AM51: 3505.376058 | AN51: 3505.376058 | AO51: 3505.376058 | AP51: =AO56 -> 3505.376058 | AQ51: =AP56 -> 3505.376058 | AR51: =AQ56 -> 3505.376058 | AS51: =AR56 -> 3505.376058 | AT51: =AS56 -> 3505.376058
E52: Transfers | G52: £m 18/19 prices
E53: Opening balance brought forward (after transfers) | G53: £m 18/19 prices | AH53: =SUM(AH51:AH52) -> 3505.376058 | AI53: =SUM(AI51:AI52) -> 3505.376058 | AJ53: 3505.376058 | AK53: 3505.376058 | AL53: 3505.376058 | AM53: 3505.376058 | AN53: 3505.376058 | AO53: 3505.376058 | AP53: =SUM(AP51:AP52) -> 3505.376058 | AQ53: 3505.376058 | AR53: 3505.376058 | AS53: 3505.376058 | AT53: 3505.376058
E54: Net additions (after disposals) | G54: £m 18/19 prices | AH54: =-Input!AH519 -> 0 | AI54: =-Input!AI519 -> 0 | AJ54: =-Input!AJ519 -> 0 | AK54: =-Input!AK519 -> 0 | AL54: =-Input!AL519 -> 0 | AM54: =-Input!AM519 -> 0 | AN54: =-Input!AN519 -> 0 | AO54: =-Input!AO519 -> 0 | AP54: =-Input!AP519 -> 0 | AQ54: =-Input!AQ519 -> 0 | AR54: =-Input!AR519 -> 0 | AS54: =-Input!AS519 -> 0 | AT54: =-Input!AT519 -> 0
E55: Removals | G55: £m 18/19 prices
E56: Closing value carried forward | G56: £m 18/19 prices | AH56: =AH53 + AH54 - AH55 -> 3505.376058 | AI56: =AI53 + AI54 - AI55 -> 3505.376058 | AJ56: 3505.376058 | AK56: 3505.376058 | AL56: 3505.376058 | AM56: 3505.376058 | AN56: 3505.376058 | AO56: 3505.376058 | AP56: =AP53 + AP54 - AP55 -> 3505.376058 | AQ56: 3505.376058 | AR56: 3505.376058 | AS56: 3505.376058 | AT56: 3505.376058
D58: Cumulative depreciation
E60: Opening balance brought forward (before transfers) | G60: £m 18/19 prices | AH60: =Input!AH516 -> 1232.166201 | AI60: =AH65 -> 1331.001992 | AJ60: =AI65 -> 1427.641432 | AK60: 1522.084521 | AL60: 1614.33126 | AM60: 1704.381647 | AN60: 1792.235684 | AO60: 1877.893369 | AP60: =AO65 -> 1961.354704 | AQ60: =AP65 -> 2042.619688 | AR60: =AQ65 -> 2121.688321 | AS60: =AR65 -> 2198.560603 | AT60: =AS65 -> 2273.236534
E61: Transfers | G61: £m 18/19 prices
E62: Opening balance brought forward (after transfers) | G62: £m 18/19 prices | AH62: =SUM(AH60:AH61) -> 1232.166201 | AI62: =SUM(AI60:AI61) -> 1331.001992 | AJ62: 1427.641432 | AK62: 1522.084521 | AL62: 1614.33126 | AM62: 1704.381647 | AN62: 1792.235684 | AO62: 1877.893369 | AP62: =SUM(AP60:AP61) -> 1961.354704 | AQ62: 2042.619688 | AR62: 2121.688321 | AS62: 2198.560603 | AT62: 2273.236534
E63: Depreciation | G63: £m 18/19 prices | AH63: =AH51 * Depn!AH30 -> 98.83579111 | AI63: =AI51 * Depn!AI30 -> 96.6394402 | AJ63: =AJ51 * Depn!AJ30 -> 94.44308928 | AK63: =AK51 * Depn!AK30 -> 92.24673837 | AL63: =AL51 * Depn!AL30 -> 90.05038746 | AM63: =AM51 * Depn!AM30 -> 87.85403654 | AN63: =AN51 * Depn!AN30 -> 85.65768563 | AO63: =AO51 * Depn!AO30 -> 83.46133472 | AP63: =AP51 * Depn!AP30 -> 81.2649838 | AQ63: =AQ51 * Depn!AQ30 -> 79.06863289 | AR63: =AR51 * Depn!AR30 -> 76.87228197 | AS63: =AS51 * Depn!AS30 -> 74.67593106 | AT63: =AT51 * Depn!AT30 -> 72.47958015
E64: Removals | G64: £m 18/19 prices | AH64: =AH55 -> 0 | AI64: 0 | AJ64: 0 | AK64: 0 | AL64: 0 | AM64: 0 | AN64: 0 | AO64: 0 | AP64: =AP55 -> 0 | AQ64: 0 | AR64: 0 | AS64: 0 | AT64: 0
E65: Closing value carried forward | G65: £m 18/19 prices | AH65: =AH62 + AH63 - AH64 -> 1331.001992 | AI65: =AI62 + AI63 - AI64 -> 1427.641432 | AJ65: 1522.084521 | AK65: 1614.33126 | AL65: 1704.381647 | AM65: 1792.235684 | AN65: 1877.893369 | AO65: 1961.354704 | AP65: =AP62 + AP63 - AP64 -> 2042.619688 | AQ65: 2121.688321 | AR65: 2198.560603 | AS65: 2273.236534 | AT65: 2345.716114
D67: Asset balance
E69: Net value after regulatory depreciation | G69: £m 18/19 prices | AH69: =AH56 - AH65 -> 2174.374066 | AI69: 2077.734626 | AJ69: 1983.291537 | AK69: 1891.044798 | AL69: 1800.994411 | AM69: 1713.140374 | AN69: 1627.482689 | AO69: 1544.021354 | AP69: 1462.75637 | AQ69: 1383.687737 | AR69: 1306.815455 | AS69: 1232.139524 | AT69: 1159.659944
C71: Post-vesting balance
C72: Note: Post-vesting RAV opening balances are generated from calculations built up since vesting. Net additions (after disposals), depreciation and removals are calculated principally on the "Depn" sheet.
C73: Assets with non-standard depreciation policies applied or that are transferred to the RAV during the price control are also brought into the RAV here.
D75: Cost
E77: Opening balance brought forward (before transfers) | G77: £m 18/19 prices | AH77: =Depn!AH285 + AH103 + AH138 -> 3402.584722 | AI77: =AH82 -> 3962.780802 | AJ77: 4132.180722 | AK77: 4292.913485 | AL77: 4493.034419 | AM77: 5131.86456 | AN77: 5355.237218 | AO77: 5552.785743 | AP77: =AO82 -> 5698.168564 | AQ77: =AP82 -> 5893.323003 | AR77: =AQ82 -> 6137.922417 | AS77: =AR82 -> 6431.504134 | AT77: =AS82 -> 6711.471314
E78: Transfers | G78: £m 18/19 prices | AH78: =AH132 -> 349.7196007 | AI78: =AI132 -> 2.086357557 | AJ78: 2.543555257 | AK78: 21.10450162 | AL78: 411.1638856 | AM78: 18.29339908 | AN78: 24.260659 | AO78: 1.064371298 | AP78: =AP132 -> 0 | AQ78: 0 | AR78: 0 | AS78: 0 | AT78: 0
E79: Opening balance brought forward (after transfers) | G79: £m 18/19 prices | AH79: =SUM(AH77:AH78) -> 3752.304323 | AI79: 3964.86716 | AJ79: 4134.724277 | AK79: 4314.017987 | AL79: 4904.198305 | AM79: 5150.157959 | AN79: 5379.497877 | AO79: 5553.850114 | AP79: =SUM(AP77:AP78) -> 5698.168564 | AQ79: 5893.323003 | AR79: 6137.922417 | AS79: 6431.504134 | AT79: 6711.471314
E80: Net additions (after disposals) | G80: £m 18/19 prices | AH80: =Depn!AH16 + AH106 -> 210.4764798 | AI80: =Depn!AI16 + AI106 -> 167.3135618 | AJ80: =Depn!AJ16 + AJ106 -> 158.1892081 | AK80: =Depn!AK16 + AK106 -> 179.0164321 | AL80: =Depn!AL16 + AL106 -> 227.6662552 | AM80: =Depn!AM16 + AM106 -> 205.0792588 | AN80: =Depn!AN16 + AN106 -> 173.2878659 | AO80: =Depn!AO16 + AO106 -> 144.3184505 | AP80: =Depn!AP16 + AP106 -> 195.1544388 | AQ80: =Depn!AQ16 + AQ106 -> 244.5994134 | AR80: =Depn!AR16 + AR106 -> 293.5817174 | AS80: =Depn!AS16 + AS106 -> 279.9671798 | AT80: =Depn!AT16 + AT106 -> 335.5215092
E81: Removals | G81: £m 18/19 prices | AH81: =Depn!AH276 -> 0 | AI81: =Depn!AI276 -> 0 | AJ81: =Depn!AJ276 -> 0 | AK81: =Depn!AK276 -> 0 | AL81: =Depn!AL276 -> 0 | AM81: =Depn!AM276 -> 0 | AN81: =Depn!AN276 -> 0 | AO81: =Depn!AO276 -> 0 | AP81: =Depn!AP276 -> 0 | AQ81: =Depn!AQ276 -> 0 | AR81: =Depn!AR276 -> 0 | AS81: =Depn!AS276 -> 0 | AT81: =Depn!AT276 -> 0
E82: Closing value carried forward | G82: £m 18/19 prices | AH82: =AH79 + AH80 - AH81 -> 3962.780802 | AI82: =AI79 + AI80 - AI81 -> 4132.180722 | AJ82: 4292.913485 | AK82: 4493.034419 | AL82: 5131.86456 | AM82: 5355.237218 | AN82: 5552.785743 | AO82: 5698.168564 | AP82: =AP79 + AP80 - AP81 -> 5893.323003 | AQ82: 6137.922417 | AR82: 6431.504134 | AS82: 6711.471314 | AT82: 7046.992823
D84: Cumulative depreciation
E86: Opening balance brought forward (before transfers) | G86: £m 18/19 prices | AH86: =Depn!AH286 + AH114 + AH146 -> 404.7716458 | AI86: =AH91 -> 524.1819415 | AJ86: 612.2901006 | AK86: 704.1728623 | AL86: 801.9023787 | AM86: 980.3490947 | AN86: 1094.797049 | AO86: 1214.341447 | AP86: =AO91 -> 1337.760338 | AQ86: =AP91 -> 1552.40149 | AR86: =AQ91 -> 1771.110323 | AS86: =AR91 -> 1995.848062 | AT86: =AS91 -> 2228.508045
E87: Transfers | G87: £m 18/19 prices | AH87: =- AH133 -> 36.02575517 | AI87: =- AI133 -> 0 | AJ87: 0 | AK87: 1.86244997 | AL87: 69.4645315 | AM87: 0 | AN87: 0 | AO87: 0 | AP87: =- AP133 -> 0 | AQ87: 0 | AR87: 0 | AS87: 0 | AT87: 0
E88: Opening balance brought forward (after transfers) | G88: £m 18/19 prices | AH88: =SUM(AH86:AH87) -> 440.797401 | AI88: 524.1819415 | AJ88: 612.2901006 | AK88: 706.0353123 | AL88: 871.3669102 | AM88: 980.3490947 | AN88: 1094.797049 | AO88: 1214.341447 | AP88: =SUM(AP86:AP87) -> 1337.760338 | AQ88: 1552.40149 | AR88: 1771.110323 | AS88: 1995.848062 | AT88: 2228.508045
E89: Depreciation | G89: £m 18/19 prices | AH89: =Depn!AH229 + AH117 + AH149 -> 83.3845405 | AI89: =Depn!AI229 + AI117 + AI149 -> 88.10815911 | AJ89: =Depn!AJ229 + AJ117 + AJ149 -> 91.88276171 | AK89: =Depn!AK229 + AK117 + AK149 -> 95.86706637 | AL89: =Depn!AL229 + AL117 + AL149 -> 108.9821845 | AM89: =Depn!AM229 + AM117 + AM149 -> 114.4479546 | AN89: =Depn!AN229 + AN117 + AN149 -> 119.5443973 | AO89: =Depn!AO229 + AO117 + AO149 -> 123.4188914 | AP89: =Depn!AP229 + AP117 + AP149 -> 214.6411522 | AQ89: =Depn!AQ229 + AQ117 + AQ149 -> 218.7088323 | AR89: =Depn!AR229 + AR117 + AR149 -> 224.7377389 | AS89: =Depn!AS229 + AS117 + AS149 -> 232.659983 | AT89: =Depn!AT229 + AT117 + AT149 -> 239.7066368
E90: Removals | G90: £m 18/19 prices | AH90: =AH81 -> 0 | AI90: 0 | AJ90: 0 | AK90: 0 | AL90: 0 | AM90: 0 | AN90: 0 | AO90: 0 | AP90: =AP81 -> 0 | AQ90: 0 | AR90: 0 | AS90: 0 | AT90: 0
E91: Closing value carried forward | G91: £m 18/19 prices | AH91: =AH88 + AH89 - AH90 -> 524.1819415 | AI91: =AI88 + AI89 - AI90 -> 612.2901006 | AJ91: 704.1728623 | AK91: 801.9023787 | AL91: 980.3490947 | AM91: 1094.797049 | AN91: 1214.341447 | AO91: 1337.760338 | AP91: =AP88 + AP89 - AP90 -> 1552.40149 | AQ91: 1771.110323 | AR91: 1995.848062 | AS91: 2228.508045 | AT91: 2468.214681
D93: Asset balance
E95: Net value after regulatory depreciation | G95: £m 18/19 prices | AH95: =AH82 - AH91 -> 3438.598861 | AI95: 3519.890621 | AJ95: 3588.740623 | AK95: 3691.13204 | AL95: 4151.515465 | AM95: 4260.440168 | AN95: 4338.444296 | AO95: 4360.408226 | AP95: =AP82 - AP91 -> 4340.921513 | AQ95: 4366.812094 | AR95: 4435.656072 | AS95: 4482.963269 | AT95: 4578.778142
C98: Retrospective addition of logged-up and security costs
C99: Note: Retrospective logged-up and security cost calculations are kept separate due to their non-standard depreciation profile and deemed depreciation before transfer to RAV.
D101: Cost
E103: Opening balance brought forward | G103: £m 18/19 prices | J103: > | Z103: =Y108 -> 0 | AA103: 0 | AB103: 0.2107307703 | AC103: 117.8567007 | AD103: 127.5079981 | AE103: 144.0563008 | AF103: 220.6819999 | AG103: 296.0314144 | AH103: 296.0314144 | AI103: 296.0314144 | AJ103: 296.0314144 | AK103: 296.0314144 | AL103: 296.0314144 | AM103: 296.0314144 | AN103: 296.0314144 | AO103: 296.0314144 | AP103: =AO108 -> 296.0314144 | AQ103: =AP108 -> 296.0314144 | AR103: =AQ108 -> 296.0314144 | AS103: =AR108 -> 296.0314144 | AT103: =AS108 -> 296.0314144
E104: Transfer | G104: £m 18/19 prices | J104: >
E105: Opening balance brought forward (after transfer) | G105: £m 18/19 prices | J105: > | Y105: =SUM(Y103:Y104) -> 0 | Z105: =SUM(Z103:Z104) -> 0 | AA105: =SUM(AA103:AA104) -> 0 | AB105: =SUM(AB103:AB104) -> 0.2107307703 | AC105: =SUM(AC103:AC104) -> 117.8567007 | AD105: =SUM(AD103:AD104) -> 127.5079981 | AE105: 144.0563008 | AF105: 220.6819999 | AG105: 296.0314144 | AH105: 296.0314144 | AI105: 296.0314144 | AJ105: 296.0314144 | AK105: 296.0314144 | AL105: 296.0314144 | AM105: 296.0314144 | AN105: 296.0314144 | AO105: 296.0314144 | AP105: =SUM(AP103:AP104) -> 296.0314144 | AQ105: 296.0314144 | AR105: 296.0314144 | AS105: 296.0314144 | AT105: 296.0314144
E106: Net additions (after disposals) | G106: £m 18/19 prices | J106: > | Y106: =Input!Y542 + Input!Y543 -> 0 | Z106: =Input!Z542 + Input!Z543 -> 0 | AA106: =Input!AA542 + Input!AA543 -> 0.2107307703 | AB106: =Input!AB542 + Input!AB543 -> 117.6459699 | AC106: =Input!AC542 + Input!AC543 -> 9.651297386 | AD106: =Input!AD542 + Input!AD543 -> 16.54830269 | AE106: =Input!AE542 + Input!AE543 -> 76.62569919 | AF106: =Input!AF542 + Input!AF543 -> 75.34941441 | AG106: =Input!AG542 + Input!AG543 -> 0
E107: Removals | G107: £m 18/19 prices | J107: >
E108: Balance carried forward | G108: £m 18/19 prices | J108: > | Y108: =Y105 + Y106 - Y107 -> 0 | Z108: =Z105 + Z106 - Z107 -> 0 | AA108: =AA105 + AA106 - AA107 -> 0.2107307703 | AB108: =AB105 + AB106 - AB107 -> 117.8567007 | AC108: =AC105 + AC106 - AC107 -> 127.5079981 | AD108: =AD105 + AD106 - AD107 -> 144.0563008 | AE108: 220.6819999 | AF108: 296.0314144 | AG108: 296.0314144 | AH108: 296.0314144 | AI108: 296.0314144 | AJ108: 296.0314144 | AK108: 296.0314144 | AL108: 296.0314144 | AM108: 296.0314144 | AN108: 296.0314144 | AO108: 296.0314144 | AP108: =AP105 + AP106 - AP107 -> 296.0314144 | AQ108: 296.0314144 | AR108: 296.0314144 | AS108: 296.0314144 | AT108: 296.0314144
D110: Accumulated depreciation
E112: Logged-up items and security costs asset life | G112: years | I112: =Input!I541 -> 45 | J112: >
E114: Opening balance brought forward | G114: £m 18/19 prices | J114: > | Z114: =Y119 -> 0 | AA114: 0 | AB114: 0 | AC114: 0.004682906008 | AD114: 2.623720699 | AE114: 5.457231767 | AF114: 8.658482895 | AG114: 13.56252734 | AH114: 20.14100321 | AI114: 26.71947909 | AJ114: 33.29795496 | AK114: 39.87643084 | AL114: 46.45490671 | AM114: 53.03338258 | AN114: 59.61185846 | AO114: 66.19033433 | AP114: =AO119 -> 72.76881021 | AQ114: =AP119 -> 79.34728608 | AR114: =AQ119 -> 85.92576196 | AS114: =AR119 -> 92.50423783 | AT114: =AS119 -> 99.08271371
E115: Transfer | G115: £m 18/19 prices | J115: >
E116: Opening balance brought forward (after transfer) | G116: £m 18/19 prices | J116: > | Y116: =SUM(Y114:Y115) -> 0 | Z116: =SUM(Z114:Z115) -> 0 | AA116: =SUM(AA114:AA115) -> 0 | AB116: =SUM(AB114:AB115) -> 0 | AC116: =SUM(AC114:AC115) -> 0.004682906008 | AD116: =SUM(AD114:AD115) -> 2.623720699 | AE116: 5.457231767 | AF116: 8.658482895 | AG116: 13.56252734 | AH116: 20.14100321 | AI116: 26.71947909 | AJ116: 33.29795496 | AK116: 39.87643084 | AL116: 46.45490671 | AM116: 53.03338258 | AN116: 59.61185846 | AO116: 66.19033433 | AP116: =SUM(AP114:AP115) -> 72.76881021 | AQ116: 79.34728608 | AR116: 85.92576196 | AS116: 92.50423783 | AT116: 99.08271371
E117: Regulatory depreciation | G117: £m 18/19 prices | J117: > | Z117: =MIN(Z103 / $I$112, Y124) -> 0 | AA117: =MIN(AA103 / $I$112, Z124) -> 0 | AB117: 0.004682906008 | AC117: 2.619037793 | AD117: 2.833511068 | AE117: 3.201251128 | AF117: 4.904044443 | AG117: 6.578475875 | AH117: 6.578475875 | AI117: 6.578475875 | AJ117: 6.578475875 | AK117: 6.578475875 | AL117: 6.578475875 | AM117: 6.578475875 | AN117: 6.578475875 | AO117: 6.578475875 | AP117: =MIN(AP103 / $I$112, AO124) -> 6.578475875 | AQ117: =MIN(AQ103 / $I$112, AP124) -> 6.578475875 | AR117: =MIN(AR103 / $I$112, AQ124) -> 6.578475875 | AS117: =MIN(AS103 / $I$112, AR124) -> 6.578475875 | AT117: =MIN(AT103 / $I$112, AS124) -> 6.578475875
E118: Removals | G118: £m 18/19 prices | J118: > | Z118: =Z107 -> 0 | AA118: =AA107 -> 0 | AB118: =AB107 -> 0 | AC118: =AC107 -> 0 | AD118: =AD107 -> 0 | AE118: 0 | AF118: 0 | AG118: 0 | AH118: 0 | AI118: 0 | AJ118: 0 | AK118: 0 | AL118: 0 | AM118: 0 | AN118: 0 | AO118: 0 | AP118: =AP107 -> 0 | AQ118: 0 | AR118: 0 | AS118: 0 | AT118: 0
E119: Closing value carried forward | G119: £m 18/19 prices | J119: > | Y119: =Y116 + Y117 - Y118 -> 0 | Z119: =Z116 + Z117 - Z118 -> 0 | AA119: =AA116 + AA117 - AA118 -> 0 | AB119: =AB116 + AB117 - AB118 -> 0.004682906008 | AC119: =AC116 + AC117 - AC118 -> 2.623720699 | AD119: =AD116 + AD117 - AD118 -> 5.457231767 | AE119: 8.658482895 | AF119: 13.56252734 | AG119: 20.14100321 | AH119: 26.71947909 | AI119: 33.29795496 | AJ119: 39.87643084 | AK119: 46.45490671 | AL119: 53.03338258 | AM119: 59.61185846 | AN119: 66.19033433 | AO119: 72.76881021 | AP119: =AP116 + AP117 - AP118 -> 79.34728608 | AQ119: 85.92576196 | AR119: 92.50423783 | AS119: 99.08271371 | AT119: 105.6611896
D121: Asset balance
E123: Included in RAV | G123: text | J123: > | Y123: =YEAR(Y$4) >= YEAR($AG$4) -> FALSE | Z123: =YEAR(Z$4) >= YEAR($AG$4) -> FALSE | AA123: =YEAR(AA$4) >= YEAR($AG$4) -> FALSE | AB123: =YEAR(AB$4) >= YEAR($AG$4) -> FALSE | AC123: =YEAR(AC$4) >= YEAR($AG$4) -> FALSE | AD123: =YEAR(AD$4) >= YEAR($AG$4) -> FALSE | AE123: FALSE | AF123: FALSE | AG123: TRUE | AH123: TRUE | AI123: TRUE | AJ123: TRUE | AK123: TRUE | AL123: TRUE | AM123: TRUE | AN123: TRUE | AO123: TRUE | AP123: TRUE | AQ123: TRUE | AR123: TRUE | AS123: TRUE | AT123: TRUE
E124: Net value after regulatory depreciation | G124: £m 18/19 prices | J124: > | Y124: =Y108 - Y119 -> 0 | Z124: =Z108 - Z119 -> 0 | AA124: =AA108 - AA119 -> 0.2107307703 | AB124: =AB108 - AB119 -> 117.8520178 | AC124: =AC108 - AC119 -> 124.8842774 | AD124: =AD108 - AD119 -> 138.599069 | AE124: 212.023517 | AF124: 282.468887 | AG124: 275.8904111 | AH124: 269.3119353 | AI124: 262.7334594 | AJ124: 256.1549835 | AK124: 249.5765076 | AL124: 242.9980318 | AM124: 236.4195559 | AN124: 229.84108 | AO124: 223.2626041 | AP124: =AP108 - AP119 -> 216.6841283 | AQ124: 210.1056524 | AR124: 203.5271765 | AS124: 196.9487006 | AT124: 190.3702248
C127: Revenue driver transferred to RAV
C128: Note: Revenue driver assets are transferred to the RAV during the price control.
D130: Transfer
E132: Cost transferred to RAV | G132: £m 18/19 prices | AH132: =NonCore!AH11 -> 349.7196007 | AI132: =NonCore!AI11 -> 2.086357557 | AJ132: =NonCore!AJ11 -> 2.543555257 | AK132: =NonCore!AK11 -> 21.10450162 | AL132: =NonCore!AL11 -> 411.1638856 | AM132: =NonCore!AM11 -> 18.29339908 | AN132: =NonCore!AN11 -> 24.260659 | AO132: =NonCore!AO11 -> 1.064371298 | AP132: =NonCore!AP11 -> 0 | AQ132: =NonCore!AQ11 -> 0 | AR132: =NonCore!AR11 -> 0 | AS132: =NonCore!AS11 -> 0 | AT132: =NonCore!AT11 -> 0
E133: Accumulated depreciation transferred to RAV | G133: £m 18/19 prices | AH133: =-NonCore!AH13 -> -36.02575517 | AI133: =-NonCore!AI13 -> 0 | AJ133: =-NonCore!AJ13 -> 0 | AK133: =-NonCore!AK13 -> -1.86244997 | AL133: =-NonCore!AL13 -> -69.4645315 | AM133: =-NonCore!AM13 -> 0 | AN133: =-NonCore!AN13 -> 0 | AO133: =-NonCore!AO13 -> 0 | AP133: =-NonCore!AP13 -> 0 | AQ133: =-NonCore!AQ13 -> 0 | AR133: =-NonCore!AR13 -> 0 | AS133: =-NonCore!AS13 -> 0 | AT133: =-NonCore!AT13 -> 0
E134: Net transfer | G134: £m 18/19 prices | AH134: =SUM(AH132:AH133) -> 313.6938455 | AI134: 2.086357557 | AJ134: 2.543555257 | AK134: 19.24205165 | AL134: 341.6993541 | AM134: 18.29339908 | AN134: 24.260659 | AO134: 1.064371298 | AP134: =SUM(AP132:AP133) -> 0 | AQ134: 0 | AR134: 0 | AS134: 0 | AT134: 0
D136: Cost
E138: Opening balance brought forward | G138: £m 18/19 prices | AI138: =AH140 -> 349.7196007 | AJ138: =AI140 -> 351.8059582 | AK138: 354.3495135 | AL138: 375.4540151 | AM138: 786.6179008 | AN138: 804.9112998 | AO138: 829.1719588 | AP138: =AO140 -> 830.2363301 | AQ138: =AP140 -> 830.2363301 | AR138: =AQ140 -> 830.2363301 | AS138: =AR140 -> 830.2363301 | AT138: =AS140 -> 830.2363301
E139: Transfer | G139: £m 18/19 prices | AH139: =AH132 -> 349.7196007 | AI139: =AI132 -> 2.086357557 | AJ139: 2.543555257 | AK139: 21.10450162 | AL139: 411.1638856 | AM139: 18.29339908 | AN139: 24.260659 | AO139: 1.064371298 | AP139: =AP132 -> 0 | AQ139: 0 | AR139: 0 | AS139: 0 | AT139: 0
E140: Opening balance brought forward (after transfer) | G140: £m 18/19 prices | AH140: =SUM(AH138:AH139) -> 349.7196007 | AI140: 351.8059582 | AJ140: 354.3495135 | AK140: 375.4540151 | AL140: 786.6179008 | AM140: 804.9112998 | AN140: 829.1719588 | AO140: 830.2363301 | AP140: =SUM(AP138:AP139) -> 830.2363301 | AQ140: 830.2363301 | AR140: 830.2363301 | AS140: 830.2363301 | AT140: 830.2363301
D142: Accumulated depreciation
E144: Asset life remaining on transfer to RAV | G144: years | AH144: =Input!AH525 -> 45 | AI144: =Input!AI525 -> 45 | AJ144: =Input!AJ525 -> 45 | AK144: =Input!AK525 -> 45 | AL144: =Input!AL525 -> 45 | AM144: =Input!AM525 -> 45 | AN144: =Input!AN525 -> 45 | AO144: =Input!AO525 -> 45 | AP144: =Input!AP525 -> 45 | AQ144: =Input!AQ525 -> 45 | AR144: =Input!AR525 -> 45 | AS144: =Input!AS525 -> 45 | AT144: =Input!AT525 -> 45
E146: Opening balance brought forward | G146: £m 18/19 prices | AI146: =AH150 -> 43.79730185 | AJ146: 51.61521204 | AK146: 59.48964567 | AL146: 69.6955182 | AM146: 156.6404475 | AN146: 174.5273653 | AO146: 192.9534088 | AP146: =AO150 -> 211.403105 | AQ146: =AP150 -> 229.8528012 | AR146: =AQ150 -> 248.3024975 | AS146: =AR150 -> 266.7521937 | AT146: =AS150 -> 285.2018899
E147: Transfer | G147: £m 18/19 prices | AH147: =-AH133 -> 36.02575517 | AI147: =-AI133 -> 0 | AJ147: 0 | AK147: 1.86244997 | AL147: 69.4645315 | AM147: 0 | AN147: 0 | AO147: 0 | AP147: =-AP133 -> 0 | AQ147: 0 | AR147: 0 | AS147: 0 | AT147: 0
E148: Opening balance brought forward (after transfer) | G148: £m 18/19 prices | AH148: =SUM(AH146:AH147) -> 36.02575517 | AI148: 43.79730185 | AJ148: 51.61521204 | AK148: 61.35209564 | AL148: 139.1600497 | AM148: 156.6404475 | AN148: 174.5273653 | AO148: 192.9534088 | AP148: =SUM(AP146:AP147) -> 211.403105 | AQ148: 229.8528012 | AR148: 248.3024975 | AS148: 266.7521937 | AT148: 285.2018899
E149: Regulatory depreciation | G149: £m 18/19 prices | AH149: =AH140 / AH$144 -> 7.771546682 | AI149: 7.817910183 | AJ149: 7.874433633 | AK149: 8.343422558 | AL149: 17.48039779 | AM149: 17.88691777 | AN149: 18.42604353 | AO149: 18.44969623 | AP149: =AP140 / AP$144 -> 18.44969623 | AQ149: 18.44969623 | AR149: 18.44969623 | AS149: 18.44969623 | AT149: 18.44969623
E150: Closing value carried forward | G150: £m 18/19 prices | AH150: =AH148 + AH149 -> 43.79730185 | AI150: =AI148 + AI149 -> 51.61521204 | AJ150: 59.48964567 | AK150: 69.6955182 | AL150: 156.6404475 | AM150: 174.5273653 | AN150: 192.9534088 | AO150: 211.403105 | AP150: =AP148 + AP149 -> 229.8528012 | AQ150: 248.3024975 | AR150: 266.7521937 | AS150: 285.2018899 | AT150: 303.6515861
D152: Asset balance
E154: Net value after regulatory depreciation | G154: £m 18/19 prices | AH154: =AH140 - AH150 -> 305.9222988 | AI154: 300.1907462 | AJ154: 294.8598678 | AK154: 305.7584969 | AL154: 629.9774533 | AM154: 630.3839346 | AN154: 636.21855 | AO154: 618.8332251 | AP154: =AP140 - AP150 -> 600.3835289 | AQ154: 581.9338327 | AR154: 563.4841364 | AS154: 545.0344402 | AT154: 526.584744
B156: End of sheet

Sheet Finance&Tax
A1: Finance & Tax
B2: =UserInterface!G17 -> NGGT TO
E3: Parameter | G3: Units | I3: Constant | AP3: Annual values
E4: PCFM year ending | F4: =Cover!C4 -> Model Version | I4: =UserInterface!$G$10 -> 2025-03-31 | K4: 1991-03-31 | L4: 1992-03-31 | M4: 1993-03-31 | N4: 1994-03-31 | O4: 1995-03-31 | P4: 1996-03-31 | Q4: 1997-03-31 | R4: 1998-03-31 | S4: 1999-03-31 | T4: 2000-03-31 | U4: 2001-03-31 | V4: 2002-03-31 | W4: 2003-03-31 | X4: 2004-03-31 | Y4: 2005-03-31 | Z4: 2006-03-31 | AA4: 2007-03-31 | AB4: 2008-03-31 | AC4: 2009-03-31 | AD4: 2010-03-31 | AE4: 2011-03-31 | AF4: 2012-03-31 | AG4: 2013-03-31 | AH4: 2014-03-31 | AI4: 2015-03-31 | AJ4: 2016-03-31 | AK4: 2017-03-31 | AL4: 2018-03-31 | AM4: 2019-03-31 | AN4: 2020-03-31 | AO4: 2021-03-31 | AP4: 2022-03-31 | AQ4: 2023-03-31 | AR4: 2024-03-31 | AS4: 2025-03-31 | AT4: 2026-03-31
B6: Net debt
B7: Note: Net debt is calculated to generate interest paid (for the tax calculation) and gearing levels (for equity issuance calculations).
B8: "Core" net debt is distinct from "Non-core" net debt. Non-core net debt relates to assets held outside the main RAV and receiving a pre-tax income.
C10: Core net debt
C11: Note: The company opens the price control at its notionally geared level. Any equity issuance required to reach this level is not shown.
C12: Equity issuance (if any) occurs at the start of the year and may be followed by transfers to or from non-core net debt (to equalise opening gearing levels across the company).
C13: Start of year transfers may also include net debt accompanying non-core assets transferred to core RAV.
C14: A sub-total is taken before tax and interest on in-year cashflow. This allows the calculation of interest on in-year cashflow to be solved analytically.
E16: Opening balance brought forward (before equity issuance and transfers) | G16: £m nominal | AQ16: =AP40 -> -3665.596104 | AR16: =AQ40 -> -3638.789647 | AS16: =AR40 -> -3632.145647 | AT16: =AS40 -> -3622.63523
E17: Equity issuance | G17: £m nominal | AQ17: =AQ103 -> 0 | AR17: =AR103 -> 0 | AS17: =AS103 -> 0 | AT17: =AT103 -> 0
E18: Opening balance brought forward (after equity issuance, before transfers) | G18: £m nominal | AQ18: =SUM(AQ16:AQ17) -> -3665.596104 | AR18: =SUM(AR16:AR17) -> -3638.789647 | AS18: =SUM(AS16:AS17) -> -3632.145647 | AT18: =SUM(AT16:AT17) -> -3622.63523
E19: Transfer from non-core net debt | G19: £m nominal | AQ19: =-AQ53 -> 0 | AR19: =-AR53 -> 0 | AS19: =-AS53 -> 0 | AT19: =-AT53 -> 0
E20: Opening balance brought forward (after equity issuance and transfers) | G20: £m nominal | AP20: =-AP83 * (AP70 + AP71) -> -3771.505054 | AQ20: =SUM(AQ18:AQ19) -> -3665.596104 | AR20: =SUM(AR18:AR19) -> -3638.789647 | AS20: =SUM(AS18:AS19) -> -3632.145647 | AT20: =SUM(AT18:AT19) -> -3622.63523
E21: Add TO calculated revenue (before tax) | G21: £m nominal | AP21: =Revenue!AP21 * TOpf -> 776.30312 | AQ21: =Revenue!AQ21 * TOpf -> 867.0496386 | AR21: =Revenue!AR21 * TOpf -> 959.1623808 | AS21: =Revenue!AS21 * TOpf -> 1003.418547 | AT21: =Revenue!AT21 * TOpf -> 1032.52757
E22: Add SO calculated revenue (before tax) | G22: £m nominal | AP22: =SystemOperator!AP615 * TOpf -> 336.1896533 | AQ22: =SystemOperator!AQ615 * TOpf -> 827.4882524 | AR22: =SystemOperator!AR615 * TOpf -> 300.1471366 | AS22: =SystemOperator!AS615 * TOpf -> 310.7968937 | AT22: =SystemOperator!AT615 * TOpf -> 310.3381778
E23: Less TO directly remunerated services adjustment | G23: £m nominal | AP23: =- Input!AP140 * TOpf -> 3.61240502 | AQ23: =- Input!AQ140 * TOpf -> 0 | AR23: =- Input!AR140 * TOpf -> 0 | AS23: =- Input!AS140 * TOpf -> 0 | AT23: =- Input!AT140 * TOpf -> 0
E24: Less TO actual totex | G24: £m nominal | AP24: =-Totex!AP82 * TOpf -> -317.8399305 | AQ24: =-Totex!AQ82 * TOpf -> -407.6178992 | AR24: =-Totex!AR82 * TOpf -> -541.6647002 | AS24: =-Totex!AS82 * TOpf -> -578.4475953 | AT24: =-Totex!AT82 * TOpf -> -704.4880891
E25: Less SO actual totex | G25: £m nominal | AP25: =- SystemOperator!AP283 * TOpf -> -77.47595305 | AQ25: =- SystemOperator!AQ283 * TOpf -> -77.87845609 | AR25: =- SystemOperator!AR283 * TOpf -> -99.99708273 | AS25: =- SystemOperator!AS283 * TOpf -> -149.0630609 | AT25: =- SystemOperator!AT283 * TOpf -> -142.6190433
E26: Less TO actual non-totex | G26: £m nominal | AP26: =-Input!AP90 * TOpf -> -125.54085 | AQ26: =-Input!AQ90 * TOpf -> -152.8437338 | AR26: =-Input!AR90 * TOpf -> -127.9680713 | AS26: =-Input!AS90 * TOpf -> -117.1226652 | AT26: =-Input!AT90 * TOpf -> -114.010561
E27: Less SO actual non-totex | G27: £m nominal | AP27: =- SystemOperator!AP46 * TOpf -> -3.434348501 | AQ27: =- SystemOperator!AQ46 * TOpf -> -3.22656543 | AR27: =- SystemOperator!AR46 * TOpf -> -3.054107277 | AS27: =- SystemOperator!AS46 * TOpf -> 1.043168354 | AT27: =- SystemOperator!AT46 * TOpf -> 1.096822138
E28: Less TO other costs | G28: £m nominal | AP28: =- Input!AP113 * TOpf -> -2.296410178 | AQ28: =- Input!AQ113 * TOpf -> -12.84808668 | AR28: =- Input!AR113 * TOpf -> -30.91226863 | AS28: =- Input!AS113 * TOpf -> -50.35256981 | AT28: =- Input!AT113 * TOpf -> -34.09513577
E29: Less SO other costs | G29: £m nominal | AP29: =- SystemOperator!AP76 *SOpf -> -231.068431 | AQ29: =- SystemOperator!AQ76 *SOpf -> -717.0129346 | AR29: =- SystemOperator!AR76 *SOpf -> -174.538805 | AS29: =- SystemOperator!AS76 *SOpf -> -171.3895249 | AT29: =- SystemOperator!AT76 *SOpf -> -177.2768745
E30: Less dividends | G30: £m nominal | AP30: =-AP205 -> -77.35432189 | AQ30: =-AQ205 -> -83.24998498 | AR30: =-AR205 -> -88.28093271 | AS30: =-AS205 -> -90.60342108 | AT30: =-AT205 -> -92.51720873
E31: Less pre-vesting disposal proceeds | G31: £m nominal | AP31: =-('Return&RAV'!AP54) * TOpf -> 0 | AQ31: =-('Return&RAV'!AQ54) * TOpf -> 0 | AR31: =-('Return&RAV'!AR54) * TOpf -> 0 | AS31: =-('Return&RAV'!AS54) * TOpf -> 0 | AT31: =-('Return&RAV'!AT54) * TOpf -> 0
E32: Less equity issuance costs | G32: £m nominal | AP32: =-AP195 -> -7.857302196 | AQ32: =-AQ195 -> 0 | AR32: =-AR195 -> 0 | AS32: =-AS195 -> 0 | AT32: =-AT195 -> 0
E33: Closing net debt (before tax and debt costs) | G33: £m nominal | AP33: =SUM(AP20:AP32) -> -3498.267423 | AQ33: =SUM(AQ20:AQ32) -> -3425.735874 | AR33: =SUM(AR20:AR32) -> -3445.896097 | AS33: =SUM(AS20:AS32) -> -3473.865875 | AT33: =SUM(AT20:AT32) -> -3543.679572
E34: Less net interest paid (excluding principal inflation accretion) | G34: £m nominal | AP34: =AP169 -> -127.2680309 | AQ34: =AQ169 -> -119.7234018 | AR34: =AR169 -> -119.8331598 | AS34: =AS169 -> -116.2871078 | AT34: =AT169 -> -133.78825
E35: Less net interest paid (principal inflation accretion) | G35: £m nominal | AP35: =AP171 -> -40.06064953 | AQ35: =AQ171 -> -93.33037113 | AR35: =AR171 -> -66.41639042 | AS35: =AS171 -> -32.48224696 | AT35: =AT171 -> -18.3834789
E36: Add tax allowance (including adjustment) | G36: £m nominal | AP36: =AP249 -> 37.33577894 | AQ36: =AQ249 -> 27.46814999 | AR36: =AR249 -> 36.74054284 | AS36: =AS249 -> 57.06409878 | AT36: =AT249 -> 133.8946901
E37: Add SO tax allowance (including adjustment) | G37: £m nominal | AP37: =SystemOperator!AP515 -> 3.628801883 | AQ37: =SystemOperator!AQ515 -> 0.3989637156 | AR37: =SystemOperator!AR515 -> 0.4424018457 | AS37: =SystemOperator!AS515 -> 0.4271148276 | AT37: =SystemOperator!AT515 -> 0.3972008586
E38: Less tax paid (including cash flow on revenue without a tax allowance) | G38: £m nominal | AP38: =-AP280+ NonCore!AP21 -> -37.33577894 | AQ38: =-AQ280+ NonCore!AQ21 -> -27.46814999 | AR38: =-AR280+ NonCore!AR21 -> -36.74054284 | AS38: =-AS280+ NonCore!AS21 -> -57.06409878 | AT38: =-AT280+ NonCore!AT21 -> -133.8946901
E39: Less SO tax paid | G39: £m nominal | AP39: =-SystemOperator!AP545 -> -3.628801883 | AQ39: =-SystemOperator!AQ545 -> -0.3989637156 | AR39: =-SystemOperator!AR545 -> -0.4424018457 | AS39: =-SystemOperator!AS545 -> -0.4271148276 | AT39: =-SystemOperator!AT545 -> -0.3972008586
E40: Closing value | G40: £m nominal | AP40: =SUM(AP33:AP39) -> -3665.596104 | AQ40: =SUM(AQ33:AQ39) -> -3638.789647 | AR40: =SUM(AR33:AR39) -> -3632.145647 | AS40: =SUM(AS33:AS39) -> -3622.63523 | AT40: =SUM(AT33:AT39) -> -3695.851301
C42: SO net debt
C43: Note: Values presented below are a summary for the System Operator. These are NOT used in calculations.
E45: Opening balance brought forward (after transfers) | G45: £m nominal | AP45: =AP71*AP83 -> 93.0681771 | AQ45: =SUM(AP47) -> 90.27558527 | AR45: =SUM(AQ47) -> 86.50059795 | AS45: =SUM(AR47) -> 82.53572549 | AT45: =SUM(AS47) -> 82.38281273
E46: Movement in year | G46: £m nominal | AP46: =AP47-AP45 -> -2.792591828 | AQ46: =AQ47-AQ45 -> -3.774987316 | AR46: =AR47-AR45 -> -3.964872468 | AS46: =AS47-AS45 -> -0.1529127526 | AT46: =AT47-AT45 -> -1.098410062
E47: Closing net debt | G47: £m nominal | AP47: =(SystemOperator!AP444 * TOpf) * AP112 -> 90.27558527 | AQ47: =(SystemOperator!AQ444 * TOpf) * AQ112 -> 86.50059795 | AR47: =(SystemOperator!AR444 * TOpf) * AR112 -> 82.53572549 | AS47: =(SystemOperator!AS444 * TOpf) * AS112 -> 82.38281273 | AT47: =(SystemOperator!AT444 * TOpf) * AT112 -> 81.28440267
C49: Non-core net debt
C50: Note: Values presented below are a summary of those calculated on the "NonCore" sheet.
E52: Opening balance brought forward (before transfers) | G52: £m nominal | AQ52: =AP56 -> 0 | AR52: =AQ56 -> 0 | AS52: =AR56 -> 0 | AT52: =AS56 -> 0
E53: Transfer from core net debt | G53: £m nominal | AQ53: =NonCore!AQ23 -> 0 | AR53: =NonCore!AR23 -> 0 | AS53: =NonCore!AS23 -> 0 | AT53: =NonCore!AT23 -> 0
E54: Opening balance brought forward (after transfers) | G54: £m nominal | AP54: =-AP72 * AP83 -> 0 | AQ54: =SUM(AQ52:AQ53) -> 0 | AR54: =SUM(AR52:AR53) -> 0 | AS54: =SUM(AS52:AS53) -> 0 | AT54: =SUM(AT52:AT53) -> 0
E55: Movement in year | G55: £m nominal | AP55: =AP56-AP54 -> 0 | AQ55: =AQ56-AQ54 -> 0 | AR55: =AR56-AR54 -> 0 | AS55: =AS56-AS54 -> 0 | AT55: =AT56-AT54 -> 0
E56: Closing net debt | G56: £m nominal | AP56: =NonCore!AP22 -> 0 | AQ56: =NonCore!AQ22 -> 0 | AR56: =NonCore!AR22 -> 0 | AS56: =NonCore!AS22 -> 0 | AT56: =NonCore!AT22 -> 0
C58: Total net debt
E60: Opening total net debt (before equity issuance) | G60: £m nominal | AQ60: =AQ16 + AQ52 -> -3665.596104 | AR60: =AR16 + AR52 -> -3638.789647 | AS60: =AS16 + AS52 -> -3632.145647 | AT60: =AT16 + AT52 -> -3622.63523
E61: Opening total net debt (after equity issuance) | G61: £m nominal | AP61: =AP20 + AP54 -> -3771.505054 | AQ61: =AQ18 + AQ52 -> -3665.596104 | AR61: =AR18 + AR52 -> -3638.789647 | AS61: =AS18 + AS52 -> -3632.145647 | AT61: =AT18 + AT52 -> -3622.63523
B63: Regearing
C65: Overall opening gearing
C66: Note: Opening values are based on real opening RAV inflated by the previous years prices.
E68: Opening total net debt (before equity issuance) | G68: £m nominal | AQ68: =AQ60 -> -3665.596104 | AR68: =AR60 -> -3638.789647 | AS68: =AS60 -> -3632.145647 | AT68: =AT60 -> -3622.63523
E70: Opening core RAV (after transfers) | G70: £m nominal | AP70: =('Return&RAV'!AP41) * Input!AO$196 -> 6130.728129 | AQ70: =('Return&RAV'!AQ41) * Input!AP$196 -> 6295.734182 | AR70: =('Return&RAV'!AR41) * Input!AQ$196 -> 6785.381719 | AS70: =('Return&RAV'!AS41) * Input!AR$196 -> 7199.386714 | AT70: =('Return&RAV'!AT41) * Input!AS$196 -> 7383.422482
E71: Opening SO RAV (after transfers) | G71: £m nominal | AP71: =SystemOperator!AP441 * Input!AO$196 -> 155.1136285 | AQ71: =SystemOperator!AQ441 * Input!AP$196 -> 150.4593088 | AR71: =SystemOperator!AR441 * Input!AQ$196 -> 152.1170297 | AS71: =SystemOperator!AS441 * Input!AR$196 -> 157.3576788 | AT71: =SystemOperator!AT441 * Input!AS$196 -> 166.8626081
E72: Opening non-core RAV (after transfers) | G72: £m nominal | AP72: =NonCore!AP14 * Input!AO$196 -> 0 | AQ72: =NonCore!AQ14 * Input!AP$196 -> 0 | AR72: =NonCore!AR14 * Input!AQ$196 -> 0 | AS72: =NonCore!AS14 * Input!AR$196 -> 0 | AT72: =NonCore!AT14 * Input!AS$196 -> 0
E73: Total opening regulatory assets (after transfers) | G73: £m nominal | AP73: =SUM(AP70:AP72) -> 6285.841757 | AQ73: =SUM(AQ70:AQ72) -> 6446.193491 | AR73: =SUM(AR70:AR72) -> 6937.498748 | AS73: =SUM(AS70:AS72) -> 7356.744393 | AT73: =SUM(AT70:AT72) -> 7550.28509
E75: Overall gearing at start of year (before equity issuance) | G75: % | AQ75: =- AQ68 / AQ$73 -> 0.568645063 | AR75: =- AR68 / AR$73 -> 0.5245103139 | AS75: =- AS68 / AS$73 -> 0.4937164394 | AT75: =- AT68 / AT$73 -> 0.4798011183
C77: Start of price control notional regearing
C78: Note: An allowance is given to cover the change in notional gearing from its level in the previous price control.
C79: For transmission only, where the Pre-RIIO closing gearing is higher than the notional opening gear the notional gearing at the start of RIIO will be uplifted to reflect this difference.
E81: End of price control closing notional gearing | J81: > | AO81: =Input!AO172 -> 0.625
E83: Notional gearing | G83: % | J83: > | AP83: =Input!$AP$172 -> 0.6
E85: Start of price control change in notional gearing | G85: % | AP85: =AO81-AP83 -> 0.025
E86: Total opening regulatory assets (after transfers) | G86: £m nominal | AP86: =AP73 -> 6285.841757
E88: Movement in net debt for notional regearing change | G88: £m nominal | AP88: =AP85 * AP$86 -> 157.1460439
C90: Equity issuance
C91: Note: If opening overall gearing exceeds its target level beyond a given threshold, an equity issuance is triggered, bringing opening gearing back to its target level. An allowance is calculated for the cost of raising this equity.
E93: Total opening regulatory assets (after transfers) | G93: £m nominal | AQ93: =AQ73 -> 6446.193491 | AR93: =AR73 -> 6937.498748 | AS93: =AS73 -> 7356.744393 | AT93: =AT73 -> 7550.28509
E95: Overall gearing at start of year (before equity issuance) | G95: % | AQ95: =AQ75 -> 0.568645063 | AR95: =AR75 -> 0.5245103139 | AS95: =AS75 -> 0.4937164394 | AT95: =AT75 -> 0.4798011183
E96: Less target gearing for equity issuance | G96: % | AQ96: =-Input!AQ256 -> -0.6 | AR96: =-Input!AR256 -> -0.6 | AS96: =-Input!AS256 -> -0.6 | AT96: =-Input!AT256 -> -0.6
E97: Deviation from equity issuance target gearing | G97: % | AQ97: =SUM(AQ95:AQ96) -> -0.03135493703 | AR97: =SUM(AR95:AR96) -> -0.07548968606 | AS97: =SUM(AS95:AS96) -> -0.1062835606 | AT97: =SUM(AT95:AT96) -> -0.1201988817
E99: Threshold deviation above target level | G99: % | AQ99: =Input!AQ253 -> 0.05 | AR99: =Input!AR253 -> 0.05 | AS99: =Input!AS253 -> 0.05 | AT99: =Input!AT253 -> 0.05
E101: Equity issuance threshold met | G101: text | AQ101: =AQ97 >= AQ99 -> FALSE | AR101: =AR97 >= AR99 -> FALSE | AS101: =AS97 >= AS99 -> FALSE | AT101: =AT97 >= AT99 -> FALSE
E103: Equity issuance | G103: £m nominal | AQ103: =AQ93 * AQ97 * AQ101 -> 0 | AR103: =AR93 * AR97 * AR101 -> 0 | AS103: =AS93 * AS97 * AS101 -> 0 | AT103: =AT93 * AT97 * AT101 -> 0
C105: Start of year gearing equalisation between core and non-core net debt
C106: Note: Movements in non-core cashflow allow core and non-core gearing levels to diverge within the year. Net debt transfers at the start of the year equalise levels of gearing across the company.
C107: The overall gearing percentage is exported to the "NonCore" sheet to set their opening gearing to that level. Net movements required to reach that level from their net debt brought forward generate a transfer from Core net debt.
E109: Opening total net debt (after equity issuance) | G109: £m nominal | AP109: =AP61 -> -3771.505054 | AQ109: =AQ61 -> -3665.596104 | AR109: =AR61 -> -3638.789647 | AS109: =AS61 -> -3632.145647 | AT109: =AT61 -> -3622.63523
E110: Total opening regulatory assets (after transfers) | G110: £m nominal | AP110: =AP73 -> 6285.841757 | AQ110: =AQ73 -> 6446.193491 | AR110: =AR73 -> 6937.498748 | AS110: =AS73 -> 7356.744393 | AT110: =AT73 -> 7550.28509
E112: Overall gearing at start of year (after equity issuance) | G112: % | AP112: =-AP109/AP110 -> 0.6 | AQ112: =-AQ109/AQ110 -> 0.568645063 | AR112: =-AR109/AR110 -> 0.5245103139 | AS112: =-AS109/AS110 -> 0.4937164394 | AT112: =-AT109/AT110 -> 0.4798011183
B114: Financing costs
C116: Interest
D118: Forecast cost of debt
D119: Note: The nominal cost of debt is calculated and adjusted for any portion indexed for inflation.
E121: Fixed rate debt
E123: Cost of debt | G123: annual real % | AP123: =Input!AP170 -> 0.0205 | AQ123: =Input!AQ170 -> 0.019 | AR123: =Input!AR170 -> 0.0192 | AS123: =Input!AS170 -> 0.0211 | AT123: =Input!AT170 -> 0.0229
E124: Forecast Debt inflation (CPIH long term) | G124: annual % | AP124: =Input!AP192 -> 0.02 | AQ124: =Input!AQ192 -> 0.02 | AR124: =Input!AR192 -> 0.02 | AS124: =Input!AS192 -> 0.016 | AT124: =Input!AT192 -> 0.02
E126: Forecast cost of debt (fixed rate) | G126: nominal annual % | AP126: =((1 + AP123) * (1 + AP124)) - 1 -> 0.04091 | AQ126: =((1 + AQ123) * (1 + AQ124)) - 1 -> 0.03938 | AR126: =((1 + AR123) * (1 + AR124)) - 1 -> 0.039584 | AS126: =((1 + AS123) * (1 + AS124)) - 1 -> 0.0374376 | AT126: =((1 + AT123) * (1 + AT124)) - 1 -> 0.043358
E128: CPIH index-linked debt
E130: Cost of debt (CPIH index-linked) | G130: annual real % (CPIH) | AP130: =AP123 -> 0.0205 | AQ130: =AQ123 -> 0.019 | AR130: =AR123 -> 0.0192 | AS130: =AS123 -> 0.0211 | AT130: =AT123 -> 0.0229
E131: Forecast Debt inflation (CPIH) | G131: annual % | AP131: =Input!AP187 -> 0.03673718781 | AQ131: =Input!AQ187 -> 0.08774127008 | AR131: =Input!AR187 -> 0.06249761135 | AS131: =Input!AS187 -> 0.0304739603 | AT131: =Input!AT187 -> 0.01710175026
E133: Forecast cost of debt (CPIH index-linked) | G133: nominal annual % | AP133: =((1 + AP130) * (1 + AP131)) - 1 -> 0.05799030016 | AQ133: =((1 + AQ130) * (1 + AQ131)) - 1 -> 0.1084083542 | AR133: =((1 + AR130) * (1 + AR131)) - 1 -> 0.08289756549 | AS133: =((1 + AS130) * (1 + AS131)) - 1 -> 0.05221696086 | AT133: =((1 + AT130) * (1 + AT131)) - 1 -> 0.04039338034
D135: Average net debt (except for interest and tax)
E137: Opening net debt | G137: £m nominal | AP137: =AP20 -> -3771.505054 | AQ137: =AQ20 -> -3665.596104 | AR137: =AR20 -> -3638.789647 | AS137: =AS20 -> -3632.145647 | AT137: =AT20 -> -3622.63523
E138: Closing net debt (except for interest and tax) | G138: £m nominal | AP138: =AP33 -> -3498.267423 | AQ138: =AQ33 -> -3425.735874 | AR138: =AR33 -> -3445.896097 | AS138: =AS33 -> -3473.865875 | AT138: =AT33 -> -3543.679572
E140: Average net debt (except for interest and tax) | G140: £m nominal | AP140: =AVERAGE(AP137:AP138) -> -3634.886239 | AQ140: =AVERAGE(AQ137:AQ138) -> -3545.665989 | AR140: =AVERAGE(AR137:AR138) -> -3542.342872 | AS140: =AVERAGE(AS137:AS138) -> -3553.005761 | AT140: =AVERAGE(AT137:AT138) -> -3583.157401
E142: Average cost of debt applied (for non core assets) | G142: nominal annual % | AP142: =AP167 / AP140 -> 0.04603409005 | AQ142: =AQ167 / AQ140 -> 0.06008850626 | AR142: =AR167 / AR140 -> 0.05257806965 | AS142: =AS167 / AS140 -> 0.04187140826 | AT142: =AT167 / AT140 -> 0.0424686141
D144: Net interest received
E146: Fixed rate debt
E148: Fixed rate debt as a percentage of net debt | G148: % | AP148: =1 - AP156 -> 0.7 | AQ148: =1 - AQ156 -> 0.7 | AR148: 0.7 | AS148: 0.7 | AT148: 0.7
E149: Average net debt (except for interest and tax) - fixed rate | G149: £m nominal | AP149: =AP$140 * AP148 -> -2544.420367 | AQ149: =AQ$140 * AQ148 -> -2481.966192 | AR149: =AR$140 * AR148 -> -2479.64001 | AS149: =AS$140 * AS148 -> -2487.104033 | AT149: =AT$140 * AT148 -> -2508.210181
E150: Forecast cost of debt (fixed rate) | G150: % | AP150: =AP$126 -> 0.04091 | AQ150: =AQ$126 -> 0.03938 | AR150: =AR$126 -> 0.039584 | AS150: =AS$126 -> 0.0374376 | AT150: =AT$126 -> 0.043358
E152: Net interest received (fixed rate) | G152: £m nominal | AP152: =AP149 * AP150 -> -104.0922372 | AQ152: =AQ149 * AQ150 -> -97.73982864 | AR152: =AR149 * AR150 -> -98.15407016 | AS152: =AS149 * AS150 -> -93.11120594 | AT152: =AT149 * AT150 -> -108.750977
E154: CPIH index-linked debt
E156: CPIH index-linked debt as a percentage of net debt | G156: % | AP156: =Input!AP257 -> 0.3 | AQ156: =Input!AQ257 -> 0.3 | AR156: =Input!AR257 -> 0.3 | AS156: =Input!AS257 -> 0.3 | AT156: =Input!AT257 -> 0.3
E157: Average net debt (except for interest and tax) - CPIH index-linked | G157: £m nominal | AP157: =AP$140 * AP156 -> -1090.465872 | AQ157: =AQ$140 * AQ156 -> -1063.699797 | AR157: =AR$140 * AR156 -> -1062.702862 | AS157: =AS$140 * AS156 -> -1065.901728 | AT157: =AT$140 * AT156 -> -1074.94722
E158: Forecast cost of debt (CPIH index-linked) | G158: % | AP158: =AP$133 -> 0.05799030016 | AQ158: =AQ$133 -> 0.1084083542 | AR158: =AR$133 -> 0.08289756549 | AS158: =AS$133 -> 0.05221696086 | AT158: =AT$133 -> 0.04039338034
E160: Net interest received (CPIH index-linked) | G160: £m nominal | AP160: =AP157 * AP158 -> -63.23644321 | AQ160: =AQ157 * AQ158 -> -115.3139443 | AR160: =AR157 * AR158 -> -88.09548005 | AS160: =AS157 * AS158 -> -55.65814883 | AT160: =AT157 * AT158 -> -43.42075191
E162: Principal inflation accretion on CPIH index-linked debt | G162: £m nominal | AP162: =AP157 * AP131 -> -40.06064953 | AQ162: =AQ157 * AQ131 -> -93.33037113 | AR162: =AR157 * AR131 -> -66.41639042 | AS162: =AS157 * AS131 -> -32.48224696 | AT162: =AT157 * AT131 -> -18.3834789
D164: Principal inflation accretion on index linked debt
D165: Note: The principal inflation accretion from index linked debt is identified separately from other interest costs.
E167: Net interest received | G167: £m nominal | AP167: =SUM(AP152, AP160) -> -167.3286804 | AQ167: =SUM(AQ152, AQ160) -> -213.053773 | AR167: -186.2495502 | AS167: -148.7693548 | AT167: -152.1717289
E169: Net interest received (excluding principal inflation accretion) | G169: £m nominal | AP169: =AP167 - AP171 -> -127.2680309 | AQ169: =AQ167 - AQ171 -> -119.7234018 | AR169: =AR167 - AR171 -> -119.8331598 | AS169: =AS167 - AS171 -> -116.2871078 | AT169: =AT167 - AT171 -> -133.78825
E171: Net interest received (principal inflation accretion) | G171: £m nominal | AP171: =AP162 -> -40.06064953 | AQ171: =AQ162 -> -93.33037113 | AR171: -66.41639042 | AS171: -32.48224696 | AT171: -18.3834789
E173: Share of interest expense as principal inflation accretion | G173: % | AP173: =AP171/AP167 -> 0.2394129292 | AQ173: =AQ171/AQ167 -> 0.4380601659 | AR173: =AR171/AR167 -> 0.3565989305 | AS173: =AS171/AS167 -> 0.2183396373 | AT173: =AT171/AT167 -> 0.1208074524
D175: Allocation of interest to SO
D176: Note: Allocation of interest to SO is based on opening net debt.
E178: SO allocation | G178: % | AP178: =- (AP71 * AP112) / AP137 -> 0.02467666774 | AQ178: =- (AQ71 * AQ112) / AQ137 -> 0.02334079934 | AR178: =- (AR71 * AR112) / AR137 -> 0.02192678302 | AS178: =- (AS71 * AS112) / AS137 -> 0.02138958082 | AT178: =- (AT71 * AT112) / AT137 -> 0.02210017318
E180: SO net interest received (excluding principal inflation accretion) | G180: £m nominal | AP180: =AP169 * AP$178 -> -3.140550912 | AQ180: =AQ169 * AQ$178 -> -2.794439898 | AR180: =AR169 * AR$178 -> -2.627555693 | AS180: =AS169 * AS$178 -> -2.487332491 | AT180: =AT169 * AT$178 -> -2.956743496
E182: SO net interest received (principal inflation accretion) | G182: £m nominal | AP182: =AP171 * AP$178 -> -0.9885633378 | AQ182: =AQ171 * AQ$178 -> -2.178405465 | AR182: =AR171 * AR$178 -> -1.456297781 | AS182: =AS171 * AS$178 -> -0.6947816465 | AT182: =AT171 * AT$178 -> -0.4062780675
C184: Cost of raising equity
C185: Note: If equity issuance is negative, then equity issuance costs are set to zero
E187: First year of RIIO-2 (for start of price control regearing) | G187: text | AP187: =YEAR(AP$4)=YEAR(Input!$I$179) -> TRUE | AQ187: =YEAR(AQ$4)=YEAR(Input!$I$179) -> FALSE | AR187: =YEAR(AR$4)=YEAR(Input!$I$179) -> FALSE | AS187: =YEAR(AS$4)=YEAR(Input!$I$179) -> FALSE | AT187: =YEAR(AT$4)=YEAR(Input!$I$179) -> FALSE
E189: Start of price control change in notional gearing | G189: £m nominal | AP189: =AP88 -> 157.1460439
E190: Issue or redeem equity | G190: £m nominal | AQ190: =AQ103 -> 0 | AR190: =AR103 -> 0 | AS190: =AS103 -> 0 | AT190: =AT103 -> 0
E191: Equity issuance with issuance costs allowed | G191: £m nominal | AP191: =IF(AP187, MAX(AP189,0), MAX(SUM(AP189:AP190),0)) -> 157.1460439 | AQ191: =IF(AQ187, MAX(AQ189,0), MAX(SUM(AQ189:AQ190),0)) -> 0 | AR191: =IF(AR187, MAX(AR189,0), MAX(SUM(AR189:AR190),0)) -> 0 | AS191: =IF(AS187, MAX(AS189,0), MAX(SUM(AS189:AS190),0)) -> 0 | AT191: =IF(AT187, MAX(AT189,0), MAX(SUM(AT189:AT190),0)) -> 0
E193: Equity issuance cost as percentage of new equity | G193: % | AP193: =Input!AP254 -> 0.05 | AQ193: =Input!AQ254 -> 0.05 | AR193: =Input!AR254 -> 0.05 | AS193: =Input!AS254 -> 0.05 | AT193: =Input!AT254 -> 0.05
E195: Equity issuance cost | G195: £m nominal | AP195: =AP191 * AP193 -> 7.857302196 | AQ195: =AQ191 * AQ193 -> 0 | AR195: =AR191 * AR193 -> 0 | AS195: =AS191 * AS193 -> 0 | AT195: =AT191 * AT193 -> 0
C197: Dividends
C198: Note: Unlike interest, dividends are based on notional rather than modelled gearing levels.
C199: The notional dividend calculation for NGGT is based on 'Base' RAV which excludes variant allowances.
E201: Closing core RAV (including SO) | G201: £m nominal | AP201: =('Return&RAV'!AP44 + SystemOperator!AP444) * TOpf -> 6446.193491 | AQ201: =('Return&RAV'!AQ44 + SystemOperator!AQ444) * TOpf -> 6937.498748 | AR201: =('Return&RAV'!AR44 + SystemOperator!AR444) * TOpf -> 7356.744393 | AS201: =('Return&RAV'!AS44 + SystemOperator!AS444) * TOpf -> 7550.28509 | AT201: =('Return&RAV'!AT44 + SystemOperator!AT444) * TOpf -> 7709.767394
E202: Assumed equity portion of RAV | G202: % | AP202: =(1-Input!AP172) -> 0.4 | AQ202: =(1-Input!AQ172) -> 0.4 | AR202: =(1-Input!AR172) -> 0.4 | AS202: =(1-Input!AS172) -> 0.4 | AT202: =(1-Input!AT172) -> 0.4
E203: Assumed dividends as percentage of notional equity portion of RAV | G203: % | AP203: =Input!AP$255 -> 0.03 | AQ203: =Input!AQ$255 -> 0.03 | AR203: =Input!AR$255 -> 0.03 | AS203: =Input!AS$255 -> 0.03 | AT203: =Input!AT$255 -> 0.03
E205: Notional dividends | G205: £m nominal | AP205: =AP201 * AP202 * AP203 -> 77.35432189 | AQ205: =AQ201 * AQ202 * AQ203 -> 83.24998498 | AR205: =AR201 * AR202 * AR203 -> 88.28093271 | AS205: =AS201 * AS202 * AS203 -> 90.60342108 | AT205: =AT201 * AT202 * AT203 -> 92.51720873
B207: Tax allowance
C209: Tax base
C210: Note: The tax charge is calculated before tax on tax. Tax on tax is added after losses are taken into account.
E212: Add calculated revenue (except tax allowance) | G212: £m nominal | AP212: =(Revenue!AP21) * TOpf -> 776.30312 | AQ212: =(Revenue!AQ21) * TOpf -> 867.0496386 | AR212: =(Revenue!AR21) * TOpf -> 959.1623808 | AS212: =(Revenue!AS21) * TOpf -> 1003.418547 | AT212: =(Revenue!AT21) * TOpf -> 1032.52757
E213: Less directly remunerated services adjustment | G213: £m nominal | AP213: =- Input!AP140 * TOpf -> 3.61240502 | AQ213: =- Input!AQ140 * TOpf -> 0 | AR213: =- Input!AR140 * TOpf -> 0 | AS213: =- Input!AS140 * TOpf -> 0 | AT213: =- Input!AT140 * TOpf -> 0
E214: Less NGGT SO Revenue Driver Income - tax calculation in NonCore tab | G214: £m nominal | AP214: =- Input!AP595 *TOpf -> 0 | AQ214: =- Input!AQ595 *TOpf -> 0 | AR214: =- Input!AR595 *TOpf -> 0 | AS214: =- Input!AS595 *TOpf -> 0 | AT214: =- Input!AT595 *TOpf -> 0
E215: Less net interest paid (excluding principal inflation accretion) | G215: =G169 -> £m nominal | AP215: =AP169 - AP180 -> -124.12748 | AQ215: =AQ169 - AQ180 -> -116.9289619 | AR215: =AR169 - AR180 -> -117.2056041 | AS215: =AS169 - AS180 -> -113.7997753 | AT215: =AT169 - AT180 -> -130.8315065
E216: Less net interest paid (principal inflation accretion) | G216: =G171 -> £m nominal | AP216: =AP171 - AP182 -> -39.07208619 | AQ216: =AQ171 - AQ182 -> -91.15196567 | AR216: =AR171 - AR182 -> -64.96009264 | AS216: =AS171 - AS182 -> -31.78746531 | AT216: =AT171 - AT182 -> -17.97720083
E217: Less revenue tax pool additions | G217: £m nominal | AP217: =-(TaxPools!AP39) * TOpf -> -248.1846337 | AQ217: =-(TaxPools!AQ39) * TOpf -> -287.223521 | AR217: =-(TaxPools!AR39) * TOpf -> -305.373892 | AS217: =-(TaxPools!AS39) * TOpf -> -313.5833605 | AT217: =-(TaxPools!AT39) * TOpf -> -286.3514497
E218: Less capital allowances | G218: £m nominal | AP218: =-TaxPools!AP100 -> -151.71106 | AQ218: =-TaxPools!AQ100 -> -163.2601391 | AR218: =-TaxPools!AR100 -> -164.4270118 | AS218: =-TaxPools!AS100 -> -163.3072771 | AT218: =-TaxPools!AT100 -> -195.6833427
E219: Profits attributable to corporation tax (before Tax Clawback) | G219: £m nominal | AP219: =SUM(AP212:AP218) -> 216.8202652 | AQ219: =SUM(AQ212:AQ218) -> 208.4850509 | AR219: =SUM(AR212:AR218) -> 307.1957802 | AS219: =SUM(AS212:AS218) -> 380.940669 | AT219: =SUM(AT212:AT218) -> 401.6840704
C221: Tax allowance
D223: Tax losses
E225: Taxable losses brought forward | G225: £m nominal | AP225: =Input!$AP$223 -> 0 | AQ225: =SUM(AP230) -> 0 | AR225: =SUM(AQ230) -> 0 | AS225: =SUM(AR230) -> 0 | AT225: =SUM(AS230) -> 0
E226: In-year taxable loss | G226: £m nominal | AP226: =MIN(AP219, 0) -> 0 | AQ226: =MIN(AQ219, 0) -> 0 | AR226: =MIN(AR219, 0) -> 0 | AS226: =MIN(AS219, 0) -> 0 | AT226: =MIN(AT219, 0) -> 0
E227: Contributions to losses from clawback | G227: £m nominal | AP227: =- AP338 -> 0 | AQ227: =- AQ338 -> 0 | AR227: =- AR338 -> 0 | AS227: =- AS338 -> 0 | AT227: =- AT338 -> 0
E228: Adjustment to losses from tax trigger | G228: £m nominal | AP228: =AP304 -> -57.65194439 | AQ228: =AQ304 -> -91.3839904 | AR228: =AR304 -> -196.9741517 | AS228: =AS304 -> -209.7483726 | AT228: =AT304 -> 0
E229: Profits used to offset outstanding losses (excluded from corporation tax) | G229: £m nominal | AP229: =IF(AP219 >= 0, MIN(AP219, -AP225-AP227-AP228), 0) -> 57.65194439 | AQ229: =IF(AQ219 >= 0, MIN(AQ219, -AQ225-AQ227-AQ228), 0) -> 91.3839904 | AR229: =IF(AR219 >= 0, MIN(AR219, -AR225-AR227-AR228), 0) -> 196.9741517 | AS229: =IF(AS219 >= 0, MIN(AS219, -AS225-AS227-AS228), 0) -> 209.7483726 | AT229: =IF(AT219 >= 0, MIN(AT219, -AT225-AT227-AT228), 0) -> 0
E230: Balance carried forward | G230: £m nominal | AP230: =SUM(AP225:AP229) -> 0 | AQ230: =SUM(AQ225:AQ229) -> 0 | AR230: =SUM(AR225:AR229) -> 0 | AS230: =SUM(AS225:AS229) -> 0 | AT230: =SUM(AT225:AT229) -> 0
D232: Tax allowance (before Tax Trigger adjustment)
D233: Note: A "grossing-up factor" based on the infinite geometric progression of being taxed on tax is used to move the tax allowance from a post-tax to a pre-tax basis. This can only be applied once tax losses have been taken into account.
E235: Profits attributable to corporation tax (after taxable losses) | G235: £m nominal | AP235: =MAX(AP219 - AP229,0) -> 159.1683208 | AQ235: =MAX(AQ219 - AQ229,0) -> 117.1010605 | AR235: =MAX(AR219 - AR229,0) -> 110.2216285 | AS235: =MAX(AS219 - AS229,0) -> 171.1922963 | AT235: =MAX(AT219 - AT229,0) -> 401.6840704
E236: Corporation tax rate | G236: % | AP236: =Input!AP$233 -> 0.19 | AQ236: =Input!AQ$233 -> 0.19 | AR236: =Input!AR$233 -> 0.25 | AS236: =Input!AS$233 -> 0.25 | AT236: =Input!AT$233 -> 0.25
E237: Corporation tax charge after losses | G237: £m nominal | AP237: =AP236*AP235 -> 30.24198094 | AQ237: =AQ236*AQ235 -> 22.24920149 | AR237: =AR236*AR235 -> 27.55540713 | AS237: =AS236*AS235 -> 42.79807408 | AT237: =AT236*AT235 -> 100.4210176
E239: "Grossing-up" factor for tax on tax charge after losses | G239: scalar | AP239: =1 / (1 - AP236) -> 1.234567901 | AQ239: 1.234567901 | AR239: 1.333333333 | AS239: 1.333333333 | AT239: 1.333333333
E241: Tax allowance (before Tax Trigger adjustment) | G241: £m nominal | AP241: =AP237 * AP239 -> 37.33577894 | AQ241: =AQ237 * AQ239 -> 27.46814999 | AR241: =AR237 * AR239 -> 36.74054284 | AS241: =AS237 * AS239 -> 57.06409878 | AT241: =AT237 * AT239 -> 133.8946901
D243: Tax allowance
E245: Tax allowance (before Tax Trigger adjustment) | G245: £m nominal | AP245: =AP241 -> 37.33577894 | AQ245: =AQ241 -> 27.46814999 | AR245: =AR241 -> 36.74054284 | AS245: =AS241 -> 57.06409878 | AT245: =AT241 -> 133.8946901
E246: Additional allowance where tax trigger positive (net of adjustment to losses) | G246: £m nominal | AP246: =AP312 -> 0 | AQ246: =AQ312 -> 0 | AR246: =AR312 -> 0 | AS246: =AS312 -> 0 | AT246: =AT312 -> 0
E247: Tax allowance | G247: £m nominal | AP247: =SUM(AP245:AP246) -> 37.33577894 | AQ247: =SUM(AQ245:AQ246) -> 27.46814999 | AR247: =SUM(AR245:AR246) -> 36.74054284 | AS247: =SUM(AS245:AS246) -> 57.06409878 | AT247: =SUM(AT245:AT246) -> 133.8946901
E248: Tax allowance adjustment | G248: £m nominal | AP248: =Revenue!AP23 * TOpf -> 0 | AQ248: =Revenue!AQ23 * TOpf -> 0 | AR248: =Revenue!AR23 * TOpf -> 0 | AS248: =Revenue!AS23 * TOpf -> 0 | AT248: =Revenue!AT23 * TOpf -> 0
E249: Tax allowance (including adjustment) | G249: £m nominal | AP249: =SUM(AP247:AP248) -> 37.33577894 | AQ249: =SUM(AQ247:AQ248) -> 27.46814999 | AR249: =SUM(AR247:AR248) -> 36.74054284 | AS249: =SUM(AS247:AS248) -> 57.06409878 | AT249: =SUM(AT247:AT248) -> 133.8946901
B251: Tax paid
C253: Tax base
E256: Add recalculated base revenue (except tax allowance), incl add. income | G256: £m nominal | AP256: =AP212 -> 776.30312 | AQ256: 867.0496386 | AR256: 959.1623808 | AS256: 1003.418547 | AT256: 1032.52757
E257: Less directly remunerated services adjustment | G257: £m nominal | AP257: 3.61240502 | AQ257: 0 | AR257: 0 | AS257: 0 | AT257: 0
E258: Less NGGT SO Revenue Driver Income - tax calculation in NonCore tab | G258: £m nominal | AP258: 0 | AQ258: 0 | AR258: 0 | AS258: 0 | AT258: 0
E259: Add tax allowance (including adjustment) | G259: £m nominal | AP259: =AP249 -> 37.33577894 | AQ259: =AQ249 -> 27.46814999 | AR259: =AR249 -> 36.74054284 | AS259: =AS249 -> 57.06409878 | AT259: =AT249 -> 133.8946901
